Workbook

Sheet 00 Alimenta (hidden)
A2: PRG | B2: 4
A4: CE | B4: Conto | C4: Descrizione conto | D4: Esercizio 2016 | E4: Esercizio 2017
A5: AA0030 | B5: 0301010101 | C5: Contributi da Regione F.S. regionale indistinto per quota capitaria | D5: 536774342.8 | E5: 535837429.2
A6: AA0030 | B6: 0301010102 | C6: Contributi da Regione F.S. regionale indistinto per funzioni | D6: 9609333.72 | E6: 11928457.37
A7: AA0040 | B7: 0301010212 | C7: Quota per progetti di PSN L. 662/96 | D7: 6083618.06 | E7: 14815465.59
A8: AA0070 | B8: 0301020101 | C8: Contributi da Regione (extra fondo) vincolati | D8: 180605.96 | E8: 123104.1
A9: AA0130 | B9: 0301020202 | C9: Contributi da Aziende sanitarie pubbliche della Regione (extra fondo) altro | D9: 232003.28 | E9: 0
A10: AA0150 | B10: 0301020306 | C10: Contributi da altri enti pubblici - vincolati | D10: 70020.75 | E10: 156684.25
A11: AA0200 | B11: 0301030201 | C11: Contributi da Ministero della Salute per ricerca finalizzata | D11: 10216 | E11: 0
A12: AA0250 | B12: 0716010101 | C12: Rettifica contributi in c/esercizio per destinazione ad investimenti - da Regione per quota F.S. regionale | D12: -8787559.11 | E12: -6506318.89
A13: AA0280 | B13: 0302010102 | C13: Utilizzo fondi per quote inutilizzate contributi di esercizi precedenti da Regione per quota emersione extracomunitari L. 102/09 art. 1 ter, comma 17 e D.Lgs. 109/2012 art. 5, comma 16 | D13: 697057.43 | E13: 0
A14: AA0280 | B14: 0302010103 | C14: Utilizzo fondi per quote inutilizzate contributi di esercizi precedenti da Regione per quota medicina Penitenziaria D.Lgs 230/99 | D14: 0 | E14: 94584
A15: AA0280 | B15: 0302010104 | C15: Utilizzo fondi per quote inutilizzate contributi di esercizi precedenti per quota Medicina Penitenziaria art. 2 comma 283 L. 244/07 | D15: 1616252.47 | E15: 609546.18
A16: AA0280 | B16: 0302010105 | C16: Utilizzo fondi per quote inutilizzate contributi di esercizi precedenti da Regione per quota hanseniani L. 31/86 | D16: 17304.98 | E16: 0
A17: AA0280 | B17: 0302010107 | C17: Utilizzo fondi per quote inutilizzate contributi di esercizi precedenti da Regione per quota Extracomunitari irregolari L. 40/98 | D17: 45654.83 | E17: 280768.86
A18: AA0280 | B18: 0302010111 | C18: Utilizzo fondi per quote inutilizzate contributi di esercizi precedenti da Regione per quota Aids L 135/90 | D18: 375213.89 | E18: 0
A19: AA0280 | B19: 0302010112 | C19: Utilizzo fondi per quote inutilizzate contributi di esercizi precedenti da Regione per quota Progetti di PSN L 662/96 | D19: 3209444.23 | E19: 4696121.06
A20: AA0280 | B20: 0302010114 | C20: Utilizzo fondi per quote inutilizzate contrib. di es. prec. da Regione per accertamenti medico-legali disposti dalle AA.PP per dipendenti assenti dal servizio per malattia (art.2, co38, D.L.225/10) | D20: 0 | E20: 0
A21: AA0290 | B21: 0302020101 | C21: Utilizzo fondi per quote inutilizzate contributi di esercizi precedenti da soggetti pubblici (extra fondo) vincolati | D21: 299262.65 | E21: 92452.46
A22: AA0350 | B22: 0303010101 | C22: Prestazioni di ricovero | D22: 29211073.79 | E22: 30585746.35
A23: AA0350 | B23: 0303010102 | C23: Per assistenza ospedaliera (erogate da privato accreditato) | D23: 31064729.26 | E23: 31524190.96
A24: AA0360 | B24: 0303010103 | C24: Prestazioni di specialistica ambulatoriale | D24: 5574849.66 | E24: 5751324.09
A25: AA0360 | B25: 0303010105 | C25: Per altra assistenza specialistica ambulatoriale (erogate da privato accreditato) | D25: 2210077.16 | E25: 2437190.17
A26: AA0370 | B26: 0303010107 | C26: Prestazioni di psichiatria residenziale e semiresidenziale nelle Strutture Psicoriabilitative (erogate da privato accreditato) | D26: 4761138.87 | E26: 4556497.31
A27: AA0380 | B27: 0303010108 | C27: Prestazioni di File F | D27: 13121092.03 | E27: 13565690.02
A28: AA0390 | B28: 0303010109 | C28: Prestazioni servizi MMG, PLS, Continuità assistenziale | D28: 204670 | E28: 57455.65
A29: AA0400 | B29: 0303010110 | C29: Prestazioni servizi farmaceutica convenzionata | D29: 1545791.88 | E29: 1531007.26
A30: AA0410 | B30: 0303010112 | C30: per assistenza termale (erogate da privato accreditato) | D30: 1144807.45 | E30: 1104099.89
A31: AA0420 | B31: 0303010113 | C31: Prestazioni trasporto ambulanze ed elisoccorso | D31: 202243.79 | E31: 175653.51
A32: AA0430 | B32: 0303010118 | C32: Per assistenza riabilitativa schema tipo previsto ex art. 26 L. 833/78 | D32: 3391939.12 | E32: 3470706.26
A33: AA0430 | B33: 0303010119 | C33: Per prestazioni ad anziani non autosufficienti nei Centri Residenziali | D33: 112156.53 | E33: 151334.27
A34: AA0430 | B34: 0303010120 | C34: Per prestazioni ad anziani non autosufficienti nelle Residenze Sanitarie Assistite | D34: 1701102.99 | E34: 1770163.85
A35: AA0440 | B35: 0303010203 | C35: Altre prestazioni sanitarie e sociosanitarie a rilevanza sanitaria erogate ad altri soggetti pubblici | D35: 40778.15 | E35: 45364.98
A36: AA0460 | B36: 0303010301 | C36: Prestazioni di ricovero | D36: 6326378.15 | E36: 1554681.22
A37: AA0470 | B37: 0303010302 | C37: Prestazioni ambulatoriali | D37: 1809228.39 | E37: 851774.85
A38: AA0490 | B38: 0303010304 | C38: Prestazioni di File F | D38: 972613.7 | E38: 1604980.14
A39: AA0500 | B39: 0303010305 | C39: Prestazioni servizi MMG, PLS, Continuità assistenziale Extraregione | D39: 155741.96 | E39: 119388.84
A40: AA0510 | B40: 0303010306 | C40: Prestazioni servizi farmaceutica convenzionata Extraregione | D40: 523609.47 | E40: 502038.11
A41: AA0520 | B41: 0303010307 | C41: Prestazioni termali Extraregione | D41: 332335.62 | E41: 172275.4
A42: AA0530 | B42: 0303010308 | C42: Prestazioni trasporto ambulanze ed elisoccorso Extraregione | D42: 267907.44 | E42: 512404.02
A43: AA0550 | B43: 0303010311 | C43: Ricavi per cessione di emocomponenti e cellule staminali Extraregione | D43: 813 | E43: 174766.05
A44: AA0580 | B44: 0303010313 | C44: Prestazioni di assistenza riabilitativa non soggette a compensazione Extraregione | D44: 1860.9 | E44: 0
A45: AA0590 | B45: 0303010314 | C45: Altre prestazioni sanitarie e socio-sanitarie a rilevanza sanitaria non soggette a compensazione Extraregione | D45: 45933.3 | E45: 1696.8
A46: AA0620 | B46: 0303020101 | C46: Prestazioni di ricovero da privati Extraregione in compensazione (mobilità attiva) | D46: 11496977.64 | E46: 11917704.07
A47: AA0630 | B47: 0303020201 | C47: Prestazioni ambulatoriali da privati Extraregione in compensazione (mobilità attiva) | D47: 202279.88 | E47: 218419.7
A48: AA0660 | B48: 0303030101 | C48: Proventi per rilascio cartelle cliniche, radiografie e certificati | D48: 127955.23 | E48: 115699.42
A49: AA0660 | B49: 0303030102 | C49: Proventi per multe, ammende e contravvenzioni di vigili sanitari | D49: 10489.61 | E49: 44855.15
A50: AA0660 | B50: 0303030104 | C50: Proventi per prestazioni di medicina del lavoro | D50: 5587.68 | E50: 1020.47
A51: AA0660 | B51: 0303030105 | C51: Proventi per sanzioni sanità pubblica veterinaria | D51: 643.97 | E51: 10077.74
A52: AA0660 | B52: 0303030106 | C52: Proventi per diritti veterinari ex art.3 D.lgs. 51/92 | D52: 303629.69 | E52: 312591.95
A53: AA0660 | B53: 0303030107 | C53: Proventi per sanzioni amministrative | D53: 188335.21 | E53: 88655.9
A54: AA0660 | B54: 0303030108 | C54: Proventi sperimentazioni farmaci e cliniche | D54: 30453.03 | E54: 80519.63
A55: AA0660 | B55: 0303030109 | C55: Proventi per servizi di medicina legale | D55: 335817.58 | E55: 577975.03
A56: AA0660 | B56: 0303030110 | C56: Ricavi per somministrazione di vaccini | D56: 0 | E56: 262.6
A57: AA0660 | B57: 0303030111 | C57: Proventi per prestazioni di medicina sportiva | D57: 28582.12 | E57: 34421.3
A58: AA0660 | B58: 0303030114 | C58: Altri ricavi per prestazioni sanitarie erogate a soggetti privati | D58: 573044.67 | E58: 320299.61
A59: AA0660 | B59: 0303030115 | C59: Ricavi per prestazioni specialistiche ambulatoriali (a privati paganti) | D59: 784259.08 | E59: 1158003.14
A60: AA0660 | B60: 0303030116 | C60: Ricavi per ricovero ospedaliero | D60: 98901.36 | E60: 40542.93
A61: AA0660 | B61: 0303030117 | C61: Ricavi per prestazioni del dipartimento di prevenzione | D61: 506562.11 | E61: 766497.59
A62: AA0660 | B62: 0303030118 | C62: Ricavi per consulenze sanitarie mediche e veterinarie | D62: 15446.02 | E62: 14715.73
A63: AA0660 | B63: 0303030122 | C63: Ricavi cessione sangue ed emoderivati vs privati | D63: 521325.49 | E63: 3268.12
A64: AA0680 | B64: 0303040101 | C64: Ricavi per prestazioni sanitarie intramoenia - Area ospedaliera | D64: 89330.21 | E64: 50045.82
A65: AA0690 | B65: 0303040201 | C65: Ricavi per prestazioni sanitarie intramoenia - Area specialistica | D65: 3216315.61 | E65: 3252006
A66: AA0700 | B66: 0303040301 | C66: Ricavi per prestazioni sanitarie intramoenia - Area sanità pubblica | D66: 19348.81 | E66: 22414.54
A67: AA0710 | B67: 0303040401 | C67: Ricavi per prestazioni sanitarie intramoenia - Consulenze (ex art. 55 c. 1 lett. c), d) ed ex art. 57-58) | D67: 520863.67 | E67: 478823.7
A68: AA0730 | B68: 0303040601 | C68: Ricavi per prestazioni sanitarie intramoenia - Altro | D68: 109709.92 | E68: 97870.17
A69: AA0740 | B69: 0303040701 | C69: Ricavi per prestazioni sanitarie intramoenia - Altro (Aziende sanitarie pubbliche della Regione) | D69: 0 | E69: 18272.1
A70: AA0760 | B70: 0304010101 | C70: Rimborsi assicurativi | D70: 570386.94 | E70: 166973.67
A71: AA0810 | B71: 0304030101 | C71: Rimborso degli oneri stipendiali del personale dipendente dell'azienda in posizione di comando presso Aziende sanitarie pubbliche della Regione | D71: 0 | E71: 14346.46
A72: AA0830 | B72: 0304030301 | C72: Altri concorsi, recuperi e rimborsi da parte di Aziende sanitarie pubbliche della Regione | D72: 142391.67 | E72: 135883.64
A73: AA0850 | B73: 0304040101 | C73: Rimborso degli oneri stipendiali del personale dipendente dell'azienda in posizione di comando presso altri soggetti pubblici | D73: 117798.94 | E73: 114750.81
A74: AA0860 | B74: 0304040201 | C74: Rimborsi per acquisto beni sanitari v/altri Enti Pubblici | D74: 19160.62 | E74: 14709.64
A75: AA0870 | B75: 0304040303 | C75: Concorso da comuni per integr.rette RSA | D75: 4426.31 | E75: 87662
A76: AA0870 | B76: 0304040304 | C76: Altri concorsi, recuperi e rimborsi da parte di altri soggetti pubblici | D76: 84 | E76: 70008.22
A77: AA0900 | B77: 0304050101 | C77: Pay-back per il superamento del tetto della spesa farmaceutica territoriale | D77: 0 | E77: 0
A78: AA0910 | B78: 0304050102 | C78: Pay-back per il superamento del tetto della spesa farmaceutica ospedaliera | D78: 0 | E78: 20
A79: AA0920 | B79: 0304050103 | C79: Ulteriore Pay-back | D79: 1431892.14 | E79: 3426932.4
A80: AA0930 | B80: 0304050201 | C80: Altri concorsi, recuperi e rimborsi da privati | D80: 674491.36 | E80: 866980.31
A81: AA0950 | B81: 0305010101 | C81: Compartecipazione alla spesa per prestazioni sanitarie - Ticket sulle prestazioni per visite specialistiche | D81: 2890429.38 | E81: 3378962.08
A82: AA0950 | B82: 0305010102 | C82: Compartecipazione alla spesa per prestazioni sanitarie - Ticket sulle prestazioni per diagnostica strumentale | D82: 1513291.51 | E82: 1382098.47
A83: AA0950 | B83: 0305010103 | C83: Compartecipazione alla spesa per prestazioni sanitarie - Ticket sulle prestazioni per analisi di laboratorio | D83: 1628297.52 | E83: 1653708.77
A84: AA0960 | B84: 0305020101 | C84: Compartecipazione alla spesa per prestazioni sanitarie - Ticket sul pronto soccorso | D84: 567331.92 | E84: 330322.76
A85: AA0990 | B85: 0306010101 | C85: Quota imputata all'esercizio dei finanziamenti per investimenti dallo Stato | D85: 55380.81 | E85: 48286.07
A86: AA1000 | B86: 0306020101 | C86: Quota imputata all'esercizio dei finanziamenti per investimenti da Regione | D86: 1574332.01 | E86: 1468544.84
A87: AA1010 | B87: 0306030101 | C87: Quota imputata all'esercizio dei finanziamenti per beni di prima dotazione | D87: 3577467.93 | E87: 3577467.93
A88: AA1020 | B88: 0306040101 | C88: Quota imputata all'esercizio dei contributi in c/esercizio FSR destinati ad investimenti | D88: 3299309.48 | E88: 4730694.31
A89: AA1070 | B89: 0308010102 | C89: Ricavi per consulenze, certificazioni e attestazioni non sanitarie | D89: 0 | E89: 1820.06
A90: AA1070 | B90: 0308010103 | C90: Ricavi per maggior comfort alberghiero | D90: 3063 | E90: 1203.6
A91: AA1070 | B91: 0308010106 | C91: Altri ricavi per prestazioni non sanitarie | D91: 500 | E91: 0
A92: AA1080 | B92: 0308020101 | C92: Affitti attivi | D92: 221554.44 | E92: 221560.64
A93: AA1090 | B93: 0308030102 | C93: Proventi per multe, ammende e contravvenzioni (non sanitarie) | D93: 28997.61 | E93: 39513.47
A94: AA1090 | B94: 0308030104 | C94: Proventi per gestione distributori automatici di bibite | D94: 24734.44 | E94: 13350.83
A95: AA1090 | B95: 0308030105 | C95: Proventi per corsi di formazione | D95: 49070 | E95: 50820
A96: AA1090 | B96: 0308030109 | C96: Altri proventi non sanitari | D96: 206647.14 | E96: 294032.8
A97: BA0040 | B97: 0701010101 | C97: Medicinali con AIC | D97: -55133618.72 | E97: -58058876.31
A98: BA0040 | B98: 0701010102 | C98: Soluzioni infusionali con AIC | D98: -32331.27 | E98: -36070.95
A99: BA0040 | B99: 0701010103 | C99: Ossigeno con AIC | D99: -1424717.16 | E99: -1784465.77
A100: BA0040 | B100: 0701010104 | C100: Altri gas medicali con AIC | D100: -46392.2 | E100: -169365.48
A101: BA0040 | B101: 0701010105 | C101: Emoderivati con AIC | D101: -3757305.78 | E101: -3209150.92
A102: BA0040 | B102: 0701010108 | C102: Farmaci innovativi | D102: -6062470.32 | E102: -5977880.04
A103: BA0050 | B103: 0701010106 | C103: Medicinali senza AIC | D103: -1300987.46 | E103: -722585.84
A104: BA0090 | B104: 0701010202 | C104: Sangue ed emocomponenti da pubblico (Aziende sanitarie pubbliche extra Regione) - Mobilità extraregionale | D104: -3037 | E104: -187348.99
A105: BA0090 | B105: 0701010204 | C105: Costi per plasmaderivazione da pubblico (Aziende sanitarie pubbliche extra Regione) - Mobilità extraregionale | D105: -130003.57 | E105: 0
A106: BA0220 | B106: 0701010301 | C106: Strumentazione per bioimmagini e radioterapia | D106: -211426.5 | E106: -177143.11
A107: BA0220 | B107: 0701010302 | C107: Materiale per sterilizzazione | D107: -97003.78 | E107: -129624.42
A108: BA0220 | B108: 0701010303 | C108: Dispositivi per chirurgia mini-invasiva ed elettrochirurgia | D108: -1235479.01 | E108: -1449807.99
A109: BA0220 | B109: 0701010304 | C109: Protesi ortopediche e mezzi per osteosintesi e sintesi tendineo-legamentosa | D109: -2949180.05 | E109: -2805651.43
A110: BA0220 | B110: 0701010305 | C110: Protesi oculistiche | D110: -179179.78 | E110: -204139.52
A111: BA0220 | B111: 0701010306 | C111: Protesi vascolari e cardiache | D111: -1580161.31 | E111: -1648630.99
A112: BA0220 | B112: 0701010307 | C112: Altri dispositivi protesici impiantabili e prodotti per osteosintesi | D112: -106836.33 | E112: -64076.91
A113: BA0220 | B113: 0701010308 | C113: Supporti e ausili tecnici per persone disabili | D113: -87809.16 | E113: -88676.58
A114: BA0220 | B114: 0701010309 | C114: Dispositivi per emotrasfusione ed ematologia | D114: -1082398.01 | E114: -639214.71
A115: BA0220 | B115: 0701010310 | C115: Dispositivi per dialisi | D115: -1498034.56 | E115: -1517787.64
A116: BA0220 | B116: 0701010312 | C116: Dispositivi da somministrazione, prelievo e raccolta | D116: -3478757.96 | E116: -3502487.78
A117: BA0220 | B117: 0701010314 | C117: Strumentazione per esplorazioni funzionali ed interventi terapeutici | D117: -738929.76 | E117: -955175.28
A118: BA0220 | B118: 0701010315 | C118: Strumentazione per radiologia diagnostica ed interventistica | D118: -1473.64 | E118: -1054.08
A119: BA0220 | B119: 0701010316 | C119: Strumentario chirurgico pluriuso o riusabile | D119: -544050.55 | E119: -736677.23
A120: BA0220 | B120: 0701010317 | C120: Dispositivi protesici impiantabili - vari | D120: -231285.84 | E120: -201076.3
A121: BA0220 | B121: 0701010318 | C121: Dispositivi per sistema artero-venoso | D121: -1701031.92 | E121: -1942531.26
A122: BA0220 | B122: 0701010319 | C122: Guide per apparato cardiocircolatorio | D122: -324324.69 | E122: -436779.31
A123: BA0220 | B123: 0701010320 | C123: Altri dispositivi per apparato cardiocircolatorio | D123: -923363.6 | E123: -934868.19
A124: BA0220 | B124: 0701010321 | C124: Disinfettanti, antisettici e proteolitici (D.Lgs. 46/97) | D124: -90513.81 | E124: -95830.94
A125: BA0220 | B125: 0701010322 | C125: Dispositivi per apparato gastrointestinale | D125: -233603.82 | E125: -345091.34
A126: BA0220 | B126: 0701010323 | C126: Dispositivi da sutura | D126: -1636156.91 | E126: -1485021.04
A127: BA0220 | B127: 0701010324 | C127: Dispositivi per sistema nervoso e midollare | D127: -78330.59 | E127: -79263.37
A128: BA0220 | B128: 0701010325 | C128: Dispositivi per odontoiatria, oftalmologoa e otorinolaringoiatria | D128: -357509.98 | E128: -364072.05
A129: BA0220 | B129: 0701010326 | C129: Dispositivi per apparato respiratorio e anestesia | D129: -599615.78 | E129: -505376.99
A130: BA0220 | B130: 0701010327 | C130: Dispositivi di protezione e ausili per incontinenza (D.Lgs. 46/97) | D130: -1366976.08 | E130: -1642742.81
A131: BA0220 | B131: 0701010328 | C131: Dispositivi per apparato urogenitale | D131: -238337.12 | E131: -204049.87
A132: BA0220 | B132: 0701010329 | C132: Dispositivi vari | D132: -1772125.5 | E132: -1684981.19
A133: BA0220 | B133: 0701010330 | C133: Dispositivi per medicazioni generali e specialistiche | D133: -1883723.16 | E133: -1922863.46
A134: BA0230 | B134: 0701010313 | C134: Dispositivi impiantabili attivi | D134: -3795874.49 | E134: -3456008.28
A135: BA0240 | B135: 0701010311 | C135: Dispositivi medico-diagnostici in vitro (D.Lgs. 332/2000) | D135: -11448832.45 | E135: -11969007.5
A136: BA0250 | B136: 0701010401 | C136: Prodotti dietetici | D136: -23720.84 | E136: -29236.46
A137: BA0250 | B137: 0701010402 | C137: Alimenti per nutrizione artificiale senza AIC | D137: -416946.32 | E137: -440409.28
A138: BA0260 | B138: 0701010501 | C138: Sieri | D138: -93.5 | E138: 0
A139: BA0260 | B139: 0701010502 | C139: Vaccini obbligatori | D139: -536893.45 | E139: -602023.59
A140: BA0260 | B140: 0701010503 | C140: Altri vaccini | D140: -843601.46 | E140: -1778838.97
A141: BA0280 | B141: 0701010701 | C141: Medicinali ad uso veterinario | D141: -7056.26 | E141: -7133.98
A142: BA0280 | B142: 0701010702 | C142: Materiali chirurgici, sanitari e diagnostici per uso veterinario | D142: -26245.03 | E142: -718.82
A143: BA0290 | B143: 0701010801 | C143: Vetrerie e materiale plastico per laboratorio (senza CND) | D143: -49830.97 | E143: -49771.13
A144: BA0290 | B144: 0701010802 | C144: Altri materiali di consumo non specifici per strumentazione diagnostica (senza CND) | D144: -271010.71 | E144: -532760.96
A145: BA0290 | B145: 0701010803 | C145: Altri beni e prodotti sanitari (senza CND) | D145: -1192488.55 | E145: -1352042.51
A146: BA0320 | B146: 0701020101 | C146: Prodotti alimentari | D146: -259.32 | E146: -250.58
A147: BA0330 | B147: 0701020102 | C147: Materiali di guardaroba, di pulizia e di convivenza in genere | D147: -29848.15 | E147: -41796.38
A148: BA0340 | B148: 0701020103 | C148: Combustibili, carburanti e lubrificanti | D148: -125554.88 | E148: -135937.7
A149: BA0350 | B149: 0701020104 | C149: Supporti informatici | D149: -175026.66 | E149: -186697.36
A150: BA0350 | B150: 0701020105 | C150: Cancelleria e stampati | D150: -422391.03 | E150: -327030.51
A151: BA0360 | B151: 0701020106 | C151: Materiale per la manutenzione di immobili e loro pertinenze | D151: -149268.05 | E151: -181769.46
A152: BA0360 | B152: 0701020107 | C152: Materiale per la manutenzione di mobili e macchine | D152: -1605.52 | E152: 0
A153: BA0360 | B153: 0701020108 | C153: Materiale per la manutenzione di attrezzature tecnico scientifiche sanitarie | D153: -90033.55 | E153: -16225.33
A154: BA0360 | B154: 0701020110 | C154: Materiale per la manutenzione di altro | D154: -11831.69 | E154: -9788.74
A155: BA0370 | B155: 0701020111 | C155: Altri beni e prodotti non sanitari | D155: -49743.28 | E155: -48626.56
A156: BA0430 | B156: 0702010101 | C156: Costi per assistenza MMG | D156: -24527412.66 | E156: -24328709.33
A157: BA0440 | B157: 0702010102 | C157: Costi per assistenza PLS | D157: -6297522.92 | E157: -6208374.4
A158: BA0450 | B158: 0702010103 | C158: Costi per assistenza Continuità assistenziale | D158: -4154724.75 | E158: -4008916.53
A159: BA0460 | B159: 0702010104 | C159: Costi per assistenza Medici 118 | D159: -728791.69 | E159: -718220.61
A160: BA0460 | B160: 0702010105 | C160: Altro (medicina dei servizi, psicologi, etc¿) (esclusa IRAP) | D160: -181313.87 | E160: -171628.48
A161: BA0470 | B161: 0702010106 | C161: Costi per medicina di base da pubblico (Aziende sanitarie pubbliche della Regione) - Mobilità intraregionale | D161: -83439.4 | E161: -35057.19
A162: BA0480 | B162: 0702010107 | C162: Costi per medicina di base da pubblico (Aziende sanitarie pubbliche Extraregione) - Mobilità extraregionale | D162: -173343.96 | E162: -184748.58
A163: BA0500 | B163: 0702010201 | C163: Acquisti servizi sanitari per farmaceutica da convenzione | D163: -52890823.37 | E163: -52796218.85
A164: BA0500 | B164: 0702010202 | C164: Acquisti servizi sanitari sussidi Indennità per farmacie rurali ed altro | D164: -123456.53 | E164: -127926.67
A165: BA0510 | B165: 0702010203 | C165: Costi per farmaceutica da pubblico (Aziende sanitarie pubbliche della Regione)- Mobilità intraregionale | D165: -1241012.19 | E165: -1251970.51
A166: BA0520 | B166: 0702010204 | C166: Costi per farmaceutica da pubblico (Extraregione) | D166: -381774.76 | E166: -387832.02
A167: BA0540 | B167: 0702010301 | C167: Costi per assistenza specialistica ambulatoriale da pubblico (Aziende sanitarie pubbliche della Regione) | D167: -7174231.68 | E167: -7681961.01
A168: BA0540 | B168: 0702010302 | C168: Servizi sanitari da privato accreditato insito in Regione territorio extra ASL v/ cittadini residenti in territorio ASL - rientranti nei contratti negoziali (branche a visita) | D168: -561.88 | E168: -82.34
A169: BA0540 | B169: 0702010303 | C169: Servizi sanitari da case di cura private insite in Regione territorio extra ASL v/ cittadini residenti in territorio ASL - rientranti nei contratti negoziali (assistenza specialistica ambulatoriale) | D169: -1272794.12 | E169: -1255932.25
A170: BA0540 | B170: 0702010304 | C170: Servizi sanitari da altri soggetti privati insiti in Regione territorio extra ASL v/cittadini residenti nel territorio ASL rientranti nei contratti negoziali (assistenza specialistica ambulatoriale) | D170: -76580.98 | E170: -60146.51
A171: BA0550 | B171: 0702010305 | C171: Costi per assistenza specialistica ambulatoriale da pubblico (altri soggetti pubblici della Regione) | D171: -224364.91 | E171: -189344.67
A172: BA0560 | B172: 0702010306 | C172: Costi per assistenza specialistica ambulatoriale da pubblico (Extraregione) | D172: -3048586.34 | E172: -4257839.75
A173: BA0560 | B173: 0702010325 | C173: Costi per cessioni di emocomponenti e cellule staminali extraregione | D173: 0 | E173: -202185.19
A174: BA0570 | B174: 0702010307 | C174: Costi per assistenza specialistica ambulatoriale da privato - Medici SUMAI | D174: -5114503.17 | E174: -4899151.05
A175: BA0590 | B175: 0702010308 | C175: Servizi sanitari per assistenza specialistica da IRCCS privati e Policlinici privati | D175: -44362.83 | E175: -60978.73
A176: BA0610 | B176: 0309010805 | C176: Compartecipazione alla spesa per prestazioni sanitarie - Ticket sulle prestazioni assistenza specialistica ambulatoriale da Case di Cura private | D176: 967627.53 | E176: 1025595.31
A177: BA0610 | B177: 0309010806 | C177: Quota fissa di cui all¿art. 17, comma 6, del D.L. 98/2011 per assistenza specialistica ambulatoriale da Case di Cura private | D177: 332390 | E177: 352280
A178: BA0610 | B178: 0702010310 | C178: Servizi sanitari da case di cura private insite nel territorio ASL v/ cittadini residenti nel territorio ASL - rientranti nei contratti negoziali (assistenza specialistica ambulatoriale) | D178: -4477208.66 | E178: -4475774.26
A179: BA0610 | B179: 0702010311 | C179: Servizi sanitari da case di cura private insite nel territorio ASL v/cittadini residenti nella Regione in territorio extra ASL rientranti nei contratti negoziali (assist. specialistica ambulatoriale) | D179: -2186662.89 | E179: -2312295.34
A180: BA0610 | B180: 0702010313 | C180: Servizi sanitari da case di cura private - per cittadini residenti acquistate fuori contratti negoziali in strutture entro Regione (assistenza specialistica ambulatoriale) | D180: -579 | E180: -2664.58
A181: BA0620 | B181: 0309010807 | C181: Compartecipazione alla spesa per prestazioni sanitarie - Ticket sulle prestazioni assistenza specialistica ambulatoriale da altri privati | D181: 136665.46 | E181: 216258.62
A182: BA0620 | B182: 0309010808 | C182: Quota fissa di cui all¿art. 17, comma 6, del D.L. 98/2011 per assistenza specialistica ambulatoriale da altri privati | D182: 0 | E182: 18668
A183: BA0620 | B183: 0702010314 | C183: Servizi sanitari da privato accreditato insito nel territorio ASL v/ cittadini residenti in territorio ASL - rientranti nei contratti negoziali (branche a visita) | D183: -33898.2 | E183: -28717.88
A184: BA0620 | B184: 0702010315 | C184: Servizi sanitari da privato accreditato insito nel territorio ASL v/ cittadini residenti nella Regione in territorio extra ASL - rientranti nei contratti negoziali (branche a visita) | D184: -1872.04 | E184: -3499.07
A185: BA0620 | B185: 0702010318 | C185: Servizi sanitari da altri soggetti privati insiti nel Territorio ASL v/ cittadini residenti nel territorio ASL - rientranti nei contratti negoziali (assistenza specialistica ambulatoriale) | D185: -2942178.96 | E185: -2993859.48
A186: BA0620 | B186: 0702010319 | C186: Servizi sanitari da altri soggetti privati insiti nel territorio ASL v/cittadini residenti nella Regione in territorio extra ASL rientranti nei contratti negoziali (ass. specialistica ambulatoriale) | D186: -346767.47 | E186: -490557.54
A187: BA0620 | B187: 0702010321 | C187: Servizi sanitari da altri soggetti privati - per cittadini residenti acquistate fuori contratti negoziali in strutture entro Regione (assistenza specialistica ambulatoriale) | D187: 0 | E187: -2298.15
A188: BA0630 | B188: 0309010304 | C188: Sconti da altri soggetti privati v/ cittadini non residenti - extraregione (mobilità attiva in compensazione) | D188: 3399 | E188: 0
A189: BA0630 | B189: 0309010809 | C189: Compartecipazione alla spesa per prestazioni sanitarie - Ticket sulle prestazioni assistenza specialistica ambulatoriale da privato per cittadini non residenti - Extraregione | D189: 2357.03 | E189: 3321.5
A190: BA0630 | B190: 0309010810 | C190: Quota fissa di cui all¿art. 17, comma 6, del D.L. 98/2011 per assistenza specialistica ambulatoriale da privato per cittadini non residenti - Extraregione | D190: 280 | E190: 400
A191: BA0630 | B191: 0702010322 | C191: Servizi sanitari da privato accreditato v/ cittadini non residenti - extraregione (mobilità attiva in compensazione) (branche a visita) | D191: -117.49 | E191: 0
A192: BA0630 | B192: 0702010323 | C192: Servizi sanitari da case di cura private v/ cittadini non residenti - extraregione (mobilità attiva in compensazione) (assistenza specialistica ambulatoriale) | D192: -171160.86 | E192: -181939.89
A193: BA0630 | B193: 0702010324 | C193: Servizi sanitari da altri soggetti privati v/ cittadini non residenti - extraregione (mobilità attiva in compensazione) (assistenza specialistica ambulatoriale) | D193: -31001.53 | E193: -36479.81
A194: BA0650 | B194: 0702010402 | C194: Da privato accreditato insito in Regione territorio extra ASL v/ cittadini residenti in territorio ASL - rientranti nei contratti negoziali (riabilitazione ex art. 26) | D194: -4525129.8 | E194: -4855060.17
A195: BA0680 | B195: 0702010405 | C195: Da privato accreditato insito nel territorio ASL v/ cittadini residenti in territorio ASL - rientranti nei contratti negoziali (riabilitazione ex art. 26) | D195: -11051824.24 | E195: -10990063.2
A196: BA0680 | B196: 0702010406 | C196: Da privato accreditato insito nel territorio ASL v/ cittadini residenti nella Regione in territorio extra ASL - rientranti nei contratti negoziali (riabilitazione ex art. 26) | D196: -3391939.12 | E196: -3470706.26
A197: BA0690 | B197: 0702010408 | C197: Da privato accreditato per cittadini residenti acquistate in strutture fuori Regione (riabilitazione ex art. 26) | D197: -792965.98 | E197: -591378.35
A198: BA0740 | B198: 0702010504 | C198: Da privato per assistenza integrativa | D198: -1692964.4 | E198: -1813040.82
A199: BA0790 | B199: 0702010604 | C199: Da privato per assistenza protesica | D199: -4944153.23 | E199: -4792096.16
A200: BA0790 | B200: 0702010605 | C200: Da privato per materiale per incontinenza | D200: -1666710.12 | E200: -1592199.38
A201: BA0810 | B201: 0702010701 | C201: Da pubblico per assistenza ospedaliera (Aziende sanitarie pubbliche della Regione) | D201: -25693452.69 | E201: -25677170
A202: BA0810 | B202: 0702010702 | C202: Da privato accreditato per assistenza ospedaliera insito in Regione territorio extra ASL v/cittadini residenti in territorio ASL - rientranti nei contratti negoziali | D202: -2515771.68 | E202: -2552921.68
... 378 more rows

Sheet 00 Aggregatore
E2: ANNO | F2: 2017
A4: Aggr | B4: CE | C4: Descrizione CE | D4: C/R | E4: =IF($F$2="","Anno T-1","Esercizio "&$F$2-1) -> Esercizio 2016 | F4: =IF($F$2="","Anno T","Esercizio "&$F$2) -> Esercizio 2017
A5: =LEFT(B5,1)&D5 -> AR | B5: AA0030 | C5: Contributi da Regione o Provincia Autonoma per quota F.S. regionale indistinto | D5: R | E5: =IF('00 Aggregatore'!$D5="R",SUMIF('00 Alimenta'!$A:$A,$B5,'00 Alimenta'!D:D),SUMIF('00 Alimenta'!$A:$A,$B5,'00 Alimenta'!D:D)*-1) -> 546383676.5 | F5: =IF('00 Aggregatore'!$D5="R",SUMIF('00 Alimenta'!$A:$A,$B5,'00 Alimenta'!E:E),SUMIF('00 Alimenta'!$A:$A,$B5,'00 Alimenta'!E:E)*-1) -> 547765886.6
A6: =LEFT(B6,1)&D6 -> AR | B6: AA0040 | C6: Contributi da Regione o Provincia Autonoma per quota F.S. regionale vincolato | D6: R | E6: =IF('00 Aggregatore'!$D6="R",SUMIF('00 Alimenta'!$A:$A,$B6,'00 Alimenta'!D:D),SUMIF('00 Alimenta'!$A:$A,$B6,'00 Alimenta'!D:D)*-1) -> 6083618.06 | F6: =IF('00 Aggregatore'!$D6="R",SUMIF('00 Alimenta'!$A:$A,$B6,'00 Alimenta'!E:E),SUMIF('00 Alimenta'!$A:$A,$B6,'00 Alimenta'!E:E)*-1) -> 14815465.59
A7: AR | B7: AA0070 | C7: Contributi da Regione o Provincia Autonoma (extra fondo) - Vincolati | D7: R | E7: =IF('00 Aggregatore'!$D7="R",SUMIF('00 Alimenta'!$A:$A,$B7,'00 Alimenta'!D:D),SUMIF('00 Alimenta'!$A:$A,$B7,'00 Alimenta'!D:D)*-1) -> 180605.96 | F7: =IF('00 Aggregatore'!$D7="R",SUMIF('00 Alimenta'!$A:$A,$B7,'00 Alimenta'!E:E),SUMIF('00 Alimenta'!$A:$A,$B7,'00 Alimenta'!E:E)*-1) -> 123104.1
A8: AR | B8: AA0080 | C8: Contributi da Regione o Provincia Autonoma (extra fondo) - Risorse aggiuntive da bilancio regionale a titolo di copertura LEA | D8: R | E8: =IF('00 Aggregatore'!$D8="R",SUMIF('00 Alimenta'!$A:$A,$B8,'00 Alimenta'!D:D),SUMIF('00 Alimenta'!$A:$A,$B8,'00 Alimenta'!D:D)*-1) -> 0 | F8: =IF('00 Aggregatore'!$D8="R",SUMIF('00 Alimenta'!$A:$A,$B8,'00 Alimenta'!E:E),SUMIF('00 Alimenta'!$A:$A,$B8,'00 Alimenta'!E:E)*-1) -> 0
A9: AR | B9: AA0090 | C9: Contributi da Regione o Provincia Autonoma (extra fondo) - Risorse aggiuntive da bilancio regionale a titolo di copertura extra LEA | D9: R | E9: =IF('00 Aggregatore'!$D9="R",SUMIF('00 Alimenta'!$A:$A,$B9,'00 Alimenta'!D:D),SUMIF('00 Alimenta'!$A:$A,$B9,'00 Alimenta'!D:D)*-1) -> 0 | F9: =IF('00 Aggregatore'!$D9="R",SUMIF('00 Alimenta'!$A:$A,$B9,'00 Alimenta'!E:E),SUMIF('00 Alimenta'!$A:$A,$B9,'00 Alimenta'!E:E)*-1) -> 0
A10: AR | B10: AA0100 | C10: Contributi da Regione o Provincia Autonoma (extra fondo) - Altro | D10: R | E10: =IF('00 Aggregatore'!$D10="R",SUMIF('00 Alimenta'!$A:$A,$B10,'00 Alimenta'!D:D),SUMIF('00 Alimenta'!$A:$A,$B10,'00 Alimenta'!D:D)*-1) -> 0 | F10: =IF('00 Aggregatore'!$D10="R",SUMIF('00 Alimenta'!$A:$A,$B10,'00 Alimenta'!E:E),SUMIF('00 Alimenta'!$A:$A,$B10,'00 Alimenta'!E:E)*-1) -> 0
A11: AR | B11: AA0120 | C11: Contributi da Aziende sanitarie pubbliche della Regione o Provincia Autonoma (extra fondo) - Vincolati | D11: R | E11: =IF('00 Aggregatore'!$D11="R",SUMIF('00 Alimenta'!$A:$A,$B11,'00 Alimenta'!D:D),SUMIF('00 Alimenta'!$A:$A,$B11,'00 Alimenta'!D:D)*-1) -> 0 | F11: =IF('00 Aggregatore'!$D11="R",SUMIF('00 Alimenta'!$A:$A,$B11,'00 Alimenta'!E:E),SUMIF('00 Alimenta'!$A:$A,$B11,'00 Alimenta'!E:E)*-1) -> 0
A12: AR | B12: AA0130 | C12: Contributi da Aziende sanitarie pubbliche della Regione o Provincia Autonoma (extra fondo) - Altro | D12: R | E12: =IF('00 Aggregatore'!$D12="R",SUMIF('00 Alimenta'!$A:$A,$B12,'00 Alimenta'!D:D),SUMIF('00 Alimenta'!$A:$A,$B12,'00 Alimenta'!D:D)*-1) -> 232003.28 | F12: =IF('00 Aggregatore'!$D12="R",SUMIF('00 Alimenta'!$A:$A,$B12,'00 Alimenta'!E:E),SUMIF('00 Alimenta'!$A:$A,$B12,'00 Alimenta'!E:E)*-1) -> 0
A13: AR | B13: AA0150 | C13: Contributi da altri soggetti pubblici (extra fondo) - Vincolati | D13: R | E13: =IF('00 Aggregatore'!$D13="R",SUMIF('00 Alimenta'!$A:$A,$B13,'00 Alimenta'!D:D),SUMIF('00 Alimenta'!$A:$A,$B13,'00 Alimenta'!D:D)*-1) -> 70020.75 | F13: =IF('00 Aggregatore'!$D13="R",SUMIF('00 Alimenta'!$A:$A,$B13,'00 Alimenta'!E:E),SUMIF('00 Alimenta'!$A:$A,$B13,'00 Alimenta'!E:E)*-1) -> 156684.25
A14: AR | B14: AA0160 | C14: Contributi da altri soggetti pubblici (extra fondo) - Legge 210/92 | D14: R | E14: =IF('00 Aggregatore'!$D14="R",SUMIF('00 Alimenta'!$A:$A,$B14,'00 Alimenta'!D:D),SUMIF('00 Alimenta'!$A:$A,$B14,'00 Alimenta'!D:D)*-1) -> 0 | F14: =IF('00 Aggregatore'!$D14="R",SUMIF('00 Alimenta'!$A:$A,$B14,'00 Alimenta'!E:E),SUMIF('00 Alimenta'!$A:$A,$B14,'00 Alimenta'!E:E)*-1) -> 0
A15: AR | B15: AA0170 | C15: Contributi da altri soggetti pubblici (extra fondo) - Altro | D15: R | E15: =IF('00 Aggregatore'!$D15="R",SUMIF('00 Alimenta'!$A:$A,$B15,'00 Alimenta'!D:D),SUMIF('00 Alimenta'!$A:$A,$B15,'00 Alimenta'!D:D)*-1) -> 0 | F15: =IF('00 Aggregatore'!$D15="R",SUMIF('00 Alimenta'!$A:$A,$B15,'00 Alimenta'!E:E),SUMIF('00 Alimenta'!$A:$A,$B15,'00 Alimenta'!E:E)*-1) -> 0
A16: AR | B16: AA0190 | C16: Contributi da Ministero della Salute per ricerca corrente | D16: R | E16: =IF('00 Aggregatore'!$D16="R",SUMIF('00 Alimenta'!$A:$A,$B16,'00 Alimenta'!D:D),SUMIF('00 Alimenta'!$A:$A,$B16,'00 Alimenta'!D:D)*-1) -> 0 | F16: =IF('00 Aggregatore'!$D16="R",SUMIF('00 Alimenta'!$A:$A,$B16,'00 Alimenta'!E:E),SUMIF('00 Alimenta'!$A:$A,$B16,'00 Alimenta'!E:E)*-1) -> 0
A17: AR | B17: AA0200 | C17: Contributi da Ministero della Salute per ricerca finalizzata | D17: R | E17: =IF('00 Aggregatore'!$D17="R",SUMIF('00 Alimenta'!$A:$A,$B17,'00 Alimenta'!D:D),SUMIF('00 Alimenta'!$A:$A,$B17,'00 Alimenta'!D:D)*-1) -> 10216 | F17: =IF('00 Aggregatore'!$D17="R",SUMIF('00 Alimenta'!$A:$A,$B17,'00 Alimenta'!E:E),SUMIF('00 Alimenta'!$A:$A,$B17,'00 Alimenta'!E:E)*-1) -> 0
A18: AR | B18: AA0210 | C18: Contributi da Regione e altri soggetti pubblici per ricerca | D18: R | E18: =IF('00 Aggregatore'!$D18="R",SUMIF('00 Alimenta'!$A:$A,$B18,'00 Alimenta'!D:D),SUMIF('00 Alimenta'!$A:$A,$B18,'00 Alimenta'!D:D)*-1) -> 0 | F18: =IF('00 Aggregatore'!$D18="R",SUMIF('00 Alimenta'!$A:$A,$B18,'00 Alimenta'!E:E),SUMIF('00 Alimenta'!$A:$A,$B18,'00 Alimenta'!E:E)*-1) -> 0
A19: AR | B19: AA0220 | C19: Contributi da privati per ricerca | D19: R | E19: =IF('00 Aggregatore'!$D19="R",SUMIF('00 Alimenta'!$A:$A,$B19,'00 Alimenta'!D:D),SUMIF('00 Alimenta'!$A:$A,$B19,'00 Alimenta'!D:D)*-1) -> 0 | F19: =IF('00 Aggregatore'!$D19="R",SUMIF('00 Alimenta'!$A:$A,$B19,'00 Alimenta'!E:E),SUMIF('00 Alimenta'!$A:$A,$B19,'00 Alimenta'!E:E)*-1) -> 0
A20: AR | B20: AA0230 | C20: Contributi c/esercizio da privati | D20: R | E20: =IF('00 Aggregatore'!$D20="R",SUMIF('00 Alimenta'!$A:$A,$B20,'00 Alimenta'!D:D),SUMIF('00 Alimenta'!$A:$A,$B20,'00 Alimenta'!D:D)*-1) -> 0 | F20: =IF('00 Aggregatore'!$D20="R",SUMIF('00 Alimenta'!$A:$A,$B20,'00 Alimenta'!E:E),SUMIF('00 Alimenta'!$A:$A,$B20,'00 Alimenta'!E:E)*-1) -> 0
A21: AR | B21: AA0250 | C21: Rettifica contributi in c/esercizio per destinazione ad investimenti - da Regione o Provincia Autonoma per quota F.S. regionale | D21: R | E21: =IF('00 Aggregatore'!$D21="R",SUMIF('00 Alimenta'!$A:$A,$B21,'00 Alimenta'!D:D),SUMIF('00 Alimenta'!$A:$A,$B21,'00 Alimenta'!D:D)*-1) -> -8787559.11 | F21: =IF('00 Aggregatore'!$D21="R",SUMIF('00 Alimenta'!$A:$A,$B21,'00 Alimenta'!E:E),SUMIF('00 Alimenta'!$A:$A,$B21,'00 Alimenta'!E:E)*-1) -> -6506318.89
A22: AR | B22: AA0260 | C22: Rettifica contributi in c/esercizio per destinazione ad investimenti - Altri contributi | D22: R | E22: =IF('00 Aggregatore'!$D22="R",SUMIF('00 Alimenta'!$A:$A,$B22,'00 Alimenta'!D:D),SUMIF('00 Alimenta'!$A:$A,$B22,'00 Alimenta'!D:D)*-1) -> 0 | F22: =IF('00 Aggregatore'!$D22="R",SUMIF('00 Alimenta'!$A:$A,$B22,'00 Alimenta'!E:E),SUMIF('00 Alimenta'!$A:$A,$B22,'00 Alimenta'!E:E)*-1) -> 0
A23: AR | B23: AA0280 | C23: Utilizzo fondi per quote inutilizzate contributi di esercizi precedenti da Regione o Provincia Autonoma per quota F.S. regionale vincolato | D23: R | E23: =IF('00 Aggregatore'!$D23="R",SUMIF('00 Alimenta'!$A:$A,$B23,'00 Alimenta'!D:D),SUMIF('00 Alimenta'!$A:$A,$B23,'00 Alimenta'!D:D)*-1) -> 5960927.83 | F23: =IF('00 Aggregatore'!$D23="R",SUMIF('00 Alimenta'!$A:$A,$B23,'00 Alimenta'!E:E),SUMIF('00 Alimenta'!$A:$A,$B23,'00 Alimenta'!E:E)*-1) -> 5681020.1
A24: AR | B24: AA0290 | C24: Utilizzo fondi per quote inutilizzate contributi di esercizi precedenti da soggetti pubblici (extra fondo) vincolati | D24: R | E24: =IF('00 Aggregatore'!$D24="R",SUMIF('00 Alimenta'!$A:$A,$B24,'00 Alimenta'!D:D),SUMIF('00 Alimenta'!$A:$A,$B24,'00 Alimenta'!D:D)*-1) -> 299262.65 | F24: =IF('00 Aggregatore'!$D24="R",SUMIF('00 Alimenta'!$A:$A,$B24,'00 Alimenta'!E:E),SUMIF('00 Alimenta'!$A:$A,$B24,'00 Alimenta'!E:E)*-1) -> 92452.46
A25: AR | B25: AA0300 | C25: Utilizzo fondi per quote inutilizzate contributi di esercizi precedenti per ricerca | D25: R | E25: =IF('00 Aggregatore'!$D25="R",SUMIF('00 Alimenta'!$A:$A,$B25,'00 Alimenta'!D:D),SUMIF('00 Alimenta'!$A:$A,$B25,'00 Alimenta'!D:D)*-1) -> 0 | F25: =IF('00 Aggregatore'!$D25="R",SUMIF('00 Alimenta'!$A:$A,$B25,'00 Alimenta'!E:E),SUMIF('00 Alimenta'!$A:$A,$B25,'00 Alimenta'!E:E)*-1) -> 0
A26: AR | B26: AA0310 | C26: Utilizzo fondi per quote inutilizzate contributi vincolati di esercizi precedenti da privati | D26: R | E26: =IF('00 Aggregatore'!$D26="R",SUMIF('00 Alimenta'!$A:$A,$B26,'00 Alimenta'!D:D),SUMIF('00 Alimenta'!$A:$A,$B26,'00 Alimenta'!D:D)*-1) -> 0 | F26: =IF('00 Aggregatore'!$D26="R",SUMIF('00 Alimenta'!$A:$A,$B26,'00 Alimenta'!E:E),SUMIF('00 Alimenta'!$A:$A,$B26,'00 Alimenta'!E:E)*-1) -> 0
A27: AR | B27: AA0350 | C27: Prestazioni di ricovero | D27: R | E27: =IF('00 Aggregatore'!$D27="R",SUMIF('00 Alimenta'!$A:$A,$B27,'00 Alimenta'!D:D),SUMIF('00 Alimenta'!$A:$A,$B27,'00 Alimenta'!D:D)*-1) -> 60275803.05 | F27: =IF('00 Aggregatore'!$D27="R",SUMIF('00 Alimenta'!$A:$A,$B27,'00 Alimenta'!E:E),SUMIF('00 Alimenta'!$A:$A,$B27,'00 Alimenta'!E:E)*-1) -> 62109937.31
A28: AR | B28: AA0360 | C28: Prestazioni di specialistica ambulatoriale | D28: R | E28: =IF('00 Aggregatore'!$D28="R",SUMIF('00 Alimenta'!$A:$A,$B28,'00 Alimenta'!D:D),SUMIF('00 Alimenta'!$A:$A,$B28,'00 Alimenta'!D:D)*-1) -> 7784926.82 | F28: =IF('00 Aggregatore'!$D28="R",SUMIF('00 Alimenta'!$A:$A,$B28,'00 Alimenta'!E:E),SUMIF('00 Alimenta'!$A:$A,$B28,'00 Alimenta'!E:E)*-1) -> 8188514.26
A29: AR | B29: AA0370 | C29: Prestazioni di psichiatria residenziale e semiresidenziale | D29: R | E29: =IF('00 Aggregatore'!$D29="R",SUMIF('00 Alimenta'!$A:$A,$B29,'00 Alimenta'!D:D),SUMIF('00 Alimenta'!$A:$A,$B29,'00 Alimenta'!D:D)*-1) -> 4761138.87 | F29: =IF('00 Aggregatore'!$D29="R",SUMIF('00 Alimenta'!$A:$A,$B29,'00 Alimenta'!E:E),SUMIF('00 Alimenta'!$A:$A,$B29,'00 Alimenta'!E:E)*-1) -> 4556497.31
A30: AR | B30: AA0380 | C30: Prestazioni di File F | D30: R | E30: =IF('00 Aggregatore'!$D30="R",SUMIF('00 Alimenta'!$A:$A,$B30,'00 Alimenta'!D:D),SUMIF('00 Alimenta'!$A:$A,$B30,'00 Alimenta'!D:D)*-1) -> 13121092.03 | F30: =IF('00 Aggregatore'!$D30="R",SUMIF('00 Alimenta'!$A:$A,$B30,'00 Alimenta'!E:E),SUMIF('00 Alimenta'!$A:$A,$B30,'00 Alimenta'!E:E)*-1) -> 13565690.02
A31: AR | B31: AA0390 | C31: Prestazioni servizi MMG, PLS, Continuità assistenziale | D31: R | E31: =IF('00 Aggregatore'!$D31="R",SUMIF('00 Alimenta'!$A:$A,$B31,'00 Alimenta'!D:D),SUMIF('00 Alimenta'!$A:$A,$B31,'00 Alimenta'!D:D)*-1) -> 204670 | F31: =IF('00 Aggregatore'!$D31="R",SUMIF('00 Alimenta'!$A:$A,$B31,'00 Alimenta'!E:E),SUMIF('00 Alimenta'!$A:$A,$B31,'00 Alimenta'!E:E)*-1) -> 57455.65
A32: AR | B32: AA0400 | C32: Prestazioni servizi farmaceutica convenzionata | D32: R | E32: =IF('00 Aggregatore'!$D32="R",SUMIF('00 Alimenta'!$A:$A,$B32,'00 Alimenta'!D:D),SUMIF('00 Alimenta'!$A:$A,$B32,'00 Alimenta'!D:D)*-1) -> 1545791.88 | F32: =IF('00 Aggregatore'!$D32="R",SUMIF('00 Alimenta'!$A:$A,$B32,'00 Alimenta'!E:E),SUMIF('00 Alimenta'!$A:$A,$B32,'00 Alimenta'!E:E)*-1) -> 1531007.26
A33: AR | B33: AA0410 | C33: Prestazioni termali | D33: R | E33: =IF('00 Aggregatore'!$D33="R",SUMIF('00 Alimenta'!$A:$A,$B33,'00 Alimenta'!D:D),SUMIF('00 Alimenta'!$A:$A,$B33,'00 Alimenta'!D:D)*-1) -> 1144807.45 | F33: =IF('00 Aggregatore'!$D33="R",SUMIF('00 Alimenta'!$A:$A,$B33,'00 Alimenta'!E:E),SUMIF('00 Alimenta'!$A:$A,$B33,'00 Alimenta'!E:E)*-1) -> 1104099.89
A34: AR | B34: AA0420 | C34: Prestazioni trasporto ambulanze ed elisoccorso | D34: R | E34: =IF('00 Aggregatore'!$D34="R",SUMIF('00 Alimenta'!$A:$A,$B34,'00 Alimenta'!D:D),SUMIF('00 Alimenta'!$A:$A,$B34,'00 Alimenta'!D:D)*-1) -> 202243.79 | F34: =IF('00 Aggregatore'!$D34="R",SUMIF('00 Alimenta'!$A:$A,$B34,'00 Alimenta'!E:E),SUMIF('00 Alimenta'!$A:$A,$B34,'00 Alimenta'!E:E)*-1) -> 175653.51
A35: AR | B35: AA0430 | C35: Altre prestazioni sanitarie e socio-sanitarie a rilevanza sanitaria | D35: R | E35: =IF('00 Aggregatore'!$D35="R",SUMIF('00 Alimenta'!$A:$A,$B35,'00 Alimenta'!D:D),SUMIF('00 Alimenta'!$A:$A,$B35,'00 Alimenta'!D:D)*-1) -> 5205198.64 | F35: =IF('00 Aggregatore'!$D35="R",SUMIF('00 Alimenta'!$A:$A,$B35,'00 Alimenta'!E:E),SUMIF('00 Alimenta'!$A:$A,$B35,'00 Alimenta'!E:E)*-1) -> 5392204.38
A36: AR | B36: AA0440 | C36: Ricavi per prestazioni sanitarie e socio-sanitarie a rilevanza sanitaria erogate ad altri soggetti pubblici | D36: R | E36: =IF('00 Aggregatore'!$D36="R",SUMIF('00 Alimenta'!$A:$A,$B36,'00 Alimenta'!D:D),SUMIF('00 Alimenta'!$A:$A,$B36,'00 Alimenta'!D:D)*-1) -> 40778.15 | F36: =IF('00 Aggregatore'!$D36="R",SUMIF('00 Alimenta'!$A:$A,$B36,'00 Alimenta'!E:E),SUMIF('00 Alimenta'!$A:$A,$B36,'00 Alimenta'!E:E)*-1) -> 45364.98
A37: AR | B37: AA0460 | C37: Prestazioni di ricovero | D37: R | E37: =IF('00 Aggregatore'!$D37="R",SUMIF('00 Alimenta'!$A:$A,$B37,'00 Alimenta'!D:D),SUMIF('00 Alimenta'!$A:$A,$B37,'00 Alimenta'!D:D)*-1) -> 6326378.15 | F37: =IF('00 Aggregatore'!$D37="R",SUMIF('00 Alimenta'!$A:$A,$B37,'00 Alimenta'!E:E),SUMIF('00 Alimenta'!$A:$A,$B37,'00 Alimenta'!E:E)*-1) -> 1554681.22
A38: AR | B38: AA0470 | C38: Prestazioni ambulatoriali | D38: R | E38: =IF('00 Aggregatore'!$D38="R",SUMIF('00 Alimenta'!$A:$A,$B38,'00 Alimenta'!D:D),SUMIF('00 Alimenta'!$A:$A,$B38,'00 Alimenta'!D:D)*-1) -> 1809228.39 | F38: =IF('00 Aggregatore'!$D38="R",SUMIF('00 Alimenta'!$A:$A,$B38,'00 Alimenta'!E:E),SUMIF('00 Alimenta'!$A:$A,$B38,'00 Alimenta'!E:E)*-1) -> 851774.85
A39: AR | B39: AA0480 | C39: Prestazioni di psichiatria non soggetta a compensazione (residenziale e semiresidenziale) | D39: R | E39: =IF('00 Aggregatore'!$D39="R",SUMIF('00 Alimenta'!$A:$A,$B39,'00 Alimenta'!D:D),SUMIF('00 Alimenta'!$A:$A,$B39,'00 Alimenta'!D:D)*-1) -> 0 | F39: =IF('00 Aggregatore'!$D39="R",SUMIF('00 Alimenta'!$A:$A,$B39,'00 Alimenta'!E:E),SUMIF('00 Alimenta'!$A:$A,$B39,'00 Alimenta'!E:E)*-1) -> 0
A40: AR | B40: AA0490 | C40: Prestazioni di File F | D40: R | E40: =IF('00 Aggregatore'!$D40="R",SUMIF('00 Alimenta'!$A:$A,$B40,'00 Alimenta'!D:D),SUMIF('00 Alimenta'!$A:$A,$B40,'00 Alimenta'!D:D)*-1) -> 972613.7 | F40: =IF('00 Aggregatore'!$D40="R",SUMIF('00 Alimenta'!$A:$A,$B40,'00 Alimenta'!E:E),SUMIF('00 Alimenta'!$A:$A,$B40,'00 Alimenta'!E:E)*-1) -> 1604980.14
A41: AR | B41: AA0500 | C41: Prestazioni servizi MMG, PLS, Continuità assistenziale extra Regione | D41: R | E41: =IF('00 Aggregatore'!$D41="R",SUMIF('00 Alimenta'!$A:$A,$B41,'00 Alimenta'!D:D),SUMIF('00 Alimenta'!$A:$A,$B41,'00 Alimenta'!D:D)*-1) -> 155741.96 | F41: =IF('00 Aggregatore'!$D41="R",SUMIF('00 Alimenta'!$A:$A,$B41,'00 Alimenta'!E:E),SUMIF('00 Alimenta'!$A:$A,$B41,'00 Alimenta'!E:E)*-1) -> 119388.84
A42: AR | B42: AA0510 | C42: Prestazioni servizi farmaceutica convenzionata extra Regione | D42: R | E42: =IF('00 Aggregatore'!$D42="R",SUMIF('00 Alimenta'!$A:$A,$B42,'00 Alimenta'!D:D),SUMIF('00 Alimenta'!$A:$A,$B42,'00 Alimenta'!D:D)*-1) -> 523609.47 | F42: =IF('00 Aggregatore'!$D42="R",SUMIF('00 Alimenta'!$A:$A,$B42,'00 Alimenta'!E:E),SUMIF('00 Alimenta'!$A:$A,$B42,'00 Alimenta'!E:E)*-1) -> 502038.11
A43: AR | B43: AA0520 | C43: Prestazioni termali extra Regione | D43: R | E43: =IF('00 Aggregatore'!$D43="R",SUMIF('00 Alimenta'!$A:$A,$B43,'00 Alimenta'!D:D),SUMIF('00 Alimenta'!$A:$A,$B43,'00 Alimenta'!D:D)*-1) -> 332335.62 | F43: =IF('00 Aggregatore'!$D43="R",SUMIF('00 Alimenta'!$A:$A,$B43,'00 Alimenta'!E:E),SUMIF('00 Alimenta'!$A:$A,$B43,'00 Alimenta'!E:E)*-1) -> 172275.4
A44: AR | B44: AA0530 | C44: Prestazioni trasporto ambulanze ed elisoccorso extra Regione | D44: R | E44: =IF('00 Aggregatore'!$D44="R",SUMIF('00 Alimenta'!$A:$A,$B44,'00 Alimenta'!D:D),SUMIF('00 Alimenta'!$A:$A,$B44,'00 Alimenta'!D:D)*-1) -> 267907.44 | F44: =IF('00 Aggregatore'!$D44="R",SUMIF('00 Alimenta'!$A:$A,$B44,'00 Alimenta'!E:E),SUMIF('00 Alimenta'!$A:$A,$B44,'00 Alimenta'!E:E)*-1) -> 512404.02
A45: AR | B45: AA0540 | C45: Altre prestazioni sanitarie e socio-sanitarie a rilevanza sanitaria extra Regione | D45: R | E45: =IF('00 Aggregatore'!$D45="R",SUMIF('00 Alimenta'!$A:$A,$B45,'00 Alimenta'!D:D),SUMIF('00 Alimenta'!$A:$A,$B45,'00 Alimenta'!D:D)*-1) -> 0 | F45: =IF('00 Aggregatore'!$D45="R",SUMIF('00 Alimenta'!$A:$A,$B45,'00 Alimenta'!E:E),SUMIF('00 Alimenta'!$A:$A,$B45,'00 Alimenta'!E:E)*-1) -> 0
A46: AR | B46: AA0550 | C46: Ricavi per cessione di emocomponenti e cellule staminali extra Regione | D46: R | E46: =IF('00 Aggregatore'!$D46="R",SUMIF('00 Alimenta'!$A:$A,$B46,'00 Alimenta'!D:D),SUMIF('00 Alimenta'!$A:$A,$B46,'00 Alimenta'!D:D)*-1) -> 813 | F46: =IF('00 Aggregatore'!$D46="R",SUMIF('00 Alimenta'!$A:$A,$B46,'00 Alimenta'!E:E),SUMIF('00 Alimenta'!$A:$A,$B46,'00 Alimenta'!E:E)*-1) -> 174766.05
A47: AR | B47: AA0560 | C47: Ricavi per differenziale tariffe TUC | D47: R | E47: =IF('00 Aggregatore'!$D47="R",SUMIF('00 Alimenta'!$A:$A,$B47,'00 Alimenta'!D:D),SUMIF('00 Alimenta'!$A:$A,$B47,'00 Alimenta'!D:D)*-1) -> 0 | F47: =IF('00 Aggregatore'!$D47="R",SUMIF('00 Alimenta'!$A:$A,$B47,'00 Alimenta'!E:E),SUMIF('00 Alimenta'!$A:$A,$B47,'00 Alimenta'!E:E)*-1) -> 0
A48: AR | B48: AA0580 | C48: Prestazioni di assistenza riabilitativa non soggette a compensazione extra Regione | D48: R | E48: =IF('00 Aggregatore'!$D48="R",SUMIF('00 Alimenta'!$A:$A,$B48,'00 Alimenta'!D:D),SUMIF('00 Alimenta'!$A:$A,$B48,'00 Alimenta'!D:D)*-1) -> 1860.9 | F48: =IF('00 Aggregatore'!$D48="R",SUMIF('00 Alimenta'!$A:$A,$B48,'00 Alimenta'!E:E),SUMIF('00 Alimenta'!$A:$A,$B48,'00 Alimenta'!E:E)*-1) -> 0
A49: AR | B49: AA0590 | C49: Altre prestazioni sanitarie e socio-sanitarie a rilevanza sanitaria non soggette a compensazione extra Regione | D49: R | E49: =IF('00 Aggregatore'!$D49="R",SUMIF('00 Alimenta'!$A:$A,$B49,'00 Alimenta'!D:D),SUMIF('00 Alimenta'!$A:$A,$B49,'00 Alimenta'!D:D)*-1) -> 45933.3 | F49: =IF('00 Aggregatore'!$D49="R",SUMIF('00 Alimenta'!$A:$A,$B49,'00 Alimenta'!E:E),SUMIF('00 Alimenta'!$A:$A,$B49,'00 Alimenta'!E:E)*-1) -> 1696.8
A50: AR | B50: AA0600 | C50: Altre prestazioni sanitarie a rilevanza sanitaria - Mobilità attiva internazionale | D50: R | E50: =IF('00 Aggregatore'!$D50="R",SUMIF('00 Alimenta'!$A:$A,$B50,'00 Alimenta'!D:D),SUMIF('00 Alimenta'!$A:$A,$B50,'00 Alimenta'!D:D)*-1) -> 0 | F50: =IF('00 Aggregatore'!$D50="R",SUMIF('00 Alimenta'!$A:$A,$B50,'00 Alimenta'!E:E),SUMIF('00 Alimenta'!$A:$A,$B50,'00 Alimenta'!E:E)*-1) -> 0
A51: AR | B51: AA0620 | C51: Prestazioni di ricovero da privati extra Regione in compensazione (mobilità attiva) | D51: R | E51: =IF('00 Aggregatore'!$D51="R",SUMIF('00 Alimenta'!$A:$A,$B51,'00 Alimenta'!D:D),SUMIF('00 Alimenta'!$A:$A,$B51,'00 Alimenta'!D:D)*-1) -> 11496977.64 | F51: =IF('00 Aggregatore'!$D51="R",SUMIF('00 Alimenta'!$A:$A,$B51,'00 Alimenta'!E:E),SUMIF('00 Alimenta'!$A:$A,$B51,'00 Alimenta'!E:E)*-1) -> 11917704.07
A52: AR | B52: AA0630 | C52: Prestazioni ambulatoriali da privati extra Regione in compensazione (mobilità attiva) | D52: R | E52: =IF('00 Aggregatore'!$D52="R",SUMIF('00 Alimenta'!$A:$A,$B52,'00 Alimenta'!D:D),SUMIF('00 Alimenta'!$A:$A,$B52,'00 Alimenta'!D:D)*-1) -> 202279.88 | F52: =IF('00 Aggregatore'!$D52="R",SUMIF('00 Alimenta'!$A:$A,$B52,'00 Alimenta'!E:E),SUMIF('00 Alimenta'!$A:$A,$B52,'00 Alimenta'!E:E)*-1) -> 218419.7
A53: AR | B53: AA0640 | C53: Prestazioni di File F da privati extra Regione in compensazione (mobilità attiva) | D53: R | E53: =IF('00 Aggregatore'!$D53="R",SUMIF('00 Alimenta'!$A:$A,$B53,'00 Alimenta'!D:D),SUMIF('00 Alimenta'!$A:$A,$B53,'00 Alimenta'!D:D)*-1) -> 0 | F53: =IF('00 Aggregatore'!$D53="R",SUMIF('00 Alimenta'!$A:$A,$B53,'00 Alimenta'!E:E),SUMIF('00 Alimenta'!$A:$A,$B53,'00 Alimenta'!E:E)*-1) -> 0
A54: AR | B54: AA0650 | C54: Altre prestazioni sanitarie e socio-sanitarie a rilevanza sanitaria erogate da privati v/residenti extra Regione in compensazione (mobilità attiva) | D54: R | E54: =IF('00 Aggregatore'!$D54="R",SUMIF('00 Alimenta'!$A:$A,$B54,'00 Alimenta'!D:D),SUMIF('00 Alimenta'!$A:$A,$B54,'00 Alimenta'!D:D)*-1) -> 0 | F54: =IF('00 Aggregatore'!$D54="R",SUMIF('00 Alimenta'!$A:$A,$B54,'00 Alimenta'!E:E),SUMIF('00 Alimenta'!$A:$A,$B54,'00 Alimenta'!E:E)*-1) -> 0
A55: AR | B55: AA0660 | C55: Ricavi per prestazioni sanitarie e socio-sanitarie a rilevanza sanitaria erogate a privati | D55: R | E55: =IF('00 Aggregatore'!$D55="R",SUMIF('00 Alimenta'!$A:$A,$B55,'00 Alimenta'!D:D),SUMIF('00 Alimenta'!$A:$A,$B55,'00 Alimenta'!D:D)*-1) -> 3531032.85 | F55: =IF('00 Aggregatore'!$D55="R",SUMIF('00 Alimenta'!$A:$A,$B55,'00 Alimenta'!E:E),SUMIF('00 Alimenta'!$A:$A,$B55,'00 Alimenta'!E:E)*-1) -> 3569406.31
A56: AR | B56: AA0680 | C56: Ricavi per prestazioni sanitarie intramoenia - Area ospedaliera | D56: R | E56: =IF('00 Aggregatore'!$D56="R",SUMIF('00 Alimenta'!$A:$A,$B56,'00 Alimenta'!D:D),SUMIF('00 Alimenta'!$A:$A,$B56,'00 Alimenta'!D:D)*-1) -> 89330.21 | F56: =IF('00 Aggregatore'!$D56="R",SUMIF('00 Alimenta'!$A:$A,$B56,'00 Alimenta'!E:E),SUMIF('00 Alimenta'!$A:$A,$B56,'00 Alimenta'!E:E)*-1) -> 50045.82
A57: AR | B57: AA0690 | C57: Ricavi per prestazioni sanitarie intramoenia - Area specialistica | D57: R | E57: =IF('00 Aggregatore'!$D57="R",SUMIF('00 Alimenta'!$A:$A,$B57,'00 Alimenta'!D:D),SUMIF('00 Alimenta'!$A:$A,$B57,'00 Alimenta'!D:D)*-1) -> 3216315.61 | F57: =IF('00 Aggregatore'!$D57="R",SUMIF('00 Alimenta'!$A:$A,$B57,'00 Alimenta'!E:E),SUMIF('00 Alimenta'!$A:$A,$B57,'00 Alimenta'!E:E)*-1) -> 3252006
A58: AR | B58: AA0700 | C58: Ricavi per prestazioni sanitarie intramoenia - Area sanità pubblica | D58: R | E58: =IF('00 Aggregatore'!$D58="R",SUMIF('00 Alimenta'!$A:$A,$B58,'00 Alimenta'!D:D),SUMIF('00 Alimenta'!$A:$A,$B58,'00 Alimenta'!D:D)*-1) -> 19348.81 | F58: =IF('00 Aggregatore'!$D58="R",SUMIF('00 Alimenta'!$A:$A,$B58,'00 Alimenta'!E:E),SUMIF('00 Alimenta'!$A:$A,$B58,'00 Alimenta'!E:E)*-1) -> 22414.54
A59: AR | B59: AA0710 | C59: Ricavi per prestazioni sanitarie intramoenia - Consulenze (ex art. 55 c.1 lett. c), d) ed ex art. 57-58) | D59: R | E59: =IF('00 Aggregatore'!$D59="R",SUMIF('00 Alimenta'!$A:$A,$B59,'00 Alimenta'!D:D),SUMIF('00 Alimenta'!$A:$A,$B59,'00 Alimenta'!D:D)*-1) -> 520863.67 | F59: =IF('00 Aggregatore'!$D59="R",SUMIF('00 Alimenta'!$A:$A,$B59,'00 Alimenta'!E:E),SUMIF('00 Alimenta'!$A:$A,$B59,'00 Alimenta'!E:E)*-1) -> 478823.7
A60: AR | B60: AA0720 | C60: Ricavi per prestazioni sanitarie intramoenia - Consulenze (ex art. 55 c.1 lett. c), d) ed ex art. 57-58) (Aziende sanitarie pubbliche della Regione) | D60: R | E60: =IF('00 Aggregatore'!$D60="R",SUMIF('00 Alimenta'!$A:$A,$B60,'00 Alimenta'!D:D),SUMIF('00 Alimenta'!$A:$A,$B60,'00 Alimenta'!D:D)*-1) -> 0 | F60: =IF('00 Aggregatore'!$D60="R",SUMIF('00 Alimenta'!$A:$A,$B60,'00 Alimenta'!E:E),SUMIF('00 Alimenta'!$A:$A,$B60,'00 Alimenta'!E:E)*-1) -> 0
A61: AR | B61: AA0730 | C61: Ricavi per prestazioni sanitarie intramoenia - Altro | D61: R | E61: =IF('00 Aggregatore'!$D61="R",SUMIF('00 Alimenta'!$A:$A,$B61,'00 Alimenta'!D:D),SUMIF('00 Alimenta'!$A:$A,$B61,'00 Alimenta'!D:D)*-1) -> 109709.92 | F61: =IF('00 Aggregatore'!$D61="R",SUMIF('00 Alimenta'!$A:$A,$B61,'00 Alimenta'!E:E),SUMIF('00 Alimenta'!$A:$A,$B61,'00 Alimenta'!E:E)*-1) -> 97870.17
A62: AR | B62: AA0740 | C62: Ricavi per prestazioni sanitarie intramoenia - Altro (Aziende sanitarie pubbliche della Regione) | D62: R | E62: =IF('00 Aggregatore'!$D62="R",SUMIF('00 Alimenta'!$A:$A,$B62,'00 Alimenta'!D:D),SUMIF('00 Alimenta'!$A:$A,$B62,'00 Alimenta'!D:D)*-1) -> 0 | F62: =IF('00 Aggregatore'!$D62="R",SUMIF('00 Alimenta'!$A:$A,$B62,'00 Alimenta'!E:E),SUMIF('00 Alimenta'!$A:$A,$B62,'00 Alimenta'!E:E)*-1) -> 18272.1
A63: AR | B63: AA0760 | C63: Rimborsi assicurativi | D63: R | E63: =IF('00 Aggregatore'!$D63="R",SUMIF('00 Alimenta'!$A:$A,$B63,'00 Alimenta'!D:D),SUMIF('00 Alimenta'!$A:$A,$B63,'00 Alimenta'!D:D)*-1) -> 570386.94 | F63: =IF('00 Aggregatore'!$D63="R",SUMIF('00 Alimenta'!$A:$A,$B63,'00 Alimenta'!E:E),SUMIF('00 Alimenta'!$A:$A,$B63,'00 Alimenta'!E:E)*-1) -> 166973.67
A64: AR | B64: AA0780 | C64: Rimborso degli oneri stipendiali del personale dell'Azienda in posizione di comando presso la Regione | D64: R | E64: =IF('00 Aggregatore'!$D64="R",SUMIF('00 Alimenta'!$A:$A,$B64,'00 Alimenta'!D:D),SUMIF('00 Alimenta'!$A:$A,$B64,'00 Alimenta'!D:D)*-1) -> 0 | F64: =IF('00 Aggregatore'!$D64="R",SUMIF('00 Alimenta'!$A:$A,$B64,'00 Alimenta'!E:E),SUMIF('00 Alimenta'!$A:$A,$B64,'00 Alimenta'!E:E)*-1) -> 0
A65: AR | B65: AA0790 | C65: Altri concorsi, recuperi e rimborsi da parte della Regione | D65: R | E65: =IF('00 Aggregatore'!$D65="R",SUMIF('00 Alimenta'!$A:$A,$B65,'00 Alimenta'!D:D),SUMIF('00 Alimenta'!$A:$A,$B65,'00 Alimenta'!D:D)*-1) -> 0 | F65: =IF('00 Aggregatore'!$D65="R",SUMIF('00 Alimenta'!$A:$A,$B65,'00 Alimenta'!E:E),SUMIF('00 Alimenta'!$A:$A,$B65,'00 Alimenta'!E:E)*-1) -> 0
A66: AR | B66: AA0810 | C66: Rimborso degli oneri stipendiali del personale dipendente dell'Azienda in posizione di comando presso Aziende sanitarie pubbliche della Regione | D66: R | E66: =IF('00 Aggregatore'!$D66="R",SUMIF('00 Alimenta'!$A:$A,$B66,'00 Alimenta'!D:D),SUMIF('00 Alimenta'!$A:$A,$B66,'00 Alimenta'!D:D)*-1) -> 0 | F66: =IF('00 Aggregatore'!$D66="R",SUMIF('00 Alimenta'!$A:$A,$B66,'00 Alimenta'!E:E),SUMIF('00 Alimenta'!$A:$A,$B66,'00 Alimenta'!E:E)*-1) -> 14346.46
A67: AR | B67: AA0820 | C67: Rimborsi per acquisto beni da parte di Aziende sanitarie pubbliche della Regione | D67: R | E67: =IF('00 Aggregatore'!$D67="R",SUMIF('00 Alimenta'!$A:$A,$B67,'00 Alimenta'!D:D),SUMIF('00 Alimenta'!$A:$A,$B67,'00 Alimenta'!D:D)*-1) -> 0 | F67: =IF('00 Aggregatore'!$D67="R",SUMIF('00 Alimenta'!$A:$A,$B67,'00 Alimenta'!E:E),SUMIF('00 Alimenta'!$A:$A,$B67,'00 Alimenta'!E:E)*-1) -> 0
A68: AR | B68: AA0830 | C68: Altri concorsi, recuperi e rimborsi da parte di Aziende sanitarie pubbliche della Regione | D68: R | E68: =IF('00 Aggregatore'!$D68="R",SUMIF('00 Alimenta'!$A:$A,$B68,'00 Alimenta'!D:D),SUMIF('00 Alimenta'!$A:$A,$B68,'00 Alimenta'!D:D)*-1) -> 142391.67 | F68: =IF('00 Aggregatore'!$D68="R",SUMIF('00 Alimenta'!$A:$A,$B68,'00 Alimenta'!E:E),SUMIF('00 Alimenta'!$A:$A,$B68,'00 Alimenta'!E:E)*-1) -> 135883.64
A69: AR | B69: AA0850 | C69: Rimborso degli oneri stipendiali del personale dipendente dell'Azienda in posizione di comando presso altri soggetti pubblici | D69: R | E69: =IF('00 Aggregatore'!$D69="R",SUMIF('00 Alimenta'!$A:$A,$B69,'00 Alimenta'!D:D),SUMIF('00 Alimenta'!$A:$A,$B69,'00 Alimenta'!D:D)*-1) -> 117798.94 | F69: =IF('00 Aggregatore'!$D69="R",SUMIF('00 Alimenta'!$A:$A,$B69,'00 Alimenta'!E:E),SUMIF('00 Alimenta'!$A:$A,$B69,'00 Alimenta'!E:E)*-1) -> 114750.81
A70: =LEFT(B70,1)&D70 -> AR | B70: AA0860 | C70: Rimborsi per acquisto beni da parte di altri soggetti pubblici | D70: R | E70: =IF('00 Aggregatore'!$D70="R",SUMIF('00 Alimenta'!$A:$A,$B70,'00 Alimenta'!D:D),SUMIF('00 Alimenta'!$A:$A,$B70,'00 Alimenta'!D:D)*-1) -> 19160.62 | F70: =IF('00 Aggregatore'!$D70="R",SUMIF('00 Alimenta'!$A:$A,$B70,'00 Alimenta'!E:E),SUMIF('00 Alimenta'!$A:$A,$B70,'00 Alimenta'!E:E)*-1) -> 14709.64
A71: AR | B71: AA0870 | C71: Altri concorsi, recuperi e rimborsi da parte di altri soggetti pubblici | D71: R | E71: =IF('00 Aggregatore'!$D71="R",SUMIF('00 Alimenta'!$A:$A,$B71,'00 Alimenta'!D:D),SUMIF('00 Alimenta'!$A:$A,$B71,'00 Alimenta'!D:D)*-1) -> 4510.31 | F71: =IF('00 Aggregatore'!$D71="R",SUMIF('00 Alimenta'!$A:$A,$B71,'00 Alimenta'!E:E),SUMIF('00 Alimenta'!$A:$A,$B71,'00 Alimenta'!E:E)*-1) -> 157670.22
A72: AR | B72: AA0900 | C72: Pay-back per il superamento del tetto della spesa farmaceutica territoriale | D72: R | E72: =IF('00 Aggregatore'!$D72="R",SUMIF('00 Alimenta'!$A:$A,$B72,'00 Alimenta'!D:D),SUMIF('00 Alimenta'!$A:$A,$B72,'00 Alimenta'!D:D)*-1) -> 0 | F72: =IF('00 Aggregatore'!$D72="R",SUMIF('00 Alimenta'!$A:$A,$B72,'00 Alimenta'!E:E),SUMIF('00 Alimenta'!$A:$A,$B72,'00 Alimenta'!E:E)*-1) -> 0
A73: AR | B73: AA0910 | C73: Pay-back per superamento del tetto della spesa farmaceutica ospedaliera | D73: R | E73: =IF('00 Aggregatore'!$D73="R",SUMIF('00 Alimenta'!$A:$A,$B73,'00 Alimenta'!D:D),SUMIF('00 Alimenta'!$A:$A,$B73,'00 Alimenta'!D:D)*-1) -> 0 | F73: =IF('00 Aggregatore'!$D73="R",SUMIF('00 Alimenta'!$A:$A,$B73,'00 Alimenta'!E:E),SUMIF('00 Alimenta'!$A:$A,$B73,'00 Alimenta'!E:E)*-1) -> 20
A74: AR | B74: AA0920 | C74: Ulteriore Pay-back | D74: R | E74: =IF('00 Aggregatore'!$D74="R",SUMIF('00 Alimenta'!$A:$A,$B74,'00 Alimenta'!D:D),SUMIF('00 Alimenta'!$A:$A,$B74,'00 Alimenta'!D:D)*-1) -> 1431892.14 | F74: =IF('00 Aggregatore'!$D74="R",SUMIF('00 Alimenta'!$A:$A,$B74,'00 Alimenta'!E:E),SUMIF('00 Alimenta'!$A:$A,$B74,'00 Alimenta'!E:E)*-1) -> 3426932.4
A75: AR | B75: AA0930 | C75: Altri concorsi, recuperi e rimborsi da privati | D75: R | E75: =IF('00 Aggregatore'!$D75="R",SUMIF('00 Alimenta'!$A:$A,$B75,'00 Alimenta'!D:D),SUMIF('00 Alimenta'!$A:$A,$B75,'00 Alimenta'!D:D)*-1) -> 674491.36 | F75: =IF('00 Aggregatore'!$D75="R",SUMIF('00 Alimenta'!$A:$A,$B75,'00 Alimenta'!E:E),SUMIF('00 Alimenta'!$A:$A,$B75,'00 Alimenta'!E:E)*-1) -> 866980.31
A76: AR | B76: AA0950 | C76: Compartecipazione alla spesa per prestazioni sanitarie - Ticket sulle prestazioni di specialistica ambulatoriale | D76: R | E76: =IF('00 Aggregatore'!$D76="R",SUMIF('00 Alimenta'!$A:$A,$B76,'00 Alimenta'!D:D),SUMIF('00 Alimenta'!$A:$A,$B76,'00 Alimenta'!D:D)*-1) -> 6032018.41 | F76: =IF('00 Aggregatore'!$D76="R",SUMIF('00 Alimenta'!$A:$A,$B76,'00 Alimenta'!E:E),SUMIF('00 Alimenta'!$A:$A,$B76,'00 Alimenta'!E:E)*-1) -> 6414769.32
A77: AR | B77: AA0960 | C77: Compartecipazione alla spesa per prestazioni sanitarie - Ticket sul pronto soccorso | D77: R | E77: =IF('00 Aggregatore'!$D77="R",SUMIF('00 Alimenta'!$A:$A,$B77,'00 Alimenta'!D:D),SUMIF('00 Alimenta'!$A:$A,$B77,'00 Alimenta'!D:D)*-1) -> 567331.92 | F77: =IF('00 Aggregatore'!$D77="R",SUMIF('00 Alimenta'!$A:$A,$B77,'00 Alimenta'!E:E),SUMIF('00 Alimenta'!$A:$A,$B77,'00 Alimenta'!E:E)*-1) -> 330322.76
A78: AR | B78: AA0970 | C78: Compartecipazione alla spesa per prestazioni sanitarie (Ticket) - Altro | D78: R | E78: =IF('00 Aggregatore'!$D78="R",SUMIF('00 Alimenta'!$A:$A,$B78,'00 Alimenta'!D:D),SUMIF('00 Alimenta'!$A:$A,$B78,'00 Alimenta'!D:D)*-1) -> 0 | F78: =IF('00 Aggregatore'!$D78="R",SUMIF('00 Alimenta'!$A:$A,$B78,'00 Alimenta'!E:E),SUMIF('00 Alimenta'!$A:$A,$B78,'00 Alimenta'!E:E)*-1) -> 0
A79: AR | B79: AA0990 | C79: Quota imputata all'esercizio dei finanziamenti per investimenti dallo Stato | D79: R | E79: =IF('00 Aggregatore'!$D79="R",SUMIF('00 Alimenta'!$A:$A,$B79,'00 Alimenta'!D:D),SUMIF('00 Alimenta'!$A:$A,$B79,'00 Alimenta'!D:D)*-1) -> 55380.81 | F79: =IF('00 Aggregatore'!$D79="R",SUMIF('00 Alimenta'!$A:$A,$B79,'00 Alimenta'!E:E),SUMIF('00 Alimenta'!$A:$A,$B79,'00 Alimenta'!E:E)*-1) -> 48286.07
A80: AR | B80: AA1000 | C80: Quota imputata all'esercizio dei finanziamenti per investimenti da Regione | D80: R | E80: =IF('00 Aggregatore'!$D80="R",SUMIF('00 Alimenta'!$A:$A,$B80,'00 Alimenta'!D:D),SUMIF('00 Alimenta'!$A:$A,$B80,'00 Alimenta'!D:D)*-1) -> 1574332.01 | F80: =IF('00 Aggregatore'!$D80="R",SUMIF('00 Alimenta'!$A:$A,$B80,'00 Alimenta'!E:E),SUMIF('00 Alimenta'!$A:$A,$B80,'00 Alimenta'!E:E)*-1) -> 1468544.84
A81: AR | B81: AA1010 | C81: Quota imputata all'esercizio dei finanziamenti per beni di prima dotazione | D81: R | E81: =IF('00 Aggregatore'!$D81="R",SUMIF('00 Alimenta'!$A:$A,$B81,'00 Alimenta'!D:D),SUMIF('00 Alimenta'!$A:$A,$B81,'00 Alimenta'!D:D)*-1) -> 3577467.93 | F81: =IF('00 Aggregatore'!$D81="R",SUMIF('00 Alimenta'!$A:$A,$B81,'00 Alimenta'!E:E),SUMIF('00 Alimenta'!$A:$A,$B81,'00 Alimenta'!E:E)*-1) -> 3577467.93
A82: AR | B82: AA1020 | C82: Quota imputata all'esercizio dei contributi in c/esercizio FSR destinati ad investimenti | D82: R | E82: =IF('00 Aggregatore'!$D82="R",SUMIF('00 Alimenta'!$A:$A,$B82,'00 Alimenta'!D:D),SUMIF('00 Alimenta'!$A:$A,$B82,'00 Alimenta'!D:D)*-1) -> 3299309.48 | F82: =IF('00 Aggregatore'!$D82="R",SUMIF('00 Alimenta'!$A:$A,$B82,'00 Alimenta'!E:E),SUMIF('00 Alimenta'!$A:$A,$B82,'00 Alimenta'!E:E)*-1) -> 4730694.31
A83: AR | B83: AA1030 | C83: Quota imputata all'esercizio degli altri contributi in c/esercizio destinati ad investimenti | D83: R | E83: =IF('00 Aggregatore'!$D83="R",SUMIF('00 Alimenta'!$A:$A,$B83,'00 Alimenta'!D:D),SUMIF('00 Alimenta'!$A:$A,$B83,'00 Alimenta'!D:D)*-1) -> 0 | F83: =IF('00 Aggregatore'!$D83="R",SUMIF('00 Alimenta'!$A:$A,$B83,'00 Alimenta'!E:E),SUMIF('00 Alimenta'!$A:$A,$B83,'00 Alimenta'!E:E)*-1) -> 0
A84: AR | B84: AA1040 | C84: Quota imputata all'esercizio di altre poste del patrimonio netto | D84: R | E84: =IF('00 Aggregatore'!$D84="R",SUMIF('00 Alimenta'!$A:$A,$B84,'00 Alimenta'!D:D),SUMIF('00 Alimenta'!$A:$A,$B84,'00 Alimenta'!D:D)*-1) -> 0 | F84: =IF('00 Aggregatore'!$D84="R",SUMIF('00 Alimenta'!$A:$A,$B84,'00 Alimenta'!E:E),SUMIF('00 Alimenta'!$A:$A,$B84,'00 Alimenta'!E:E)*-1) -> 0
A85: AR | B85: AA1050 | C85: Incrementi delle immobilizzazioni per lavori interni | D85: R | E85: =IF('00 Aggregatore'!$D85="R",SUMIF('00 Alimenta'!$A:$A,$B85,'00 Alimenta'!D:D),SUMIF('00 Alimenta'!$A:$A,$B85,'00 Alimenta'!D:D)*-1) -> 0 | F85: =IF('00 Aggregatore'!$D85="R",SUMIF('00 Alimenta'!$A:$A,$B85,'00 Alimenta'!E:E),SUMIF('00 Alimenta'!$A:$A,$B85,'00 Alimenta'!E:E)*-1) -> 0
A86: AR | B86: AA1070 | C86: Ricavi per prestazioni non sanitarie | D86: R | E86: =IF('00 Aggregatore'!$D86="R",SUMIF('00 Alimenta'!$A:$A,$B86,'00 Alimenta'!D:D),SUMIF('00 Alimenta'!$A:$A,$B86,'00 Alimenta'!D:D)*-1) -> 3563 | F86: =IF('00 Aggregatore'!$D86="R",SUMIF('00 Alimenta'!$A:$A,$B86,'00 Alimenta'!E:E),SUMIF('00 Alimenta'!$A:$A,$B86,'00 Alimenta'!E:E)*-1) -> 3023.66
A87: AR | B87: AA1080 | C87: Fitti attivi e altri proventi da attività immobiliari | D87: R | E87: =IF('00 Aggregatore'!$D87="R",SUMIF('00 Alimenta'!$A:$A,$B87,'00 Alimenta'!D:D),SUMIF('00 Alimenta'!$A:$A,$B87,'00 Alimenta'!D:D)*-1) -> 221554.44 | F87: =IF('00 Aggregatore'!$D87="R",SUMIF('00 Alimenta'!$A:$A,$B87,'00 Alimenta'!E:E),SUMIF('00 Alimenta'!$A:$A,$B87,'00 Alimenta'!E:E)*-1) -> 221560.64
A88: AR | B88: AA1090 | C88: Altri proventi diversi | D88: R | E88: =IF('00 Aggregatore'!$D88="R",SUMIF('00 Alimenta'!$A:$A,$B88,'00 Alimenta'!D:D),SUMIF('00 Alimenta'!$A:$A,$B88,'00 Alimenta'!D:D)*-1) -> 309449.19 | F88: =IF('00 Aggregatore'!$D88="R",SUMIF('00 Alimenta'!$A:$A,$B88,'00 Alimenta'!E:E),SUMIF('00 Alimenta'!$A:$A,$B88,'00 Alimenta'!E:E)*-1) -> 397717.1
A89: BC | B89: BA0040 | C89: Medicinali con AIC, ad eccezione di vaccini ed emoderivati di produzione regionale | D89: C | E89: =IF('00 Aggregatore'!$D89="R",SUMIF('00 Alimenta'!$A:$A,$B89,'00 Alimenta'!D:D),SUMIF('00 Alimenta'!$A:$A,$B89,'00 Alimenta'!D:D)*-1) -> 66456835.45 | F89: =IF('00 Aggregatore'!$D89="R",SUMIF('00 Alimenta'!$A:$A,$B89,'00 Alimenta'!E:E),SUMIF('00 Alimenta'!$A:$A,$B89,'00 Alimenta'!E:E)*-1) -> 69235809.47
A90: BC | B90: BA0050 | C90: Medicinali senza AIC | D90: C | E90: =IF('00 Aggregatore'!$D90="R",SUMIF('00 Alimenta'!$A:$A,$B90,'00 Alimenta'!D:D),SUMIF('00 Alimenta'!$A:$A,$B90,'00 Alimenta'!D:D)*-1) -> 1300987.46 | F90: =IF('00 Aggregatore'!$D90="R",SUMIF('00 Alimenta'!$A:$A,$B90,'00 Alimenta'!E:E),SUMIF('00 Alimenta'!$A:$A,$B90,'00 Alimenta'!E:E)*-1) -> 722585.84
A91: BC | B91: BA0060 | C91: Emoderivati di produzione regionale | D91: C | E91: =IF('00 Aggregatore'!$D91="R",SUMIF('00 Alimenta'!$A:$A,$B91,'00 Alimenta'!D:D),SUMIF('00 Alimenta'!$A:$A,$B91,'00 Alimenta'!D:D)*-1) -> 0 | F91: =IF('00 Aggregatore'!$D91="R",SUMIF('00 Alimenta'!$A:$A,$B91,'00 Alimenta'!E:E),SUMIF('00 Alimenta'!$A:$A,$B91,'00 Alimenta'!E:E)*-1) -> 0
A92: BC | B92: BA0080 | C92: da pubblico (Aziende sanitarie pubbliche della Regione) - Mobilità intraregionale | D92: C | E92: =IF('00 Aggregatore'!$D92="R",SUMIF('00 Alimenta'!$A:$A,$B92,'00 Alimenta'!D:D),SUMIF('00 Alimenta'!$A:$A,$B92,'00 Alimenta'!D:D)*-1) -> 0 | F92: =IF('00 Aggregatore'!$D92="R",SUMIF('00 Alimenta'!$A:$A,$B92,'00 Alimenta'!E:E),SUMIF('00 Alimenta'!$A:$A,$B92,'00 Alimenta'!E:E)*-1) -> 0
A93: BC | B93: BA0090 | C93: da pubblico (Aziende sanitarie pubbliche extra Regione) - Mobilità extraregionale | D93: C | E93: =IF('00 Aggregatore'!$D93="R",SUMIF('00 Alimenta'!$A:$A,$B93,'00 Alimenta'!D:D),SUMIF('00 Alimenta'!$A:$A,$B93,'00 Alimenta'!D:D)*-1) -> 133040.57 | F93: =IF('00 Aggregatore'!$D93="R",SUMIF('00 Alimenta'!$A:$A,$B93,'00 Alimenta'!E:E),SUMIF('00 Alimenta'!$A:$A,$B93,'00 Alimenta'!E:E)*-1) -> 187348.99
A94: BC | B94: BA0100 | C94: da altri soggetti | D94: C | E94: =IF('00 Aggregatore'!$D94="R",SUMIF('00 Alimenta'!$A:$A,$B94,'00 Alimenta'!D:D),SUMIF('00 Alimenta'!$A:$A,$B94,'00 Alimenta'!D:D)*-1) -> 0 | F94: =IF('00 Aggregatore'!$D94="R",SUMIF('00 Alimenta'!$A:$A,$B94,'00 Alimenta'!E:E),SUMIF('00 Alimenta'!$A:$A,$B94,'00 Alimenta'!E:E)*-1) -> 0
A95: BC | B95: BA0220 | C95: Dispositivi medici | D95: C | E95: =IF('00 Aggregatore'!$D95="R",SUMIF('00 Alimenta'!$A:$A,$B95,'00 Alimenta'!D:D),SUMIF('00 Alimenta'!$A:$A,$B95,'00 Alimenta'!D:D)*-1) -> 25227619.2 | F95: =IF('00 Aggregatore'!$D95="R",SUMIF('00 Alimenta'!$A:$A,$B95,'00 Alimenta'!E:E),SUMIF('00 Alimenta'!$A:$A,$B95,'00 Alimenta'!E:E)*-1) -> 25764695.79
A96: BC | B96: BA0230 | C96: Dispositivi medici impiantabili attivi | D96: C | E96: =IF('00 Aggregatore'!$D96="R",SUMIF('00 Alimenta'!$A:$A,$B96,'00 Alimenta'!D:D),SUMIF('00 Alimenta'!$A:$A,$B96,'00 Alimenta'!D:D)*-1) -> 3795874.49 | F96: =IF('00 Aggregatore'!$D96="R",SUMIF('00 Alimenta'!$A:$A,$B96,'00 Alimenta'!E:E),SUMIF('00 Alimenta'!$A:$A,$B96,'00 Alimenta'!E:E)*-1) -> 3456008.28
A97: BC | B97: BA0240 | C97: Dispositivi medico diagnostici in vitro (IVD) | D97: C | E97: =IF('00 Aggregatore'!$D97="R",SUMIF('00 Alimenta'!$A:$A,$B97,'00 Alimenta'!D:D),SUMIF('00 Alimenta'!$A:$A,$B97,'00 Alimenta'!D:D)*-1) -> 11448832.45 | F97: =IF('00 Aggregatore'!$D97="R",SUMIF('00 Alimenta'!$A:$A,$B97,'00 Alimenta'!E:E),SUMIF('00 Alimenta'!$A:$A,$B97,'00 Alimenta'!E:E)*-1) -> 11969007.5
A98: BC | B98: BA0250 | C98: Prodotti dietetici | D98: C | E98: =IF('00 Aggregatore'!$D98="R",SUMIF('00 Alimenta'!$A:$A,$B98,'00 Alimenta'!D:D),SUMIF('00 Alimenta'!$A:$A,$B98,'00 Alimenta'!D:D)*-1) -> 440667.16 | F98: =IF('00 Aggregatore'!$D98="R",SUMIF('00 Alimenta'!$A:$A,$B98,'00 Alimenta'!E:E),SUMIF('00 Alimenta'!$A:$A,$B98,'00 Alimenta'!E:E)*-1) -> 469645.74
A99: BC | B99: BA0260 | C99: Materiali per la profilassi (vaccini) | D99: C | E99: =IF('00 Aggregatore'!$D99="R",SUMIF('00 Alimenta'!$A:$A,$B99,'00 Alimenta'!D:D),SUMIF('00 Alimenta'!$A:$A,$B99,'00 Alimenta'!D:D)*-1) -> 1380588.41 | F99: =IF('00 Aggregatore'!$D99="R",SUMIF('00 Alimenta'!$A:$A,$B99,'00 Alimenta'!E:E),SUMIF('00 Alimenta'!$A:$A,$B99,'00 Alimenta'!E:E)*-1) -> 2380862.56
A100: BC | B100: BA0270 | C100: Prodotti chimici | D100: C | E100: =IF('00 Aggregatore'!$D100="R",SUMIF('00 Alimenta'!$A:$A,$B100,'00 Alimenta'!D:D),SUMIF('00 Alimenta'!$A:$A,$B100,'00 Alimenta'!D:D)*-1) -> 0 | F100: =IF('00 Aggregatore'!$D100="R",SUMIF('00 Alimenta'!$A:$A,$B100,'00 Alimenta'!E:E),SUMIF('00 Alimenta'!$A:$A,$B100,'00 Alimenta'!E:E)*-1) -> 0
A101: BC | B101: BA0280 | C101: Materiali e prodotti per uso veterinario | D101: C | E101: =IF('00 Aggregatore'!$D101="R",SUMIF('00 Alimenta'!$A:$A,$B101,'00 Alimenta'!D:D),SUMIF('00 Alimenta'!$A:$A,$B101,'00 Alimenta'!D:D)*-1) -> 33301.29 | F101: =IF('00 Aggregatore'!$D101="R",SUMIF('00 Alimenta'!$A:$A,$B101,'00 Alimenta'!E:E),SUMIF('00 Alimenta'!$A:$A,$B101,'00 Alimenta'!E:E)*-1) -> 7852.8
A102: BC | B102: BA0290 | C102: Altri beni e prodotti sanitari | D102: C | E102: =IF('00 Aggregatore'!$D102="R",SUMIF('00 Alimenta'!$A:$A,$B102,'00 Alimenta'!D:D),SUMIF('00 Alimenta'!$A:$A,$B102,'00 Alimenta'!D:D)*-1) -> 1513330.23 | F102: =IF('00 Aggregatore'!$D102="R",SUMIF('00 Alimenta'!$A:$A,$B102,'00 Alimenta'!E:E),SUMIF('00 Alimenta'!$A:$A,$B102,'00 Alimenta'!E:E)*-1) -> 1934574.6
A103: BC | B103: BA0300 | C103: Beni e prodotti sanitari da Aziende sanitarie pubbliche della Regione | D103: C | E103: =IF('00 Aggregatore'!$D103="R",SUMIF('00 Alimenta'!$A:$A,$B103,'00 Alimenta'!D:D),SUMIF('00 Alimenta'!$A:$A,$B103,'00 Alimenta'!D:D)*-1) -> 0 | F103: =IF('00 Aggregatore'!$D103="R",SUMIF('00 Alimenta'!$A:$A,$B103,'00 Alimenta'!E:E),SUMIF('00 Alimenta'!$A:$A,$B103,'00 Alimenta'!E:E)*-1) -> 0
A104: BC | B104: BA0320 | C104: Prodotti alimentari | D104: C | E104: =IF('00 Aggregatore'!$D104="R",SUMIF('00 Alimenta'!$A:$A,$B104,'00 Alimenta'!D:D),SUMIF('00 Alimenta'!$A:$A,$B104,'00 Alimenta'!D:D)*-1) -> 259.32 | F104: =IF('00 Aggregatore'!$D104="R",SUMIF('00 Alimenta'!$A:$A,$B104,'00 Alimenta'!E:E),SUMIF('00 Alimenta'!$A:$A,$B104,'00 Alimenta'!E:E)*-1) -> 250.58
A105: BC | B105: BA0330 | C105: Materiali di guardaroba, di pulizia e di convivenza in genere | D105: C | E105: =IF('00 Aggregatore'!$D105="R",SUMIF('00 Alimenta'!$A:$A,$B105,'00 Alimenta'!D:D),SUMIF('00 Alimenta'!$A:$A,$B105,'00 Alimenta'!D:D)*-1) -> 29848.15 | F105: =IF('00 Aggregatore'!$D105="R",SUMIF('00 Alimenta'!$A:$A,$B105,'00 Alimenta'!E:E),SUMIF('00 Alimenta'!$A:$A,$B105,'00 Alimenta'!E:E)*-1) -> 41796.38
A106: BC | B106: BA0340 | C106: Combustibili, carburanti e lubrificanti | D106: C | E106: =IF('00 Aggregatore'!$D106="R",SUMIF('00 Alimenta'!$A:$A,$B106,'00 Alimenta'!D:D),SUMIF('00 Alimenta'!$A:$A,$B106,'00 Alimenta'!D:D)*-1) -> 125554.88 | F106: =IF('00 Aggregatore'!$D106="R",SUMIF('00 Alimenta'!$A:$A,$B106,'00 Alimenta'!E:E),SUMIF('00 Alimenta'!$A:$A,$B106,'00 Alimenta'!E:E)*-1) -> 135937.7
A107: BC | B107: BA0350 | C107: Supporti informatici e cancelleria | D107: C | E107: =IF('00 Aggregatore'!$D107="R",SUMIF('00 Alimenta'!$A:$A,$B107,'00 Alimenta'!D:D),SUMIF('00 Alimenta'!$A:$A,$B107,'00 Alimenta'!D:D)*-1) -> 597417.69 | F107: =IF('00 Aggregatore'!$D107="R",SUMIF('00 Alimenta'!$A:$A,$B107,'00 Alimenta'!E:E),SUMIF('00 Alimenta'!$A:$A,$B107,'00 Alimenta'!E:E)*-1) -> 513727.87
A108: BC | B108: BA0360 | C108: Materiale per la manutenzione | D108: C | E108: =IF('00 Aggregatore'!$D108="R",SUMIF('00 Alimenta'!$A:$A,$B108,'00 Alimenta'!D:D),SUMIF('00 Alimenta'!$A:$A,$B108,'00 Alimenta'!D:D)*-1) -> 252738.81 | F108: =IF('00 Aggregatore'!$D108="R",SUMIF('00 Alimenta'!$A:$A,$B108,'00 Alimenta'!E:E),SUMIF('00 Alimenta'!$A:$A,$B108,'00 Alimenta'!E:E)*-1) -> 207783.53
A109: BC | B109: BA0370 | C109: Altri beni e prodotti non sanitari | D109: C | E109: =IF('00 Aggregatore'!$D109="R",SUMIF('00 Alimenta'!$A:$A,$B109,'00 Alimenta'!D:D),SUMIF('00 Alimenta'!$A:$A,$B109,'00 Alimenta'!D:D)*-1) -> 49743.28 | F109: =IF('00 Aggregatore'!$D109="R",SUMIF('00 Alimenta'!$A:$A,$B109,'00 Alimenta'!E:E),SUMIF('00 Alimenta'!$A:$A,$B109,'00 Alimenta'!E:E)*-1) -> 48626.56
A110: BC | B110: BA0380 | C110: Beni e prodotti non sanitari da Aziende sanitarie pubbliche della Regione | D110: C | E110: =IF('00 Aggregatore'!$D110="R",SUMIF('00 Alimenta'!$A:$A,$B110,'00 Alimenta'!D:D),SUMIF('00 Alimenta'!$A:$A,$B110,'00 Alimenta'!D:D)*-1) -> 0 | F110: =IF('00 Aggregatore'!$D110="R",SUMIF('00 Alimenta'!$A:$A,$B110,'00 Alimenta'!E:E),SUMIF('00 Alimenta'!$A:$A,$B110,'00 Alimenta'!E:E)*-1) -> 0
A111: BC | B111: BA0430 | C111: Costi per assistenza MMG | D111: C | E111: =IF('00 Aggregatore'!$D111="R",SUMIF('00 Alimenta'!$A:$A,$B111,'00 Alimenta'!D:D),SUMIF('00 Alimenta'!$A:$A,$B111,'00 Alimenta'!D:D)*-1) -> 24527412.66 | F111: =IF('00 Aggregatore'!$D111="R",SUMIF('00 Alimenta'!$A:$A,$B111,'00 Alimenta'!E:E),SUMIF('00 Alimenta'!$A:$A,$B111,'00 Alimenta'!E:E)*-1) -> 24328709.33
A112: BC | B112: BA0440 | C112: Costi per assistenza PLS | D112: C | E112: =IF('00 Aggregatore'!$D112="R",SUMIF('00 Alimenta'!$A:$A,$B112,'00 Alimenta'!D:D),SUMIF('00 Alimenta'!$A:$A,$B112,'00 Alimenta'!D:D)*-1) -> 6297522.92 | F112: =IF('00 Aggregatore'!$D112="R",SUMIF('00 Alimenta'!$A:$A,$B112,'00 Alimenta'!E:E),SUMIF('00 Alimenta'!$A:$A,$B112,'00 Alimenta'!E:E)*-1) -> 6208374.4
A113: BC | B113: BA0450 | C113: Costi per assistenza Continuità assistenziale | D113: C | E113: =IF('00 Aggregatore'!$D113="R",SUMIF('00 Alimenta'!$A:$A,$B113,'00 Alimenta'!D:D),SUMIF('00 Alimenta'!$A:$A,$B113,'00 Alimenta'!D:D)*-1) -> 4154724.75 | F113: =IF('00 Aggregatore'!$D113="R",SUMIF('00 Alimenta'!$A:$A,$B113,'00 Alimenta'!E:E),SUMIF('00 Alimenta'!$A:$A,$B113,'00 Alimenta'!E:E)*-1) -> 4008916.53
A114: BC | B114: BA0460 | C114: Altro (medicina dei servizi, psicologi, medici 118, ecc.) | D114: C | E114: =IF('00 Aggregatore'!$D114="R",SUMIF('00 Alimenta'!$A:$A,$B114,'00 Alimenta'!D:D),SUMIF('00 Alimenta'!$A:$A,$B114,'00 Alimenta'!D:D)*-1) -> 910105.56 | F114: =IF('00 Aggregatore'!$D114="R",SUMIF('00 Alimenta'!$A:$A,$B114,'00 Alimenta'!E:E),SUMIF('00 Alimenta'!$A:$A,$B114,'00 Alimenta'!E:E)*-1) -> 889849.09
A115: BC | B115: BA0470 | C115: da pubblico (Aziende sanitarie pubbliche della Regione) - Mobilità intraregionale | D115: C | E115: =IF('00 Aggregatore'!$D115="R",SUMIF('00 Alimenta'!$A:$A,$B115,'00 Alimenta'!D:D),SUMIF('00 Alimenta'!$A:$A,$B115,'00 Alimenta'!D:D)*-1) -> 83439.4 | F115: =IF('00 Aggregatore'!$D115="R",SUMIF('00 Alimenta'!$A:$A,$B115,'00 Alimenta'!E:E),SUMIF('00 Alimenta'!$A:$A,$B115,'00 Alimenta'!E:E)*-1) -> 35057.19
A116: BC | B116: BA0480 | C116: da pubblico (Aziende sanitarie pubbliche extra Regione) - Mobilità extraregionale | D116: C | E116: =IF('00 Aggregatore'!$D116="R",SUMIF('00 Alimenta'!$A:$A,$B116,'00 Alimenta'!D:D),SUMIF('00 Alimenta'!$A:$A,$B116,'00 Alimenta'!D:D)*-1) -> 173343.96 | F116: =IF('00 Aggregatore'!$D116="R",SUMIF('00 Alimenta'!$A:$A,$B116,'00 Alimenta'!E:E),SUMIF('00 Alimenta'!$A:$A,$B116,'00 Alimenta'!E:E)*-1) -> 184748.58
A117: BC | B117: BA0500 | C117: da convenzione | D117: C | E117: =IF('00 Aggregatore'!$D117="R",SUMIF('00 Alimenta'!$A:$A,$B117,'00 Alimenta'!D:D),SUMIF('00 Alimenta'!$A:$A,$B117,'00 Alimenta'!D:D)*-1) -> 53014279.9 | F117: =IF('00 Aggregatore'!$D117="R",SUMIF('00 Alimenta'!$A:$A,$B117,'00 Alimenta'!E:E),SUMIF('00 Alimenta'!$A:$A,$B117,'00 Alimenta'!E:E)*-1) -> 52924145.52
A118: BC | B118: BA0510 | C118: da pubblico (Aziende sanitarie pubbliche della Regione) - Mobilità intraregionale | D118: C | E118: =IF('00 Aggregatore'!$D118="R",SUMIF('00 Alimenta'!$A:$A,$B118,'00 Alimenta'!D:D),SUMIF('00 Alimenta'!$A:$A,$B118,'00 Alimenta'!D:D)*-1) -> 1241012.19 | F118: =IF('00 Aggregatore'!$D118="R",SUMIF('00 Alimenta'!$A:$A,$B118,'00 Alimenta'!E:E),SUMIF('00 Alimenta'!$A:$A,$B118,'00 Alimenta'!E:E)*-1) -> 1251970.51
A119: BC | B119: BA0520 | C119: da pubblico (extra Regione) | D119: C | E119: =IF('00 Aggregatore'!$D119="R",SUMIF('00 Alimenta'!$A:$A,$B119,'00 Alimenta'!D:D),SUMIF('00 Alimenta'!$A:$A,$B119,'00 Alimenta'!D:D)*-1) -> 381774.76 | F119: =IF('00 Aggregatore'!$D119="R",SUMIF('00 Alimenta'!$A:$A,$B119,'00 Alimenta'!E:E),SUMIF('00 Alimenta'!$A:$A,$B119,'00 Alimenta'!E:E)*-1) -> 387832.02
A120: BC | B120: BA0540 | C120: da pubblico (Aziende sanitarie pubbliche della Regione) | D120: C | E120: =IF('00 Aggregatore'!$D120="R",SUMIF('00 Alimenta'!$A:$A,$B120,'00 Alimenta'!D:D),SUMIF('00 Alimenta'!$A:$A,$B120,'00 Alimenta'!D:D)*-1) -> 8524168.66 | F120: =IF('00 Aggregatore'!$D120="R",SUMIF('00 Alimenta'!$A:$A,$B120,'00 Alimenta'!E:E),SUMIF('00 Alimenta'!$A:$A,$B120,'00 Alimenta'!E:E)*-1) -> 8998122.11
A121: BC | B121: BA0550 | C121: da pubblico (altri soggetti pubblici della Regione) | D121: C | E121: =IF('00 Aggregatore'!$D121="R",SUMIF('00 Alimenta'!$A:$A,$B121,'00 Alimenta'!D:D),SUMIF('00 Alimenta'!$A:$A,$B121,'00 Alimenta'!D:D)*-1) -> 224364.91 | F121: =IF('00 Aggregatore'!$D121="R",SUMIF('00 Alimenta'!$A:$A,$B121,'00 Alimenta'!E:E),SUMIF('00 Alimenta'!$A:$A,$B121,'00 Alimenta'!E:E)*-1) -> 189344.67
A122: BC | B122: BA0560 | C122: da pubblico (extra Regione) | D122: C | E122: =IF('00 Aggregatore'!$D122="R",SUMIF('00 Alimenta'!$A:$A,$B122,'00 Alimenta'!D:D),SUMIF('00 Alimenta'!$A:$A,$B122,'00 Alimenta'!D:D)*-1) -> 3048586.34 | F122: =IF('00 Aggregatore'!$D122="R",SUMIF('00 Alimenta'!$A:$A,$B122,'00 Alimenta'!E:E),SUMIF('00 Alimenta'!$A:$A,$B122,'00 Alimenta'!E:E)*-1) -> 4460024.94
A123: BC | B123: BA0570 | C123: da privato - Medici SUMAI | D123: C | E123: =IF('00 Aggregatore'!$D123="R",SUMIF('00 Alimenta'!$A:$A,$B123,'00 Alimenta'!D:D),SUMIF('00 Alimenta'!$A:$A,$B123,'00 Alimenta'!D:D)*-1) -> 5114503.17 | F123: =IF('00 Aggregatore'!$D123="R",SUMIF('00 Alimenta'!$A:$A,$B123,'00 Alimenta'!E:E),SUMIF('00 Alimenta'!$A:$A,$B123,'00 Alimenta'!E:E)*-1) -> 4899151.05
A124: BC | B124: BA0590 | C124: Servizi sanitari per assistenza specialistica da IRCCS privati e Policlinici privati | D124: C | E124: =IF('00 Aggregatore'!$D124="R",SUMIF('00 Alimenta'!$A:$A,$B124,'00 Alimenta'!D:D),SUMIF('00 Alimenta'!$A:$A,$B124,'00 Alimenta'!D:D)*-1) -> 44362.83 | F124: =IF('00 Aggregatore'!$D124="R",SUMIF('00 Alimenta'!$A:$A,$B124,'00 Alimenta'!E:E),SUMIF('00 Alimenta'!$A:$A,$B124,'00 Alimenta'!E:E)*-1) -> 60978.73
A125: BC | B125: BA0600 | C125: Servizi sanitari per assistenza specialistica da Ospedali Classificati privati | D125: C | E125: =IF('00 Aggregatore'!$D125="R",SUMIF('00 Alimenta'!$A:$A,$B125,'00 Alimenta'!D:D),SUMIF('00 Alimenta'!$A:$A,$B125,'00 Alimenta'!D:D)*-1) -> 0 | F125: =IF('00 Aggregatore'!$D125="R",SUMIF('00 Alimenta'!$A:$A,$B125,'00 Alimenta'!E:E),SUMIF('00 Alimenta'!$A:$A,$B125,'00 Alimenta'!E:E)*-1) -> 0
A126: BC | B126: BA0610 | C126: Servizi sanitari per assistenza specialistica da Case di Cura private | D126: C | E126: =IF('00 Aggregatore'!$D126="R",SUMIF('00 Alimenta'!$A:$A,$B126,'00 Alimenta'!D:D),SUMIF('00 Alimenta'!$A:$A,$B126,'00 Alimenta'!D:D)*-1) -> 5364433.02 | F126: =IF('00 Aggregatore'!$D126="R",SUMIF('00 Alimenta'!$A:$A,$B126,'00 Alimenta'!E:E),SUMIF('00 Alimenta'!$A:$A,$B126,'00 Alimenta'!E:E)*-1) -> 5412858.87
A127: BC | B127: BA0620 | C127: Servizi sanitari per assistenza specialistica da altri privati | D127: C | E127: =IF('00 Aggregatore'!$D127="R",SUMIF('00 Alimenta'!$A:$A,$B127,'00 Alimenta'!D:D),SUMIF('00 Alimenta'!$A:$A,$B127,'00 Alimenta'!D:D)*-1) -> 3188051.21 | F127: =IF('00 Aggregatore'!$D127="R",SUMIF('00 Alimenta'!$A:$A,$B127,'00 Alimenta'!E:E),SUMIF('00 Alimenta'!$A:$A,$B127,'00 Alimenta'!E:E)*-1) -> 3284005.5
A128: BC | B128: BA0630 | C128: da privato per cittadini non residenti - extra Regione (Mobilità attiva in compensazione) | D128: C | E128: =IF('00 Aggregatore'!$D128="R",SUMIF('00 Alimenta'!$A:$A,$B128,'00 Alimenta'!D:D),SUMIF('00 Alimenta'!$A:$A,$B128,'00 Alimenta'!D:D)*-1) -> 196243.85 | F128: =IF('00 Aggregatore'!$D128="R",SUMIF('00 Alimenta'!$A:$A,$B128,'00 Alimenta'!E:E),SUMIF('00 Alimenta'!$A:$A,$B128,'00 Alimenta'!E:E)*-1) -> 214698.2
A129: BC | B129: BA0650 | C129: da pubblico (Aziende sanitarie pubbliche della Regione) | D129: C | E129: =IF('00 Aggregatore'!$D129="R",SUMIF('00 Alimenta'!$A:$A,$B129,'00 Alimenta'!D:D),SUMIF('00 Alimenta'!$A:$A,$B129,'00 Alimenta'!D:D)*-1) -> 4525129.8 | F129: =IF('00 Aggregatore'!$D129="R",SUMIF('00 Alimenta'!$A:$A,$B129,'00 Alimenta'!E:E),SUMIF('00 Alimenta'!$A:$A,$B129,'00 Alimenta'!E:E)*-1) -> 4855060.17
A130: BC | B130: BA0660 | C130: da pubblico (altri soggetti pubblici della Regione) | D130: C | E130: =IF('00 Aggregatore'!$D130="R",SUMIF('00 Alimenta'!$A:$A,$B130,'00 Alimenta'!D:D),SUMIF('00 Alimenta'!$A:$A,$B130,'00 Alimenta'!D:D)*-1) -> 0 | F130: =IF('00 Aggregatore'!$D130="R",SUMIF('00 Alimenta'!$A:$A,$B130,'00 Alimenta'!E:E),SUMIF('00 Alimenta'!$A:$A,$B130,'00 Alimenta'!E:E)*-1) -> 0
A131: BC | B131: BA0670 | C131: da pubblico (extra Regione) non soggetti a compensazione | D131: C | E131: =IF('00 Aggregatore'!$D131="R",SUMIF('00 Alimenta'!$A:$A,$B131,'00 Alimenta'!D:D),SUMIF('00 Alimenta'!$A:$A,$B131,'00 Alimenta'!D:D)*-1) -> 0 | F131: =IF('00 Aggregatore'!$D131="R",SUMIF('00 Alimenta'!$A:$A,$B131,'00 Alimenta'!E:E),SUMIF('00 Alimenta'!$A:$A,$B131,'00 Alimenta'!E:E)*-1) -> 0
A132: BC | B132: BA0680 | C132: da privato (intraregionale) | D132: C | E132: =IF('00 Aggregatore'!$D132="R",SUMIF('00 Alimenta'!$A:$A,$B132,'00 Alimenta'!D:D),SUMIF('00 Alimenta'!$A:$A,$B132,'00 Alimenta'!D:D)*-1) -> 14443763.36 | F132: =IF('00 Aggregatore'!$D132="R",SUMIF('00 Alimenta'!$A:$A,$B132,'00 Alimenta'!E:E),SUMIF('00 Alimenta'!$A:$A,$B132,'00 Alimenta'!E:E)*-1) -> 14460769.46
A133: BC | B133: BA0690 | C133: da privato (extraregionale) | D133: C | E133: =IF('00 Aggregatore'!$D133="R",SUMIF('00 Alimenta'!$A:$A,$B133,'00 Alimenta'!D:D),SUMIF('00 Alimenta'!$A:$A,$B133,'00 Alimenta'!D:D)*-1) -> 792965.98 | F133: =IF('00 Aggregatore'!$D133="R",SUMIF('00 Alimenta'!$A:$A,$B133,'00 Alimenta'!E:E),SUMIF('00 Alimenta'!$A:$A,$B133,'00 Alimenta'!E:E)*-1) -> 591378.35
A134: =LEFT(B134,1)&D134 -> BC | B134: BA0710 | C134: da pubblico (Aziende sanitarie pubbliche della Regione) | D134: C | E134: =IF('00 Aggregatore'!$D134="R",SUMIF('00 Alimenta'!$A:$A,$B134,'00 Alimenta'!D:D),SUMIF('00 Alimenta'!$A:$A,$B134,'00 Alimenta'!D:D)*-1) -> 0 | F134: =IF('00 Aggregatore'!$D134="R",SUMIF('00 Alimenta'!$A:$A,$B134,'00 Alimenta'!E:E),SUMIF('00 Alimenta'!$A:$A,$B134,'00 Alimenta'!E:E)*-1) -> 0
A135: BC | B135: BA0720 | C135: da pubblico (altri soggetti pubblici della Regione) | D135: C | E135: =IF('00 Aggregatore'!$D135="R",SUMIF('00 Alimenta'!$A:$A,$B135,'00 Alimenta'!D:D),SUMIF('00 Alimenta'!$A:$A,$B135,'00 Alimenta'!D:D)*-1) -> 0 | F135: =IF('00 Aggregatore'!$D135="R",SUMIF('00 Alimenta'!$A:$A,$B135,'00 Alimenta'!E:E),SUMIF('00 Alimenta'!$A:$A,$B135,'00 Alimenta'!E:E)*-1) -> 0
A136: BC | B136: BA0730 | C136: da pubblico (extra Regione) | D136: C | E136: =IF('00 Aggregatore'!$D136="R",SUMIF('00 Alimenta'!$A:$A,$B136,'00 Alimenta'!D:D),SUMIF('00 Alimenta'!$A:$A,$B136,'00 Alimenta'!D:D)*-1) -> 0 | F136: =IF('00 Aggregatore'!$D136="R",SUMIF('00 Alimenta'!$A:$A,$B136,'00 Alimenta'!E:E),SUMIF('00 Alimenta'!$A:$A,$B136,'00 Alimenta'!E:E)*-1) -> 0
A137: BC | B137: BA0740 | C137: da privato | D137: C | E137: =IF('00 Aggregatore'!$D137="R",SUMIF('00 Alimenta'!$A:$A,$B137,'00 Alimenta'!D:D),SUMIF('00 Alimenta'!$A:$A,$B137,'00 Alimenta'!D:D)*-1) -> 1692964.4 | F137: =IF('00 Aggregatore'!$D137="R",SUMIF('00 Alimenta'!$A:$A,$B137,'00 Alimenta'!E:E),SUMIF('00 Alimenta'!$A:$A,$B137,'00 Alimenta'!E:E)*-1) -> 1813040.82
A138: BC | B138: BA0760 | C138: da pubblico (Aziende sanitarie pubbliche della Regione) | D138: C | E138: =IF('00 Aggregatore'!$D138="R",SUMIF('00 Alimenta'!$A:$A,$B138,'00 Alimenta'!D:D),SUMIF('00 Alimenta'!$A:$A,$B138,'00 Alimenta'!D:D)*-1) -> 0 | F138: =IF('00 Aggregatore'!$D138="R",SUMIF('00 Alimenta'!$A:$A,$B138,'00 Alimenta'!E:E),SUMIF('00 Alimenta'!$A:$A,$B138,'00 Alimenta'!E:E)*-1) -> 0
A139: BC | B139: BA0770 | C139: da pubblico (altri soggetti pubblici della Regione) | D139: C | E139: =IF('00 Aggregatore'!$D139="R",SUMIF('00 Alimenta'!$A:$A,$B139,'00 Alimenta'!D:D),SUMIF('00 Alimenta'!$A:$A,$B139,'00 Alimenta'!D:D)*-1) -> 0 | F139: =IF('00 Aggregatore'!$D139="R",SUMIF('00 Alimenta'!$A:$A,$B139,'00 Alimenta'!E:E),SUMIF('00 Alimenta'!$A:$A,$B139,'00 Alimenta'!E:E)*-1) -> 0
A140: BC | B140: BA0780 | C140: da pubblico (extra Regione) | D140: C | E140: =IF('00 Aggregatore'!$D140="R",SUMIF('00 Alimenta'!$A:$A,$B140,'00 Alimenta'!D:D),SUMIF('00 Alimenta'!$A:$A,$B140,'00 Alimenta'!D:D)*-1) -> 0 | F140: =IF('00 Aggregatore'!$D140="R",SUMIF('00 Alimenta'!$A:$A,$B140,'00 Alimenta'!E:E),SUMIF('00 Alimenta'!$A:$A,$B140,'00 Alimenta'!E:E)*-1) -> 0
A141: BC | B141: BA0790 | C141: da privato | D141: C | E141: =IF('00 Aggregatore'!$D141="R",SUMIF('00 Alimenta'!$A:$A,$B141,'00 Alimenta'!D:D),SUMIF('00 Alimenta'!$A:$A,$B141,'00 Alimenta'!D:D)*-1) -> 6610863.35 | F141: =IF('00 Aggregatore'!$D141="R",SUMIF('00 Alimenta'!$A:$A,$B141,'00 Alimenta'!E:E),SUMIF('00 Alimenta'!$A:$A,$B141,'00 Alimenta'!E:E)*-1) -> 6384295.54
A142: BC | B142: BA0810 | C142: da pubblico (Aziende sanitarie pubbliche della Regione) | D142: C | E142: =IF('00 Aggregatore'!$D142="R",SUMIF('00 Alimenta'!$A:$A,$B142,'00 Alimenta'!D:D),SUMIF('00 Alimenta'!$A:$A,$B142,'00 Alimenta'!D:D)*-1) -> 28209224.37 | F142: =IF('00 Aggregatore'!$D142="R",SUMIF('00 Alimenta'!$A:$A,$B142,'00 Alimenta'!E:E),SUMIF('00 Alimenta'!$A:$A,$B142,'00 Alimenta'!E:E)*-1) -> 28230091.68
A143: BC | B143: BA0820 | C143: da pubblico (altri soggetti pubblici della Regione) | D143: C | E143: =IF('00 Aggregatore'!$D143="R",SUMIF('00 Alimenta'!$A:$A,$B143,'00 Alimenta'!D:D),SUMIF('00 Alimenta'!$A:$A,$B143,'00 Alimenta'!D:D)*-1) -> 0 | F143: =IF('00 Aggregatore'!$D143="R",SUMIF('00 Alimenta'!$A:$A,$B143,'00 Alimenta'!E:E),SUMIF('00 Alimenta'!$A:$A,$B143,'00 Alimenta'!E:E)*-1) -> 0
A144: BC | B144: BA0830 | C144: da pubblico (extra Regione) | D144: C | E144: =IF('00 Aggregatore'!$D144="R",SUMIF('00 Alimenta'!$A:$A,$B144,'00 Alimenta'!D:D),SUMIF('00 Alimenta'!$A:$A,$B144,'00 Alimenta'!D:D)*-1) -> 23636269.29 | F144: =IF('00 Aggregatore'!$D144="R",SUMIF('00 Alimenta'!$A:$A,$B144,'00 Alimenta'!E:E),SUMIF('00 Alimenta'!$A:$A,$B144,'00 Alimenta'!E:E)*-1) -> 23048879.05
A145: BC | B145: BA0850 | C145: Servizi sanitari per assistenza ospedaliera da IRCCS privati e Policlinici privati | D145: C | E145: =IF('00 Aggregatore'!$D145="R",SUMIF('00 Alimenta'!$A:$A,$B145,'00 Alimenta'!D:D),SUMIF('00 Alimenta'!$A:$A,$B145,'00 Alimenta'!D:D)*-1) -> 0 | F145: =IF('00 Aggregatore'!$D145="R",SUMIF('00 Alimenta'!$A:$A,$B145,'00 Alimenta'!E:E),SUMIF('00 Alimenta'!$A:$A,$B145,'00 Alimenta'!E:E)*-1) -> 0
A146: BC | B146: BA0860 | C146: Servizi sanitari per assistenza ospedaliera da Ospedali Classificati privati | D146: C | E146: =IF('00 Aggregatore'!$D146="R",SUMIF('00 Alimenta'!$A:$A,$B146,'00 Alimenta'!D:D),SUMIF('00 Alimenta'!$A:$A,$B146,'00 Alimenta'!D:D)*-1) -> 0 | F146: =IF('00 Aggregatore'!$D146="R",SUMIF('00 Alimenta'!$A:$A,$B146,'00 Alimenta'!E:E),SUMIF('00 Alimenta'!$A:$A,$B146,'00 Alimenta'!E:E)*-1) -> 0
A147: BC | B147: BA0870 | C147: Servizi sanitari per assistenza ospedaliera da Case di Cura private | D147: C | E147: =IF('00 Aggregatore'!$D147="R",SUMIF('00 Alimenta'!$A:$A,$B147,'00 Alimenta'!D:D),SUMIF('00 Alimenta'!$A:$A,$B147,'00 Alimenta'!D:D)*-1) -> 61570511.92 | F147: =IF('00 Aggregatore'!$D147="R",SUMIF('00 Alimenta'!$A:$A,$B147,'00 Alimenta'!E:E),SUMIF('00 Alimenta'!$A:$A,$B147,'00 Alimenta'!E:E)*-1) -> 61809764.72
A148: BC | B148: BA0880 | C148: Servizi sanitari per assistenza ospedaliera da altri privati | D148: C | E148: =IF('00 Aggregatore'!$D148="R",SUMIF('00 Alimenta'!$A:$A,$B148,'00 Alimenta'!D:D),SUMIF('00 Alimenta'!$A:$A,$B148,'00 Alimenta'!D:D)*-1) -> 0 | F148: =IF('00 Aggregatore'!$D148="R",SUMIF('00 Alimenta'!$A:$A,$B148,'00 Alimenta'!E:E),SUMIF('00 Alimenta'!$A:$A,$B148,'00 Alimenta'!E:E)*-1) -> 0
A149: BC | B149: BA0890 | C149: da privato per cittadini non residenti - extra Regione (mobilità attiva in compensazione) | D149: C | E149: =IF('00 Aggregatore'!$D149="R",SUMIF('00 Alimenta'!$A:$A,$B149,'00 Alimenta'!D:D),SUMIF('00 Alimenta'!$A:$A,$B149,'00 Alimenta'!D:D)*-1) -> 11496977.64 | F149: =IF('00 Aggregatore'!$D149="R",SUMIF('00 Alimenta'!$A:$A,$B149,'00 Alimenta'!E:E),SUMIF('00 Alimenta'!$A:$A,$B149,'00 Alimenta'!E:E)*-1) -> 11917704.07
A150: BC | B150: BA0910 | C150: da pubblico (Aziende sanitarie pubbliche della Regione) | D150: C | E150: =IF('00 Aggregatore'!$D150="R",SUMIF('00 Alimenta'!$A:$A,$B150,'00 Alimenta'!D:D),SUMIF('00 Alimenta'!$A:$A,$B150,'00 Alimenta'!D:D)*-1) -> 1713800.54 | F150: =IF('00 Aggregatore'!$D150="R",SUMIF('00 Alimenta'!$A:$A,$B150,'00 Alimenta'!E:E),SUMIF('00 Alimenta'!$A:$A,$B150,'00 Alimenta'!E:E)*-1) -> 1648164.66
A151: BC | B151: BA0920 | C151: da pubblico (altri soggetti pubblici della Regione) | D151: C | E151: =IF('00 Aggregatore'!$D151="R",SUMIF('00 Alimenta'!$A:$A,$B151,'00 Alimenta'!D:D),SUMIF('00 Alimenta'!$A:$A,$B151,'00 Alimenta'!D:D)*-1) -> 0 | F151: =IF('00 Aggregatore'!$D151="R",SUMIF('00 Alimenta'!$A:$A,$B151,'00 Alimenta'!E:E),SUMIF('00 Alimenta'!$A:$A,$B151,'00 Alimenta'!E:E)*-1) -> 0
A152: BC | B152: BA0930 | C152: da pubblico (extra Regione) - Non soggette a compensazione | D152: C | E152: =IF('00 Aggregatore'!$D152="R",SUMIF('00 Alimenta'!$A:$A,$B152,'00 Alimenta'!D:D),SUMIF('00 Alimenta'!$A:$A,$B152,'00 Alimenta'!D:D)*-1) -> 32900.5 | F152: =IF('00 Aggregatore'!$D152="R",SUMIF('00 Alimenta'!$A:$A,$B152,'00 Alimenta'!E:E),SUMIF('00 Alimenta'!$A:$A,$B152,'00 Alimenta'!E:E)*-1) -> 6667
A153: BC | B153: BA0940 | C153: da privato (intraregionale) | D153: C | E153: =IF('00 Aggregatore'!$D153="R",SUMIF('00 Alimenta'!$A:$A,$B153,'00 Alimenta'!D:D),SUMIF('00 Alimenta'!$A:$A,$B153,'00 Alimenta'!D:D)*-1) -> 9642524.28 | F153: =IF('00 Aggregatore'!$D153="R",SUMIF('00 Alimenta'!$A:$A,$B153,'00 Alimenta'!E:E),SUMIF('00 Alimenta'!$A:$A,$B153,'00 Alimenta'!E:E)*-1) -> 9671880.59
A154: BC | B154: BA0950 | C154: da privato (extraregionale) | D154: C | E154: =IF('00 Aggregatore'!$D154="R",SUMIF('00 Alimenta'!$A:$A,$B154,'00 Alimenta'!D:D),SUMIF('00 Alimenta'!$A:$A,$B154,'00 Alimenta'!D:D)*-1) -> 2178595.92 | F154: =IF('00 Aggregatore'!$D154="R",SUMIF('00 Alimenta'!$A:$A,$B154,'00 Alimenta'!E:E),SUMIF('00 Alimenta'!$A:$A,$B154,'00 Alimenta'!E:E)*-1) -> 1872398.81
A155: BC | B155: BA0970 | C155: da pubblico (Aziende sanitarie pubbliche della Regione) - Mobilità intraregionale | D155: C | E155: =IF('00 Aggregatore'!$D155="R",SUMIF('00 Alimenta'!$A:$A,$B155,'00 Alimenta'!D:D),SUMIF('00 Alimenta'!$A:$A,$B155,'00 Alimenta'!D:D)*-1) -> 5023688.81 | F155: =IF('00 Aggregatore'!$D155="R",SUMIF('00 Alimenta'!$A:$A,$B155,'00 Alimenta'!E:E),SUMIF('00 Alimenta'!$A:$A,$B155,'00 Alimenta'!E:E)*-1) -> 4391409.7
A156: BC | B156: BA0980 | C156: da pubblico (altri soggetti pubblici della Regione) | D156: C | E156: =IF('00 Aggregatore'!$D156="R",SUMIF('00 Alimenta'!$A:$A,$B156,'00 Alimenta'!D:D),SUMIF('00 Alimenta'!$A:$A,$B156,'00 Alimenta'!D:D)*-1) -> 0 | F156: =IF('00 Aggregatore'!$D156="R",SUMIF('00 Alimenta'!$A:$A,$B156,'00 Alimenta'!E:E),SUMIF('00 Alimenta'!$A:$A,$B156,'00 Alimenta'!E:E)*-1) -> 0
A157: BC | B157: BA0990 | C157: da pubblico (extra Regione) | D157: C | E157: =IF('00 Aggregatore'!$D157="R",SUMIF('00 Alimenta'!$A:$A,$B157,'00 Alimenta'!D:D),SUMIF('00 Alimenta'!$A:$A,$B157,'00 Alimenta'!D:D)*-1) -> 1172122.05 | F157: =IF('00 Aggregatore'!$D157="R",SUMIF('00 Alimenta'!$A:$A,$B157,'00 Alimenta'!E:E),SUMIF('00 Alimenta'!$A:$A,$B157,'00 Alimenta'!E:E)*-1) -> 1585422.33
A158: BC | B158: BA1000 | C158: da privato (intraregionale) | D158: C | E158: =IF('00 Aggregatore'!$D158="R",SUMIF('00 Alimenta'!$A:$A,$B158,'00 Alimenta'!D:D),SUMIF('00 Alimenta'!$A:$A,$B158,'00 Alimenta'!D:D)*-1) -> 0 | F158: =IF('00 Aggregatore'!$D158="R",SUMIF('00 Alimenta'!$A:$A,$B158,'00 Alimenta'!E:E),SUMIF('00 Alimenta'!$A:$A,$B158,'00 Alimenta'!E:E)*-1) -> 0
A159: BC | B159: BA1010 | C159: da privato (extraregionale) | D159: C | E159: =IF('00 Aggregatore'!$D159="R",SUMIF('00 Alimenta'!$A:$A,$B159,'00 Alimenta'!D:D),SUMIF('00 Alimenta'!$A:$A,$B159,'00 Alimenta'!D:D)*-1) -> 0 | F159: =IF('00 Aggregatore'!$D159="R",SUMIF('00 Alimenta'!$A:$A,$B159,'00 Alimenta'!E:E),SUMIF('00 Alimenta'!$A:$A,$B159,'00 Alimenta'!E:E)*-1) -> 0
A160: BC | B160: BA1020 | C160: da privato per cittadini non residenti - extra Regione (mobilità attiva in compensazione) | D160: C | E160: =IF('00 Aggregatore'!$D160="R",SUMIF('00 Alimenta'!$A:$A,$B160,'00 Alimenta'!D:D),SUMIF('00 Alimenta'!$A:$A,$B160,'00 Alimenta'!D:D)*-1) -> 0 | F160: =IF('00 Aggregatore'!$D160="R",SUMIF('00 Alimenta'!$A:$A,$B160,'00 Alimenta'!E:E),SUMIF('00 Alimenta'!$A:$A,$B160,'00 Alimenta'!E:E)*-1) -> 0
A161: BC | B161: BA1040 | C161: da pubblico (Aziende sanitarie pubbliche della Regione) - Mobilità intraregionale | D161: C | E161: =IF('00 Aggregatore'!$D161="R",SUMIF('00 Alimenta'!$A:$A,$B161,'00 Alimenta'!D:D),SUMIF('00 Alimenta'!$A:$A,$B161,'00 Alimenta'!D:D)*-1) -> 46.2 | F161: =IF('00 Aggregatore'!$D161="R",SUMIF('00 Alimenta'!$A:$A,$B161,'00 Alimenta'!E:E),SUMIF('00 Alimenta'!$A:$A,$B161,'00 Alimenta'!E:E)*-1) -> 0
A162: BC | B162: BA1050 | C162: da pubblico (altri soggetti pubblici della Regione) | D162: C | E162: =IF('00 Aggregatore'!$D162="R",SUMIF('00 Alimenta'!$A:$A,$B162,'00 Alimenta'!D:D),SUMIF('00 Alimenta'!$A:$A,$B162,'00 Alimenta'!D:D)*-1) -> 0 | F162: =IF('00 Aggregatore'!$D162="R",SUMIF('00 Alimenta'!$A:$A,$B162,'00 Alimenta'!E:E),SUMIF('00 Alimenta'!$A:$A,$B162,'00 Alimenta'!E:E)*-1) -> 0
A163: BC | B163: BA1060 | C163: da pubblico (extra Regione) | D163: C | E163: =IF('00 Aggregatore'!$D163="R",SUMIF('00 Alimenta'!$A:$A,$B163,'00 Alimenta'!D:D),SUMIF('00 Alimenta'!$A:$A,$B163,'00 Alimenta'!D:D)*-1) -> 199293.42 | F163: =IF('00 Aggregatore'!$D163="R",SUMIF('00 Alimenta'!$A:$A,$B163,'00 Alimenta'!E:E),SUMIF('00 Alimenta'!$A:$A,$B163,'00 Alimenta'!E:E)*-1) -> 159884.29
A164: BC | B164: BA1070 | C164: da privato | D164: C | E164: =IF('00 Aggregatore'!$D164="R",SUMIF('00 Alimenta'!$A:$A,$B164,'00 Alimenta'!D:D),SUMIF('00 Alimenta'!$A:$A,$B164,'00 Alimenta'!D:D)*-1) -> 1994460.87 | F164: =IF('00 Aggregatore'!$D164="R",SUMIF('00 Alimenta'!$A:$A,$B164,'00 Alimenta'!E:E),SUMIF('00 Alimenta'!$A:$A,$B164,'00 Alimenta'!E:E)*-1) -> 1888589.97
A165: BC | B165: BA1080 | C165: da privato per cittadini non residenti - extra Regione (mobilità attiva in compensazione) | D165: C | E165: =IF('00 Aggregatore'!$D165="R",SUMIF('00 Alimenta'!$A:$A,$B165,'00 Alimenta'!D:D),SUMIF('00 Alimenta'!$A:$A,$B165,'00 Alimenta'!D:D)*-1) -> 260263.9 | F165: =IF('00 Aggregatore'!$D165="R",SUMIF('00 Alimenta'!$A:$A,$B165,'00 Alimenta'!E:E),SUMIF('00 Alimenta'!$A:$A,$B165,'00 Alimenta'!E:E)*-1) -> 240189.57
A166: BC | B166: BA1100 | C166: da pubblico (Aziende sanitarie pubbliche della Regione) - Mobilità intraregionale | D166: C | E166: =IF('00 Aggregatore'!$D166="R",SUMIF('00 Alimenta'!$A:$A,$B166,'00 Alimenta'!D:D),SUMIF('00 Alimenta'!$A:$A,$B166,'00 Alimenta'!D:D)*-1) -> 76616.54 | F166: =IF('00 Aggregatore'!$D166="R",SUMIF('00 Alimenta'!$A:$A,$B166,'00 Alimenta'!E:E),SUMIF('00 Alimenta'!$A:$A,$B166,'00 Alimenta'!E:E)*-1) -> 124342.79
A167: BC | B167: BA1110 | C167: da pubblico (altri soggetti pubblici della Regione) | D167: C | E167: =IF('00 Aggregatore'!$D167="R",SUMIF('00 Alimenta'!$A:$A,$B167,'00 Alimenta'!D:D),SUMIF('00 Alimenta'!$A:$A,$B167,'00 Alimenta'!D:D)*-1) -> 0 | F167: =IF('00 Aggregatore'!$D167="R",SUMIF('00 Alimenta'!$A:$A,$B167,'00 Alimenta'!E:E),SUMIF('00 Alimenta'!$A:$A,$B167,'00 Alimenta'!E:E)*-1) -> 0
A168: BC | B168: BA1120 | C168: da pubblico (extra Regione) | D168: C | E168: =IF('00 Aggregatore'!$D168="R",SUMIF('00 Alimenta'!$A:$A,$B168,'00 Alimenta'!D:D),SUMIF('00 Alimenta'!$A:$A,$B168,'00 Alimenta'!D:D)*-1) -> 91959.29 | F168: =IF('00 Aggregatore'!$D168="R",SUMIF('00 Alimenta'!$A:$A,$B168,'00 Alimenta'!E:E),SUMIF('00 Alimenta'!$A:$A,$B168,'00 Alimenta'!E:E)*-1) -> 228483.68
A169: BC | B169: BA1130 | C169: da privato | D169: C | E169: =IF('00 Aggregatore'!$D169="R",SUMIF('00 Alimenta'!$A:$A,$B169,'00 Alimenta'!D:D),SUMIF('00 Alimenta'!$A:$A,$B169,'00 Alimenta'!D:D)*-1) -> 7262349.33 | F169: =IF('00 Aggregatore'!$D169="R",SUMIF('00 Alimenta'!$A:$A,$B169,'00 Alimenta'!E:E),SUMIF('00 Alimenta'!$A:$A,$B169,'00 Alimenta'!E:E)*-1) -> 8159911.38
A170: BC | B170: BA1150 | C170: da pubblico (Aziende sanitarie pubbliche della Regione) - Mobilità intraregionale | D170: C | E170: =IF('00 Aggregatore'!$D170="R",SUMIF('00 Alimenta'!$A:$A,$B170,'00 Alimenta'!D:D),SUMIF('00 Alimenta'!$A:$A,$B170,'00 Alimenta'!D:D)*-1) -> 1929611.4 | F170: =IF('00 Aggregatore'!$D170="R",SUMIF('00 Alimenta'!$A:$A,$B170,'00 Alimenta'!E:E),SUMIF('00 Alimenta'!$A:$A,$B170,'00 Alimenta'!E:E)*-1) -> 1737461.12
A171: BC | B171: BA1160 | C171: da pubblico (altri soggetti pubblici della Regione) | D171: C | E171: =IF('00 Aggregatore'!$D171="R",SUMIF('00 Alimenta'!$A:$A,$B171,'00 Alimenta'!D:D),SUMIF('00 Alimenta'!$A:$A,$B171,'00 Alimenta'!D:D)*-1) -> 0 | F171: =IF('00 Aggregatore'!$D171="R",SUMIF('00 Alimenta'!$A:$A,$B171,'00 Alimenta'!E:E),SUMIF('00 Alimenta'!$A:$A,$B171,'00 Alimenta'!E:E)*-1) -> 0
A172: BC | B172: BA1170 | C172: da pubblico (extra Regione) non soggette a compensazione | D172: C | E172: =IF('00 Aggregatore'!$D172="R",SUMIF('00 Alimenta'!$A:$A,$B172,'00 Alimenta'!D:D),SUMIF('00 Alimenta'!$A:$A,$B172,'00 Alimenta'!D:D)*-1) -> 334811.51 | F172: =IF('00 Aggregatore'!$D172="R",SUMIF('00 Alimenta'!$A:$A,$B172,'00 Alimenta'!E:E),SUMIF('00 Alimenta'!$A:$A,$B172,'00 Alimenta'!E:E)*-1) -> 168459.48
A173: BC | B173: BA1180 | C173: da privato (intraregionale) | D173: C | E173: =IF('00 Aggregatore'!$D173="R",SUMIF('00 Alimenta'!$A:$A,$B173,'00 Alimenta'!D:D),SUMIF('00 Alimenta'!$A:$A,$B173,'00 Alimenta'!D:D)*-1) -> 12820370.06 | F173: =IF('00 Aggregatore'!$D173="R",SUMIF('00 Alimenta'!$A:$A,$B173,'00 Alimenta'!E:E),SUMIF('00 Alimenta'!$A:$A,$B173,'00 Alimenta'!E:E)*-1) -> 12551624.02
A174: BC | B174: BA1190 | C174: da privato (extraregionale) | D174: C | E174: =IF('00 Aggregatore'!$D174="R",SUMIF('00 Alimenta'!$A:$A,$B174,'00 Alimenta'!D:D),SUMIF('00 Alimenta'!$A:$A,$B174,'00 Alimenta'!D:D)*-1) -> 1606830.45 | F174: =IF('00 Aggregatore'!$D174="R",SUMIF('00 Alimenta'!$A:$A,$B174,'00 Alimenta'!E:E),SUMIF('00 Alimenta'!$A:$A,$B174,'00 Alimenta'!E:E)*-1) -> 1751767.75
A175: BC | B175: BA1210 | C175: Compartecipazione al personale per attività libero professionale intramoenia - Area ospedaliera | D175: C | E175: =IF('00 Aggregatore'!$D175="R",SUMIF('00 Alimenta'!$A:$A,$B175,'00 Alimenta'!D:D),SUMIF('00 Alimenta'!$A:$A,$B175,'00 Alimenta'!D:D)*-1) -> 65875.14 | F175: =IF('00 Aggregatore'!$D175="R",SUMIF('00 Alimenta'!$A:$A,$B175,'00 Alimenta'!E:E),SUMIF('00 Alimenta'!$A:$A,$B175,'00 Alimenta'!E:E)*-1) -> 36801.34
A176: BC | B176: BA1220 | C176: Compartecipazione al personale per attività libero professionale intramoenia - Area specialistica | D176: C | E176: =IF('00 Aggregatore'!$D176="R",SUMIF('00 Alimenta'!$A:$A,$B176,'00 Alimenta'!D:D),SUMIF('00 Alimenta'!$A:$A,$B176,'00 Alimenta'!D:D)*-1) -> 2668850.25 | F176: =IF('00 Aggregatore'!$D176="R",SUMIF('00 Alimenta'!$A:$A,$B176,'00 Alimenta'!E:E),SUMIF('00 Alimenta'!$A:$A,$B176,'00 Alimenta'!E:E)*-1) -> 2790651.77
A177: BC | B177: BA1230 | C177: Compartecipazione al personale per attività libero professionale intramoenia - Area sanità pubblica | D177: C | E177: =IF('00 Aggregatore'!$D177="R",SUMIF('00 Alimenta'!$A:$A,$B177,'00 Alimenta'!D:D),SUMIF('00 Alimenta'!$A:$A,$B177,'00 Alimenta'!D:D)*-1) -> 16818.95 | F177: =IF('00 Aggregatore'!$D177="R",SUMIF('00 Alimenta'!$A:$A,$B177,'00 Alimenta'!E:E),SUMIF('00 Alimenta'!$A:$A,$B177,'00 Alimenta'!E:E)*-1) -> 19073.69
A178: BC | B178: BA1240 | C178: Compartecipazione al personale per attività libero professionale intramoenia - Consulenze (ex art.55 c.1 lett.c), d) ed ex art.57-58) | D178: C | E178: =IF('00 Aggregatore'!$D178="R",SUMIF('00 Alimenta'!$A:$A,$B178,'00 Alimenta'!D:D),SUMIF('00 Alimenta'!$A:$A,$B178,'00 Alimenta'!D:D)*-1) -> 444810.38 | F178: =IF('00 Aggregatore'!$D178="R",SUMIF('00 Alimenta'!$A:$A,$B178,'00 Alimenta'!E:E),SUMIF('00 Alimenta'!$A:$A,$B178,'00 Alimenta'!E:E)*-1) -> 371493.34
A179: BC | B179: BA1250 | C179: Compartecipazione al personale per attività libero prof.le intramoenia - Consulenze (ex art.55 c.1 lett.c), d) ed ex art.57-58) (Az.San.Pubbl.Regione) | D179: C | E179: =IF('00 Aggregatore'!$D179="R",SUMIF('00 Alimenta'!$A:$A,$B179,'00 Alimenta'!D:D),SUMIF('00 Alimenta'!$A:$A,$B179,'00 Alimenta'!D:D)*-1) -> 0 | F179: =IF('00 Aggregatore'!$D179="R",SUMIF('00 Alimenta'!$A:$A,$B179,'00 Alimenta'!E:E),SUMIF('00 Alimenta'!$A:$A,$B179,'00 Alimenta'!E:E)*-1) -> 0
A180: BC | B180: BA1260 | C180: Compartecipazione al personale per attività libero professionale intramoenia - Altro | D180: C | E180: =IF('00 Aggregatore'!$D180="R",SUMIF('00 Alimenta'!$A:$A,$B180,'00 Alimenta'!D:D),SUMIF('00 Alimenta'!$A:$A,$B180,'00 Alimenta'!D:D)*-1) -> 96287.97 | F180: =IF('00 Aggregatore'!$D180="R",SUMIF('00 Alimenta'!$A:$A,$B180,'00 Alimenta'!E:E),SUMIF('00 Alimenta'!$A:$A,$B180,'00 Alimenta'!E:E)*-1) -> 75468.47
A181: BC | B181: BA1270 | C181: Compartecipazione al personale per attività libero professionale intramoenia - Altro (Aziende sanitarie pubbliche della Regione) | D181: C | E181: =IF('00 Aggregatore'!$D181="R",SUMIF('00 Alimenta'!$A:$A,$B181,'00 Alimenta'!D:D),SUMIF('00 Alimenta'!$A:$A,$B181,'00 Alimenta'!D:D)*-1) -> 0 | F181: =IF('00 Aggregatore'!$D181="R",SUMIF('00 Alimenta'!$A:$A,$B181,'00 Alimenta'!E:E),SUMIF('00 Alimenta'!$A:$A,$B181,'00 Alimenta'!E:E)*-1) -> 0
A182: BC | B182: BA1290 | C182: Contributi ad associazioni di volontariato | D182: C | E182: =IF('00 Aggregatore'!$D182="R",SUMIF('00 Alimenta'!$A:$A,$B182,'00 Alimenta'!D:D),SUMIF('00 Alimenta'!$A:$A,$B182,'00 Alimenta'!D:D)*-1) -> 473982 | F182: =IF('00 Aggregatore'!$D182="R",SUMIF('00 Alimenta'!$A:$A,$B182,'00 Alimenta'!E:E),SUMIF('00 Alimenta'!$A:$A,$B182,'00 Alimenta'!E:E)*-1) -> 326600
A183: BC | B183: BA1300 | C183: Rimborsi per cure all'estero | D183: C | E183: =IF('00 Aggregatore'!$D183="R",SUMIF('00 Alimenta'!$A:$A,$B183,'00 Alimenta'!D:D),SUMIF('00 Alimenta'!$A:$A,$B183,'00 Alimenta'!D:D)*-1) -> 15911.61 | F183: =IF('00 Aggregatore'!$D183="R",SUMIF('00 Alimenta'!$A:$A,$B183,'00 Alimenta'!E:E),SUMIF('00 Alimenta'!$A:$A,$B183,'00 Alimenta'!E:E)*-1) -> 0
A184: BC | B184: BA1310 | C184: Contributi a società partecipate e/o enti dipendenti della Regione | D184: C | E184: =IF('00 Aggregatore'!$D184="R",SUMIF('00 Alimenta'!$A:$A,$B184,'00 Alimenta'!D:D),SUMIF('00 Alimenta'!$A:$A,$B184,'00 Alimenta'!D:D)*-1) -> 0 | F184: =IF('00 Aggregatore'!$D184="R",SUMIF('00 Alimenta'!$A:$A,$B184,'00 Alimenta'!E:E),SUMIF('00 Alimenta'!$A:$A,$B184,'00 Alimenta'!E:E)*-1) -> 0
A185: BC | B185: BA1320 | C185: Contributo Legge 210/92 | D185: C | E185: =IF('00 Aggregatore'!$D185="R",SUMIF('00 Alimenta'!$A:$A,$B185,'00 Alimenta'!D:D),SUMIF('00 Alimenta'!$A:$A,$B185,'00 Alimenta'!D:D)*-1) -> 0 | F185: =IF('00 Aggregatore'!$D185="R",SUMIF('00 Alimenta'!$A:$A,$B185,'00 Alimenta'!E:E),SUMIF('00 Alimenta'!$A:$A,$B185,'00 Alimenta'!E:E)*-1) -> 0
A186: BC | B186: BA1330 | C186: Altri rimborsi, assegni e contributi | D186: C | E186: =IF('00 Aggregatore'!$D186="R",SUMIF('00 Alimenta'!$A:$A,$B186,'00 Alimenta'!D:D),SUMIF('00 Alimenta'!$A:$A,$B186,'00 Alimenta'!D:D)*-1) -> 1482389.11 | F186: =IF('00 Aggregatore'!$D186="R",SUMIF('00 Alimenta'!$A:$A,$B186,'00 Alimenta'!E:E),SUMIF('00 Alimenta'!$A:$A,$B186,'00 Alimenta'!E:E)*-1) -> 1424508.45
A187: BC | B187: BA1340 | C187: Rimborsi, assegni e contributi v/Aziende sanitarie pubbliche della Regione | D187: C | E187: =IF('00 Aggregatore'!$D187="R",SUMIF('00 Alimenta'!$A:$A,$B187,'00 Alimenta'!D:D),SUMIF('00 Alimenta'!$A:$A,$B187,'00 Alimenta'!D:D)*-1) -> 186201 | F187: =IF('00 Aggregatore'!$D187="R",SUMIF('00 Alimenta'!$A:$A,$B187,'00 Alimenta'!E:E),SUMIF('00 Alimenta'!$A:$A,$B187,'00 Alimenta'!E:E)*-1) -> 80
A188: BC | B188: BA1360 | C188: Consulenze sanitarie e socio-sanitarie da Aziende sanitarie pubbliche della Regione | D188: C | E188: =IF('00 Aggregatore'!$D188="R",SUMIF('00 Alimenta'!$A:$A,$B188,'00 Alimenta'!D:D),SUMIF('00 Alimenta'!$A:$A,$B188,'00 Alimenta'!D:D)*-1) -> 368369.4 | F188: =IF('00 Aggregatore'!$D188="R",SUMIF('00 Alimenta'!$A:$A,$B188,'00 Alimenta'!E:E),SUMIF('00 Alimenta'!$A:$A,$B188,'00 Alimenta'!E:E)*-1) -> 298526.69
A189: BC | B189: BA1370 | C189: Consulenze sanitarie e socio-sanitarie da terzi - Altri soggetti pubblici | D189: C | E189: =IF('00 Aggregatore'!$D189="R",SUMIF('00 Alimenta'!$A:$A,$B189,'00 Alimenta'!D:D),SUMIF('00 Alimenta'!$A:$A,$B189,'00 Alimenta'!D:D)*-1) -> 90118.47 | F189: =IF('00 Aggregatore'!$D189="R",SUMIF('00 Alimenta'!$A:$A,$B189,'00 Alimenta'!E:E),SUMIF('00 Alimenta'!$A:$A,$B189,'00 Alimenta'!E:E)*-1) -> 24433.75
A190: BC | B190: BA1390 | C190: Consulenze sanitarie da privato - Articolo 55, comma 2, CCNL 8 giugno 2000 | D190: C | E190: =IF('00 Aggregatore'!$D190="R",SUMIF('00 Alimenta'!$A:$A,$B190,'00 Alimenta'!D:D),SUMIF('00 Alimenta'!$A:$A,$B190,'00 Alimenta'!D:D)*-1) -> 2656011.58 | F190: =IF('00 Aggregatore'!$D190="R",SUMIF('00 Alimenta'!$A:$A,$B190,'00 Alimenta'!E:E),SUMIF('00 Alimenta'!$A:$A,$B190,'00 Alimenta'!E:E)*-1) -> 2372315.18
A191: BC | B191: BA1400 | C191: Altre consulenze sanitarie e socio-sanitarie da privato | D191: C | E191: =IF('00 Aggregatore'!$D191="R",SUMIF('00 Alimenta'!$A:$A,$B191,'00 Alimenta'!D:D),SUMIF('00 Alimenta'!$A:$A,$B191,'00 Alimenta'!D:D)*-1) -> 9289.34 | F191: =IF('00 Aggregatore'!$D191="R",SUMIF('00 Alimenta'!$A:$A,$B191,'00 Alimenta'!E:E),SUMIF('00 Alimenta'!$A:$A,$B191,'00 Alimenta'!E:E)*-1) -> 8005.29
A192: BC | B192: BA1410 | C192: Collaborazioni coordinate e continuative sanitarie e socio-sanitarie da privato | D192: C | E192: =IF('00 Aggregatore'!$D192="R",SUMIF('00 Alimenta'!$A:$A,$B192,'00 Alimenta'!D:D),SUMIF('00 Alimenta'!$A:$A,$B192,'00 Alimenta'!D:D)*-1) -> 13270.74 | F192: =IF('00 Aggregatore'!$D192="R",SUMIF('00 Alimenta'!$A:$A,$B192,'00 Alimenta'!E:E),SUMIF('00 Alimenta'!$A:$A,$B192,'00 Alimenta'!E:E)*-1) -> 8413.12
A193: BC | B193: BA1420 | C193: Indennità a personale universitario - Area sanitaria | D193: C | E193: =IF('00 Aggregatore'!$D193="R",SUMIF('00 Alimenta'!$A:$A,$B193,'00 Alimenta'!D:D),SUMIF('00 Alimenta'!$A:$A,$B193,'00 Alimenta'!D:D)*-1) -> 252571.97 | F193: =IF('00 Aggregatore'!$D193="R",SUMIF('00 Alimenta'!$A:$A,$B193,'00 Alimenta'!E:E),SUMIF('00 Alimenta'!$A:$A,$B193,'00 Alimenta'!E:E)*-1) -> 242210.34
A194: BC | B194: BA1430 | C194: Lavoro interinale - Area sanitaria | D194: C | E194: =IF('00 Aggregatore'!$D194="R",SUMIF('00 Alimenta'!$A:$A,$B194,'00 Alimenta'!D:D),SUMIF('00 Alimenta'!$A:$A,$B194,'00 Alimenta'!D:D)*-1) -> 1558908.64 | F194: =IF('00 Aggregatore'!$D194="R",SUMIF('00 Alimenta'!$A:$A,$B194,'00 Alimenta'!E:E),SUMIF('00 Alimenta'!$A:$A,$B194,'00 Alimenta'!E:E)*-1) -> 2608784.9
A195: BC | B195: BA1440 | C195: Altre collaborazioni e prestazioni di lavoro - Area sanitaria | D195: C | E195: =IF('00 Aggregatore'!$D195="R",SUMIF('00 Alimenta'!$A:$A,$B195,'00 Alimenta'!D:D),SUMIF('00 Alimenta'!$A:$A,$B195,'00 Alimenta'!D:D)*-1) -> 1213626.88 | F195: =IF('00 Aggregatore'!$D195="R",SUMIF('00 Alimenta'!$A:$A,$B195,'00 Alimenta'!E:E),SUMIF('00 Alimenta'!$A:$A,$B195,'00 Alimenta'!E:E)*-1) -> 1150772.1
A196: BC | B196: BA1460 | C196: Rimborso oneri stipendiali personale sanitario in comando da Aziende sanitarie pubbliche della Regione | D196: C | E196: =IF('00 Aggregatore'!$D196="R",SUMIF('00 Alimenta'!$A:$A,$B196,'00 Alimenta'!D:D),SUMIF('00 Alimenta'!$A:$A,$B196,'00 Alimenta'!D:D)*-1) -> 0 | F196: =IF('00 Aggregatore'!$D196="R",SUMIF('00 Alimenta'!$A:$A,$B196,'00 Alimenta'!E:E),SUMIF('00 Alimenta'!$A:$A,$B196,'00 Alimenta'!E:E)*-1) -> 0
A197: BC | B197: BA1470 | C197: Rimborso oneri stipendiali personale sanitario in comando da Regioni, soggetti pubblici e da Università | D197: C | E197: =IF('00 Aggregatore'!$D197="R",SUMIF('00 Alimenta'!$A:$A,$B197,'00 Alimenta'!D:D),SUMIF('00 Alimenta'!$A:$A,$B197,'00 Alimenta'!D:D)*-1) -> 0 | F197: =IF('00 Aggregatore'!$D197="R",SUMIF('00 Alimenta'!$A:$A,$B197,'00 Alimenta'!E:E),SUMIF('00 Alimenta'!$A:$A,$B197,'00 Alimenta'!E:E)*-1) -> 0
A198: =LEFT(B198,1)&D198 -> BC | B198: BA1480 | C198: Rimborso oneri stipendiali personale sanitario in comando da Aziende di altre Regioni (extra Regione) | D198: C | E198: =IF('00 Aggregatore'!$D198="R",SUMIF('00 Alimenta'!$A:$A,$B198,'00 Alimenta'!D:D),SUMIF('00 Alimenta'!$A:$A,$B198,'00 Alimenta'!D:D)*-1) -> 41104.45 | F198: =IF('00 Aggregatore'!$D198="R",SUMIF('00 Alimenta'!$A:$A,$B198,'00 Alimenta'!E:E),SUMIF('00 Alimenta'!$A:$A,$B198,'00 Alimenta'!E:E)*-1) -> 9790.09
A199: BC | B199: BA1500 | C199: Altri servizi sanitari e sociosanitari a rilevanza sanitaria da pubblico - Aziende sanitarie pubbliche della Regione | D199: C | E199: =IF('00 Aggregatore'!$D199="R",SUMIF('00 Alimenta'!$A:$A,$B199,'00 Alimenta'!D:D),SUMIF('00 Alimenta'!$A:$A,$B199,'00 Alimenta'!D:D)*-1) -> 50483.02 | F199: =IF('00 Aggregatore'!$D199="R",SUMIF('00 Alimenta'!$A:$A,$B199,'00 Alimenta'!E:E),SUMIF('00 Alimenta'!$A:$A,$B199,'00 Alimenta'!E:E)*-1) -> 13109.54
A200: BC | B200: BA1510 | C200: Altri servizi sanitari e sociosanitari a rilevanza sanitaria da pubblico - Altri soggetti pubblici della Regione | D200: C | E200: =IF('00 Aggregatore'!$D200="R",SUMIF('00 Alimenta'!$A:$A,$B200,'00 Alimenta'!D:D),SUMIF('00 Alimenta'!$A:$A,$B200,'00 Alimenta'!D:D)*-1) -> 0 | F200: =IF('00 Aggregatore'!$D200="R",SUMIF('00 Alimenta'!$A:$A,$B200,'00 Alimenta'!E:E),SUMIF('00 Alimenta'!$A:$A,$B200,'00 Alimenta'!E:E)*-1) -> 0
A201: BC | B201: BA1520 | C201: Altri servizi sanitari e sociosanitari a rilevanza sanitaria da pubblico (extra Regione) | D201: C | E201: =IF('00 Aggregatore'!$D201="R",SUMIF('00 Alimenta'!$A:$A,$B201,'00 Alimenta'!D:D),SUMIF('00 Alimenta'!$A:$A,$B201,'00 Alimenta'!D:D)*-1) -> 0 | F201: =IF('00 Aggregatore'!$D201="R",SUMIF('00 Alimenta'!$A:$A,$B201,'00 Alimenta'!E:E),SUMIF('00 Alimenta'!$A:$A,$B201,'00 Alimenta'!E:E)*-1) -> 0
A202: BC | B202: BA1530 | C202: Altri servizi sanitari da privato | D202: C | E202: =IF('00 Aggregatore'!$D202="R",SUMIF('00 Alimenta'!$A:$A,$B202,'00 Alimenta'!D:D),SUMIF('00 Alimenta'!$A:$A,$B202,'00 Alimenta'!D:D)*-1) -> 2463217.45 | F202: =IF('00 Aggregatore'!$D202="R",SUMIF('00 Alimenta'!$A:$A,$B202,'00 Alimenta'!E:E),SUMIF('00 Alimenta'!$A:$A,$B202,'00 Alimenta'!E:E)*-1) -> 2741606.08
... 172 more rows

Sheet 00 CE
A2: AGG | B2: CODICE | C2: VOCE MODELLO CE | F2: ='00 Aggregatore'!E4 -> Esercizio 2016 | G2: ='00 Aggregatore'!F4 -> Esercizio 2017
C3: A) Valore della produzione
B4: AA0010 | C4: A.1) Contributi in c/esercizio | D4: S | E4: AA0010 | F4: =F5+F8+F21+F26 -> 552960140.6 | G4: =G5+G8+G21+G26 -> 562861140.6
B5: AA0020 | C5: A.1.A) Contributi da Regione o Prov. Aut. per quota F.S. regionale | D5: S | E5: AA0020 | F5: =SUM(F6:F7) -> 552467294.6 | G5: =SUM(G6:G7) -> 562581352.2
B6: AA0030 | C6: A.1.A.1) da Regione o Prov. Aut. per quota F.S. regionale indistinto | E6: AA0030 | F6: =SUMIF('00 Aggregatore'!$B:$B,'00 CE'!$E6,'00 Aggregatore'!E:E) -> 546383676.5 | G6: =SUMIF('00 Aggregatore'!$B:$B,'00 CE'!$E6,'00 Aggregatore'!F:F) -> 547765886.6
B7: AA0040 | C7: A.1.A.2) da Regione o Prov. Aut. per quota F.S. regionale vincolato | E7: AA0040 | F7: =SUMIF('00 Aggregatore'!$B:$B,'00 CE'!$E7,'00 Aggregatore'!E:E) -> 6083618.06 | G7: =SUMIF('00 Aggregatore'!$B:$B,'00 CE'!$E7,'00 Aggregatore'!F:F) -> 14815465.59
B8: AA0050 | C8: A.1.B) Contributi c/esercizio (extra fondo) | D8: S | E8: AA0050 | F8: =F9+F14+F17 -> 482629.99 | G8: =G9+G14+G17 -> 279788.35
B9: AA0060 | C9: A.1.B.1) da Regione o Prov. Aut. (extra fondo) | D9: S | E9: AA0060 | F9: =SUM(F10:F13) -> 180605.96 | G9: =SUM(G10:G13) -> 123104.1
B10: AA0070 | C10: A.1.B.1.1) Contributi da Regione o Prov. Aut. (extra fondo) vincolati | E10: AA0070 | F10: =SUMIF('00 Aggregatore'!$B:$B,'00 CE'!$E10,'00 Aggregatore'!E:E) -> 180605.96 | G10: =SUMIF('00 Aggregatore'!$B:$B,'00 CE'!$E10,'00 Aggregatore'!F:F) -> 123104.1
B11: AA0080 | C11: A.1.B.1.2) Contributi da Regione o Prov. Aut. (extra fondo) - Risorse aggiuntive da bilancio regionale a titolo di copertura LEA | E11: AA0080 | F11: =SUMIF('00 Aggregatore'!$B:$B,'00 CE'!$E11,'00 Aggregatore'!E:E) -> 0 | G11: =SUMIF('00 Aggregatore'!$B:$B,'00 CE'!$E11,'00 Aggregatore'!F:F) -> 0
B12: AA0090 | C12: A.1.B.1.3) Contributi da Regione o Prov. Aut. (extra fondo) - Risorse aggiuntive da bilancio regionale a titolo di copertura extra LEA | E12: AA0090 | F12: =SUMIF('00 Aggregatore'!$B:$B,'00 CE'!$E12,'00 Aggregatore'!E:E) -> 0 | G12: =SUMIF('00 Aggregatore'!$B:$B,'00 CE'!$E12,'00 Aggregatore'!F:F) -> 0
B13: AA0100 | C13: A.1.B.1.4) Contributi da Regione o Prov. Aut. (extra fondo) - Altro | E13: AA0100 | F13: =SUMIF('00 Aggregatore'!$B:$B,'00 CE'!$E13,'00 Aggregatore'!E:E) -> 0 | G13: =SUMIF('00 Aggregatore'!$B:$B,'00 CE'!$E13,'00 Aggregatore'!F:F) -> 0
B14: AA0110 | C14: A.1.B.2) Contributi da Aziende sanitarie pubbliche della Regione o Prov. Aut. (extra fondo) | D14: S | E14: AA0110 | F14: =SUM(F15:F16) -> 232003.28 | G14: =SUM(G15:G16) -> 0
B15: AA0120 | C15: A.1.B.2.1) Contributi da Aziende sanitarie pubbliche della Regione o Prov. Aut. (extra fondo) vincolati | E15: AA0120 | F15: =SUMIF('00 Aggregatore'!$B:$B,'00 CE'!$E15,'00 Aggregatore'!E:E) -> 0 | G15: =SUMIF('00 Aggregatore'!$B:$B,'00 CE'!$E15,'00 Aggregatore'!F:F) -> 0
B16: AA0130 | C16: A.1.B.2.2) Contributi da Aziende sanitarie pubbliche della Regione o Prov. Aut. (extra fondo) altro | E16: AA0130 | F16: =SUMIF('00 Aggregatore'!$B:$B,'00 CE'!$E16,'00 Aggregatore'!E:E) -> 232003.28 | G16: =SUMIF('00 Aggregatore'!$B:$B,'00 CE'!$E16,'00 Aggregatore'!F:F) -> 0
B17: AA0140 | C17: A.1.B.3) Contributi da altri soggetti pubblici (extra fondo) | D17: S | E17: AA0140 | F17: =SUM(F18:F20) -> 70020.75 | G17: =SUM(G18:G20) -> 156684.25
B18: AA0150 | C18: A.1.B.3.1) Contributi da altri soggetti pubblici (extra fondo) vincolati | E18: AA0150 | F18: =SUMIF('00 Aggregatore'!$B:$B,'00 CE'!$E18,'00 Aggregatore'!E:E) -> 70020.75 | G18: =SUMIF('00 Aggregatore'!$B:$B,'00 CE'!$E18,'00 Aggregatore'!F:F) -> 156684.25
B19: AA0160 | C19: A.1.B.3.2) Contributi da altri soggetti pubblici (extra fondo) L. 210/92 | E19: AA0160 | F19: =SUMIF('00 Aggregatore'!$B:$B,'00 CE'!$E19,'00 Aggregatore'!E:E) -> 0 | G19: =SUMIF('00 Aggregatore'!$B:$B,'00 CE'!$E19,'00 Aggregatore'!F:F) -> 0
B20: AA0170 | C20: A.1.B.3.3) Contributi da altri soggetti pubblici (extra fondo) altro | E20: AA0170 | F20: =SUMIF('00 Aggregatore'!$B:$B,'00 CE'!$E20,'00 Aggregatore'!E:E) -> 0 | G20: =SUMIF('00 Aggregatore'!$B:$B,'00 CE'!$E20,'00 Aggregatore'!F:F) -> 0
B21: AA0180 | C21: A.1.C) Contributi c/esercizio per ricerca | D21: S | E21: AA0180 | F21: =SUM(F22:F25) -> 10216 | G21: =SUM(G22:G25) -> 0
B22: AA0190 | C22: A.1.C.1) Contributi da Ministero della Salute per ricerca corrente | E22: AA0190 | F22: =SUMIF('00 Aggregatore'!$B:$B,'00 CE'!$E22,'00 Aggregatore'!E:E) -> 0 | G22: =SUMIF('00 Aggregatore'!$B:$B,'00 CE'!$E22,'00 Aggregatore'!F:F) -> 0
B23: AA0200 | C23: A.1.C.2) Contributi da Ministero della Salute per ricerca finalizzata | E23: AA0200 | F23: =SUMIF('00 Aggregatore'!$B:$B,'00 CE'!$E23,'00 Aggregatore'!E:E) -> 10216 | G23: =SUMIF('00 Aggregatore'!$B:$B,'00 CE'!$E23,'00 Aggregatore'!F:F) -> 0
B24: AA0210 | C24: A.1.C.3) Contributi da Regione ed altri soggetti pubblici per ricerca | E24: AA0210 | F24: =SUMIF('00 Aggregatore'!$B:$B,'00 CE'!$E24,'00 Aggregatore'!E:E) -> 0 | G24: =SUMIF('00 Aggregatore'!$B:$B,'00 CE'!$E24,'00 Aggregatore'!F:F) -> 0
B25: AA0220 | C25: A.1.C.4) Contributi da privati per ricerca | E25: AA0220 | F25: =SUMIF('00 Aggregatore'!$B:$B,'00 CE'!$E25,'00 Aggregatore'!E:E) -> 0 | G25: =SUMIF('00 Aggregatore'!$B:$B,'00 CE'!$E25,'00 Aggregatore'!F:F) -> 0
B26: AA0230 | C26: A.1.D) Contributi c/esercizio da privati | E26: AA0230 | F26: =SUMIF('00 Aggregatore'!$B:$B,'00 CE'!$E26,'00 Aggregatore'!E:E) -> 0 | G26: =SUMIF('00 Aggregatore'!$B:$B,'00 CE'!$E26,'00 Aggregatore'!F:F) -> 0
B27: AA0240 | C27: A.2) Rettifica contributi c/esercizio per destinazione ad investimenti | D27: S | E27: AA0240 | F27: =SUM(F28:F29) -> -8787559.11 | G27: =SUM(G28:G29) -> -6506318.89
B28: AA0250 | C28: A.2.A) Rettifica contributi in c/esercizio per destinazione ad investimenti - da Regione o Prov. Aut. per quota F.S. regionale | E28: AA0250 | F28: =SUMIF('00 Aggregatore'!$B:$B,'00 CE'!$E28,'00 Aggregatore'!E:E) -> -8787559.11 | G28: =SUMIF('00 Aggregatore'!$B:$B,'00 CE'!$E28,'00 Aggregatore'!F:F) -> -6506318.89
B29: AA0260 | C29: A.2.B) Rettifica contributi in c/esercizio per destinazione ad investimenti - altri contributi | E29: AA0260 | F29: =SUMIF('00 Aggregatore'!$B:$B,'00 CE'!$E29,'00 Aggregatore'!E:E) -> 0 | G29: =SUMIF('00 Aggregatore'!$B:$B,'00 CE'!$E29,'00 Aggregatore'!F:F) -> 0
B30: AA0270 | C30: A.3) Utilizzo fondi per quote inutilizzate contributi vincolati di esercizi precedenti | D30: S | E30: AA0270 | F30: =SUM(F31:F34) -> 6260190.48 | G30: =SUM(G31:G34) -> 5773472.56
B31: AA0280 | C31: A.3.A) Utilizzo fondi per quote inutilizzate contributi di esercizi precedenti da Regione o Prov. Aut. per quota F.S. regionale vincolato | E31: AA0280 | F31: =SUMIF('00 Aggregatore'!$B:$B,'00 CE'!$E31,'00 Aggregatore'!E:E) -> 5960927.83 | G31: =SUMIF('00 Aggregatore'!$B:$B,'00 CE'!$E31,'00 Aggregatore'!F:F) -> 5681020.1
B32: AA0290 | C32: A.3.B) Utilizzo fondi per quote inutilizzate contributi di esercizi precedenti da soggetti pubblici (extra fondo) vincolati | E32: AA0290 | F32: =SUMIF('00 Aggregatore'!$B:$B,'00 CE'!$E32,'00 Aggregatore'!E:E) -> 299262.65 | G32: =SUMIF('00 Aggregatore'!$B:$B,'00 CE'!$E32,'00 Aggregatore'!F:F) -> 92452.46
B33: AA0300 | C33: A.3.C) Utilizzo fondi per quote inutilizzate contributi di esercizi precedenti per ricerca | E33: AA0300 | F33: =SUMIF('00 Aggregatore'!$B:$B,'00 CE'!$E33,'00 Aggregatore'!E:E) -> 0 | G33: =SUMIF('00 Aggregatore'!$B:$B,'00 CE'!$E33,'00 Aggregatore'!F:F) -> 0
B34: AA0310 | C34: A.3.D) Utilizzo fondi per quote inutilizzate contributi vincolati di esercizi precedenti da privati | E34: AA0310 | F34: =SUMIF('00 Aggregatore'!$B:$B,'00 CE'!$E34,'00 Aggregatore'!E:E) -> 0 | G34: =SUMIF('00 Aggregatore'!$B:$B,'00 CE'!$E34,'00 Aggregatore'!F:F) -> 0
B35: AA0320 | C35: A.4) Ricavi per prestazioni sanitarie e sociosanitarie a rilevanza sanitaria | D35: S | E35: AA0320 | F35: =F36+F64+F69+F70 -> 123908731.2 | G35: =G36+G64+G69+G70 -> 121845392.4
B36: AA0330 | C36: A.4.A) Ricavi per prestazioni sanitarie e sociosanitarie a rilevanza sanitaria erogate a soggetti pubblici | D36: S | E36: AA0330 | F36: =F37+F47+F48 -> 104722872.6 | G36: =G37+G47+G48 -> 102220430
B37: AA0340 | C37: A.4.A.1) Ricavi per prestaz. sanitarie e sociosanitarie a rilevanza sanitaria erogate ad Aziende sanitarie pubbliche della Regione | D37: S | E37: AA0340 | F37: =SUM(F38:F46) -> 94245672.53 | G37: =SUM(G38:G46) -> 96681059.59
B38: AA0350 | C38: A.4.A.1.1) Prestazioni di ricovero | E38: AA0350 | F38: =SUMIF('00 Aggregatore'!$B:$B,'00 CE'!$E38,'00 Aggregatore'!E:E) -> 60275803.05 | G38: =SUMIF('00 Aggregatore'!$B:$B,'00 CE'!$E38,'00 Aggregatore'!F:F) -> 62109937.31
B39: AA0360 | C39: A.4.A.1.2) Prestazioni di specialistica ambulatoriale | E39: AA0360 | F39: =SUMIF('00 Aggregatore'!$B:$B,'00 CE'!$E39,'00 Aggregatore'!E:E) -> 7784926.82 | G39: =SUMIF('00 Aggregatore'!$B:$B,'00 CE'!$E39,'00 Aggregatore'!F:F) -> 8188514.26
B40: AA0370 | C40: A.4.A.1.3) Prestazioni di psichiatria residenziale e semiresidenziale | E40: AA0370 | F40: =SUMIF('00 Aggregatore'!$B:$B,'00 CE'!$E40,'00 Aggregatore'!E:E) -> 4761138.87 | G40: =SUMIF('00 Aggregatore'!$B:$B,'00 CE'!$E40,'00 Aggregatore'!F:F) -> 4556497.31
B41: AA0380 | C41: A.4.A.1.4) Prestazioni di File F | E41: AA0380 | F41: =SUMIF('00 Aggregatore'!$B:$B,'00 CE'!$E41,'00 Aggregatore'!E:E) -> 13121092.03 | G41: =SUMIF('00 Aggregatore'!$B:$B,'00 CE'!$E41,'00 Aggregatore'!F:F) -> 13565690.02
B42: AA0390 | C42: A.4.A.1.5) Prestazioni servizi MMG, PLS, Contin. assistenziale | E42: AA0390 | F42: =SUMIF('00 Aggregatore'!$B:$B,'00 CE'!$E42,'00 Aggregatore'!E:E) -> 204670 | G42: =SUMIF('00 Aggregatore'!$B:$B,'00 CE'!$E42,'00 Aggregatore'!F:F) -> 57455.65
B43: AA0400 | C43: A.4.A.1.6) Prestazioni servizi farmaceutica convenzionata | E43: AA0400 | F43: =SUMIF('00 Aggregatore'!$B:$B,'00 CE'!$E43,'00 Aggregatore'!E:E) -> 1545791.88 | G43: =SUMIF('00 Aggregatore'!$B:$B,'00 CE'!$E43,'00 Aggregatore'!F:F) -> 1531007.26
B44: AA0410 | C44: A.4.A.1.7) Prestazioni termali | E44: AA0410 | F44: =SUMIF('00 Aggregatore'!$B:$B,'00 CE'!$E44,'00 Aggregatore'!E:E) -> 1144807.45 | G44: =SUMIF('00 Aggregatore'!$B:$B,'00 CE'!$E44,'00 Aggregatore'!F:F) -> 1104099.89
B45: AA0420 | C45: A.4.A.1.8) Prestazioni trasporto ambulanze ed elisoccorso | E45: AA0420 | F45: =SUMIF('00 Aggregatore'!$B:$B,'00 CE'!$E45,'00 Aggregatore'!E:E) -> 202243.79 | G45: =SUMIF('00 Aggregatore'!$B:$B,'00 CE'!$E45,'00 Aggregatore'!F:F) -> 175653.51
B46: AA0430 | C46: A.4.A.1.9) Altre prestazioni sanitarie e socio-sanitarie a rilevanza sanitaria | E46: AA0430 | F46: =SUMIF('00 Aggregatore'!$B:$B,'00 CE'!$E46,'00 Aggregatore'!E:E) -> 5205198.64 | G46: =SUMIF('00 Aggregatore'!$B:$B,'00 CE'!$E46,'00 Aggregatore'!F:F) -> 5392204.38
B47: AA0440 | C47: A.4.A.2) Ricavi per prestaz. sanitarie e sociosanitarie a rilevanza sanitaria erogate ad altri soggetti pubblici | E47: AA0440 | F47: =SUMIF('00 Aggregatore'!$B:$B,'00 CE'!$E47,'00 Aggregatore'!E:E) -> 40778.15 | G47: =SUMIF('00 Aggregatore'!$B:$B,'00 CE'!$E47,'00 Aggregatore'!F:F) -> 45364.98
B48: AA0450 | C48: A.4.A.3) Ricavi per prestaz. sanitarie e sociosanitarie a rilevanza sanitaria erogate a soggetti pubblici Extraregione | D48: S | E48: AA0450 | F48: =SUM(F49:F60)+F63 -> 10436421.93 | G48: =SUM(G49:G60)+G63 -> 5494005.43
B49: AA0460 | C49: A.4.A.3.1) Prestazioni di ricovero | E49: AA0460 | F49: =SUMIF('00 Aggregatore'!$B:$B,'00 CE'!$E49,'00 Aggregatore'!E:E) -> 6326378.15 | G49: =SUMIF('00 Aggregatore'!$B:$B,'00 CE'!$E49,'00 Aggregatore'!F:F) -> 1554681.22
B50: AA0470 | C50: A.4.A.3.2) Prestazioni ambulatoriali | E50: AA0470 | F50: =SUMIF('00 Aggregatore'!$B:$B,'00 CE'!$E50,'00 Aggregatore'!E:E) -> 1809228.39 | G50: =SUMIF('00 Aggregatore'!$B:$B,'00 CE'!$E50,'00 Aggregatore'!F:F) -> 851774.85
B51: AA0480 | C51: A.4.A.3.3) Prestazioni di psichiatria non soggetta a compensazione (resid. e semiresid.) | E51: AA0480 | F51: =SUMIF('00 Aggregatore'!$B:$B,'00 CE'!$E51,'00 Aggregatore'!E:E) -> 0 | G51: =SUMIF('00 Aggregatore'!$B:$B,'00 CE'!$E51,'00 Aggregatore'!F:F) -> 0
B52: AA0490 | C52: A.4.A.3.4) Prestazioni di File F | E52: AA0490 | F52: =SUMIF('00 Aggregatore'!$B:$B,'00 CE'!$E52,'00 Aggregatore'!E:E) -> 972613.7 | G52: =SUMIF('00 Aggregatore'!$B:$B,'00 CE'!$E52,'00 Aggregatore'!F:F) -> 1604980.14
B53: AA0500 | C53: A.4.A.3.5) Prestazioni servizi MMG, PLS, Contin. assistenziale Extraregione | E53: AA0500 | F53: =SUMIF('00 Aggregatore'!$B:$B,'00 CE'!$E53,'00 Aggregatore'!E:E) -> 155741.96 | G53: =SUMIF('00 Aggregatore'!$B:$B,'00 CE'!$E53,'00 Aggregatore'!F:F) -> 119388.84
B54: AA0510 | C54: A.4.A.3.6) Prestazioni servizi farmaceutica convenzionata Extraregione | E54: AA0510 | F54: =SUMIF('00 Aggregatore'!$B:$B,'00 CE'!$E54,'00 Aggregatore'!E:E) -> 523609.47 | G54: =SUMIF('00 Aggregatore'!$B:$B,'00 CE'!$E54,'00 Aggregatore'!F:F) -> 502038.11
B55: AA0520 | C55: A.4.A.3.7) Prestazioni termali Extraregione | E55: AA0520 | F55: =SUMIF('00 Aggregatore'!$B:$B,'00 CE'!$E55,'00 Aggregatore'!E:E) -> 332335.62 | G55: =SUMIF('00 Aggregatore'!$B:$B,'00 CE'!$E55,'00 Aggregatore'!F:F) -> 172275.4
B56: AA0530 | C56: A.4.A.3.8) Prestazioni trasporto ambulanze ed elisoccorso Extraregione | E56: AA0530 | F56: =SUMIF('00 Aggregatore'!$B:$B,'00 CE'!$E56,'00 Aggregatore'!E:E) -> 267907.44 | G56: =SUMIF('00 Aggregatore'!$B:$B,'00 CE'!$E56,'00 Aggregatore'!F:F) -> 512404.02
B57: AA0540 | C57: A.4.A.3.9) Altre prestazioni sanitarie e sociosanitarie a rilevanza sanitaria Extraregione | E57: AA0540 | F57: =SUMIF('00 Aggregatore'!$B:$B,'00 CE'!$E57,'00 Aggregatore'!E:E) -> 0 | G57: =SUMIF('00 Aggregatore'!$B:$B,'00 CE'!$E57,'00 Aggregatore'!F:F) -> 0
B58: AA0550 | C58: A.4.A.3.10) Ricavi per cessione di emocomponenti e cellule staminali Extraregione | E58: AA0550 | F58: =SUMIF('00 Aggregatore'!$B:$B,'00 CE'!$E58,'00 Aggregatore'!E:E) -> 813 | G58: =SUMIF('00 Aggregatore'!$B:$B,'00 CE'!$E58,'00 Aggregatore'!F:F) -> 174766.05
B59: AA0560 | C59: A.4.A.3.11) Ricavi per differenziale tariffe TUC | E59: AA0560 | F59: =SUMIF('00 Aggregatore'!$B:$B,'00 CE'!$E59,'00 Aggregatore'!E:E) -> 0 | G59: =SUMIF('00 Aggregatore'!$B:$B,'00 CE'!$E59,'00 Aggregatore'!F:F) -> 0
B60: AA0570 | C60: A.4.A.3.12) Altre prestazioni sanitarie e sociosanitarie a rilevanza sanitaria non soggette a compensazione Extraregione | D60: S | E60: AA0570 | F60: =SUM(F61:F62) -> 47794.2 | G60: =SUM(G61:G62) -> 1696.8
B61: AA0580 | C61: A.4.A.3.12.A) Prestazioni di assistenza riabilitativa non soggette a compensazione Extraregione | E61: AA0580 | F61: =SUMIF('00 Aggregatore'!$B:$B,'00 CE'!$E61,'00 Aggregatore'!E:E) -> 1860.9 | G61: =SUMIF('00 Aggregatore'!$B:$B,'00 CE'!$E61,'00 Aggregatore'!F:F) -> 0
B62: AA0590 | C62: A.4.A.3.12.B) Altre prestazioni sanitarie e socio-sanitarie a rilevanza sanitaria non soggette a compensazione Extraregione | E62: AA0590 | F62: =SUMIF('00 Aggregatore'!$B:$B,'00 CE'!$E62,'00 Aggregatore'!E:E) -> 45933.3 | G62: =SUMIF('00 Aggregatore'!$B:$B,'00 CE'!$E62,'00 Aggregatore'!F:F) -> 1696.8
B63: AA0600 | C63: A.4.A.3.13) Altre prestazioni sanitarie a rilevanza sanitaria - Mobilità attiva Internazionale | E63: AA0600 | F63: =SUMIF('00 Aggregatore'!$B:$B,'00 CE'!$E63,'00 Aggregatore'!E:E) -> 0 | G63: =SUMIF('00 Aggregatore'!$B:$B,'00 CE'!$E63,'00 Aggregatore'!F:F) -> 0
B64: AA0610 | C64: A.4.B) Ricavi per prestazioni sanitarie e sociosanitarie a rilevanza sanitaria erogate da privati v/residenti Extraregione in compensazione (mobilità attiva) | D64: S | E64: AA0610 | F64: =SUM(F65:F68) -> 11699257.52 | G64: =SUM(G65:G68) -> 12136123.77
B65: AA0620 | C65: A.4.B.1) Prestazioni di ricovero da priv. Extraregione in compensazione (mobilità attiva) | E65: AA0620 | F65: =SUMIF('00 Aggregatore'!$B:$B,'00 CE'!$E65,'00 Aggregatore'!E:E) -> 11496977.64 | G65: =SUMIF('00 Aggregatore'!$B:$B,'00 CE'!$E65,'00 Aggregatore'!F:F) -> 11917704.07
B66: AA0630 | C66: A.4.B.2) Prestazioni ambulatoriali da priv. Extraregione in compensazione (mobilità attiva) | E66: AA0630 | F66: =SUMIF('00 Aggregatore'!$B:$B,'00 CE'!$E66,'00 Aggregatore'!E:E) -> 202279.88 | G66: =SUMIF('00 Aggregatore'!$B:$B,'00 CE'!$E66,'00 Aggregatore'!F:F) -> 218419.7
B67: AA0640 | C67: A.4.B.3) Prestazioni di File F da priv. Extraregione in compensazione (mobilità attiva) | E67: AA0640 | F67: =SUMIF('00 Aggregatore'!$B:$B,'00 CE'!$E67,'00 Aggregatore'!E:E) -> 0 | G67: =SUMIF('00 Aggregatore'!$B:$B,'00 CE'!$E67,'00 Aggregatore'!F:F) -> 0
B68: AA0650 | C68: A.4.B.4) Altre prestazioni sanitarie e sociosanitarie a rilevanza sanitaria erogate da privati v/residenti Extraregione in compensazione (mobilità attiva) | E68: AA0650 | F68: =SUMIF('00 Aggregatore'!$B:$B,'00 CE'!$E68,'00 Aggregatore'!E:E) -> 0 | G68: =SUMIF('00 Aggregatore'!$B:$B,'00 CE'!$E68,'00 Aggregatore'!F:F) -> 0
B69: AA0660 | C69: A.4.C) Ricavi per prestazioni sanitarie e sociosanitarie a rilevanza sanitaria erogate a privati | E69: AA0660 | F69: =SUMIF('00 Aggregatore'!$B:$B,'00 CE'!$E69,'00 Aggregatore'!E:E) -> 3531032.85 | G69: =SUMIF('00 Aggregatore'!$B:$B,'00 CE'!$E69,'00 Aggregatore'!F:F) -> 3569406.31
B70: AA0670 | C70: A.4.D) Ricavi per prestazioni sanitarie erogate in regime di intramoenia | D70: S | E70: AA0670 | F70: =SUM(F71:F77) -> 3955568.22 | G70: =SUM(G71:G77) -> 3919432.33
B71: AA0680 | C71: A.4.D.1) Ricavi per prestazioni sanitarie intramoenia - Area ospedaliera | E71: AA0680 | F71: =SUMIF('00 Aggregatore'!$B:$B,'00 CE'!$E71,'00 Aggregatore'!E:E) -> 89330.21 | G71: =SUMIF('00 Aggregatore'!$B:$B,'00 CE'!$E71,'00 Aggregatore'!F:F) -> 50045.82
B72: AA0690 | C72: A.4.D.2) Ricavi per prestazioni sanitarie intramoenia - Area specialistica | E72: AA0690 | F72: =SUMIF('00 Aggregatore'!$B:$B,'00 CE'!$E72,'00 Aggregatore'!E:E) -> 3216315.61 | G72: =SUMIF('00 Aggregatore'!$B:$B,'00 CE'!$E72,'00 Aggregatore'!F:F) -> 3252006
B73: AA0700 | C73: A.4.D.3) Ricavi per prestazioni sanitarie intramoenia - Area sanità pubblica | E73: AA0700 | F73: =SUMIF('00 Aggregatore'!$B:$B,'00 CE'!$E73,'00 Aggregatore'!E:E) -> 19348.81 | G73: =SUMIF('00 Aggregatore'!$B:$B,'00 CE'!$E73,'00 Aggregatore'!F:F) -> 22414.54
B74: AA0710 | C74: A.4.D.4) Ricavi per prestazioni sanitarie intramoenia - Consulenze (ex art. 55 c.1 lett. c), d) ed ex art. 57-58) | E74: AA0710 | F74: =SUMIF('00 Aggregatore'!$B:$B,'00 CE'!$E74,'00 Aggregatore'!E:E) -> 520863.67 | G74: =SUMIF('00 Aggregatore'!$B:$B,'00 CE'!$E74,'00 Aggregatore'!F:F) -> 478823.7
B75: AA0720 | C75: A.4.D.5) Ricavi per prestazioni sanitarie intramoenia - Consulenze (ex art. 55 c.1 lett. c), d) ed ex art. 57-58) (Aziende sanitarie pubbliche della Regione) | E75: AA0720 | F75: =SUMIF('00 Aggregatore'!$B:$B,'00 CE'!$E75,'00 Aggregatore'!E:E) -> 0 | G75: =SUMIF('00 Aggregatore'!$B:$B,'00 CE'!$E75,'00 Aggregatore'!F:F) -> 0
B76: AA0730 | C76: A.4.D.6) Ricavi per prestazioni sanitarie intramoenia - Altro | E76: AA0730 | F76: =SUMIF('00 Aggregatore'!$B:$B,'00 CE'!$E76,'00 Aggregatore'!E:E) -> 109709.92 | G76: =SUMIF('00 Aggregatore'!$B:$B,'00 CE'!$E76,'00 Aggregatore'!F:F) -> 97870.17
B77: AA0740 | C77: A.4.D.7) Ricavi per prestazioni sanitarie intramoenia - Altro (Aziende sanitarie pubbliche della Regione) | E77: AA0740 | F77: =SUMIF('00 Aggregatore'!$B:$B,'00 CE'!$E77,'00 Aggregatore'!E:E) -> 0 | G77: =SUMIF('00 Aggregatore'!$B:$B,'00 CE'!$E77,'00 Aggregatore'!F:F) -> 18272.1
B78: AA0750 | C78: A.5) Concorsi, recuperi e rimborsi | D78: S | E78: AA0750 | F78: =F79+F80+F83+F87+F91 -> 2960631.98 | G78: =G79+G80+G83+G87+G91 -> 4898267.15
B79: AA0760 | C79: A.5.A) Rimborsi assicurativi | E79: AA0760 | F79: =SUMIF('00 Aggregatore'!$B:$B,'00 CE'!$E79,'00 Aggregatore'!E:E) -> 570386.94 | G79: =SUMIF('00 Aggregatore'!$B:$B,'00 CE'!$E79,'00 Aggregatore'!F:F) -> 166973.67
B80: AA0770 | C80: A.5.B) Concorsi, recuperi e rimborsi da Regione | D80: S | E80: AA0770 | F80: =SUM(F81:F82) -> 0 | G80: =SUM(G81:G82) -> 0
B81: AA0780 | C81: A.5.B.1) Rimborso degli oneri stipendiali del personale dell'azienda in posizione di comando presso la Regione | E81: AA0780 | F81: =SUMIF('00 Aggregatore'!$B:$B,'00 CE'!$E81,'00 Aggregatore'!E:E) -> 0 | G81: =SUMIF('00 Aggregatore'!$B:$B,'00 CE'!$E81,'00 Aggregatore'!F:F) -> 0
B82: AA0790 | C82: A.5.B.2) Altri concorsi, recuperi e rimborsi da parte della Regione | E82: AA0790 | F82: =SUMIF('00 Aggregatore'!$B:$B,'00 CE'!$E82,'00 Aggregatore'!E:E) -> 0 | G82: =SUMIF('00 Aggregatore'!$B:$B,'00 CE'!$E82,'00 Aggregatore'!F:F) -> 0
B83: AA0800 | C83: A.5.C) Concorsi, recuperi e rimborsi da Aziende sanitarie pubbliche della Regione | D83: S | E83: AA0800 | F83: =SUM(F84:F86) -> 142391.67 | G83: =SUM(G84:G86) -> 150230.1
B84: AA0810 | C84: A.5.C.1) Rimborso degli oneri stipendiali del personale dipendente dell'azienda in posizione di comando presso Aziende sanitarie pubbliche della Regione | E84: AA0810 | F84: =SUMIF('00 Aggregatore'!$B:$B,'00 CE'!$E84,'00 Aggregatore'!E:E) -> 0 | G84: =SUMIF('00 Aggregatore'!$B:$B,'00 CE'!$E84,'00 Aggregatore'!F:F) -> 14346.46
B85: AA0820 | C85: A.5.C.2) Rimborsi per acquisto beni da parte di Aziende sanitarie pubbliche della Regione | E85: AA0820 | F85: =SUMIF('00 Aggregatore'!$B:$B,'00 CE'!$E85,'00 Aggregatore'!E:E) -> 0 | G85: =SUMIF('00 Aggregatore'!$B:$B,'00 CE'!$E85,'00 Aggregatore'!F:F) -> 0
B86: AA0830 | C86: A.5.C.3) Altri concorsi, recuperi e rimborsi da parte di Aziende sanitarie pubbliche della Regione | E86: AA0830 | F86: =SUMIF('00 Aggregatore'!$B:$B,'00 CE'!$E86,'00 Aggregatore'!E:E) -> 142391.67 | G86: =SUMIF('00 Aggregatore'!$B:$B,'00 CE'!$E86,'00 Aggregatore'!F:F) -> 135883.64
B87: AA0840 | C87: A.5.D) Concorsi, recuperi e rimborsi da altri soggetti pubblici | D87: S | E87: AA0840 | F87: =SUM(F88:F90) -> 141469.87 | G87: =SUM(G88:G90) -> 287130.67
B88: AA0850 | C88: A.5.D.1) Rimborso degli oneri stipendiali del personale dipendente dell'azienda in posizione di comando presso altri soggetti pubblici | E88: AA0850 | F88: =SUMIF('00 Aggregatore'!$B:$B,'00 CE'!$E88,'00 Aggregatore'!E:E) -> 117798.94 | G88: =SUMIF('00 Aggregatore'!$B:$B,'00 CE'!$E88,'00 Aggregatore'!F:F) -> 114750.81
B89: AA0860 | C89: A.5.D.2) Rimborsi per acquisto beni da parte di altri soggetti pubblici | E89: AA0860 | F89: =SUMIF('00 Aggregatore'!$B:$B,'00 CE'!$E89,'00 Aggregatore'!E:E) -> 19160.62 | G89: =SUMIF('00 Aggregatore'!$B:$B,'00 CE'!$E89,'00 Aggregatore'!F:F) -> 14709.64
B90: AA0870 | C90: A.5.D.3) Altri concorsi, recuperi e rimborsi da parte di altri soggetti pubblici | E90: AA0870 | F90: =SUMIF('00 Aggregatore'!$B:$B,'00 CE'!$E90,'00 Aggregatore'!E:E) -> 4510.31 | G90: =SUMIF('00 Aggregatore'!$B:$B,'00 CE'!$E90,'00 Aggregatore'!F:F) -> 157670.22
B91: AA0880 | C91: A.5.E) Concorsi, recuperi e rimborsi da privati | D91: S | E91: AA0880 | F91: =F92+F96 -> 2106383.5 | G91: =G92+G96 -> 4293932.71
B92: AA0890 | C92: A.5.E.1) Rimborso da aziende farmaceutiche per Pay back | D92: S | E92: AA0890 | F92: =SUM(F93:F95) -> 1431892.14 | G92: =SUM(G93:G95) -> 3426952.4
B93: AA0900 | C93: A.5.E.1.1) Pay-back per il superamento del tetto della spesa farmaceutica territoriale | E93: AA0900 | F93: =SUMIF('00 Aggregatore'!$B:$B,'00 CE'!$E93,'00 Aggregatore'!E:E) -> 0 | G93: =SUMIF('00 Aggregatore'!$B:$B,'00 CE'!$E93,'00 Aggregatore'!F:F) -> 0
B94: AA0910 | C94: A.5.E.1.2) Pay-back per superamento del tetto della spesa farmaceutica ospedaliera | E94: AA0910 | F94: =SUMIF('00 Aggregatore'!$B:$B,'00 CE'!$E94,'00 Aggregatore'!E:E) -> 0 | G94: =SUMIF('00 Aggregatore'!$B:$B,'00 CE'!$E94,'00 Aggregatore'!F:F) -> 20
B95: AA0920 | C95: A.5.E.1.3) Ulteriore Pay-back | E95: AA0920 | F95: =SUMIF('00 Aggregatore'!$B:$B,'00 CE'!$E95,'00 Aggregatore'!E:E) -> 1431892.14 | G95: =SUMIF('00 Aggregatore'!$B:$B,'00 CE'!$E95,'00 Aggregatore'!F:F) -> 3426932.4
B96: AA0930 | C96: A.5.E.2) Altri concorsi, recuperi e rimborsi da privati | E96: AA0930 | F96: =SUMIF('00 Aggregatore'!$B:$B,'00 CE'!$E96,'00 Aggregatore'!E:E) -> 674491.36 | G96: =SUMIF('00 Aggregatore'!$B:$B,'00 CE'!$E96,'00 Aggregatore'!F:F) -> 866980.31
B97: AA0940 | C97: A.6) Compartecipazione alla spesa per prestazioni sanitarie (Ticket) | D97: S | E97: AA0940 | F97: =SUM(F98:F100) -> 6599350.33 | G97: =SUM(G98:G100) -> 6745092.08
B98: AA0950 | C98: A.6.A) Compartecipazione alla spesa per prestazioni sanitarie - Ticket sulle prestazioni di specialistica ambulatoriale | E98: AA0950 | F98: =SUMIF('00 Aggregatore'!$B:$B,'00 CE'!$E98,'00 Aggregatore'!E:E) -> 6032018.41 | G98: =SUMIF('00 Aggregatore'!$B:$B,'00 CE'!$E98,'00 Aggregatore'!F:F) -> 6414769.32
B99: AA0960 | C99: A.6.B) Compartecipazione alla spesa per prestazioni sanitarie - Ticket sul pronto soccorso | E99: AA0960 | F99: =SUMIF('00 Aggregatore'!$B:$B,'00 CE'!$E99,'00 Aggregatore'!E:E) -> 567331.92 | G99: =SUMIF('00 Aggregatore'!$B:$B,'00 CE'!$E99,'00 Aggregatore'!F:F) -> 330322.76
B100: AA0970 | C100: A.6.C) Compartecipazione alla spesa per prestazioni sanitarie (Ticket) - Altro | E100: AA0970 | F100: =SUMIF('00 Aggregatore'!$B:$B,'00 CE'!$E100,'00 Aggregatore'!E:E) -> 0 | G100: =SUMIF('00 Aggregatore'!$B:$B,'00 CE'!$E100,'00 Aggregatore'!F:F) -> 0
B101: AA0980 | C101: A.7) Quota contributi c/capitale imputata all'esercizio | D101: S | E101: AA0980 | F101: =SUM(F102:F107) -> 8506490.23 | G101: =SUM(G102:G107) -> 9824993.15
B102: AA0990 | C102: A.7.A) Quota imputata all'esercizio dei finanziamenti per investimenti dallo Stato | E102: AA0990 | F102: =SUMIF('00 Aggregatore'!$B:$B,'00 CE'!$E102,'00 Aggregatore'!E:E) -> 55380.81 | G102: =SUMIF('00 Aggregatore'!$B:$B,'00 CE'!$E102,'00 Aggregatore'!F:F) -> 48286.07
B103: AA1000 | C103: A.7.B) Quota imputata all'esercizio dei finanziamenti per investimenti da Regione | E103: AA1000 | F103: =SUMIF('00 Aggregatore'!$B:$B,'00 CE'!$E103,'00 Aggregatore'!E:E) -> 1574332.01 | G103: =SUMIF('00 Aggregatore'!$B:$B,'00 CE'!$E103,'00 Aggregatore'!F:F) -> 1468544.84
B104: AA1010 | C104: A.7.C) Quota imputata all'esercizio dei finanziamenti per beni di prima dotazione | E104: AA1010 | F104: =SUMIF('00 Aggregatore'!$B:$B,'00 CE'!$E104,'00 Aggregatore'!E:E) -> 3577467.93 | G104: =SUMIF('00 Aggregatore'!$B:$B,'00 CE'!$E104,'00 Aggregatore'!F:F) -> 3577467.93
B105: AA1020 | C105: A.7.D) Quota imputata all'esercizio dei contributi in c/ esercizio FSR destinati ad investimenti | E105: AA1020 | F105: =SUMIF('00 Aggregatore'!$B:$B,'00 CE'!$E105,'00 Aggregatore'!E:E) -> 3299309.48 | G105: =SUMIF('00 Aggregatore'!$B:$B,'00 CE'!$E105,'00 Aggregatore'!F:F) -> 4730694.31
B106: AA1030 | C106: A.7.E) Quota imputata all'esercizio degli altri contributi in c/ esercizio destinati ad investimenti | E106: AA1030 | F106: =SUMIF('00 Aggregatore'!$B:$B,'00 CE'!$E106,'00 Aggregatore'!E:E) -> 0 | G106: =SUMIF('00 Aggregatore'!$B:$B,'00 CE'!$E106,'00 Aggregatore'!F:F) -> 0
B107: AA1040 | C107: A.7.F) Quota imputata all'esercizio di altre poste del patrimonio netto | E107: AA1040 | F107: =SUMIF('00 Aggregatore'!$B:$B,'00 CE'!$E107,'00 Aggregatore'!E:E) -> 0 | G107: =SUMIF('00 Aggregatore'!$B:$B,'00 CE'!$E107,'00 Aggregatore'!F:F) -> 0
B108: AA1050 | C108: A.8) Incrementi delle immobilizzazioni per lavori interni | E108: AA1050 | F108: =SUMIF('00 Aggregatore'!$B:$B,'00 CE'!$E108,'00 Aggregatore'!E:E) -> 0 | G108: =SUMIF('00 Aggregatore'!$B:$B,'00 CE'!$E108,'00 Aggregatore'!F:F) -> 0
B109: AA1060 | C109: A.9) Altri ricavi e proventi | D109: S | E109: AA1060 | F109: =SUM(F110:F112) -> 534566.63 | G109: =SUM(G110:G112) -> 622301.4
B110: AA1070 | C110: A.9.A) Ricavi per prestazioni non sanitarie | E110: AA1070 | F110: =SUMIF('00 Aggregatore'!$B:$B,'00 CE'!$E110,'00 Aggregatore'!E:E) -> 3563 | G110: =SUMIF('00 Aggregatore'!$B:$B,'00 CE'!$E110,'00 Aggregatore'!F:F) -> 3023.66
B111: AA1080 | C111: A.9.B) Fitti attivi ed altri proventi da attività immobiliari | E111: AA1080 | F111: =SUMIF('00 Aggregatore'!$B:$B,'00 CE'!$E111,'00 Aggregatore'!E:E) -> 221554.44 | G111: =SUMIF('00 Aggregatore'!$B:$B,'00 CE'!$E111,'00 Aggregatore'!F:F) -> 221560.64
B112: AA1090 | C112: A.9.C) Altri proventi diversi | E112: AA1090 | F112: =SUMIF('00 Aggregatore'!$B:$B,'00 CE'!$E112,'00 Aggregatore'!E:E) -> 309449.19 | G112: =SUMIF('00 Aggregatore'!$B:$B,'00 CE'!$E112,'00 Aggregatore'!F:F) -> 397717.1
B113: AZ9999 | C113: Totale valore della produzione (A) | D113: S | E113: AZ9999 | F113: =F4+F27+F30+F35+F78+F97+F101+F108+F109 -> 692942542.3 | G113: =G4+G27+G30+G35+G78+G97+G101+G108+G109 -> 706064340.4
C114: B) Costi della produzione
B115: BA0010 | C115: B.1) Acquisti di beni | D115: S | E115: BA0010 | F115: =F116+F135 -> 112786638.8 | G115: =G116+G135 -> 117076514.2
B116: BA0020 | C116: B.1.A) Acquisti di beni sanitari | D116: S | E116: BA0020 | F116: =F117+F121+F125+SUM(F129:F134) -> 111731076.7 | G116: =G117+G121+G125+SUM(G129:G134) -> 116128391.6
B117: BA0030 | C117: B.1.A.1) Prodotti farmaceutici ed emoderivati | D117: S | E117: BA0030 | F117: =SUM(F118:F120) -> 67757822.91 | G117: =SUM(G118:G120) -> 69958395.31
B118: BA0040 | C118: B.1.A.1.1) Medicinali con AIC, ad eccezione di vaccini ed emoderivati di produzione regionale | E118: BA0040 | F118: =SUMIF('00 Aggregatore'!$B:$B,'00 CE'!$E118,'00 Aggregatore'!E:E) -> 66456835.45 | G118: =SUMIF('00 Aggregatore'!$B:$B,'00 CE'!$E118,'00 Aggregatore'!F:F) -> 69235809.47
B119: BA0050 | C119: B.1.A.1.2) Medicinali senza AIC | E119: BA0050 | F119: =SUMIF('00 Aggregatore'!$B:$B,'00 CE'!$E119,'00 Aggregatore'!E:E) -> 1300987.46 | G119: =SUMIF('00 Aggregatore'!$B:$B,'00 CE'!$E119,'00 Aggregatore'!F:F) -> 722585.84
B120: BA0060 | C120: B.1.A.1.3) Emoderivati di produzione regionale | E120: BA0060 | F120: =SUMIF('00 Aggregatore'!$B:$B,'00 CE'!$E120,'00 Aggregatore'!E:E) -> 0 | G120: =SUMIF('00 Aggregatore'!$B:$B,'00 CE'!$E120,'00 Aggregatore'!F:F) -> 0
B121: BA0070 | C121: B.1.A.2) Sangue ed emocomponenti | D121: S | E121: BA0070 | F121: =SUM(F122:F124) -> 133040.57 | G121: =SUM(G122:G124) -> 187348.99
B122: BA0080 | C122: B.1.A.2.1) da pubblico (Aziende sanitarie pubbliche della Regione) – Mobilità intraregionale | E122: BA0080 | F122: =SUMIF('00 Aggregatore'!$B:$B,'00 CE'!$E122,'00 Aggregatore'!E:E) -> 0 | G122: =SUMIF('00 Aggregatore'!$B:$B,'00 CE'!$E122,'00 Aggregatore'!F:F) -> 0
B123: BA0090 | C123: B.1.A.2.2) da pubblico (Aziende sanitarie pubbliche extra Regione) – Mobilità extraregionale | E123: BA0090 | F123: =SUMIF('00 Aggregatore'!$B:$B,'00 CE'!$E123,'00 Aggregatore'!E:E) -> 133040.57 | G123: =SUMIF('00 Aggregatore'!$B:$B,'00 CE'!$E123,'00 Aggregatore'!F:F) -> 187348.99
B124: BA0100 | C124: B.1.A.2.3) da altri soggetti | E124: BA0100 | F124: =SUMIF('00 Aggregatore'!$B:$B,'00 CE'!$E124,'00 Aggregatore'!E:E) -> 0 | G124: =SUMIF('00 Aggregatore'!$B:$B,'00 CE'!$E124,'00 Aggregatore'!F:F) -> 0
B125: BA0210 | C125: B.1.A.3) Dispositivi medici | D125: S | E125: BA0210 | F125: =SUM(F126:F128) -> 40472326.14 | G125: =SUM(G126:G128) -> 41189711.57
B126: BA0220 | C126: B.1.A.3.1) Dispositivi medici | E126: BA0220 | F126: =SUMIF('00 Aggregatore'!$B:$B,'00 CE'!$E126,'00 Aggregatore'!E:E) -> 25227619.2 | G126: =SUMIF('00 Aggregatore'!$B:$B,'00 CE'!$E126,'00 Aggregatore'!F:F) -> 25764695.79
B127: BA0230 | C127: B.1.A.3.2) Dispositivi medici impiantabili attivi | E127: BA0230 | F127: =SUMIF('00 Aggregatore'!$B:$B,'00 CE'!$E127,'00 Aggregatore'!E:E) -> 3795874.49 | G127: =SUMIF('00 Aggregatore'!$B:$B,'00 CE'!$E127,'00 Aggregatore'!F:F) -> 3456008.28
B128: BA0240 | C128: B.1.A.3.3) Dispositivi medico diagnostici in vitro (IVD) | E128: BA0240 | F128: =SUMIF('00 Aggregatore'!$B:$B,'00 CE'!$E128,'00 Aggregatore'!E:E) -> 11448832.45 | G128: =SUMIF('00 Aggregatore'!$B:$B,'00 CE'!$E128,'00 Aggregatore'!F:F) -> 11969007.5
B129: BA0250 | C129: B.1.A.4) Prodotti dietetici | E129: BA0250 | F129: =SUMIF('00 Aggregatore'!$B:$B,'00 CE'!$E129,'00 Aggregatore'!E:E) -> 440667.16 | G129: =SUMIF('00 Aggregatore'!$B:$B,'00 CE'!$E129,'00 Aggregatore'!F:F) -> 469645.74
B130: BA0260 | C130: B.1.A.5) Materiali per la profilassi (vaccini) | E130: BA0260 | F130: =SUMIF('00 Aggregatore'!$B:$B,'00 CE'!$E130,'00 Aggregatore'!E:E) -> 1380588.41 | G130: =SUMIF('00 Aggregatore'!$B:$B,'00 CE'!$E130,'00 Aggregatore'!F:F) -> 2380862.56
B131: BA0270 | C131: B.1.A.6) Prodotti chimici | E131: BA0270 | F131: =SUMIF('00 Aggregatore'!$B:$B,'00 CE'!$E131,'00 Aggregatore'!E:E) -> 0 | G131: =SUMIF('00 Aggregatore'!$B:$B,'00 CE'!$E131,'00 Aggregatore'!F:F) -> 0
B132: BA0280 | C132: B.1.A.7) Materiali e prodotti per uso veterinario | E132: BA0280 | F132: =SUMIF('00 Aggregatore'!$B:$B,'00 CE'!$E132,'00 Aggregatore'!E:E) -> 33301.29 | G132: =SUMIF('00 Aggregatore'!$B:$B,'00 CE'!$E132,'00 Aggregatore'!F:F) -> 7852.8
B133: BA0290 | C133: B.1.A.8) Altri beni e prodotti sanitari | E133: BA0290 | F133: =SUMIF('00 Aggregatore'!$B:$B,'00 CE'!$E133,'00 Aggregatore'!E:E) -> 1513330.23 | G133: =SUMIF('00 Aggregatore'!$B:$B,'00 CE'!$E133,'00 Aggregatore'!F:F) -> 1934574.6
B134: BA0300 | C134: B.1.A.9) Beni e prodotti sanitari da Aziende sanitarie pubbliche della Regione | E134: BA0300 | F134: =SUMIF('00 Aggregatore'!$B:$B,'00 CE'!$E134,'00 Aggregatore'!E:E) -> 0 | G134: =SUMIF('00 Aggregatore'!$B:$B,'00 CE'!$E134,'00 Aggregatore'!F:F) -> 0
B135: BA0310 | C135: B.1.B) Acquisti di beni non sanitari | D135: S | E135: BA0310 | F135: =SUM(F136:F142) -> 1055562.13 | G135: =SUM(G136:G142) -> 948122.62
B136: BA0320 | C136: B.1.B.1) Prodotti alimentari | E136: BA0320 | F136: =SUMIF('00 Aggregatore'!$B:$B,'00 CE'!$E136,'00 Aggregatore'!E:E) -> 259.32 | G136: =SUMIF('00 Aggregatore'!$B:$B,'00 CE'!$E136,'00 Aggregatore'!F:F) -> 250.58
B137: BA0330 | C137: B.1.B.2) Materiali di guardaroba, di pulizia e di convivenza in genere | E137: BA0330 | F137: =SUMIF('00 Aggregatore'!$B:$B,'00 CE'!$E137,'00 Aggregatore'!E:E) -> 29848.15 | G137: =SUMIF('00 Aggregatore'!$B:$B,'00 CE'!$E137,'00 Aggregatore'!F:F) -> 41796.38
B138: BA0340 | C138: B.1.B.3) Combustibili, carburanti e lubrificanti | E138: BA0340 | F138: =SUMIF('00 Aggregatore'!$B:$B,'00 CE'!$E138,'00 Aggregatore'!E:E) -> 125554.88 | G138: =SUMIF('00 Aggregatore'!$B:$B,'00 CE'!$E138,'00 Aggregatore'!F:F) -> 135937.7
B139: BA0350 | C139: B.1.B.4) Supporti informatici e cancelleria | E139: BA0350 | F139: =SUMIF('00 Aggregatore'!$B:$B,'00 CE'!$E139,'00 Aggregatore'!E:E) -> 597417.69 | G139: =SUMIF('00 Aggregatore'!$B:$B,'00 CE'!$E139,'00 Aggregatore'!F:F) -> 513727.87
B140: BA0360 | C140: B.1.B.5) Materiale per la manutenzione | E140: BA0360 | F140: =SUMIF('00 Aggregatore'!$B:$B,'00 CE'!$E140,'00 Aggregatore'!E:E) -> 252738.81 | G140: =SUMIF('00 Aggregatore'!$B:$B,'00 CE'!$E140,'00 Aggregatore'!F:F) -> 207783.53
B141: BA0370 | C141: B.1.B.6) Altri beni e prodotti non sanitari | E141: BA0370 | F141: =SUMIF('00 Aggregatore'!$B:$B,'00 CE'!$E141,'00 Aggregatore'!E:E) -> 49743.28 | G141: =SUMIF('00 Aggregatore'!$B:$B,'00 CE'!$E141,'00 Aggregatore'!F:F) -> 48626.56
B142: BA0380 | C142: B.1.B.7) Beni e prodotti non sanitari da Aziende sanitarie pubbliche della Regione | E142: BA0380 | F142: =SUMIF('00 Aggregatore'!$B:$B,'00 CE'!$E142,'00 Aggregatore'!E:E) -> 0 | G142: =SUMIF('00 Aggregatore'!$B:$B,'00 CE'!$E142,'00 Aggregatore'!F:F) -> 0
B143: BA0390 | C143: B.2) Acquisti di servizi | D143: S | E143: BA0390 | F143: =F144+F260 -> 367897552.2 | G143: =G144+G260 -> 368344821.9
B144: BA0400 | C144: B.2.A) Acquisti servizi sanitari | D144: S | E144: BA0400 | F144: =F145+F153+F157+F168+F174+F179+F184+F194+F200+F207+F213+F218+F224+F232+F239+F253+F259 -> 329975343.6 | G144: =G145+G153+G157+G168+G174+G179+G184+G194+G200+G207+G213+G218+G224+G232+G239+G253+G259 -> 331559072.4
B145: BA0410 | C145: B.2.A.1) Acquisti servizi sanitari per medicina di base | D145: S | E145: BA0410 | F145: =F146+F151+F152 -> 36146549.25 | G145: =G146+G151+G152 -> 35655655.12
B146: BA0420 | C146: B.2.A.1.1) - da convenzione | D146: S | E146: BA0420 | F146: =SUM(F147:F150) -> 35889765.89 | G146: =SUM(G147:G150) -> 35435849.35
B147: BA0430 | C147: B.2.A.1.1.A) Costi per assistenza MMG | E147: BA0430 | F147: =SUMIF('00 Aggregatore'!$B:$B,'00 CE'!$E147,'00 Aggregatore'!E:E) -> 24527412.66 | G147: =SUMIF('00 Aggregatore'!$B:$B,'00 CE'!$E147,'00 Aggregatore'!F:F) -> 24328709.33
B148: BA0440 | C148: B.2.A.1.1.B) Costi per assistenza PLS | E148: BA0440 | F148: =SUMIF('00 Aggregatore'!$B:$B,'00 CE'!$E148,'00 Aggregatore'!E:E) -> 6297522.92 | G148: =SUMIF('00 Aggregatore'!$B:$B,'00 CE'!$E148,'00 Aggregatore'!F:F) -> 6208374.4
B149: BA0450 | C149: B.2.A.1.1.C) Costi per assistenza Continuità assistenziale | E149: BA0450 | F149: =SUMIF('00 Aggregatore'!$B:$B,'00 CE'!$E149,'00 Aggregatore'!E:E) -> 4154724.75 | G149: =SUMIF('00 Aggregatore'!$B:$B,'00 CE'!$E149,'00 Aggregatore'!F:F) -> 4008916.53
B150: BA0460 | C150: B.2.A.1.1.D) Altro (medicina dei servizi, psicologi, medici 118, ecc) | E150: BA0460 | F150: =SUMIF('00 Aggregatore'!$B:$B,'00 CE'!$E150,'00 Aggregatore'!E:E) -> 910105.56 | G150: =SUMIF('00 Aggregatore'!$B:$B,'00 CE'!$E150,'00 Aggregatore'!F:F) -> 889849.09
B151: BA0470 | C151: B.2.A.1.2) - da pubblico (Aziende sanitarie pubbliche della Regione) - Mobilità intraregionale | E151: BA0470 | F151: =SUMIF('00 Aggregatore'!$B:$B,'00 CE'!$E151,'00 Aggregatore'!E:E) -> 83439.4 | G151: =SUMIF('00 Aggregatore'!$B:$B,'00 CE'!$E151,'00 Aggregatore'!F:F) -> 35057.19
B152: BA0480 | C152: B.2.A.1.3) - da pubblico (Aziende sanitarie pubbliche Extraregione) - Mobilità extraregionale | E152: BA0480 | F152: =SUMIF('00 Aggregatore'!$B:$B,'00 CE'!$E152,'00 Aggregatore'!E:E) -> 173343.96 | G152: =SUMIF('00 Aggregatore'!$B:$B,'00 CE'!$E152,'00 Aggregatore'!F:F) -> 184748.58
B153: BA0490 | C153: B.2.A.2) Acquisti servizi sanitari per farmaceutica | D153: S | E153: BA0490 | F153: =SUM(F154:F156) -> 54637066.85 | G153: =SUM(G154:G156) -> 54563948.05
B154: BA0500 | C154: B.2.A.2.1) - da convenzione | E154: BA0500 | F154: =SUMIF('00 Aggregatore'!$B:$B,'00 CE'!$E154,'00 Aggregatore'!E:E) -> 53014279.9 | G154: =SUMIF('00 Aggregatore'!$B:$B,'00 CE'!$E154,'00 Aggregatore'!F:F) -> 52924145.52
B155: BA0510 | C155: B.2.A.2.2) - da pubblico (Aziende sanitarie pubbliche della Regione)- Mobilità intraregionale | E155: BA0510 | F155: =SUMIF('00 Aggregatore'!$B:$B,'00 CE'!$E155,'00 Aggregatore'!E:E) -> 1241012.19 | G155: =SUMIF('00 Aggregatore'!$B:$B,'00 CE'!$E155,'00 Aggregatore'!F:F) -> 1251970.51
B156: BA0520 | C156: B.2.A.2.3) - da pubblico (Extraregione) | E156: BA0520 | F156: =SUMIF('00 Aggregatore'!$B:$B,'00 CE'!$E156,'00 Aggregatore'!E:E) -> 381774.76 | G156: =SUMIF('00 Aggregatore'!$B:$B,'00 CE'!$E156,'00 Aggregatore'!F:F) -> 387832.02
B157: BA0530 | C157: B.2.A.3) Acquisti servizi sanitari per assistenza specialistica ambulatoriale | D157: S | E157: BA0530 | F157: =SUM(F158:F162)+F167 -> 25704713.99 | G157: =SUM(G158:G162)+G167 -> 27519184.07
B158: BA0540 | C158: B.2.A.3.1) - da pubblico (Aziende sanitarie pubbliche della Regione) | E158: BA0540 | F158: =SUMIF('00 Aggregatore'!$B:$B,'00 CE'!$E158,'00 Aggregatore'!E:E) -> 8524168.66 | G158: =SUMIF('00 Aggregatore'!$B:$B,'00 CE'!$E158,'00 Aggregatore'!F:F) -> 8998122.11
B159: BA0550 | C159: B.2.A.3.2) - da pubblico (altri soggetti pubbl. della Regione) | E159: BA0550 | F159: =SUMIF('00 Aggregatore'!$B:$B,'00 CE'!$E159,'00 Aggregatore'!E:E) -> 224364.91 | G159: =SUMIF('00 Aggregatore'!$B:$B,'00 CE'!$E159,'00 Aggregatore'!F:F) -> 189344.67
B160: BA0560 | C160: B.2.A.3.3) - da pubblico (Extraregione) | E160: BA0560 | F160: =SUMIF('00 Aggregatore'!$B:$B,'00 CE'!$E160,'00 Aggregatore'!E:E) -> 3048586.34 | G160: =SUMIF('00 Aggregatore'!$B:$B,'00 CE'!$E160,'00 Aggregatore'!F:F) -> 4460024.94
B161: BA0570 | C161: B.2.A.3.4) - da privato - Medici SUMAI | E161: BA0570 | F161: =SUMIF('00 Aggregatore'!$B:$B,'00 CE'!$E161,'00 Aggregatore'!E:E) -> 5114503.17 | G161: =SUMIF('00 Aggregatore'!$B:$B,'00 CE'!$E161,'00 Aggregatore'!F:F) -> 4899151.05
B162: BA0580 | C162: B.2.A.3.5) - da privato | D162: S | E162: BA0580 | F162: =SUM(F163:F166) -> 8596847.06 | G162: =SUM(G163:G166) -> 8757843.1
B163: BA0590 | C163: B.2.A.3.5.A) Servizi sanitari per assistenza specialistica da IRCCS privati e Policlinici privati | E163: BA0590 | F163: =SUMIF('00 Aggregatore'!$B:$B,'00 CE'!$E163,'00 Aggregatore'!E:E) -> 44362.83 | G163: =SUMIF('00 Aggregatore'!$B:$B,'00 CE'!$E163,'00 Aggregatore'!F:F) -> 60978.73
B164: BA0600 | C164: B.2.A.3.5.B) Servizi sanitari per assistenza specialistica da Ospedali Classificati privati | E164: BA0600 | F164: =SUMIF('00 Aggregatore'!$B:$B,'00 CE'!$E164,'00 Aggregatore'!E:E) -> 0 | G164: =SUMIF('00 Aggregatore'!$B:$B,'00 CE'!$E164,'00 Aggregatore'!F:F) -> 0
B165: BA0610 | C165: B.2.A.3.5.C) Servizi sanitari per assistenza specialistica da Case di Cura private | E165: BA0610 | F165: =SUMIF('00 Aggregatore'!$B:$B,'00 CE'!$E165,'00 Aggregatore'!E:E) -> 5364433.02 | G165: =SUMIF('00 Aggregatore'!$B:$B,'00 CE'!$E165,'00 Aggregatore'!F:F) -> 5412858.87
B166: BA0620 | C166: B.2.A.3.5.D) Servizi sanitari per assistenza specialistica da altri privati | E166: BA0620 | F166: =SUMIF('00 Aggregatore'!$B:$B,'00 CE'!$E166,'00 Aggregatore'!E:E) -> 3188051.21 | G166: =SUMIF('00 Aggregatore'!$B:$B,'00 CE'!$E166,'00 Aggregatore'!F:F) -> 3284005.5
B167: BA0630 | C167: B.2.A.3.6) - da privato per cittadini non residenti - Extraregione (mobilità attiva in compensazione) | E167: BA0630 | F167: =SUMIF('00 Aggregatore'!$B:$B,'00 CE'!$E167,'00 Aggregatore'!E:E) -> 196243.85 | G167: =SUMIF('00 Aggregatore'!$B:$B,'00 CE'!$E167,'00 Aggregatore'!F:F) -> 214698.2
B168: BA0640 | C168: B.2.A.4) Acquisti servizi sanitari per assistenza riabilitativa | D168: S | E168: BA0640 | F168: =SUM(F169:F173) -> 19761859.14 | G168: =SUM(G169:G173) -> 19907207.98
B169: BA0650 | C169: B.2.A.4.1) - da pubblico (Aziende sanitarie pubbliche della Regione) | E169: BA0650 | F169: =SUMIF('00 Aggregatore'!$B:$B,'00 CE'!$E169,'00 Aggregatore'!E:E) -> 4525129.8 | G169: =SUMIF('00 Aggregatore'!$B:$B,'00 CE'!$E169,'00 Aggregatore'!F:F) -> 4855060.17
B170: BA0660 | C170: B.2.A.4.2) - da pubblico (altri soggetti pubbl. della Regione) | E170: BA0660 | F170: =SUMIF('00 Aggregatore'!$B:$B,'00 CE'!$E170,'00 Aggregatore'!E:E) -> 0 | G170: =SUMIF('00 Aggregatore'!$B:$B,'00 CE'!$E170,'00 Aggregatore'!F:F) -> 0
B171: BA0670 | C171: B.2.A.4.3) - da pubblico (Extraregione) non soggetti a compensazione | E171: BA0670 | F171: =SUMIF('00 Aggregatore'!$B:$B,'00 CE'!$E171,'00 Aggregatore'!E:E) -> 0 | G171: =SUMIF('00 Aggregatore'!$B:$B,'00 CE'!$E171,'00 Aggregatore'!F:F) -> 0
B172: BA0680 | C172: B.2.A.4.4) - da privato (intraregionale) | E172: BA0680 | F172: =SUMIF('00 Aggregatore'!$B:$B,'00 CE'!$E172,'00 Aggregatore'!E:E) -> 14443763.36 | G172: =SUMIF('00 Aggregatore'!$B:$B,'00 CE'!$E172,'00 Aggregatore'!F:F) -> 14460769.46
B173: BA0690 | C173: B.2.A.4.5) - da privato (extraregionale) | E173: BA0690 | F173: =SUMIF('00 Aggregatore'!$B:$B,'00 CE'!$E173,'00 Aggregatore'!E:E) -> 792965.98 | G173: =SUMIF('00 Aggregatore'!$B:$B,'00 CE'!$E173,'00 Aggregatore'!F:F) -> 591378.35
B174: BA0700 | C174: B.2.A.5) Acquisti servizi sanitari per assistenza integrativa | D174: S | E174: BA0700 | F174: =SUM(F175:F178) -> 1692964.4 | G174: =SUM(G175:G178) -> 1813040.82
B175: BA0710 | C175: B.2.A.5.1) - da pubblico (Aziende sanitarie pubbliche della Regione) | E175: BA0710 | F175: =SUMIF('00 Aggregatore'!$B:$B,'00 CE'!$E175,'00 Aggregatore'!E:E) -> 0 | G175: =SUMIF('00 Aggregatore'!$B:$B,'00 CE'!$E175,'00 Aggregatore'!F:F) -> 0
B176: BA0720 | C176: B.2.A.5.2) - da pubblico (altri soggetti pubbl. della Regione) | E176: BA0720 | F176: =SUMIF('00 Aggregatore'!$B:$B,'00 CE'!$E176,'00 Aggregatore'!E:E) -> 0 | G176: =SUMIF('00 Aggregatore'!$B:$B,'00 CE'!$E176,'00 Aggregatore'!F:F) -> 0
B177: BA0730 | C177: B.2.A.5.3) - da pubblico (Extraregione) | E177: BA0730 | F177: =SUMIF('00 Aggregatore'!$B:$B,'00 CE'!$E177,'00 Aggregatore'!E:E) -> 0 | G177: =SUMIF('00 Aggregatore'!$B:$B,'00 CE'!$E177,'00 Aggregatore'!F:F) -> 0
B178: BA0740 | C178: B.2.A.5.4) - da privato | E178: BA0740 | F178: =SUMIF('00 Aggregatore'!$B:$B,'00 CE'!$E178,'00 Aggregatore'!E:E) -> 1692964.4 | G178: =SUMIF('00 Aggregatore'!$B:$B,'00 CE'!$E178,'00 Aggregatore'!F:F) -> 1813040.82
B179: BA0750 | C179: B.2.A.6) Acquisti servizi sanitari per assistenza protesica | D179: S | E179: BA0750 | F179: =SUM(F180:F183) -> 6610863.35 | G179: =SUM(G180:G183) -> 6384295.54
B180: BA0760 | C180: B.2.A.6.1) - da pubblico (Aziende sanitarie pubbliche della Regione) | E180: BA0760 | F180: =SUMIF('00 Aggregatore'!$B:$B,'00 CE'!$E180,'00 Aggregatore'!E:E) -> 0 | G180: =SUMIF('00 Aggregatore'!$B:$B,'00 CE'!$E180,'00 Aggregatore'!F:F) -> 0
B181: BA0770 | C181: B.2.A.6.2) - da pubblico (altri soggetti pubbl. della Regione) | E181: BA0770 | F181: =SUMIF('00 Aggregatore'!$B:$B,'00 CE'!$E181,'00 Aggregatore'!E:E) -> 0 | G181: =SUMIF('00 Aggregatore'!$B:$B,'00 CE'!$E181,'00 Aggregatore'!F:F) -> 0
B182: BA0780 | C182: B.2.A.6.3) - da pubblico (Extraregione) | E182: BA0780 | F182: =SUMIF('00 Aggregatore'!$B:$B,'00 CE'!$E182,'00 Aggregatore'!E:E) -> 0 | G182: =SUMIF('00 Aggregatore'!$B:$B,'00 CE'!$E182,'00 Aggregatore'!F:F) -> 0
B183: BA0790 | C183: B.2.A.6.4) - da privato | E183: BA0790 | F183: =SUMIF('00 Aggregatore'!$B:$B,'00 CE'!$E183,'00 Aggregatore'!E:E) -> 6610863.35 | G183: =SUMIF('00 Aggregatore'!$B:$B,'00 CE'!$E183,'00 Aggregatore'!F:F) -> 6384295.54
B184: BA0800 | C184: B.2.A.7) Acquisti servizi sanitari per assistenza ospedaliera | D184: S | E184: BA0800 | F184: =SUM(F185:F188)+F193 -> 124912983.2 | G184: =SUM(G185:G188)+G193 -> 125006439.5
B185: BA0810 | C185: B.2.A.7.1) - da pubblico (Aziende sanitarie pubbliche della Regione) | E185: BA0810 | F185: =SUMIF('00 Aggregatore'!$B:$B,'00 CE'!$E185,'00 Aggregatore'!E:E) -> 28209224.37 | G185: =SUMIF('00 Aggregatore'!$B:$B,'00 CE'!$E185,'00 Aggregatore'!F:F) -> 28230091.68
B186: BA0820 | C186: B.2.A.7.2) - da pubblico (altri soggetti pubbl. della Regione) | E186: BA0820 | F186: =SUMIF('00 Aggregatore'!$B:$B,'00 CE'!$E186,'00 Aggregatore'!E:E) -> 0 | G186: =SUMIF('00 Aggregatore'!$B:$B,'00 CE'!$E186,'00 Aggregatore'!F:F) -> 0
B187: BA0830 | C187: B.2.A.7.3) - da pubblico (Extraregione) | E187: BA0830 | F187: =SUMIF('00 Aggregatore'!$B:$B,'00 CE'!$E187,'00 Aggregatore'!E:E) -> 23636269.29 | G187: =SUMIF('00 Aggregatore'!$B:$B,'00 CE'!$E187,'00 Aggregatore'!F:F) -> 23048879.05
B188: BA0840 | C188: B.2.A.7.4) - da privato | D188: S | E188: BA0840 | F188: =SUM(F189:F192) -> 61570511.92 | G188: =SUM(G189:G192) -> 61809764.72
B189: BA0850 | C189: B.2.A.7.4.A) Servizi sanitari per assistenza ospedaliera da IRCCS privati e Policlinici privati | E189: BA0850 | F189: =SUMIF('00 Aggregatore'!$B:$B,'00 CE'!$E189,'00 Aggregatore'!E:E) -> 0 | G189: =SUMIF('00 Aggregatore'!$B:$B,'00 CE'!$E189,'00 Aggregatore'!F:F) -> 0
B190: BA0860 | C190: B.2.A.7.4.B) Servizi sanitari per assistenza ospedaliera da Ospedali Classificati privati | E190: BA0860 | F190: =SUMIF('00 Aggregatore'!$B:$B,'00 CE'!$E190,'00 Aggregatore'!E:E) -> 0 | G190: =SUMIF('00 Aggregatore'!$B:$B,'00 CE'!$E190,'00 Aggregatore'!F:F) -> 0
B191: BA0870 | C191: B.2.A.7.4.C) Servizi sanitari per assistenza ospedaliera da Case di Cura private | E191: BA0870 | F191: =SUMIF('00 Aggregatore'!$B:$B,'00 CE'!$E191,'00 Aggregatore'!E:E) -> 61570511.92 | G191: =SUMIF('00 Aggregatore'!$B:$B,'00 CE'!$E191,'00 Aggregatore'!F:F) -> 61809764.72
B192: BA0880 | C192: B.2.A.7.4.D) Servizi sanitari per assistenza ospedaliera da altri privati | E192: BA0880 | F192: =SUMIF('00 Aggregatore'!$B:$B,'00 CE'!$E192,'00 Aggregatore'!E:E) -> 0 | G192: =SUMIF('00 Aggregatore'!$B:$B,'00 CE'!$E192,'00 Aggregatore'!F:F) -> 0
B193: BA0890 | C193: B.2.A.7.5) - da privato per cittadini non residenti - Extraregione (mobilità attiva in compensazione) | E193: BA0890 | F193: =SUMIF('00 Aggregatore'!$B:$B,'00 CE'!$E193,'00 Aggregatore'!E:E) -> 11496977.64 | G193: =SUMIF('00 Aggregatore'!$B:$B,'00 CE'!$E193,'00 Aggregatore'!F:F) -> 11917704.07
B194: BA0900 | C194: B.2.A.8) Acquisto prestazioni di psichiatria residenziale e semiresidenziale | D194: S | E194: BA0900 | F194: =SUM(F195:F199) -> 13567821.24 | G194: =SUM(G195:G199) -> 13199111.06
B195: BA0910 | C195: B.2.A.8.1) - da pubblico (Aziende sanitarie pubbliche della Regione) | E195: BA0910 | F195: =SUMIF('00 Aggregatore'!$B:$B,'00 CE'!$E195,'00 Aggregatore'!E:E) -> 1713800.54 | G195: =SUMIF('00 Aggregatore'!$B:$B,'00 CE'!$E195,'00 Aggregatore'!F:F) -> 1648164.66
B196: BA0920 | C196: B.2.A.8.2) - da pubblico (altri soggetti pubbl. della Regione) | E196: BA0920 | F196: =SUMIF('00 Aggregatore'!$B:$B,'00 CE'!$E196,'00 Aggregatore'!E:E) -> 0 | G196: =SUMIF('00 Aggregatore'!$B:$B,'00 CE'!$E196,'00 Aggregatore'!F:F) -> 0
B197: BA0930 | C197: B.2.A.8.3) - da pubblico (Extraregione) - non soggette a compensazione | E197: BA0930 | F197: =SUMIF('00 Aggregatore'!$B:$B,'00 CE'!$E197,'00 Aggregatore'!E:E) -> 32900.5 | G197: =SUMIF('00 Aggregatore'!$B:$B,'00 CE'!$E197,'00 Aggregatore'!F:F) -> 6667
B198: BA0940 | C198: B.2.A.8.4) - da privato (intraregionale) | E198: BA0940 | F198: =SUMIF('00 Aggregatore'!$B:$B,'00 CE'!$E198,'00 Aggregatore'!E:E) -> 9642524.28 | G198: =SUMIF('00 Aggregatore'!$B:$B,'00 CE'!$E198,'00 Aggregatore'!F:F) -> 9671880.59
B199: BA0950 | C199: B.2.A.8.5) - da privato (extraregionale) | E199: BA0950 | F199: =SUMIF('00 Aggregatore'!$B:$B,'00 CE'!$E199,'00 Aggregatore'!E:E) -> 2178595.92 | G199: =SUMIF('00 Aggregatore'!$B:$B,'00 CE'!$E199,'00 Aggregatore'!F:F) -> 1872398.81
B200: BA0960 | C200: B.2.A.9) Acquisto prestazioni di distribuzione farmaci File F | D200: S | E200: BA0960 | F200: =SUM(F201:F206) -> 6195810.86 | G200: =SUM(G201:G206) -> 5976832.03
B201: BA0970 | C201: B.2.A.9.1) - da pubblico (Aziende sanitarie pubbliche della Regione) - Mobilità intraregionale | E201: BA0970 | F201: =SUMIF('00 Aggregatore'!$B:$B,'00 CE'!$E201,'00 Aggregatore'!E:E) -> 5023688.81 | G201: =SUMIF('00 Aggregatore'!$B:$B,'00 CE'!$E201,'00 Aggregatore'!F:F) -> 4391409.7
... 287 more rows

Sheet Tab 50-51
A1: 17. Contributi in conto esercizio
B3: Tab. 50 – Dettagli contributi in conto esercizio
A4: CODICE MOD. CE | B4: CONTRIBUTI IN C/ESERCIZIO | C4: Quota Capitaria | D4: Funzioni | E4: Altro | F4: Note
M5: VALORE CE | N5: Diff | O5: Ctrl
A6: AA0030 | B6: Contributi da Regione o Prov. Aut. per quota F.S. regionale indistinto | C6: 535837429.2 | D6: 11928457.37 | E6: 0 | N6: =(C6+D6+E6)-M6 ->  | O6: =IF(N6=0,"OK"," CTRL") -> 
A7: AA0080 | B7: Contributi da Regione o Prov. Aut. (extra fondo) - Risorse aggiuntive da bilancio regionale a titolo di copertura LEA | C7: 0 | D7: 0 | E7: 0 | N7: =(C7+D7+E7)-M7 ->  | O7: =IF(N7=0,"OK"," CTRL") -> 
A8: AA0090 | B8: Contributi da Regione o Prov. Aut. (extra fondo) - Risorse aggiuntive da bilancio regionale a titolo di copertura extra LEA | C8: 0 | D8: 0 | E8: 0
B10: Tab. 51 – Informativa contributi in conto esercizio
A11: CODICE MOD. CE | B11: DETTAGLIO CONTRIBUTI IN C/ESERCIZIO | C11: Atto | F11: Data | G11: Oggetto | I11: Importo assegnato | J11: Importo utilizzato | K11: Codice conto
A14: AA0020 | B14: DA REGIONE O P.A. PER QUOTA F.S. REGIONALE: | I14: =I15+I20 -> 562581352.2
A15: AA0030 | B15: Quota F.S. regionale - indistinto | C15: Delibera di Giunta Regionale in corso di adozione - Nota prot. n.RA/0108087/DPF012 del 13 aprile 2018 "Linee guida alla redazione del bilancio d'esercizio al 31/12/2017" | F15: 2018-04-13 | G15: Riparto delle disponibilità finanaziarie per il SSR anno 2017 a favore delle ASL e della GSA presso la Regione | I15: =535837429.24+11928457.37 -> 547765886.6 | K15: 03.01.01.01.01
K18: 03.01.01.01.02
A20: AA0040 | B20: Quota F.S. regionale - vincolato: | I20: =SUM(I21:I24) -> 14815465.59
B21: Rimborso farmaci innovativi - Obiettivi PSN | C21: Nota prot. n. RA/0108087/DPF012 | F21: 2018-04-13 | G21: Decreto 9 Ottobre 2015, art. 2, comma 3 (G.U. n. 264del 12/11/2015) Rimborso alle Regioni per l'acquisto di farmaci innovativi - Obiettivi PSN | I21: 3846894 | K21: 03.01.01.02.12
B22: Rimborso farmaci innovativi oncologici - Obiettivi PSN | C22: Nota prot. n. RA/0108087/DPF012 | F22: 2018-04-13 | G22: Decreto 9 Ottobre 2015, art. 2, comma 3 (G.U. n. 264del 12/11/2015) Rimborso alle Regioni per l'acquisto di farmaci innovativi oncologici - Obiettivi PSN | I22: 3950444.04
B23: Obiettivi di Piano 2017 art. 11 cc. 34 e 34bis L. 662/96 | C23: DGR n. 92 | F23: 2018-02-20 | G23: Obiettivi di Piano 2017 | I23: 5438713.4
B24: Obiettivi di Piano 2017 art. 11 cc. 34 e 34bis L. 662/96 | C24: DPF010/27 | F24: 2017-12-21 | G24: Obiettivi di Piano 2017 Prevenzione | I24: 1579414.15
A26: AA0050 | B26: EXTRA FONDO: | I26: =I27+I39+I42 -> 279788.35
A27: AA0070 | B27: Contributi da Regione o Prov. Aut. (extra fondo) vincolati: | I27: =SUM(I28:I32) -> 123104.1
B28: Finanziamento 2017 Consultori familiari | C28: DPF015/33 | F28: 2017-07-21 | G28: Consultori familiari 2017 - DGR n. 384 del 14/07/2017 | I28: 84952.46 | J28: 71881.7 | K28: 03.01.02.01.01
B29: Finanziamento 2017 Consultori familiari | C29: DPF015/33 | F29: 2017-07-21 | G29: Formazione personale consultori familiari 2017 - DGR n. 384 del 14/07/2017 | I29: 7500 | J29: 920
B30: Formazione operatori servizi veterinari | C30: DPF011/162 | F30: 2017-10-20 | G30: Formazione e aggiornamento operatori Dipartimento di Prevenzione Servizi Veterinari | I30: 29221.28 | J30: 0
B31: Banca dati e anagrafe del bestiame | C31: DPF011/172 | F31: 2017-11-14 | G31: Banca dati e anagrafe del bestiame | I31: 1430.36 | J31: 0
A33: AA0080 | B33: Contributi da Regione o Prov. Aut. (extra fondo) - Risorse aggiuntive da bilancio regionale a titolo di copertura LEA | I33: 0
A34: AA0090 | B34: Contributi da Regione o Prov. Aut. (extra fondo) - Risorse aggiuntive da bilancio regionale a titolo di copertura extra LEA | I34: 0
A35: AA0100 | B35: Contributi da Regione o Prov. Aut. (extra fondo) - Altro | I35: 0
A36: AA0120 | B36: Contributi da Aziende sanitarie pubbliche della Regione o Prov. Aut. (extra fondo) vincolati: | I36: 0
B37: Progetto 1 | I37: 0
B38: Progetto …. | I38: 0
A39: AA0130 | B39: Contributi da Aziende sanitarie pubbliche (extra fondo) altro: | I39: =SUM(I40) -> 0
B40: Progetto 1 | I40: 0
B41: Progetto …. | I41: 0
A42: AA0150 | B42: Contributi da altri soggetti pubblici (extra fondo) vincolati: | I42: =SUM(I43:I46) -> 156684.25
B43: Contributi modifica strumenti di guida e autoveicoli privati - anno 2016 | C43: DPF006/05 | F43: 2017-05-15 | G43: Modifica strumenti di guida e autoveicoli privati - anno 2016 | I43: 10694.8 | J43: 10694.8 | K43: 03.01.02.03.06
B44: Contributi in favore dei portatori di grave disabilità psichica e motoria - LR 29/2006 anno 2016 | C44: DPF013/111 | F44: 2017-11-14 | G44: Contributi in favore dei portatori di grave disabilità psichica e motoria - LR 29/2006 anno 2016 | I44: 9669.84 | J44: 9669.84
B45: Accertamenti medico-legali personale scolastico assente per malattia - 2015 | C45: DPF015/72 | F45: 2017-12-06 | G45: Accertamenti medico-legali personale scolastico assente per malattia - 2015 | I45: 117287.91 | J45: 117287.91
B46: Accertamenti medico-legali personale scolastico assente per malattia - 2017 | C46: DPF015/04 | F46: 2018-01-19 | G46: Accertamenti medico-legali personale scolastico assente per malattia - 2017 | I46: 19031.7 | J46: 19031.7
A47: AA0160 | B47: Contributi da altri soggetti pubblici (extra fondo) L.210/92: | I47: 0
A48: AA0170 | B48: Contributi da altri soggetti pubblici (extra fondo) altro: | I48: 0
B49: …. | I49: 0
B50: …. | I50: 0
I51: 0
B52: PER RICERCA: | I52: 0
A53: AA0190 | B53: Contributi da Ministero della Salute per ricerca corrente: | I53: 0
B54: …. | I54: 0
B55: …. | I55: 0
A56: AA0200 | B56: Contributi da Ministero della Salute per ricerca finalizzata: | I56: 0
B57: Progetto …. | I57: 0
B58: Progetto …. | I58: 0
A59: AA0210 | B59: Contributi da Regione ed altri soggetti pubblici per ricerca: | I59: 0
B60: …. | I60: 0
B61: …. | I61: 0
A62: AA0220 | B62: Contributi da privati per ricerca: | I62: 0
B63: …. | I63: 0
B64: …. | I64: 0
A66: AA0230 | B66: CONTRIBUTI DA PRIVATI: | I66: 0
B67: …. | I67: 0
B68: …. | I68: 0
A70: TOTALE CONTRIBUTI IN C/ESERCIZIO | I70: =I14+I26 -> 562861140.6

Sheet Dettaglio voce AA0280
A2: Dettaglio somme vincolate anni precedenti rilevate nella voce AA0280
A6: Descrizione somma vincolata | B6: Anno di competenza | C6: Estremi Provvedimento | D6: Importo (in €)
A7: Prevenzione e assistenza detenuti tossicodipendenti - Acconto 2015 - D. Lgs. n. 230/1999 | B7: 2015 | C7: DPF015/39 del 31/08/2017 | D7: 37833.6
A8: Prevenzione e assistenza detenuti tossicodipendenti - Saldo 2015 - D. Lgs. n. 230/1999 | B8: 2015 | C8: DPF015/50 del 05/10/2017 | D8: 9458.4
A9: Prevenzione e assistenza detenuti tossicodipendenti - Acconto 2016 - D. Lgs. n. 230/1999 | B9: 2016 | C9: DPF015/46 del 21/09/2017 | D9: 37833.6
A10: Prevenzione e assistenza detenuti tossicodipendenti - Saldo 2016 - D. Lgs. n. 230/1999 | B10: 2016 | C10: DPF015/52 del 18/10/2017 | D10: 9458.4
A11: Sanità penitenziaria Acconto 2016 | B11: 2016 | C11: DPF015/36 del 02/08/2017 | D11: 609546.18
A12: Quota vincolata extracomunitari irregolari D. Lgs. n. 286/1998 - FSR 2014 | B12: 2014 | C12: DPF015/49 del 23/10/2017 | D12: 97702.88
A13: Quota vincolata extracomunitari irregolari D. Lgs. n. 286/1998 - FSR 2015 | B13: 2015 | C13: DPF015/51 del 18/10/2017 | D13: 93020.01
A14: Quota vincolata extracomunitari irregolari D. Lgs. n. 286/1998 - FSR 2016 | B14: 2016 | C14: DPF015/65 del 13/11/2017 | D14: 90045.97
A15: Obiettivi di piano 2010 | B15: 2010 | C15: DGR N. 655 del 31/08/2010 | D15: 57512.19 | E15: a
A16: Obiettivi di piano 2011 | B16: 2011 | C16: DGR n. 412 del 15/06/2011 | D16: 195749.09 | E16: a
A17: Obiettivi di Piano 2012 | B17: 2012 | C17: DGR n. 8 del 14/01/2013 | D17: 1008130 | E17: a
C18: DGR n. 8 del 14/01/2013 - Piano Regionale Prevenzione 2010-2013 DG20/42 del 06/09/2013 - Nota prot. n. 2324/DP del 01/02/2018 | D18: 1833121.5 | E18: a
A19: Obiettivi di Piano 2013 | B19: 2013 | C19: DGR n. 269 del 14/04/2014 | D19: 726388.79 | E19: a
A20: Obiettivi di Piano 2014 | B20: 2014 | C20: DGR n. 812 del 29/09/2015 | D20: 936395 | E20: a
A21: Obiettivi di Piano 2015 | B21: 2015 | C21: DGR n. 178 del 22/03/2016 | D21: 61076.75 | E21: a
C22: Imputazione quota utilizzo 2017 Progetti Obiettivo per acquisto cespiti | D22: -122252.5
A23: TOTALE | D23: =SUM(D7:D22) -> 5681019.86
A27: Somma a Totale utilizzi contributi da Regione per quota FS vincolato | D27: =SUM(D15:D21) -> 4818373.32 | E27: in accordo con Tabella 36

Sheet Tab 52
B1: Tab. 52 – Dettaglio rettifica contributi in conto esercizio per destinazione ad investimenti
A2: CODICE MOD. CE | B2: DETTAGLIO RETTIFICA CONTRIBUTI C/ESERCIZIO PER DESTINAZIONE AD INVESTIMENTI | C2: Contributo assegnato | D2: Quota destinata ad investimenti | E2: Incidenza %
A3: AA0020 | B3: Contributi in c/esercizio da Regione o P.A. per quota F.S. regionale | C3: 562581352.2 | D3: 6506318.89 | E3: =D3/C3 -> 0.01156511652
A4: AA0060 | B4: Contributi in c/esercizio da Regione o P.A. extra fondo | C4: 123104.1 | D4: 0 | E4: =D4/C4 -> 0
A5: AA0110 | B5: Contributi in c/esercizio da aziende sanitarie pubbliche (extra fondo) | C5: 0 | D5: 0
A6: AA0180 | B6: Contributi in c/esercizio per ricerca | C6: 0 | D6: 0
A7: AA0230 | B7: Contributi in c/esercizio da privati | C7: 0 | D7: 0
B8: Totale | C8: =SUM(C3:C7) -> 562704456.3 | D8: =SUM(D3:D7) -> 6506318.89 | E8: =D8/C8 -> 0.01156258639
A10: L'importo 2017 della "Rettifica contributi in c/esercizio per destinazione ad investimenti - da Regione o Provincia Autonoma per quota F.S. Regionale vicolato" è così determinato:
B11: Descrizione | C11: A | D11: B | E11: A*B
C12: % Rettifica | D12: Investimenti | E12: Importo
B13: Rettifica contributi FSR per acquisto beni anno 2017 | C13: 1 | D13: 6506318.89 | E13: =C13*D13 -> 6506318.89
B14: TOTALE | D14: =SUM(D13:D13) -> 6506318.89 | E14: =SUM(E13:E13) -> 6506318.89
A19: Altre informazioni relative a contributi in conto esercizio
A20: Informazione | C20: Caso presente in azienda? | E20: Se sì, illustrare
A21: CT01. Sono state rilevate significative variazioni rispetto all'esercizio precedente? | C21: SI | E21: L'ammontare dei contribuiti in c/esercizio (voce A1 del Conto Economico ex D.Lgs. 118/2011) subisce, rispetto al 2016, un incremento di circa €/mln 10.
E22: Tale aumento è dovuto essenzialmente alle maggiori somme assegnate nell'esercizio 2017 come Obiettivi di PSN per rimborso di farmaci innovativi (€/000 3.847) e di rimborso di farmaci innovativi oncologici (€/000 3.950), rispetto a quelle assegnate nel 2016 (€/000 2.062). Nel 2017 risultano maggiori rispetto al 2016, per circa €/000 3.000, anche le assegnazioni per Obiettivi di Piano 2017 (DGR n. 92/2018) e per il Piano della prevenzione.

Sheet Tab 52bis
A4: Ricavi e sopravvenienze per Payback consuntivo 2017
A6: PAY-BACK 2017 VOCE CE AA0920 "Ulteriore Pay-back" VOCE PDC 03.04.05.01.03
A7: DETERMINAZIONI | B7: ASL 203
A8: Determina AIFA n. 1525/2015 Procedura di payback (art. 9-ter, commi nn.10, lett. B) e 11 del D.L. n. 78/2015, convertito con modificazioni dalla L. n. 125/2015, anni 2015-2016-2017) (DPF003/154 del 07.12.2017) | B8: 470558.25
A9: Determinazione AIFA del 29 settembre 2006 concernente “Manovra per il governo della spesa farmaceutica convenzionata e non convenzionata: Trasferimento da parte delle Aziende farmaceutiche delle somme dovute a titolo diPAY BACK- SPECIALITA' MEDICINALI VARIE' “ (DPF003/155 del 07.12.2017) | B9: 67037.82
A10: Determinazione AIFA del 29 settembre 2006 concernente “Manovra per il governo della spesa farmaceutica convenzionata e non convenzionata: Trasferimento da parte delle Aziende farmaceutiche delle somme dovute a titolo diPAY BACK- SPECIALITA' MEDICINALI VARIE' “ (DPF003/183 del 29.12.2017) liquidata e pagata con DPF003/21 del 19/02/2018 | B10: 315041.23
A11: Determinazione AIFA del 29 settembre 2006 concernente “Manovra per il governo della spesa farmaceutica convenzionata e non convenzionata: Trasferimento da parte delle Aziende farmaceutiche delle somme dovute a titolo diPAY BACK- SPECIALITA' MEDICINALI VARIE' “ (DPF003/159 del 07.12.2017) | B11: 7523.1
A12: Determinazione AIFA del 29 settembre 2006 concernente “Manovra per il governo della spesa farmaceutica convenzionata e non convenzionata: Trasferimento da parte delle Aziende farmaceutiche delle somme dovute a titolo diPAY BACK- SPECIALITA' MEDICINALI VARIE' “ (DPF003/111 del 04.10.2017) | B12: 1109521.06
A13: Sconto 1,83% I° semestre 2017impegnato con DPF003/185 del 29/12/2017 (Rettificata con nota prot. RA/0000/18 del 29/01/2018) e liquidato e pagato con DPF003/13 del 08/02/2018. | B13: 620591.32
A14: Pay Back 5%impegnato con DPF003/184 del 29/12/2017 (Rettificata con nota prot. RA/0024712/18 del 29/01/2018) e liquidato e pagato con DPF003/12 del 08/02/2018. | B14: 836659.62
A15: Totale voce CE AA0920 | B15: =SUM(B8:B14) -> 3426932.4
A18: SOPRAVVENIENZE ATTIVE 2017 SU PAY-BACK 2016 VOCE CE EA0140 "Altre sopravvenienze attive v/terzi" VOCE PDC 06.01.02.02.10
A19: DETERMINAZIONI | B19: ASL 203
A20: I semestre 2016 PB 1,83% (DPF003/158del 07.12.2017) | B20: 3902.66
A21: II semestre 2016 PB 1,83% (DPF003/157del 07.12.2017) | B21: 523381.49
A22: Anno 2016 PB 5% (territoriale) (DPF003/110 del 04.10.2017) | B22: 536783.47
A23: Anno 2016 PB 5% ospedaliera) (DPF003/110 del 04.10.2017) | B23: 532712.25
A24: Totale Sopravvenienze Attive 2017 su pay back 2016 | B24: =SUM(B20:B23) -> 1596779.87
A27: I Ricavi per Pay-back 2017 sono stati contabilizzati nella voce CE AA0920 "Ulteriore Pay-Back"
A28: secondo gli importi comunicati dalla Regione nelle Linee Guida alla redazione del Bilancio
A29: di Esercizio 2017 (Nota prot. n. RA/0108087/DPF012 del 13/04/2018 - Allegato 4).
A31: Le Sopravvenienze attive 2017 su Pay-back 2016 sono state contabilizzate nella voce CE EA0140
A32: "Altre Sopravvenienze attive v/terzi" secondo gli importi comunicati dalla Regione nelle Linee
A33: Guida alla redazione del Bilancio di Esercizio 2017 (Nota prot. n. RA/0108087/DPF012
A34: del 13/04/2018 - Allegato 4).
A36: Non sono stati iscritti nel 2017 ulteriori importi rispetto a quelli comunicati dalla Regione nelle
A37: Linee Guida alla redazione del Bilancio di Esercizio 2017.

Sheet Tab 53
A1: 18. Proventi e ricavi diversi
B3: Tab. 53 – Dettaglio ricavi per prestazioni sanitarie in mobilità
A4: CODICE MOD. CE | B4: DETTAGLIO RICAVI PER PRESTAZIONI SANITARIE IN MOBILITA' | C4: PUBBLICO | F4: PRIVATO | I4: TOTALE
C5: Avezzano-Sulmona-L'Aquila | D5: Lanciano-Vasto-Chieti | E5: Teramo | F5: Avezzano-Sulmona-L'Aquila | G5: Lanciano-Vasto-Chieti | H5: Teramo | K5: VALORE CE | L5: Diff | M5: Ctrl
B6: RICAVI DA MOBILITA' SANITARIA INFRAREGIONALE (A) | C6: =SUM(C7:C15) -> 10739191.4 | D6: 28931356.86 | E6: 11996328.53 | F6: 4716544.56 | G6: 29233452.47 | H6: 11064185.68 | I6: =I7+I8+I9+I10+I11+I12+I13+I14+I15 -> 96681059.59 | K6: =SUM(K7:K18) -> 96681059.59
A7: AA0350 | B7: Prestazioni di ricovero | C7: 6684047.32 | D7: 17388920.82 | E7: 6512778.21 | F7: 2351313.04 | G7: 21249640.68 | H7: 7923237.24 | I7: =SUMIF('00 CE'!B:B,'Tab 53'!A7,'00 CE'!G:G) -> 62109937.31 | K7: =SUMIF('00 CE'!B:B,'Tab 53'!A7,'00 CE'!G:G) -> 62109937.31 | L7: =I7-K7 -> 0 | M7: =IF(L7=0,"OK"," CTRL") -> OK
A8: AA0360 | B8: Prestazioni di specialistica ambulatoriale | C8: 1298850 | D8: 2977293 | E8: 1475181 | F8: 86247.35 | G8: 1324740.27 | H8: 1026202.55 | I8: =SUMIF('00 CE'!B:B,'Tab 53'!A8,'00 CE'!G:G) -> 8188514.26 | K8: =SUMIF('00 CE'!B:B,'Tab 53'!A8,'00 CE'!G:G) -> 8188514.26 | L8: =I8-K8 -> 0 | M8: =IF(L8=0,"OK"," CTRL") -> OK
A9: AA0370 | B9: Prestazioni di psichiatria residenziale e semiresidenziale | C9: 0 | D9: 0 | E9: 0 | F9: 669606.37 | G9: 3043960.6 | H9: 842930.34 | I9: =SUMIF('00 CE'!B:B,'Tab 53'!A9,'00 CE'!G:G) -> 4556497.31 | K9: =SUMIF('00 CE'!B:B,'Tab 53'!A9,'00 CE'!G:G) -> 4556497.31 | L9: 0 | M9: OK
A10: AA0380 | B10: Prestazioni di File F | C10: 2405948.3 | D10: 7603710.06 | E10: 3556031.66 | F10: 0 | G10: 0 | H10: 0 | I10: =SUMIF('00 CE'!B:B,'Tab 53'!A10,'00 CE'!G:G) -> 13565690.02 | K10: =SUMIF('00 CE'!B:B,'Tab 53'!A10,'00 CE'!G:G) -> 13565690.02 | L10: 0 | M10: OK
A11: AA0390 | B11: Prestazioni servizi MMG, PLS, Contin. assistenziale | C11: 15422.05 | D11: 28207.27 | E11: 13826.33 | F11: 0 | G11: 0 | H11: 0 | I11: =SUMIF('00 CE'!B:B,'Tab 53'!A11,'00 CE'!G:G) -> 57455.65 | K11: =SUMIF('00 CE'!B:B,'Tab 53'!A11,'00 CE'!G:G) -> 57455.65 | L11: 0 | M11: OK
A12: AA0400 | B12: Prestazioni servizi farmaceutica convenzionata | C12: 305702.33 | D12: 825360.65 | E12: 399944.28 | F12: 0 | G12: 0 | H12: 0 | I12: =SUMIF('00 CE'!B:B,'Tab 53'!A12,'00 CE'!G:G) -> 1531007.26 | K12: =SUMIF('00 CE'!B:B,'Tab 53'!A12,'00 CE'!G:G) -> 1531007.26 | L12: 0 | M12: OK
A13: AA0410 | B13: Prestazioni termali | C13: 0 | D13: 0 | E13: 0 | F13: 278371.9 | G13: 659800.01 | H13: 165927.98 | I13: =SUMIF('00 CE'!B:B,'Tab 53'!A13,'00 CE'!G:G) -> 1104099.89 | K13: =SUMIF('00 CE'!B:B,'Tab 53'!A13,'00 CE'!G:G) -> 1104099.89 | L13: 0 | M13: OK
A14: AA0420 | B14: Prestazioni trasporto ambulanze ed elisoccorso | C14: 29221.4 | D14: 107865.06 | E14: 38567.05 | F14: 0 | G14: 0 | H14: 0 | I14: =SUMIF('00 CE'!B:B,'Tab 53'!A14,'00 CE'!G:G) -> 175653.51 | K14: =SUMIF('00 CE'!B:B,'Tab 53'!A14,'00 CE'!G:G) -> 175653.51 | L14: 0 | M14: OK
A15: AA0430 | B15: Altre prestazioni sanitarie e socio-sanitarie | C15: 0 | D15: 0 | E15: 0 | F15: 1331005.9 | G15: 2955310.91 | H15: 1105887.57 | I15: =SUMIF('00 CE'!B:B,'Tab 53'!A15,'00 CE'!G:G) -> 5392204.38 | K15: =SUMIF('00 CE'!B:B,'Tab 53'!A15,'00 CE'!G:G) -> 5392204.38 | L15: 0 | M15: OK
B17: RICAVI DA MOBILITA' SANITARIA EXTRAREGIONALE (B) | C17: =SUM(C18:C28) -> 0 | D17: 0 | E17: 0 | F17: 0 | G17: 0 | H17: 0 | I17: =I18+I19+I20+I21+I22+I23+I24+I25+I26+I27+I28 -> 5492308.63
A18: AA0460 | B18: Prestazioni di ricovero | I18: =SUMIF('00 CE'!B:B,'Tab 53'!A18,'00 CE'!G:G) -> 1554681.22
A19: AA0470 | B19: Prestazioni di specialistica ambulatoriale | I19: =SUMIF('00 CE'!B:B,'Tab 53'!A19,'00 CE'!G:G) -> 851774.85
A20: AA0480 | B20: Prestazioni di psichiatria residenziale e semiresidenziale | I20: =SUMIF('00 CE'!B:B,'Tab 53'!A20,'00 CE'!G:G) -> 0 | M20: 2024793
A21: AA0490 | B21: Prestazioni di File F | I21: =SUMIF('00 CE'!B:B,'Tab 53'!A21,'00 CE'!G:G) -> 1604980.14 | M21: 111766.26
A22: AA0500 | B22: Prestazioni servizi MMG, PLS, Contin. assistenziale | I22: =SUMIF('00 CE'!B:B,'Tab 53'!A22,'00 CE'!G:G) -> 119388.84
A23: AA0510 | B23: Prestazioni servizi farmaceutica convenzionata | I23: =SUMIF('00 CE'!B:B,'Tab 53'!A23,'00 CE'!G:G) -> 502038.11 | M23: =SUM(M20:M22) -> 2136559.26
A24: AA0520 | B24: Prestazioni termali | I24: =SUMIF('00 CE'!B:B,'Tab 53'!A24,'00 CE'!G:G) -> 172275.4
A25: AA0530 | B25: Prestazioni trasporto ambulanze ed elisoccorso | I25: =SUMIF('00 CE'!B:B,'Tab 53'!A25,'00 CE'!G:G) -> 512404.02
A26: AA0540 | B26: Altre prestazioni sanitarie e socio-sanitarie | I26: =SUMIF('00 CE'!B:B,'Tab 53'!A26,'00 CE'!G:G) -> 0
A27: AA0550 | B27: Ricavi per cessione di emocomponenti e cellule staminali | I27: =SUMIF('00 CE'!B:B,'Tab 53'!A27,'00 CE'!G:G) -> 174766.05
A28: AA0560 | B28: Ricavi per differenziale tariffe TUC | I28: =SUMIF('00 CE'!B:B,'Tab 53'!A28,'00 CE'!G:G) -> 0
B30: TOTALE RICAVI DA MOBILITA' (A+B) | C30: =C6+C17 -> 10739191.4 | D30: =D6+D17 -> 28931356.86 | E30: 11996328.53 | F30: 4716544.56 | G30: 29233452.47 | H30: 11064185.68 | I30: =I6+I17 -> 102173368.2
B32: RICAVI PER PRESTAZIONI OGGETTO DI FATTURAZIONE DIRETTA INFRAREGIONALE (C) | C32: 61964.66 | D32: 152927.53 | E32: 65376.27 | F32: 0 | G32: 0 | H32: 0 | I32: =C32+D32+E32+F32+G32+H32 -> 280268.46
B34: RICAVI PER PREST. OGGETTO DI FATTUR. DIRETTA EXTRAREGIONALE (D) | I34: 1696.8
B36: TOTALE RICAVI PER PREST. OGGETTO DI FATTURAZ. DIRETTA (C+D) | C36: =C32+C34 -> 61964.66 | D36: 152927.53 | E36: 65376.27 | F36: 0 | G36: 0 | H36: 0 | I36: =I32+I34 -> 281965.26
B38: TOTALE RICAVI AZIENDE REGIONE (A+C) | C38: =C6+C32 -> 10801156.06 | D38: =D6+D32 -> 29084284.39 | E38: 12061704.8 | F38: 4716544.56 | G38: 29233452.47 | H38: 11064185.68 | I38: =I6+I32 -> 96961328.05
B39: TOTALE RICAVI AZIENDE EXTRA REGIONE (B+D) | I39: =I17+I34 -> 5494005.43
B40: TOTALE RICAVI AZIENDE SANITARIE PUBBLICHE (A+B+C+D) | C40: =C30+C32+C34 -> 10801156.06 | D40: 29084284.39 | E40: 12061704.8 | F40: 4716544.56 | G40: 29233452.47 | H40: 11064185.68 | I40: =I38+I39 -> 102455333.5
A43: Nella riga "Ricavi per prestazioni oggetto di fatturazione diretta infraregionale" sono stati inseriti i ricavi conseguiti dall'Azienda nei confronti delle AASSLL della Regione per prestazioni fuori mobilità, oggetto di fatturazione diretta. Tali valori sono stati riconciliati con le AASSLL della Regione alla data del 31/12/2017.
A47: TABELLA DI RACCORDO - DETTAGLIO PER PRESTAZIONI SANITARIE IN MOBILITA'
A48: Voce CE | B48: Descrizione | C48: Importo | D48: Voce CE D.Lgs. 118/2011
A49: AA0340 | B49: Ricavi da mobilità sanitaria infraregionale | C49: 96681059.59 | D49: A4 a) | E49: a
A50: AA0450 | B50: Ricavi da mobilità sanitaria extraregionale | C50: 5492308.63 | E50: a
A51: AA0450 | B51: Altre prestazioni sanitarie e sociosanitarie a rilevanza sanitaria non soggette a compensazione extraregione | C51: 1696.8
A52: AA0610 | B52: Ricavi per prestazioni sanitarie e sociosanitarie a rilevanza sanitaria erogate da privati v/residenti extraregione in compensazione | C52: 12136123.77
A53: AA0670 | B53: Ricavi per prestazioni sanitarie erogate in regime intramoenia | C53: 3919432.33 | D53: A4 b)
A54: AA0440 | B54: Ricavi per prestazioni sanitarie e sociosanitarie a rilevanza sanitaria erogate ad altri soggetti pubblici | C54: 45364.98 | D54: A4 c)
A55: AA0660 | B55: Ricavi per prestazioni sanitarie e sociosanitarie a rilevanza sanitaria erogate a privati | C55: 3569406.31
A56: Totale ricavi per prestazioni sanitarie e sociosanitarie a rilevanza sanitaria | C56: =SUM(C49:C55) -> 121845392.4 | D56: A 4
A58: Somma a | B58: Totale ricavi da mobilità sanitaria | C58: =C49+C50 -> 102173368.2 | D58: in accordo con Tabella 53
A61: I ricavi di mobilità sono diminuiti, rispetto al precedente esercizio, di circa -2.500 €/000. Detta riduzione è stata determinata dalla diminuzione dei ricavi per mobilità sanitaria extraregionale (per €/000 -4.896), parzialmente compensata dall'aumento dei ricavi da mobilità sanitaria infraregionale (per €/000 2.435). In particolare, la riduzione dei ricavi per mobilità sanitaria extraregionale è principalmente ascrivibile alla contrazione dei ricavi per prestazioni di ricovero extra Regione (per €/000 -4.772). E' opportuno precisare che la mobilità extra regionale viene contabilizzata con due anni di riterdo rispetto all'esercizio di competenza e, come stabilisce il D. Lgs. n. 118/2011, la rilevazione contabile vine e effettuata al netto (+ o -) degli eventuali conguagli. La mobilità sanitaria infraregionale è aumentata nel corso del 2017 principalmente per effetto dell'incremento della mobilità sanitaria da pubblico, in particolare nei confronti della ASL di Avezzano-Sulmona L'Aquila e della ASL di Teramo, con riferimento ai ricavi per prestazioni di ricovero (€/000 1.375) e dei ricavi per prestazioni di file F (per circa €/000 445). Anche la mobilità infraregionale da privato è aumentata (per €/000 628), in particolare a seguito dell'aumento dei ricavi per prestazioni di ricovero (€/000 459).

Sheet Tab 54
B1: Tab. 54 – Dettaglio ricavi e costi per prestazioni sanitarie erogate in regime di intramoenia
A2: CODICE MOD. CE | B2: PRESTAZIONI SANITARIE EROGATE IN REGIME DI INTRAMOENIA | C2: ="Valore CE " &'00 Aggregatore'!$F$2 -> Valore CE 2017 | D2: ="Valore CE " &'00 Aggregatore'!$F$2 -1 -> Valore CE 2016 | E2: Variazioni importo | F2: %
A4: AA0680 | B4: Ricavi per prestazioni sanitarie intramoenia - Area ospedaliera | C4: =SUMIF('00 CE'!$B:$B,'Tab 54'!$A4,'00 CE'!G:G) -> 50045.82 | D4: =SUMIF('00 CE'!$B:$B,'Tab 54'!$A4,'00 CE'!F:F) -> 89330.21 | E4: =C4-D4 -> -39284.39 | F4: =IF(AND(C4=0,D4=0),0,IF(C4=0,"",IF(D4=0,"",E4/D4))) -> -0.4397660097
A5: AA0690 | B5: Ricavi per prestazioni sanitarie intramoenia - Area specialistica | C5: =SUMIF('00 CE'!$B:$B,'Tab 54'!$A5,'00 CE'!G:G) -> 3252006 | D5: =SUMIF('00 CE'!$B:$B,'Tab 54'!$A5,'00 CE'!F:F) -> 3216315.61 | E5: =C5-D5 -> 35690.39 | F5: =IF(AND(C5=0,D5=0),0,IF(C5=0,"",IF(D5=0,"",E5/D5))) -> 0.01109666909
A6: AA0700 | B6: Ricavi per prestazioni sanitarie intramoenia - Area sanità pubblica | C6: =SUMIF('00 CE'!$B:$B,'Tab 54'!$A6,'00 CE'!G:G) -> 22414.54 | D6: =SUMIF('00 CE'!$B:$B,'Tab 54'!$A6,'00 CE'!F:F) -> 19348.81 | E6: =C6-D6 -> 3065.73 | F6: 0.1584454031
A7: AA0710 | B7: Ricavi per prestazioni sanitarie intramoenia - Consulenze (ex art. 55 c.1 lett. c), d) ed ex art. 57-58) | C7: =SUMIF('00 CE'!$B:$B,'Tab 54'!$A7,'00 CE'!G:G) -> 478823.7 | D7: =SUMIF('00 CE'!$B:$B,'Tab 54'!$A7,'00 CE'!F:F) -> 520863.67 | E7: =C7-D7 -> -42039.97 | F7: -0.08071204121
A8: AA0720 | B8: Ricavi per prestazioni sanitarie intramoenia - Consulenze (ex art. 55 c.1 lett. c), d) ed ex art. 57-58) (Aziende sanitarie pubbliche della Regione) | C8: =SUMIF('00 CE'!$B:$B,'Tab 54'!$A8,'00 CE'!G:G) -> 0 | D8: =SUMIF('00 CE'!$B:$B,'Tab 54'!$A8,'00 CE'!F:F) -> 0 | E8: =C8-D8 -> 0 | F8: 0
A9: AA0730 | B9: Ricavi per prestazioni sanitarie intramoenia - Altro | C9: =SUMIF('00 CE'!$B:$B,'Tab 54'!$A9,'00 CE'!G:G) -> 97870.17 | D9: =SUMIF('00 CE'!$B:$B,'Tab 54'!$A9,'00 CE'!F:F) -> 109709.92 | E9: =C9-D9 -> -11839.75 | F9: -0.1079186823
A10: AA0740 | B10: Ricavi per prestazioni sanitarie intramoenia - Altro (Aziende sanitarie pubbliche della Regione) | C10: =SUMIF('00 CE'!$B:$B,'Tab 54'!$A10,'00 CE'!G:G) -> 18272.1 | D10: =SUMIF('00 CE'!$B:$B,'Tab 54'!$A10,'00 CE'!F:F) -> 0 | E10: =C10-D10 -> 18272.1
B11: TOTALE RICAVI INTRAMOENIA | C11: =SUM(C4:C10) -> 3919432.33 | D11: =SUM(D4:D10) -> 3955568.22 | E11: -36135.89 | F11: -0.00913544856
A12: BA1210 | B12: Compartecipazione al personale per att. libero professionale intramoenia - Area ospedaliera | C12: =SUMIF('00 CE'!$B:$B,'Tab 54'!$A12,'00 CE'!G:G) -> 36801.34 | D12: =SUMIF('00 CE'!$B:$B,'Tab 54'!$A12,'00 CE'!F:F) -> 65875.14 | E12: -29073.8 | F12: -0.4413470696
A13: BA1220 | B13: Compartecipazione al personale per att. libero professionale intramoenia- Area specialistica | C13: =SUMIF('00 CE'!$B:$B,'Tab 54'!$A13,'00 CE'!G:G) -> 2790651.77 | D13: =SUMIF('00 CE'!$B:$B,'Tab 54'!$A13,'00 CE'!F:F) -> 2668850.25 | E13: 121801.52 | F13: 0.04563819945
A14: BA1230 | B14: Compartecipazione al personale per att. libero professionale intramoenia - Area sanità pubblica | C14: =SUMIF('00 CE'!$B:$B,'Tab 54'!$A14,'00 CE'!G:G) -> 19073.69 | D14: =SUMIF('00 CE'!$B:$B,'Tab 54'!$A14,'00 CE'!F:F) -> 16818.95 | E14: 2254.74 | F14: 0.1340594984
A15: BA1240 | B15: Compartecipazione al personale per att. libero professionale intramoenia - Consulenze (ex art. 55 c.1 lett. c), d) ed ex Art. 57-58) | C15: =SUMIF('00 CE'!$B:$B,'Tab 54'!$A15,'00 CE'!G:G) -> 371493.34 | D15: =SUMIF('00 CE'!$B:$B,'Tab 54'!$A15,'00 CE'!F:F) -> 444810.38 | E15: -73317.04 | F15: -0.1648276283
A16: BA1250 | B16: Compartecipazione al personale per att. libero professionale intramoenia- Consulenze (ex art. 55 c.1 lett. c), d) ed ex Art. 57-58) (Aziende sanitarie pubbliche della Regione) | C16: =SUMIF('00 CE'!$B:$B,'Tab 54'!$A16,'00 CE'!G:G) -> 0 | D16: =SUMIF('00 CE'!$B:$B,'Tab 54'!$A16,'00 CE'!F:F) -> 0 | E16: 0 | F16: 0
A17: BA1260 | B17: Compartecipazione al personale per att. libero professionale intramoenia - Altro | C17: =SUMIF('00 CE'!$B:$B,'Tab 54'!$A17,'00 CE'!G:G) -> 75468.47 | D17: =SUMIF('00 CE'!$B:$B,'Tab 54'!$A17,'00 CE'!F:F) -> 96287.97 | E17: -20819.5 | F17: -0.2162211956
A18: BA1270 | B18: Compartecipazione al personale per att. libero professionale intramoenia- Altro (Aziende sanitarie pubbliche della Regione) | C18: =SUMIF('00 CE'!$B:$B,'Tab 54'!$A18,'00 CE'!G:G) -> 0 | D18: =SUMIF('00 CE'!$B:$B,'Tab 54'!$A18,'00 CE'!F:F) -> 0 | E18: 0 | F18: 0
B19: TOTALE QUOTE RETROCESSE AL PERSONALE (ESCLUSO IRAP) | C19: =SUM(C12:C18) -> 3293488.61 | D19: =SUM(D12:D18) -> 3292642.69 | E19: 845.92 | F19: 0.0002569121765
B20: Indennità di esclusività medica per attività di libera professione | C20: 0 | D20: 0 | E20: 0 | F20: 0
A21: YA0040 | B21: IRAP relativa ad attività di libera professione (intramoenia) | C21: 275247.39 | D21: 274847.06 | E21: 400.33 | F21: =IF(C21=0,0,ROUND(E21/C21,4)) -> 0.0015
B22: Costi diretti aziendali | C22: 305194 | D22: 342169 | E22: -36975 | F22: -0.1212
B23: Costi generali aziendali | C23: 33116.93 | D23: 43108 | E23: -9991.07 | F23: -0.3017
A24: ** | B24: Fondo di perequazione | C24: 0 | D24: 0 | E24: 0 | F24: 0
B25: TOTALE ALTRI COSTI INTRAMOENIA | C25: =SUM(C20:C24) -> 613558.32 | D25: =SUM(D20:D24) -> 660124.06 | E25: -46565.74 | F25: -0.0759
B26: RICAVI - COSTI INTRAMOENIA | C26: =C11-(C19+C25) -> 12385.4 | D26: =D11-(D19+D25) -> 2801.47 | E26: 9583.93 | F26: 0.7738
A29: YA0040 | B29: IRAP relativa ad attività di libera professione (intramoenia) | C29: 458072.41 | D29: 481354.25
A30: * | B30: Scostamento Voce CE vs Tabella 54 | C30: =C21-C29 -> -182825.02 | D30: =D21-D29 -> -206507.19
A32: * Lo scostamento evidenziato si riferisce al conto 1101030102 "IRAP libera professione relativa ad attività istituzionale (ex. art. 55 c. 2 CCNL)"
A33: ** Il valore del Fondo di Perequazione è contabilizzato nelle voci di CE relative al TOTALE QUOTE RETROCESSE AL PERSONALE (ESCLUSO IRAP) - Tab 54

Sheet Tab 55
B1: Tab. 55 – Dettaglio rimborsi da aziende sanitarie pubbliche della Regione per acquisti di beni
B2: DETTAGLIO RIMBORSI DA AZIENDE SANITARIE PUBBLICHE DELLA REGIONE PER ACQUISTI DI BENI | C2: Azienda … | D2: Azienda … | E2: Azienda … | F2: Azienda … | G2: TOTALE
B3: Prodotti farmaceutici ed emoderivati:
B4: Medicinali con AIC, ad eccezione di vaccini ed emoderivati di produzione regionale
B5: Medicinali senza AIC
B6: Emoderivati di produzione regionale
B7: Sangue ed emocomponenti
B8: Dispositivi medici:
B9: Dispositivi medici
B10: Dispositivi medici impiantabili attivi
B11: Dispositivi medico diagnostici in vitro (IVD)
B12: Prodotti dietetici
B13: Materiali per la profilassi (vaccini)
B14: Prodotti chimici
B15: Materiali e prodotti per uso veterinario
B16: Altri beni e prodotti sanitari
B17: Prodotti alimentari
B18: Materiali di guardaroba, di pulizia e di convivenza in genere
B19: Combustibili, carburanti e lubrificanti
B20: Supporti informatici e cancelleria
B21: Materiale per la manutenzione
B22: Altri beni e prodotti non sanitari
B23: TOTALE
A25: Altre informazioni relative a proventi e ricavi diversi
A26: Informazione | C26: Caso presente in azienda? | E26: Se sì, illustrare
A27: CT01. Sono state rilevate significative variazioni rispetto all'esercizio precedente? | D27: NO

Sheet Tab 56-57
A1: 19. Acquisti di beni
B3: Tab. 56 – Dettaglio acquisti di beni sanitari per tipologia di distribuzione
B4: DETTAGLIO ACQUISTI DI BENI SANITARI PER TIPOLOGIA DI DISTRIBUZIONE | C4: Distribuzione | E4: TOTALE
C5: Diretta | D5: Per conto
B6: Prodotti farmaceutici ed emoderivati:
B7: Medicinali con AIC, ad eccezione di vaccini ed emoderivati di produzione regionale | C7: 39238304.16 | E7: =SUM(C7:D7) -> 39238304.16
B8: Medicinali senza AIC | C8: 2460.71 | E8: =SUM(C8:D8) -> 2460.71
B9: Emoderivati di produzione regionale | C9: 0 | E9: =SUM(C9:D9) -> 0
B10: Prodotti dietetici | C10: 0 | E10: =SUM(C10:D10) -> 0
B11: TOTALE | C11: =SUM(C7:C10) -> 39240764.87 | D11: =SUM(D7:D10) -> 0 | E11: =SUM(E7:E10) -> 39240764.87
B14: Tab. 57 – Dettaglio acquisti di beni da aziende sanitarie pubbliche
A15: CODICE MOD. CE | B15: DETTAGLIO ACQUISTI DI BENI DA AZIENDE SANITARIE PUBBLICHE DELLA REGIONE | C15: Azienda … | D15: Azienda … | E15: Azienda … | F15: Azienda | G15: TOTALE | I15: 2016
A16: BA0030 | B16: Prodotti farmaceutici ed emoderivati: | G16: =SUMIF('00 CE'!B:B,'Tab 56-57'!A16,'00 CE'!G:G) -> 69958395.31 | I16: 67757822.91 | J16: =G16-I16 -> 2200572.4
A17: BA0040 | B17: Medicinali con AIC, ad eccezione di vaccini ed emoderivati di produzione regionale | G17: =SUMIF('00 CE'!B:B,'Tab 56-57'!A17,'00 CE'!G:G) -> 69235809.47 | I17: 66456835.45 | J17: =G17-I17 -> 2778974.02
A18: BA0050 | B18: Medicinali senza AIC | G18: =SUMIF('00 CE'!B:B,'Tab 56-57'!A18,'00 CE'!G:G) -> 722585.84 | I18: 1300987.46 | J18: -578401.62
A19: BA0060 | B19: Emoderivati di produzione regionale | G19: =SUMIF('00 CE'!B:B,'Tab 56-57'!A19,'00 CE'!G:G) -> 0 | I19: 0 | J19: 0
A20: BA0070 | B20: Sangue ed emocomponenti | G20: =SUMIF('00 CE'!B:B,'Tab 56-57'!A20,'00 CE'!G:G) -> 187348.99 | I20: 133040.57 | J20: 54308.42
A21: BA0210 | B21: Dispositivi medici: | G21: =SUMIF('00 CE'!B:B,'Tab 56-57'!A21,'00 CE'!G:G) -> 41189711.57 | I21: 40472326.14 | J21: 717385.43
A22: BA0220 | B22: Dispositivi medici | G22: =SUMIF('00 CE'!B:B,'Tab 56-57'!A22,'00 CE'!G:G) -> 25764695.79 | I22: 25227619.2 | J22: 537076.59
A23: BA0230 | B23: Dispositivi medici impiantabili attivi | G23: =SUMIF('00 CE'!B:B,'Tab 56-57'!A23,'00 CE'!G:G) -> 3456008.28 | I23: 3795874.49 | J23: -339866.21
A24: BA0240 | B24: Dispositivi medico diagnostici in vitro (IVD) | G24: =SUMIF('00 CE'!B:B,'Tab 56-57'!A24,'00 CE'!G:G) -> 11969007.5 | I24: 11448832.45 | J24: 520175.05
A25: BA0250 | B25: Prodotti dietetici | G25: =SUMIF('00 CE'!B:B,'Tab 56-57'!A25,'00 CE'!G:G) -> 469645.74 | I25: 440667.16 | J25: 28978.58
A26: BA0260 | B26: Materiali per la profilassi (vaccini) | G26: =SUMIF('00 CE'!B:B,'Tab 56-57'!A26,'00 CE'!G:G) -> 2380862.56 | I26: 1380588.41 | J26: 1000274.15
A27: BA0270 | B27: Prodotti chimici | G27: =SUMIF('00 CE'!B:B,'Tab 56-57'!A27,'00 CE'!G:G) -> 0 | I27: 0 | J27: 0
A28: BA0280 | B28: Materiali e prodotti per uso veterinario | G28: =SUMIF('00 CE'!B:B,'Tab 56-57'!A28,'00 CE'!G:G) -> 7852.8 | I28: 33301.29 | J28: -25448.49
A29: BA0290 | B29: Altri beni e prodotti sanitari | G29: =SUMIF('00 CE'!B:B,'Tab 56-57'!A29,'00 CE'!G:G) -> 1934574.6 | I29: 1513330.23 | J29: 421244.37
A30: BA0300 | B30: Beni e prodotti sanitari da Aziende sanitarie pubbliche della Regione | G30: =SUMIF('00 CE'!B:B,'Tab 56-57'!A30,'00 CE'!G:G) -> 0 | I30: 0 | J30: 0
A31: BA0320 | B31: Prodotti alimentari | G31: =SUMIF('00 CE'!B:B,'Tab 56-57'!A31,'00 CE'!G:G) -> 250.58 | I31: 259.32 | J31: -8.74
A32: BA0330 | B32: Materiali di guardaroba, di pulizia e di convivenza in genere | G32: =SUMIF('00 CE'!B:B,'Tab 56-57'!A32,'00 CE'!G:G) -> 41796.38 | I32: 29848.15 | J32: 11948.23
A33: BA0340 | B33: Combustibili, carburanti e lubrificanti | G33: =SUMIF('00 CE'!B:B,'Tab 56-57'!A33,'00 CE'!G:G) -> 135937.7 | I33: 125554.88 | J33: 10382.82
A34: BA0350 | B34: Supporti informatici e cancelleria | G34: =SUMIF('00 CE'!B:B,'Tab 56-57'!A34,'00 CE'!G:G) -> 513727.87 | I34: 597417.69 | J34: -83689.82
A35: BA0360 | B35: Materiale per la manutenzione | G35: =SUMIF('00 CE'!B:B,'Tab 56-57'!A35,'00 CE'!G:G) -> 207783.53 | I35: 252738.81 | J35: -44955.28
A36: BA0370 | B36: Altri beni e prodotti non sanitari | G36: =SUMIF('00 CE'!B:B,'Tab 56-57'!A36,'00 CE'!G:G) -> 48626.56 | I36: 49743.28 | J36: -1116.72
A37: BA0380 | B37: Beni e prodotti non sanitari da Aziende sanitarie pubbliche della Regione | G37: =SUMIF('00 CE'!B:B,'Tab 56-57'!A37,'00 CE'!G:G) -> 0 | I37: 0 | J37: 0
B38: TOTALE | G38: =G16+G20+G21+G25+G26+G27+G28+G29+G30+G32+G31+G33+G34+G35+G36 -> 117076514.2 | I38: 112786638.8 | J38: 4289875.35

Sheet AB01-02-03
A1: AB01 - Acquisti di beni
A2: AB01 | B2: Ciascuna tipologia di bene, compreso nelle voci relative agli acquisti di beni sanitari e non sanitari, è monitorata attraverso il sistema gestionale del magazzino, che rileva ogni tipologia di movimento, in entrata e in uscita.
A4: Altre informazioni relative agli acquisti di beni
A5: Informazione | C5: Caso presente in azienda? | E5: Se SI, illustrare
A6: AB02. Sono stati rilevati costi per acquisto di beni da altre Aziende Sanitarie della Regione? Se sì, di quali tipologie di beni si tratta? | D6: NO
A7: AB03. Sono state rilevate significative variazioni rispetto all'esercizio precedente? | D7: SI | E7: Si veda commento sottostante.
A10: Il costo per acquisti di beni ha subito un incremento del 4% rispetto all'esercizio precedente ( circa 4 €/mln). Tale variazione è dovuta sostanzialmente all'incremento delle seguenti voci:
A12: - i costi di acquisto di prodotti farmaceutici ed emoderivati, in particolare dei medicinali con AIC (+ €/mln 2,7);
A13: - i costi di acquisto dei vaccini (+ €/mln 1).
A14: Nonostante le azioni di contenimento e razionalizzazione messe in campo dall'Azienda nel corso dell'esercizio, il costo per l'acquisto dei farmaci è aumentato di circa €/mln 2,7. In particolare, come meglio esplicitato nella Relazione sulla gestione, tale incremento è stato determinato principalmente dall'aumento della spesa per "anticorpi monoclonali" e "fattori della coagulazione del sangue", generato dai consumi ospedalieri nell'ambito delle terapie onco-ematologiche e per le terapie per emofilici, che caratterizzano l'offerta assistenziale della ASL di Pescara. Un'altra causa dell'incremento della spesa relativa ad alcune classi terapeutiche è legata alla Distribuzione Diretta "Esclusiva" che, derivando direttamente dalle prescrizioni dei medici specialisti, nella forma di piano terapeutico anzichè di impegnativa SSN "tout court", è difficilmente riconducibile nell'ambito del governo diretto della spesa da parte dell'Azienda.
A15: L'incremento dei costi per vaccini è una conseguenza dei provvedimenti normativi adottati sia a livello nazionale che regionale nel corso dell'esercizio 2017.
A16: In ogni caso, l'Azienda intende proseguire il percorso di contenimento della spesa farmaceutica già intrapreso nei precedenti esercizi. In particolare, in presenza di contenuti margini di azione sui prezzi e sui livelli di giacenza, la ASL di Pescara intende consolidare le seguenti azioni di razionalizzazione:
A17: - Intervenire sull'appropriatezza prescrittiva, incentivando ad esempio la prescrizione di farmaci biosimilari da parte dei medici. In realtà, questa azione è già stata intrapresa da tempo, ma non ha sempre prodotto gli effetti sperati, anche a causa delle variazioni di prezzo di mercato tra farmaco originator e biosimilare;
A18: - Attivazione del Prontuario Terapeutico Aziendale;
A19: - Incentivare in misura più incisiva la corretta gestione degli armadi di reparto, al fine di migliorare il monitoraggio delle scorte di reparto e conseguentemente razionalizzare le richieste di farmaci. Per tale attività, il personale interessato è già stato formato, ma in alcune strutture, dove vi sono particolari elementi di complessità, persistono alcune problematiche organizzative che l'Azienda ha in animo di superare. Rispetto al passato, sono stati effettuati alcuni passi in avanti nella gestione degli stessi da parte dei reparti, ma sussistono ancora significativi margini di miglioramento su cui l'Azienda intende focalizzare i suoi interventi.

Sheet Tab. 57bis
I1: Tabella 57-bis
B2: FARMACI INNOVATIVI ai sensi dell’art. 1, commi 402, 403 e 404, della legge 11 dicembre 2016, n. 232 (legge di Bilancio 2017 ss.mm.ii.)
B3: Farmaci | E3: Costo CE | F3: Prezzi medi di acquisto Consuntivo 2017 | G3: Importo payback/note di credito ricevute direttamente dalla ASL (prezzo/volume, capping ed altri accordi) CONSUNTIVO 2017
A4: Fondo Inn. | B4: AIC | C4: Denominazione e Confezione | D4: Principio attivo | E4: Consuntivo 2017 | G4: Riferito ad acquisti 2017 | H4: Riferito ad acquisti 2016 | I4: Riferito ad acquisti anni precedenti
A5: IO | B5: 039399011 | C5: ABRAXANE*INF 100MG 5MG/ML | D5: paclitaxel | E5: 156402.79 | F5: 245.53 | G5: 0 | H5: 0 | I5: 0
A6: I | B6: 043542012 | C6: DAKLINZA*28CPR RIV 30MG | D6: daclatasvir | E6: 0 | F6: 0 | G6: 0 | H6: 0 | I6: 0
A7: I | B7: 043542036 | C7: DAKLINZA*28CPR RIV 60MG | D7: daclatasvir | E7: 270599.98 | F7: 117.86 | G7: 70399.99 | H7: 23466.65 | I7: 0
A8: I | B8: 044928012 | C8: EPCLUSA 1FL 28CPR 400+100MG | D8: sofosbuvir/velpatasvir | E8: 4326667.55 | F8: 654.76 | G8: 3696148.29 | H8: 0 | I8: 0
A9: I | B9: 043840014 | C9: EXVIERA*56CPR RIV 250MG | D9: dasabuvir | E9: 17100.08 | F9: 4.85 | G9: 4204.36 | H9: 0 | I9: 0
A10: I | B10: 043731013 | C10: HARVONI*1FL 28CPR RIV 90+400MG | D10: sofosbuvir e ledipasvir | E10: 1119250.26 | F10: 532.98 | G10: 988237.83 | H10: 223850.1 | I10: 0
A11: IO | B11: 043693023 | C11: IMBRUVICA*FL 120CPS 140MG | D11: ibrutinib | E11: 155697.87 | F11: 6227.91 | G11: 0 | H11: 0 | I11: 0
A12: IO | B12: 043693011 | C12: IMBRUVICA*FL 90CPS 140MG | D12: ibrutinib | E12: 252231.13 | F12: 51.9 | G12: 0 | H12: 0 | I12: 0
A13: I | B13: 043519026 | C13: KALYDECO*56CPR RIV 150MG | D13: ivacaftor | E13: 0 | F13: 0 | G13: 0 | H13: 0 | I13: 0
A14: IO | B14: 044386011 | C14: KEYTRUDA*1FL POLV EV 50MG/ML | D14: pembrolizumab | E14: 363578.96 | F14: 1454.32 | G14: 0 | H14: 0 | I14: 0
A15: IO | B15: 044386023 | C15: KEYTRUDA*1FL 4ML 25MG/ML | D15: pembrolizumab | E15: 214935.6 | F15: 2828.1 | G15: 0 | H15: 0 | I15: 0
A16: I | B16: 045445018 | C16: MAVIRET*84CPR RIV 100MG+40MG | D16: glecaprevir/pibrentasvir | E16: 39187.5 | F16: 46.65 | G16: 0 | H16: 0 | I16: 0
A17: I | B17: 043441029 | C17: OLYSIO*28CPS 150MG | D17: simeprevir | E17: 7333.33 | F17: 130.95 | G17: 0 | H17: 0 | I17: 0
A18: I | B18: 043441017 | C18: OLYSIO*7CPS 150MG | D18: simeprevir | E18: 0 | F18: 0 | G18: 0 | H18: 0 | I18: 0
A19: IO | B19: 044291021 | C19: OPDIVO*INFUS 1F 10ML 10MG/ML | D19: nivolumab | E19: 576827.09 | F19: 1204.23 | G19: 0 | H19: 0 | I19: 0
A20: IO | B20: 044291019 | C20: OPDIVO*INFUS 1F 4ML 10MG/ML | D20: nivolumab | E20: 151922.19 | F20: 480.77 | G20: 0 | H20: 0 | I20: 0
A21: IO | B21: 042682017 | C21: PERJETA*EV 1F 420MG 30MG/ML | D21: pertuzumab | E21: 313642.46 | F21: 3015.79 | G21: 0 | H21: 0 | I21: 0
A22: I | B22: 043196017 | C22: SOVALDI*1FL 28CPR RIV 400MG | D22: sofosbuvir | E22: 1478766.27 | F22: 484.52 | G22: 1260996.54 | H22: 203499.91 | I22: 0
A23: I | B23: 045426018 | C23: SPINRAZA*1FL 12MG 5ML 2,4MG/ML | D23: nusinersen | E23: 0 | F23: 0 | G23: 0 | H23: 0 | I23: 0
A24: I | B24: 044880019 | C24: STRIMVELIS EV 1-10MILIONI CELL | D24: cellule autologhe CD34+ | E24: 0 | F24: 0 | G24: 0 | H24: 0 | I24: 0
A25: I | B25: 043841016 | C25: VIEKIRAX*56CPR 12,5+75+50MG | D25: ombitasvir, paritaprevir e ritonavir | E25: 232404.02 | F25: 56.85 | G25: 77697.5 | H25: 0 | I25: 0
A26: I | B26: 044929014 | C26: ZEPATIER 28CPR RIV 50MG+100MG | D26: elbasvir/grazoprevir | E26: 653400 | F26: 117.86 | G26: 0 | H26: 0 | I26: 0
A27: IO | B27: 043620018 | C27: ZYDELIG*FL 60CPR RIV 100MG | D27: idelalisib | E27: 21560.23 | F27: 51.33 | G27: 0 | H27: 0 | I27: 0
A28: IO | B28: 043620020 | C28: ZYDELIG*FL 60CPR RIV 150MG | D28: idelalisib | E28: 40040.02 | F28: 51.33 | G28: 0 | H28: 0 | I28: 0
E29: =SUM(E5:E28) -> 10391547.33 | F29: =SUM(F5:F28) -> 17758.49 | G29: 6097684.51 | H29: 450816.66 | I29: 0
C30: Importo Lordo
B31: I | C31: Fondo innovativi non oncologici | E31: =SUMIF(A:A,B31,E:E) -> 8144708.99
B32: IO | C32: Fondo innovativi oncologici | E32: =SUMIF(A:A,B32,E:E) -> 2246838.34
E33: =SUM(E31:E32) -> 10391547.33
C34: NC 2017
B35: I | C35: Fondo innovativi non oncologici | E35: =SUMIF(A:A,B35,G:G)*-1 -> -6097684.51
B36: IO | C36: Fondo innovativi oncologici | E36: =SUMIF(A:A,B36,G:G)*-1 -> 0
E37: =SUM(E35:E36) -> -6097684.51
C38: Importo Netto
B39: I | C39: Fondo innovativi non oncologici | E39: =E31+E35 -> 2047024.48
B40: IO | C40: Fondo innovativi oncologici | E40: =E32+E36 -> 2246838.34
E41: =SUM(E39:E40) -> 4293862.82

Sheet Tab 58
A1: 20. Acquisti di servizi
B3: Tab. 58 – Dettaglio acquisti di servizi sanitari in mobilità
A4: CODICE MOD. CE | B4: DETTAGLIO ACQUISTI DI SERVIZI SANITARI IN MOBILITA' | C4: PUBBLICO | F4: PRIVATO | I4: TOTALE
C5: Avezzano-Sulmona-L'Aquila | D5: Lanciano-Vasto-Chieti | E5: Teramo | F5: Avezzano-Sulmona-L'Aquila | G5: Lanciano-Vasto-Chieti | H5: Teramo | K5: VALORE CE | L5: Diff | M5: Ctrl
B6: COSTI DA MOBILITA' SANITARIA INFRAREGIONALE (A) | C6: =SUM(C7:C18) -> 3798653.95 | D6: 30053835.8 | E6: 5309421.06 | F6: 1724411.95 | G6: 8284845.8 | H6: 2100511.36 | I6: 51271679.93 | K6: 51271679.93
A7: BA0470 | B7: Acquisti servizi sanitari per medicina di base | C7: 7861.84 | D7: 18739.98 | E7: 8455.37 | F7: 0 | G7: 0 | H7: 0 | I7: =SUMIF('00 CE'!B:B,'Tab 58'!A7,'00 CE'!G:G) -> 35057.19 | K7: =SUMIF('00 CE'!B:B,'Tab 58'!A7,'00 CE'!G:G) -> 35057.19 | L7: =I7-K7 -> 0 | M7: =IF(L7=0,"OK"," CTRL") -> OK
A8: BA0510 | B8: Acquisti servizi sanitari per farmaceutica | C8: 254529.82 | D8: 848731.57 | E8: 148709.12 | F8: 0 | G8: 0 | H8: 0 | I8: =SUMIF('00 CE'!B:B,'Tab 58'!A8,'00 CE'!G:G) -> 1251970.51 | K8: =SUMIF('00 CE'!B:B,'Tab 58'!A8,'00 CE'!G:G) -> 1251970.51 | L8: =I8-K8 -> 0 | M8: =IF(L8=0,"OK"," CTRL") -> OK
A9: BA0540 | B9: Acquisti servizi sanitari per assistenza specialistica ambulatoriale | C9: 637302 | D9: 6189958 | E9: 854701 | F9: 42867.17 | G9: 1268989.99 | H9: 4303.94 | I9: =SUMIF('00 CE'!B:B,'Tab 58'!A9,'00 CE'!G:G) -> 8998122.11 | K9: =SUMIF('00 CE'!B:B,'Tab 58'!A9,'00 CE'!G:G) -> 8998122.11 | L9: 0 | M9: OK
A10: BA0650 | B10: Acquisti servizi sanitari per assistenza riabilitativa | C10: 0 | D10: 0 | E10: 0 | F10: 155178.85 | G10: 2629501.3 | H10: 2070380.02 | I10: =SUMIF('00 CE'!B:B,'Tab 58'!A10,'00 CE'!G:G) -> 4855060.17 | K10: =SUMIF('00 CE'!B:B,'Tab 58'!A10,'00 CE'!G:G) -> 4855060.17 | L10: 0 | M10: OK
A11: BA0710 | B11: Acquisti servizi sanitari per assistenza integrativa | C11: 0 | D11: 0 | E11: 0 | F11: 0 | G11: 0 | H11: 0 | I11: =SUMIF('00 CE'!B:B,'Tab 58'!A11,'00 CE'!G:G) -> 0 | K11: =SUMIF('00 CE'!B:B,'Tab 58'!A11,'00 CE'!G:G) -> 0 | L11: 0 | M11: OK
A12: BA0760 | B12: Acquisti servizi sanitari per assistenza protesica | C12: 0 | D12: 0 | E12: 0 | F12: 0 | G12: 0 | H12: 0 | I12: =SUMIF('00 CE'!B:B,'Tab 58'!A12,'00 CE'!G:G) -> 0 | K12: =SUMIF('00 CE'!B:B,'Tab 58'!A12,'00 CE'!G:G) -> 0 | L12: 0 | M12: OK
A13: BA0810 | B13: Acquisti servizi sanitari per assistenza ospedaliera | C13: 2729408.85 | D13: 18825843.19 | E13: 4121917.58 | F13: 1028109.19 | G13: 1524812.49 | H13: 0 | I13: =SUMIF('00 CE'!B:B,'Tab 58'!A13,'00 CE'!G:G) -> 28230091.68 | K13: =SUMIF('00 CE'!B:B,'Tab 58'!A13,'00 CE'!G:G) -> 28230091.68 | L13: 0 | M13: OK
A14: BA0910 | B14: Acquisto prestazioni di psichiatria residenziale e semiresidenziale | C14: 0 | D14: 0 | E14: 0 | F14: 450621.65 | G14: 1197543.01 | H14: 0 | I14: =SUMIF('00 CE'!B:B,'Tab 58'!A14,'00 CE'!G:G) -> 1648164.66 | K14: =SUMIF('00 CE'!B:B,'Tab 58'!A14,'00 CE'!G:G) -> 1648164.66 | L14: 0 | M14: OK
A15: BA0970 | B15: Acquisto prestazioni di distribuzione farmaci File F | C15: 134679.46 | D15: 4094328.33 | E15: 162401.91 | F15: 0 | G15: 0 | H15: 0 | I15: =SUMIF('00 CE'!B:B,'Tab 58'!A15,'00 CE'!G:G) -> 4391409.7 | K15: =SUMIF('00 CE'!B:B,'Tab 58'!A15,'00 CE'!G:G) -> 4391409.7 | L15: 0 | M15: OK
A16: BA1040 | B16: Acquisto prestazioni termali in convenzione | C16: 0 | D16: 0 | E16: 0 | F16: 0 | G16: 0 | H16: 0 | I16: =SUMIF('00 CE'!B:B,'Tab 58'!A16,'00 CE'!G:G) -> 0 | K16: =SUMIF('00 CE'!B:B,'Tab 58'!A16,'00 CE'!G:G) -> 0 | L16: 0 | M16: OK
A17: BA1100 | B17: Acquisto prestazioni trasporto sanitario | C17: 34871.98 | D17: 76234.73 | E17: 13236.08 | F17: 0 | G17: 0 | H17: 0 | I17: =SUMIF('00 CE'!B:B,'Tab 58'!A17,'00 CE'!G:G) -> 124342.79 | K17: =SUMIF('00 CE'!B:B,'Tab 58'!A17,'00 CE'!G:G) -> 124342.79 | L17: 0 | M17: OK
A18: BA1150 | B18: Acquisto prestazioni Socio-Sanitarie a rilevanza sanitaria | C18: 0 | D18: 0 | E18: 0 | F18: 47635.09 | G18: 1663999.01 | H18: 25827.4 | I18: =SUMIF('00 CE'!B:B,'Tab 58'!A18,'00 CE'!G:G) -> 1737461.12 | K18: =SUMIF('00 CE'!B:B,'Tab 58'!A18,'00 CE'!G:G) -> 1737461.12 | L18: 0 | M18: OK
B20: COSTI DA MOBILITA' SANITARIA EXTRAREGIONALE (B) | C20: =SUM(C21:C29) -> 0 | D20: 0 | E20: 0 | F20: 0 | G20: 0 | H20: 0 | I20: =SUM(I21:I29) -> 30055274.89
A21: BA0480 | B21: Acquisti servizi sanitari per medicina di base | I21: =SUMIF('00 CE'!B:B,'Tab 58'!A21,'00 CE'!G:G) -> 184748.58
A22: BA0520 | B22: Acquisti servizi sanitari per farmaceutica | I22: =SUMIF('00 CE'!B:B,'Tab 58'!A22,'00 CE'!G:G) -> 387832.02
A23: BA0560 | B23: Acquisti servizi sanitari per assistenza specialistica ambulatoriale | I23: =SUMIF('00 CE'!B:B,'Tab 58'!A23,'00 CE'!G:G) -> 4460024.94
A24: BA0730 | B24: Acquisti servizi sanitari per assistenza integrativa | I24: =SUMIF('00 CE'!B:B,'Tab 58'!A24,'00 CE'!G:G) -> 0
A25: BA0780 | B25: Acquisti servizi sanitari per assistenza protesica | I25: =SUMIF('00 CE'!B:B,'Tab 58'!A25,'00 CE'!G:G) -> 0
A26: BA0830 | B26: Acquisti servizi sanitari per assistenza ospedaliera | I26: =SUMIF('00 CE'!B:B,'Tab 58'!A26,'00 CE'!G:G) -> 23048879.05 | N26: 9420
A27: BA0990 | B27: Acquisto prestazioni di distribuzione farmaci e File F | I27: =SUMIF('00 CE'!B:B,'Tab 58'!A27,'00 CE'!G:G) -> 1585422.33
A28: BA1060 | B28: Acquisto prestazioni termali in convenzione | I28: =SUMIF('00 CE'!B:B,'Tab 58'!A28,'00 CE'!G:G) -> 159884.29
A29: BA1120 | B29: Acquisto prestazioni trasporto sanitario | I29: =SUMIF('00 CE'!B:B,'Tab 58'!A29,'00 CE'!G:G) -> 228483.68
B31: TOTALE COSTI DA MOBILITA' (A+B) | C31: =C6+C20 -> 3798653.95 | D31: =D6+D20 -> 30053835.8 | E31: 5309421.06 | F31: 1724411.95 | G31: 8284845.8 | H31: 2100511.36 | I31: 81326954.82
B33: COSTI PER PRESTAZIONI OGGETTO DI FATTURAZIONE DIRETTA INFRAREGIONALE (C) | C33: 158617.27 | D33: 54003.31 | E33: 233174.16 | F33: 0 | G33: 0 | H33: 0 | I33: =SUM(C33:H33) -> 445794.74
B35: COSTI PER PREST. OGGETTO DI FATTUR. DIRETTA EXTRAREGIONALE (D) | I35: 236105.21
B37: TOTALE COSTI PER PREST. OGGETTO DI FATTURAZ. DIRETTA (C+D) | C37: =C33+C35 -> 158617.27 | D37: 54003.31 | E37: 233174.16 | F37: 0 | G37: 0 | H37: 0 | I37: =SUM(C37:H37)+I35 -> 681899.95
B39: TOTALE COSTI AZIENDE REGIONE (A+C) | C39: =C33+C6 -> 3957271.22 | D39: 30107839.11 | E39: 5542595.22 | F39: 1724411.95 | G39: 8284845.8 | H39: 2100511.36 | I39: =I33+I6 -> 51717474.67
B40: TOTALE COSTI AZIENDE EXTRA REGIONE (B+D) | I40: =I20+I35 -> 30291380.1
B41: TOTALE COSTI AZIENDE SANITARIE PUBBLICHE (A+B+C+D) | C41: =C31+C33+C35 -> 3957271.22 | D41: 30107839.11 | E41: 5542595.22 | F41: 1724411.95 | G41: 8284845.8 | H41: =H31+H33+H35 -> 2100511.36 | I41: =I31+I33+I35 -> 82008854.77
A45: Nella riga "Costi per prestazioni oggetto di fatturazione diretta infraregionale" sono stati inseriti i costi sostenuti dall'Azienda nei confronti delle AASSLL della Regione per prestazioni fuori mobilità, oggetto di fatturazione diretta. Tali valori sono stati riconciliati con le AASSLL della Regione alla data del 31/12/2017.
A48: I costi di mobilità sono aumentati, rispetto al precedente esercizio, di circa €/000 1.297 (+ 2%). Detta variazione è stata determinata dall'incremento dei costi per mobilità sanitaria extraregionale, atteso che i costi per mobilità sanitaria intraregionale risultano pressochè in linea con quelli dell'esercizio 2016. I costi per mobilità sanitaria extraregionale sono aumentati nel corso del 2017 principalmente per effetto dell'incremento dei costi per acquisti di servizi sanitari per assistenza specialistica ambulatoriale (per €/000 1.411) e per acquisto prestazioni di distribuzione farmaci e File F (€/000 413). Tali incrementi sono stati parzialmente compensati dalla riduzione dei costi per acquisti di servizi sanitari per assistenza ospedaliera (per €/000 - 587). In merito alla mobilità sanitaria extra regionale va precisato, ad ogni buon conto, che essa, ai sensi del D. Lgs. 118/2011, viene contabilizzata con due anni di ritardo rispetto all'esercizio di competenza e, come stabilisce il citato decreto, la rilevazione contabile viene effettuata al netto degli eventuali conguagli (+ o -) dei due esercizi precedenti. Con riferimento alle prestazioni di File F, a fronte dell'aumento dei costi di mobilità extraregionale per + €/000 413, è stata registrata una riduzione dei costi di mobilità infraregionale per - €/000 632, per cui il costo complessivo per acquisti di prestazioni di distribuzione farmaci File F si è ridotto di €/000 219. A ciò si aggiunge un incremento dei ricavi per prestazioni di File F, esposti in Tabella 53, sia relativamente alla mobilità infraregionale (+ €/000 445) che extraregionale (+€/000 662).

Sheet Tab 58 bis
A2: Tab. 58 bis - Tabella di raccordo - DETTAGLIO ACQUISTI DI SERVIZI SANITARI IN MOBILITA'
A4: Voce CE | B4: Descrizione | D4: Importo | E4: Voce CE D.Lgs. 118/2011
A5: BA0410 | B5: B.2.A.1) Acquisti servizi sanitari per medicina di base | D5: =SUM(D6:D8) -> 35655655.12 | E5: B 2) a)
A6: BA0420 | B6: B.2.A.1.1) - da convenzione | D6: =SUMIF('00 CE'!B:B,'Tab 58 bis'!A6,'00 CE'!G:G) -> 35435849.35
A7: BA0470 | B7: B.2.A.1.2) - da pubblico (Aziende sanitarie pubbliche della Regione) - Mobilità intraregionale | C7: a | D7: =SUMIF('00 CE'!B:B,'Tab 58 bis'!A7,'00 CE'!G:G) -> 35057.19
A8: BA0480 | B8: B.2.A.1.3) - da pubblico (Aziende sanitarie pubbliche Extraregione) - Mobilità extraregionale | C8: b | D8: =SUMIF('00 CE'!B:B,'Tab 58 bis'!A8,'00 CE'!G:G) -> 184748.58
A9: BA0490 | B9: B.2.A.2) Acquisti servizi sanitari per farmaceutica | D9: =SUM(D10:D12) -> 54563948.05 | E9: B 2) b)
A10: BA0500 | B10: B.2.A.2.1) - da convenzione | D10: =SUMIF('00 CE'!B:B,'Tab 58 bis'!A10,'00 CE'!G:G) -> 52924145.52
A11: BA0510 | B11: B.2.A.2.2) - da pubblico (Aziende sanitarie pubbliche della Regione)- Mobilità intraregionale | C11: a | D11: =SUMIF('00 CE'!B:B,'Tab 58 bis'!A11,'00 CE'!G:G) -> 1251970.51
A12: BA0520 | B12: B.2.A.2.3) - da pubblico (Extraregione) | C12: b | D12: =SUMIF('00 CE'!B:B,'Tab 58 bis'!A12,'00 CE'!G:G) -> 387832.02
A13: BA0530 | B13: B.2.A.3) Acquisti servizi sanitari per assistenza specialistica ambulatoriale | D13: =SUM(D14:D19) -> 27519184.07 | E13: B 2) c)
A14: BA0540 | B14: B.2.A.3.1) - da pubblico (Aziende sanitarie pubbliche della Regione) | C14: a | D14: =SUMIF('00 CE'!B:B,'Tab 58 bis'!A14,'00 CE'!G:G) -> 8998122.11
A15: BA0550 | B15: B.2.A.3.2) - da pubblico (altri soggetti pubbl. della Regione) | D15: =SUMIF('00 CE'!B:B,'Tab 58 bis'!A15,'00 CE'!G:G) -> 189344.67
A16: BA0560 | B16: B.2.A.3.3) - da pubblico (Extraregione) | C16: b | D16: =SUMIF('00 CE'!B:B,'Tab 58 bis'!A16,'00 CE'!G:G) -> 4460024.94
A17: BA0570 | B17: B.2.A.3.4) - da privato - Medici SUMAI | D17: =SUMIF('00 CE'!B:B,'Tab 58 bis'!A17,'00 CE'!G:G) -> 4899151.05
A18: BA0580 | B18: B.2.A.3.5) - da privato | D18: =SUMIF('00 CE'!B:B,'Tab 58 bis'!A18,'00 CE'!G:G) -> 8757843.1
A19: BA0630 | B19: B.2.A.3.6) - da privato per cittadini non residenti - Extraregione (mobilità attiva in compensazione) | D19: =SUMIF('00 CE'!B:B,'Tab 58 bis'!A19,'00 CE'!G:G) -> 214698.2
A20: BA0640 | B20: B.2.A.4) Acquisti servizi sanitari per assistenza riabilitativa | D20: =SUM(D21:D24) -> 19907207.98 | E20: B 2) d)
A21: BA0650 | B21: B.2.A.4.1) - da pubblico (Aziende sanitarie pubbliche della Regione) | C21: a | D21: =SUMIF('00 CE'!B:B,'Tab 58 bis'!A21,'00 CE'!G:G) -> 4855060.17
A22: BA0670 | B22: B.2.A.4.3) - da pubblico (Extraregione) non soggetti a compensazione | D22: =SUMIF('00 CE'!B:B,'Tab 58 bis'!A22,'00 CE'!G:G) -> 0
A23: BA0680 | B23: B.2.A.4.4) - da privato (intraregionale) | D23: =SUMIF('00 CE'!B:B,'Tab 58 bis'!A23,'00 CE'!G:G) -> 14460769.46
A24: BA0690 | B24: B.2.A.4.5) - da privato (extraregionale) | D24: =SUMIF('00 CE'!B:B,'Tab 58 bis'!A24,'00 CE'!G:G) -> 591378.35
A25: BA0700 | B25: B.2.A.5) Acquisti servizi sanitari per assistenza integrativa | D25: =SUM(D26:D26) -> 1813040.82 | E25: B 2) e)
A26: BA0740 | B26: B.2.A.5.4) - da privato | D26: =SUMIF('00 CE'!B:B,'Tab 58 bis'!A26,'00 CE'!G:G) -> 1813040.82
A27: BA0750 | B27: B.2.A.6) Acquisti servizi sanitari per assistenza protesica | D27: =SUM(D28) -> 6384295.54 | E27: B 2) f)
A28: BA0790 | B28: B.2.A.6.4) - da privato | D28: =SUMIF('00 CE'!B:B,'Tab 58 bis'!A28,'00 CE'!G:G) -> 6384295.54
A29: BA0800 | B29: B.2.A.7) Acquisti servizi sanitari per assistenza ospedaliera | D29: =SUM(D30:D33) -> 125006439.5 | E29: B 2) g)
A30: BA0810 | B30: B.2.A.7.1) - da pubblico (Aziende sanitarie pubbliche della Regione) | C30: a | D30: =SUMIF('00 CE'!B:B,'Tab 58 bis'!A30,'00 CE'!G:G) -> 28230091.68
A31: BA0830 | B31: B.2.A.7.3) - da pubblico (Extraregione) | C31: b | D31: =SUMIF('00 CE'!B:B,'Tab 58 bis'!A31,'00 CE'!G:G) -> 23048879.05
A32: BA0840 | B32: B.2.A.7.4) - da privato | D32: =SUMIF('00 CE'!B:B,'Tab 58 bis'!A32,'00 CE'!G:G) -> 61809764.72
A33: BA0890 | B33: B.2.A.7.5) - da privato per cittadini non residenti - Extraregione (mobilità attiva in compensazione) | D33: =SUMIF('00 CE'!B:B,'Tab 58 bis'!A33,'00 CE'!G:G) -> 11917704.07
A34: BA0900 | B34: B.2.A.8) Acquisto prestazioni di psichiatria residenziale e semiresidenziale | D34: =SUM(D35:D39) -> 13199111.06 | E34: B 2) h)
A35: BA0910 | B35: B.2.A.8.1) - da pubblico (Aziende sanitarie pubbliche della Regione) | C35: a | D35: =SUMIF('00 CE'!B:B,'Tab 58 bis'!A35,'00 CE'!G:G) -> 1648164.66
A36: BA0920 | B36: B.2.A.8.2) - da pubblico (altri soggetti pubbl. della Regione) | D36: =SUMIF('00 CE'!B:B,'Tab 58 bis'!A36,'00 CE'!G:G) -> 0
A37: BA0930 | B37: B.2.A.8.3) - da pubblico (Extraregione) - non soggette a compensazione | D37: =SUMIF('00 CE'!B:B,'Tab 58 bis'!A37,'00 CE'!G:G) -> 6667
A38: BA0940 | B38: B.2.A.8.4) - da privato (intraregionale) | D38: =SUMIF('00 CE'!B:B,'Tab 58 bis'!A38,'00 CE'!G:G) -> 9671880.59
A39: BA0950 | B39: B.2.A.8.5) - da privato (extraregionale) | D39: =SUMIF('00 CE'!B:B,'Tab 58 bis'!A39,'00 CE'!G:G) -> 1872398.81
A40: BA0960 | B40: B.2.A.9) Acquisto prestazioni di distribuzione farmaci File F | D40: =SUM(D41:D42) -> 5976832.03 | E40: B 2) i)
A41: BA0970 | B41: B.2.A.9.1) - da pubblico (Aziende sanitarie pubbliche della Regione) - Mobilità intraregionale | C41: a | D41: =SUMIF('00 CE'!B:B,'Tab 58 bis'!A41,'00 CE'!G:G) -> 4391409.7
A42: BA0990 | B42: B.2.A.9.3) - da pubblico (Extraregione) | C42: b | D42: =SUMIF('00 CE'!B:B,'Tab 58 bis'!A42,'00 CE'!G:G) -> 1585422.33
A43: BA1030 | B43: B.2.A.10) Acquisto prestazioni termali in convenzione | D43: =SUM(D44:D47) -> 2288663.83 | E43: B 2) j)
A44: BA1040 | B44: B.2.A.10.1) - da pubblico (Aziende sanitarie pubbliche della Regione) - Mobilità intraregionale | C44: a | D44: =SUMIF('00 CE'!B:B,'Tab 58 bis'!A44,'00 CE'!G:G) -> 0
A45: BA1060 | B45: B.2.A.10.3) - da pubblico (Extraregione) | C45: b | D45: =SUMIF('00 CE'!B:B,'Tab 58 bis'!A45,'00 CE'!G:G) -> 159884.29
A46: BA1070 | B46: B.2.A.10.4) - da privato | D46: =SUMIF('00 CE'!B:B,'Tab 58 bis'!A46,'00 CE'!G:G) -> 1888589.97
A47: BA1080 | B47: B.2.A.10.5) - da privato per cittadini non residenti - Extraregione (mobilità attiva in compensazione) | D47: =SUMIF('00 CE'!B:B,'Tab 58 bis'!A47,'00 CE'!G:G) -> 240189.57
A48: BA1090 | B48: B.2.A.11) Acquisto prestazioni di trasporto sanitario | D48: =SUM(D49:D51) -> 8512737.85 | E48: B 2) k)
A49: BA1100 | B49: B.2.A.11.1) - da pubblico (Aziende sanitarie pubbliche della Regione) - Mobilità intraregionale | C49: a | D49: =SUMIF('00 CE'!B:B,'Tab 58 bis'!A49,'00 CE'!G:G) -> 124342.79
A50: BA1120 | B50: B.2.A.11.3) - da pubblico (Extraregione) | C50: b | D50: =SUMIF('00 CE'!B:B,'Tab 58 bis'!A50,'00 CE'!G:G) -> 228483.68
A51: BA1130 | B51: B.2.A.11.4) - da privato | D51: =SUMIF('00 CE'!B:B,'Tab 58 bis'!A51,'00 CE'!G:G) -> 8159911.38
A52: BA1140 | B52: B.2.A.12) Acquisto prestazioni Socio-Sanitarie a rilevanza sanitaria | D52: =SUM(D53:D57) -> 16209312.37 | E52: B 2) l)
A53: BA1150 | B53: B.2.A.12.1) - da pubblico (Aziende sanitarie pubbliche della Regione) - Mobilità intraregionale | C53: a | D53: =SUMIF('00 CE'!B:B,'Tab 58 bis'!A53,'00 CE'!G:G) -> 1737461.12
A54: BA1160 | B54: B.2.A.12.2) - da pubblico (altri soggetti pubblici della Regione) | D54: =SUMIF('00 CE'!B:B,'Tab 58 bis'!A54,'00 CE'!G:G) -> 0
A55: BA1170 | B55: B.2.A.12.3) - da pubblico (Extraregione) non soggette a compensazione | D55: =SUMIF('00 CE'!B:B,'Tab 58 bis'!A55,'00 CE'!G:G) -> 168459.48
A56: BA1180 | B56: B.2.A.12.4) - da privato (intraregionale) | D56: =SUMIF('00 CE'!B:B,'Tab 58 bis'!A56,'00 CE'!G:G) -> 12551624.02
A57: BA1190 | B57: B.2.A.12.5) - da privato (extraregionale) | D57: =SUMIF('00 CE'!B:B,'Tab 58 bis'!A57,'00 CE'!G:G) -> 1751767.75
A58: BA1200 | B58: B.2.A.13) Compartecipazione al personale per att. libero-prof. (intramoenia) | D58: =SUM(D59:D65) -> 3293488.61 | E58: B 2) m)
A59: BA1210 | B59: B.2.A.13.1) Compartecipazione al personale per att. libero professionale intramoenia - Area ospedaliera | D59: =SUMIF('00 CE'!B:B,'Tab 58 bis'!A59,'00 CE'!G:G) -> 36801.34
A60: BA1220 | B60: B.2.A.13.2) Compartecipazione al personale per att. libero professionale intramoenia- Area specialistica | D60: =SUMIF('00 CE'!B:B,'Tab 58 bis'!A60,'00 CE'!G:G) -> 2790651.77
A61: BA1230 | B61: B.2.A.13.3) Compartecipazione al personale per att. libero professionale intramoenia - Area sanità pubblica | D61: =SUMIF('00 CE'!B:B,'Tab 58 bis'!A61,'00 CE'!G:G) -> 19073.69
A62: BA1240 | B62: B.2.A.13.4) Compartecipazione al personale per att. libero professionale intramoenia - Consulenze (ex art. 55 c.1 lett. c), d) ed ex Art. 57-58) | D62: =SUMIF('00 CE'!B:B,'Tab 58 bis'!A62,'00 CE'!G:G) -> 371493.34
A63: BA1250 | B63: B.2.A.13.5) Compartecipazione al personale per att. libero professionale intramoenia - Consulenze (ex art. 55 c.1 lett. c), d) ed ex Art. 57-58) (Aziende sanitarie pubbliche della Regione) | D63: =SUMIF('00 CE'!B:B,'Tab 58 bis'!A63,'00 CE'!G:G) -> 0
A64: BA1260 | B64: B.2.A.13.6) Compartecipazione al personale per att. libero professionale intramoenia - Altro | D64: =SUMIF('00 CE'!B:B,'Tab 58 bis'!A64,'00 CE'!G:G) -> 75468.47
A65: BA1270 | B65: B.2.A.13.7) Compartecipazione al personale per att. libero professionale intramoenia - Altro (Aziende sanitarie pubbliche della Regione) | D65: =SUMIF('00 CE'!B:B,'Tab 58 bis'!A65,'00 CE'!G:G) -> 0
A66: BA1280 | B66: B.2.A.14) Rimborsi, assegni e contributi sanitari | D66: =SUM(D67:D70) -> 1751188.45 | E66: B 2) n)
A67: BA1290 | B67: B.2.A.14.1) Contributi ad associazioni di volontariato | D67: =SUMIF('00 CE'!B:B,'Tab 58 bis'!A67,'00 CE'!G:G) -> 326600
A68: BA1300 | B68: B.2.A.14.2) Rimborsi per cure all'estero | D68: =SUMIF('00 CE'!B:B,'Tab 58 bis'!A68,'00 CE'!G:G) -> 0
A69: BA1330 | B69: B.2.A.14.5) Altri rimborsi, assegni e contributi | D69: =SUMIF('00 CE'!B:B,'Tab 58 bis'!A69,'00 CE'!G:G) -> 1424508.45
A70: BA1340 | B70: B.2.A.14.6) Rimborsi, assegni e contributi v/Aziende sanitarie pubbliche della Regione | D70: =SUMIF('00 CE'!B:B,'Tab 58 bis'!A70,'00 CE'!G:G) -> 80
A71: BA1350 | B71: B.2.A.15) Consulenze, Collaborazioni, Interinale e altre prestazioni di lavoro sanitarie e sociosanitarie | D71: =SUMIF('00 CE'!B:B,'Tab 58 bis'!A71,'00 CE'!G:G) -> 6723251.46 | E71: B 2) o)
A72: BA1490 | B72: B.2.A.16) Altri servizi sanitari e sociosanitari a rilevanza sanitaria | D72: =SUMIF('00 CE'!B:B,'Tab 58 bis'!A72,'00 CE'!G:G) -> 2754715.62 | E72: B 2) p)
A74: BA0400 | B74: Totale Acquisti servizi sanitari | D74: =D5+D9+D13+D20+D25+D27+D29+D34+D40+D43+D48+D52+D58+D66+D71+D72 -> 331559072.4 | E74: B.2
A76: Somma a | B76: Costi da mobilità sanitaria infraregionale | D76: =D7+D11+D14+D21+D30+D35+D41+D44+D49+D53 -> 51271679.93
A77: Somma b | B77: Costi da mobilità sanitaria extraregionale | D77: =D8+D12+D16+D31+D42+D45+D50 -> 30055274.89
A79: TOTALE COSTI DA MOBILITA' SANITARIA | D79: =D76+D77 -> 81326954.82 | E79: in accordo con Tabella n. 58

Sheet Tab 59-60
B1: Tab. 59 – Dettaglio acquisti di servizi sanitari – I parte
A2: CODICE MOD. CE | B2: DETTAGLIO ACQUISTI DI SERVIZI SANITARI | C2: ="Valore CE " &'00 Aggregatore'!$F$2 -> Valore CE 2017 | D2: ="Valore CE " &'00 Aggregatore'!$F$2 -1 -> Valore CE 2016 | E2: Variazioni importo | F2: Variazioni %
B4: ACQUISTI DI SERVIZI SANITARI - MEDICINA DI BASE | C4: =C5+C10+C11 -> 35655655.12 | D4: =D5+D10+D11 -> 36146549.25 | E4: =C4-D4 -> -490894.13 | F4: =IF(AND(C4=0,D4=0),0,IF(C4=0,"",IF(D4=0,"",E4/D4))) -> -0.01358066372
A5: BA0420 | B5: - da convenzione | C5: =SUMIF('00 CE'!$B:$B,$A5,'00 CE'!G:G) -> 35435849.35 | D5: =SUMIF('00 CE'!$B:$B,$A5,'00 CE'!F:F) -> 35889765.89 | E5: =C5-D5 -> -453916.54 | F5: =IF(AND(C5=0,D5=0),0,IF(C5=0,"",IF(D5=0,"",E5/D5))) -> -0.01264752023
A6: BA0430 | B6: Costi per assistenza MMG | C6: =SUMIF('00 CE'!$B:$B,$A6,'00 CE'!G:G) -> 24328709.33 | D6: =SUMIF('00 CE'!$B:$B,$A6,'00 CE'!F:F) -> 24527412.66 | E6: =C6-D6 -> -198703.33 | F6: -0.008101275612
A7: BA0440 | B7: Costi per assistenza PLS | C7: =SUMIF('00 CE'!$B:$B,$A7,'00 CE'!G:G) -> 6208374.4 | D7: =SUMIF('00 CE'!$B:$B,$A7,'00 CE'!F:F) -> 6297522.92 | E7: -89148.52 | F7: -0.01415612474
A8: BA0450 | B8: Costi per assistenza Continuità assistenziale | C8: =SUMIF('00 CE'!$B:$B,$A8,'00 CE'!G:G) -> 4008916.53 | D8: =SUMIF('00 CE'!$B:$B,$A8,'00 CE'!F:F) -> 4154724.75 | E8: -145808.22 | F8: -0.0350945559
A9: BA0460 | B9: Altro (medicina dei servizi, psicologi, medici 118, ecc) | C9: =SUMIF('00 CE'!$B:$B,$A9,'00 CE'!G:G) -> 889849.09 | D9: =SUMIF('00 CE'!$B:$B,$A9,'00 CE'!F:F) -> 910105.56 | E9: -20256.47 | F9: -0.0222572753
A10: BA0470 | B10: - da pubblico (Aziende sanitarie pubbliche della Regione) - Mobilità intraregionale | C10: =SUMIF('00 CE'!$B:$B,$A10,'00 CE'!G:G) -> 35057.19 | D10: =SUMIF('00 CE'!$B:$B,$A10,'00 CE'!F:F) -> 83439.4 | E10: -48382.21 | F10: -0.5798484888
A11: BA0480 | B11: - da pubblico (Aziende sanitarie pubbliche Extraregione) - Mobilità extraregionale | C11: =SUMIF('00 CE'!$B:$B,$A11,'00 CE'!G:G) -> 184748.58 | D11: =SUMIF('00 CE'!$B:$B,$A11,'00 CE'!F:F) -> 173343.96 | E11: 11404.62 | F11: 0.06579185107
B12: ACQUISTI DI SERVIZI SANITARI - FARMACEUTICA | C12: =SUM(C13:C15) -> 54563948.05 | D12: =SUM(D13:D15) -> 54637066.85 | E12: =SUM(E13:E15) -> -73118.8 | F12: -0.001338263641
A13: BA0500 | B13: - da convenzione | C13: =SUMIF('00 CE'!$B:$B,$A13,'00 CE'!G:G) -> 52924145.52 | D13: =SUMIF('00 CE'!$B:$B,$A13,'00 CE'!F:F) -> 53014279.9 | E13: =C13-D13 -> -90134.38 | F13: -0.001700190593
A14: BA0510 | B14: - da pubblico (Aziende sanitarie pubbliche della Regione)- Mobilità intraregionale | C14: =SUMIF('00 CE'!$B:$B,$A14,'00 CE'!G:G) -> 1251970.51 | D14: =SUMIF('00 CE'!$B:$B,$A14,'00 CE'!F:F) -> 1241012.19 | E14: =C14-D14 -> 10958.32 | F14: 0.008830146946
A15: BA0520 | B15: - da pubblico (Extraregione) | C15: =SUMIF('00 CE'!$B:$B,$A15,'00 CE'!G:G) -> 387832.02 | D15: =SUMIF('00 CE'!$B:$B,$A15,'00 CE'!F:F) -> 381774.76 | E15: =C15-D15 -> 6057.26 | F15: 0.01586605673
B16: ACQUISTI DI SERVIZI SANITARI PER ASSITENZA SPECIALISTICA AMBULATORIALE | C16: =C17+C18+C19+C20+C21+C26 -> 27519184.07 | D16: =D17+D18+D19+D20+D21+D26 -> 25704713.99 | E16: =C16-D16 -> 1814470.08 | F16: 0.07058900094
A17: BA0540 | B17: - da pubblico (Aziende sanitarie pubbliche della Regione) | C17: =SUMIF('00 CE'!$B:$B,$A17,'00 CE'!G:G) -> 8998122.11 | D17: =SUMIF('00 CE'!$B:$B,$A17,'00 CE'!F:F) -> 8524168.66 | E17: 473953.45 | F17: 0.05560113472
A18: BA0550 | B18: - da pubblico (altri soggetti pubbl. della Regione) | C18: =SUMIF('00 CE'!$B:$B,$A18,'00 CE'!G:G) -> 189344.67 | D18: =SUMIF('00 CE'!$B:$B,$A18,'00 CE'!F:F) -> 224364.91 | E18: -35020.24 | F18: -0.1560860832
A19: BA0560 | B19: - da pubblico (Extraregione) | C19: =SUMIF('00 CE'!$B:$B,$A19,'00 CE'!G:G) -> 4460024.94 | D19: =SUMIF('00 CE'!$B:$B,$A19,'00 CE'!F:F) -> 3048586.34 | E19: 1411438.6 | F19: 0.4629813437
A20: BA0570 | B20: - da privato - Medici SUMAI | C20: =SUMIF('00 CE'!$B:$B,$A20,'00 CE'!G:G) -> 4899151.05 | D20: =SUMIF('00 CE'!$B:$B,$A20,'00 CE'!F:F) -> 5114503.17 | E20: -215352.12 | F20: -0.0421061661
A21: BA0580 | B21: - da privato | C21: =SUMIF('00 CE'!$B:$B,$A21,'00 CE'!G:G) -> 8757843.1 | D21: =SUMIF('00 CE'!$B:$B,$A21,'00 CE'!F:F) -> 8596847.06 | E21: 160996.04 | F21: 0.0187273356
A22: BA0590 | B22: Servizi sanitari per assistenza specialistica da IRCCS privati e Policlinici privati | C22: =SUMIF('00 CE'!$B:$B,$A22,'00 CE'!G:G) -> 60978.73 | D22: =SUMIF('00 CE'!$B:$B,$A22,'00 CE'!F:F) -> 44362.83 | E22: 16615.9 | F22: 0.3745455373
A23: BA0600 | B23: Servizi sanitari per assistenza specialistica da Ospedali Classificati privati | C23: =SUMIF('00 CE'!$B:$B,$A23,'00 CE'!G:G) -> 0 | D23: =SUMIF('00 CE'!$B:$B,$A23,'00 CE'!F:F) -> 0 | E23: 0 | F23: 0
A24: BA0610 | B24: Servizi sanitari per assistenza specialistica da Case di Cura private | C24: =SUMIF('00 CE'!$B:$B,$A24,'00 CE'!G:G) -> 5412858.87 | D24: =SUMIF('00 CE'!$B:$B,$A24,'00 CE'!F:F) -> 5364433.02 | E24: 48425.85 | F24: 0.009027207502
A25: BA0620 | B25: Servizi sanitari per assistenza specialistica da altri privati | C25: =SUMIF('00 CE'!$B:$B,$A25,'00 CE'!G:G) -> 3284005.5 | D25: =SUMIF('00 CE'!$B:$B,$A25,'00 CE'!F:F) -> 3188051.21 | E25: 95954.29 | F25: 0.03009810184
A26: BA0630 | B26: - da privato per cittadini non residenti - Extraregione (mobilità attiva in compensazione) | C26: =SUMIF('00 CE'!$B:$B,$A26,'00 CE'!G:G) -> 214698.2 | D26: =SUMIF('00 CE'!$B:$B,$A26,'00 CE'!F:F) -> 196243.85 | E26: 18454.35 | F26: 0.09403785138
B27: ACQUISTI DI SERVIZI SANITARI PER ASSISTENZA RIABILITATIVA | C27: =SUM(C28:C32) -> 19907207.98 | D27: =SUM(D28:D32) -> 19761859.14 | E27: 145348.84 | F27: 0.007355018522
A28: BA0650 | B28: - da pubblico (Aziende sanitarie pubbliche della Regione) | C28: =SUMIF('00 CE'!$B:$B,$A28,'00 CE'!G:G) -> 4855060.17 | D28: =SUMIF('00 CE'!$B:$B,$A28,'00 CE'!F:F) -> 4525129.8 | E28: 329930.37 | F28: 0.0729106975
A29: BA0660 | B29: - da pubblico (altri soggetti pubbl. della Regione) | C29: =SUMIF('00 CE'!$B:$B,$A29,'00 CE'!G:G) -> 0 | D29: =SUMIF('00 CE'!$B:$B,$A29,'00 CE'!F:F) -> 0 | E29: 0 | F29: 0
A30: BA0670 | B30: - da pubblico (Extraregione) non soggetti a compensazione | C30: =SUMIF('00 CE'!$B:$B,$A30,'00 CE'!G:G) -> 0 | D30: =SUMIF('00 CE'!$B:$B,$A30,'00 CE'!F:F) -> 0 | E30: 0 | F30: 0
A31: BA0680 | B31: - da privato (intraregionale) | C31: =SUMIF('00 CE'!$B:$B,$A31,'00 CE'!G:G) -> 14460769.46 | D31: =SUMIF('00 CE'!$B:$B,$A31,'00 CE'!F:F) -> 14443763.36 | E31: 17006.1 | F31: 0.001177400901
A32: BA0690 | B32: - da privato (extraregionale) | C32: =SUMIF('00 CE'!$B:$B,$A32,'00 CE'!G:G) -> 591378.35 | D32: =SUMIF('00 CE'!$B:$B,$A32,'00 CE'!F:F) -> 792965.98 | E32: -201587.63 | F32: -0.2542197712
B33: ACQUISTI DI SERVIZI SANITARI PER ASSISTENZA INTEGRATIVA | C33: =SUM(C34:C37) -> 1813040.82 | D33: =SUM(D34:D37) -> 1692964.4 | E33: 120076.42 | F33: 0.07092672474
A34: BA0710 | B34: - da pubblico (Aziende sanitarie pubbliche della Regione) | C34: =SUMIF('00 CE'!$B:$B,$A34,'00 CE'!G:G) -> 0 | D34: =SUMIF('00 CE'!$B:$B,$A34,'00 CE'!F:F) -> 0 | E34: 0 | F34: 0
A35: BA0720 | B35: - da pubblico (altri soggetti pubbl. della Regione) | C35: =SUMIF('00 CE'!$B:$B,$A35,'00 CE'!G:G) -> 0 | D35: =SUMIF('00 CE'!$B:$B,$A35,'00 CE'!F:F) -> 0 | E35: 0 | F35: 0
A36: BA0730 | B36: - da pubblico (Extraregione) | C36: =SUMIF('00 CE'!$B:$B,$A36,'00 CE'!G:G) -> 0 | D36: =SUMIF('00 CE'!$B:$B,$A36,'00 CE'!F:F) -> 0 | E36: 0 | F36: 0
A37: BA0740 | B37: - da privato | C37: =SUMIF('00 CE'!$B:$B,$A37,'00 CE'!G:G) -> 1813040.82 | D37: =SUMIF('00 CE'!$B:$B,$A37,'00 CE'!F:F) -> 1692964.4 | E37: 120076.42 | F37: 0.07092672474
B38: ACQUISTI DI SERVIZI SANITARI PER ASSISTENZA PROTESICA | C38: =SUM(C39:C42) -> 6384295.54 | D38: =SUM(D39:D42) -> 6610863.35 | E38: -226567.81 | F38: -0.03427204557
A39: BA0760 | B39: - da pubblico (Aziende sanitarie pubbliche della Regione) | C39: =SUMIF('00 CE'!$B:$B,$A39,'00 CE'!G:G) -> 0 | D39: =SUMIF('00 CE'!$B:$B,$A39,'00 CE'!F:F) -> 0 | E39: 0 | F39: 0
A40: BA0770 | B40: - da pubblico (altri soggetti pubbl. della Regione) | C40: =SUMIF('00 CE'!$B:$B,$A40,'00 CE'!G:G) -> 0 | D40: =SUMIF('00 CE'!$B:$B,$A40,'00 CE'!F:F) -> 0 | E40: 0 | F40: 0
A41: BA0780 | B41: - da pubblico (Extraregione) | C41: =SUMIF('00 CE'!$B:$B,$A41,'00 CE'!G:G) -> 0 | D41: =SUMIF('00 CE'!$B:$B,$A41,'00 CE'!F:F) -> 0 | E41: 0 | F41: 0
A42: BA0790 | B42: - da privato | C42: =SUMIF('00 CE'!$B:$B,$A42,'00 CE'!G:G) -> 6384295.54 | D42: =SUMIF('00 CE'!$B:$B,$A42,'00 CE'!F:F) -> 6610863.35 | E42: -226567.81 | F42: -0.03427204557
B43: ACQUISTI DI SERVIZI SANITARI PER ASSISTENZA OSPEDALIERA | C43: =C44+C45+C46+C47+C52 -> 125006439.5 | D43: =D44+D45+D46+D47+D52 -> 124912983.2 | E43: 93456.3 | F43: 0.0007481712276
A44: BA0810 | B44: - da pubblico (Aziende sanitarie pubbliche della Regione) | C44: =SUMIF('00 CE'!$B:$B,$A44,'00 CE'!G:G) -> 28230091.68 | D44: =SUMIF('00 CE'!$B:$B,$A44,'00 CE'!F:F) -> 28209224.37 | E44: 20867.31 | F44: 0.0007397335611
A45: BA0820 | B45: - da pubblico (altri soggetti pubbl. della Regione) | C45: =SUMIF('00 CE'!$B:$B,$A45,'00 CE'!G:G) -> 0 | D45: =SUMIF('00 CE'!$B:$B,$A45,'00 CE'!F:F) -> 0 | E45: 0 | F45: 0
A46: BA0830 | B46: - da pubblico (Extraregione) | C46: =SUMIF('00 CE'!$B:$B,$A46,'00 CE'!G:G) -> 23048879.05 | D46: =SUMIF('00 CE'!$B:$B,$A46,'00 CE'!F:F) -> 23636269.29 | E46: -587390.24 | F46: -0.02485122473
A47: BA0840 | B47: - da privato | C47: =SUMIF('00 CE'!$B:$B,$A47,'00 CE'!G:G) -> 61809764.72 | D47: =SUMIF('00 CE'!$B:$B,$A47,'00 CE'!F:F) -> 61570511.92 | E47: 239252.8 | F47: 0.003885834185
A48: BA0850 | B48: Servizi sanitari per assistenza ospedaliera da IRCCS privati e Policlinici privati | C48: =SUMIF('00 CE'!$B:$B,$A48,'00 CE'!G:G) -> 0 | D48: =SUMIF('00 CE'!$B:$B,$A48,'00 CE'!F:F) -> 0 | E48: 0 | F48: 0
A49: BA0860 | B49: Servizi sanitari per assistenza ospedaliera da Ospedali Classificati privati | C49: =SUMIF('00 CE'!$B:$B,$A49,'00 CE'!G:G) -> 0 | D49: =SUMIF('00 CE'!$B:$B,$A49,'00 CE'!F:F) -> 0 | E49: 0 | F49: 0
A50: BA0870 | B50: Servizi sanitari per assistenza ospedaliera da Case di Cura private | C50: =SUMIF('00 CE'!$B:$B,$A50,'00 CE'!G:G) -> 61809764.72 | D50: =SUMIF('00 CE'!$B:$B,$A50,'00 CE'!F:F) -> 61570511.92 | E50: 239252.8 | F50: 0.003885834185
A51: BA0880 | B51: Servizi sanitari per assistenza ospedaliera da altri privati | C51: =SUMIF('00 CE'!$B:$B,$A51,'00 CE'!G:G) -> 0 | D51: =SUMIF('00 CE'!$B:$B,$A51,'00 CE'!F:F) -> 0 | E51: 0 | F51: 0
A52: BA0890 | B52: - da privato per cittadini non residenti - Extraregione (mobilità attiva in compensazione) | C52: =SUMIF('00 CE'!$B:$B,$A52,'00 CE'!G:G) -> 11917704.07 | D52: =SUMIF('00 CE'!$B:$B,$A52,'00 CE'!F:F) -> 11496977.64 | E52: 420726.43 | F52: 0.03659452451
B53: ACQUISTI PRESTAZIONI DI PSICHIATRICA RESIDENZIALE E SEMIRESIDENZIALE | C53: =SUM(C54:C58) -> 13199111.06 | D53: =SUM(D54:D58) -> 13567821.24 | E53: -368710.18 | F53: -0.02717534182
A54: BA0910 | B54: - da pubblico (Aziende sanitarie pubbliche della Regione) | C54: =SUMIF('00 CE'!$B:$B,$A54,'00 CE'!G:G) -> 1648164.66 | D54: =SUMIF('00 CE'!$B:$B,$A54,'00 CE'!F:F) -> 1713800.54 | E54: -65635.88 | F54: -0.03829843583
A55: BA0920 | B55: - da pubblico (altri soggetti pubbl. della Regione) | C55: =SUMIF('00 CE'!$B:$B,$A55,'00 CE'!G:G) -> 0 | D55: =SUMIF('00 CE'!$B:$B,$A55,'00 CE'!F:F) -> 0 | E55: 0 | F55: 0
A56: BA0930 | B56: - da pubblico (Extraregione) - non soggette a compensazione | C56: =SUMIF('00 CE'!$B:$B,$A56,'00 CE'!G:G) -> 6667 | D56: =SUMIF('00 CE'!$B:$B,$A56,'00 CE'!F:F) -> 32900.5 | E56: -26233.5 | F56: -0.7973587028
A57: BA0940 | B57: - da privato (intraregionale) | C57: =SUMIF('00 CE'!$B:$B,$A57,'00 CE'!G:G) -> 9671880.59 | D57: =SUMIF('00 CE'!$B:$B,$A57,'00 CE'!F:F) -> 9642524.28 | E57: 29356.31 | F57: 0.003044463166
A58: BA0950 | B58: - da privato (extraregionale) | C58: =SUMIF('00 CE'!$B:$B,$A58,'00 CE'!G:G) -> 1872398.81 | D58: =SUMIF('00 CE'!$B:$B,$A58,'00 CE'!F:F) -> 2178595.92 | E58: -306197.11 | F58: -0.1405479131
B59: ACQUISTI PRESTAZIONI DI DISTRIBUZIONE FARMACI FILE F | C59: =SUM(C60:C65) -> 5976832.03 | D59: =SUM(D60:D65) -> 6195810.86 | E59: -218978.83 | F59: -0.03534304629
A60: BA0970 | B60: - da pubblico (Aziende sanitarie pubbliche della Regione) - Mobilità intraregionale | C60: =SUMIF('00 CE'!$B:$B,$A60,'00 CE'!G:G) -> 4391409.7 | D60: =SUMIF('00 CE'!$B:$B,$A60,'00 CE'!F:F) -> 5023688.81 | E60: -632279.11 | F60: -0.1258595295
A61: BA0980 | B61: - da pubblico (altri soggetti pubbl. della Regione) | C61: =SUMIF('00 CE'!$B:$B,$A61,'00 CE'!G:G) -> 0 | D61: =SUMIF('00 CE'!$B:$B,$A61,'00 CE'!F:F) -> 0 | E61: 0 | F61: 0
A62: BA0990 | B62: - da pubblico (Extraregione) | C62: =SUMIF('00 CE'!$B:$B,$A62,'00 CE'!G:G) -> 1585422.33 | D62: =SUMIF('00 CE'!$B:$B,$A62,'00 CE'!F:F) -> 1172122.05 | E62: 413300.28 | F62: 0.3526085701
A63: BA1000 | B63: - da privato (intraregionale) | C63: =SUMIF('00 CE'!$B:$B,$A63,'00 CE'!G:G) -> 0 | D63: =SUMIF('00 CE'!$B:$B,$A63,'00 CE'!F:F) -> 0 | E63: 0 | F63: 0
A64: BA1010 | B64: - da privato (extraregionale) | C64: =SUMIF('00 CE'!$B:$B,$A64,'00 CE'!G:G) -> 0 | D64: =SUMIF('00 CE'!$B:$B,$A64,'00 CE'!F:F) -> 0 | E64: 0 | F64: 0
A65: BA1020 | B65: - da privato per cittadini non residenti - Extraregione (mobilità attiva in compensazione) | C65: =SUMIF('00 CE'!$B:$B,$A65,'00 CE'!G:G) -> 0 | D65: =SUMIF('00 CE'!$B:$B,$A65,'00 CE'!F:F) -> 0 | E65: 0 | F65: 0
B66: ACQUISTI PRESTAZIONI TERMALI IN CONVENZIONE | C66: =SUM(C67:C71) -> 2288663.83 | D66: =SUM(D67:D71) -> 2454064.39 | E66: -165400.56 | F66: -0.06739862274
A67: BA1040 | B67: - da pubblico (Aziende sanitarie pubbliche della Regione) - Mobilità intraregionale | C67: =SUMIF('00 CE'!$B:$B,$A67,'00 CE'!G:G) -> 0 | D67: =SUMIF('00 CE'!$B:$B,$A67,'00 CE'!F:F) -> 46.2 | E67: -46.2
A68: BA1050 | B68: - da pubblico (altri soggetti pubbl. della Regione) | C68: =SUMIF('00 CE'!$B:$B,$A68,'00 CE'!G:G) -> 0 | D68: =SUMIF('00 CE'!$B:$B,$A68,'00 CE'!F:F) -> 0 | E68: 0 | F68: 0
A69: BA1060 | B69: - da pubblico (Extraregione) | C69: =SUMIF('00 CE'!$B:$B,$A69,'00 CE'!G:G) -> 159884.29 | D69: =SUMIF('00 CE'!$B:$B,$A69,'00 CE'!F:F) -> 199293.42 | E69: =C69-D69 -> -39409.13 | F69: =IF(AND(C69=0,D69=0),0,IF(C69=0,"",IF(D69=0,"",E69/D69))) -> -0.1977442607
A70: BA1070 | B70: - da privato | C70: =SUMIF('00 CE'!$B:$B,$A70,'00 CE'!G:G) -> 1888589.97 | D70: =SUMIF('00 CE'!$B:$B,$A70,'00 CE'!F:F) -> 1994460.87 | E70: =C70-D70 -> -105870.9 | F70: -0.05308246534
A71: BA1080 | B71: - da privato per cittadini non residenti - Extraregione (mobilità attiva in compensazione) | C71: =SUMIF('00 CE'!$B:$B,$A71,'00 CE'!G:G) -> 240189.57 | D71: =SUMIF('00 CE'!$B:$B,$A71,'00 CE'!F:F) -> 260263.9 | E71: =C71-D71 -> -20074.33 | F71: -0.0771306739
B73: Tab. 60 – Dettaglio acquisti di servizi sanitari – II parte
A74: CODICE MOD. CE | B74: DETTAGLIO ACQUISTI DI SERVIZI SANITARI | C74: ="Valore CE " &'00 Aggregatore'!$F$2 -> Valore CE 2017 | D74: ="Valore CE " &'00 Aggregatore'!$F$2 -1 -> Valore CE 2016 | E74: Variazioni importo | F74: Variazioni %
B76: ACQUISTI PRESTAZIONI DI TRASPORTO SANITARIO | C76: =SUM(C77:C80) -> 8512737.85 | D76: =SUM(D77:D80) -> 7430925.16 | E76: =C76-D76 -> 1081812.69 | F76: =IF(AND(C76=0,D76=0),0,IF(C76=0,"",IF(D76=0,"",E76/D76))) -> 0.1455825038
A77: BA1100 | B77: - da pubblico (Aziende sanitarie pubbliche della Regione) - Mobilità intraregionale | C77: =SUMIF('00 CE'!$B:$B,$A77,'00 CE'!G:G) -> 124342.79 | D77: =SUMIF('00 CE'!$B:$B,$A77,'00 CE'!F:F) -> 76616.54 | E77: 47726.25 | F77: 0.622923588
A78: BA1110 | B78: - da pubblico (altri soggetti pubbl. della Regione) | C78: =SUMIF('00 CE'!$B:$B,$A78,'00 CE'!G:G) -> 0 | D78: =SUMIF('00 CE'!$B:$B,$A78,'00 CE'!F:F) -> 0 | E78: 0 | F78: 0
A79: BA1120 | B79: - da pubblico (Extraregione) | C79: =SUMIF('00 CE'!$B:$B,$A79,'00 CE'!G:G) -> 228483.68 | D79: =SUMIF('00 CE'!$B:$B,$A79,'00 CE'!F:F) -> 91959.29 | E79: 136524.39 | F79: 1.484617704
A80: BA1130 | B80: - da privato | C80: =SUMIF('00 CE'!$B:$B,$A80,'00 CE'!G:G) -> 8159911.38 | D80: =SUMIF('00 CE'!$B:$B,$A80,'00 CE'!F:F) -> 7262349.33 | E80: 897562.05 | F80: 0.1235911424
B81: ACQUISTI PRESTAZIONI SOCIO-SANITARIE A RILEVANZA SANITARIA | C81: =SUM(C82:C86) -> 16209312.37 | D81: =SUM(D82:D86) -> 16691623.42 | E81: -482311.05 | F81: -0.02889539489
A82: BA1150 | B82: - da pubblico (Aziende sanitarie pubbliche della Regione) - Mobilità intraregionale | C82: =SUMIF('00 CE'!$B:$B,$A82,'00 CE'!G:G) -> 1737461.12 | D82: =SUMIF('00 CE'!$B:$B,$A82,'00 CE'!F:F) -> 1929611.4 | E82: -192150.28 | F82: -0.09957978068
A83: BA1160 | B83: - da pubblico (altri soggetti pubblici della Regione) | C83: =SUMIF('00 CE'!$B:$B,$A83,'00 CE'!G:G) -> 0 | D83: =SUMIF('00 CE'!$B:$B,$A83,'00 CE'!F:F) -> 0 | E83: 0 | F83: 0
A84: BA1170 | B84: - da pubblico (Extraregione) non soggette a compensazione | C84: =SUMIF('00 CE'!$B:$B,$A84,'00 CE'!G:G) -> 168459.48 | D84: =SUMIF('00 CE'!$B:$B,$A84,'00 CE'!F:F) -> 334811.51 | E84: -166352.03 | F84: -0.4968527814
A85: BA1180 | B85: - da privato (intraregionale) | C85: =SUMIF('00 CE'!$B:$B,$A85,'00 CE'!G:G) -> 12551624.02 | D85: =SUMIF('00 CE'!$B:$B,$A85,'00 CE'!F:F) -> 12820370.06 | E85: -268746.04 | F85: -0.02096242454
A86: BA1190 | B86: - da privato (extraregionale) | C86: =SUMIF('00 CE'!$B:$B,$A86,'00 CE'!G:G) -> 1751767.75 | D86: =SUMIF('00 CE'!$B:$B,$A86,'00 CE'!F:F) -> 1606830.45 | E86: 144937.3 | F86: 0.09020074271
A87: BA1200 | B87: COMPARTECIPAZIONE AL PERSONALE PER ATT. LIBERO-PROF. (INTRAMOENIA) | C87: =SUMIF('00 CE'!$B:$B,$A87,'00 CE'!G:G) -> 3293488.61 | D87: =SUMIF('00 CE'!$B:$B,$A87,'00 CE'!F:F) -> 3292642.69 | E87: =C87-D87 -> 845.92 | F87: 0.0002569121765
B88: RIMBORSI ASSEGNI E CONTRIBUTI SANITARI | C88: =SUM(C89:C94) -> 1751188.45 | D88: =SUM(D89:D94) -> 2158483.72 | E88: -407295.27 | F88: -0.1886950855
A89: BA1290 | B89: Contributi ad associazioni di volontariato | C89: =SUMIF('00 CE'!$B:$B,$A89,'00 CE'!G:G) -> 326600 | D89: =SUMIF('00 CE'!$B:$B,$A89,'00 CE'!F:F) -> 473982 | E89: -147382 | F89: -0.3109442975
A90: BA1300 | B90: Rimborsi per cure all'estero | C90: =SUMIF('00 CE'!$B:$B,$A90,'00 CE'!G:G) -> 0 | D90: =SUMIF('00 CE'!$B:$B,$A90,'00 CE'!F:F) -> 15911.61 | E90: -15911.61
A91: BA1310 | B91: Contributi a società partecipate e/o enti dipendenti della Regione | C91: =SUMIF('00 CE'!$B:$B,$A91,'00 CE'!G:G) -> 0 | D91: =SUMIF('00 CE'!$B:$B,$A91,'00 CE'!F:F) -> 0 | E91: 0 | F91: 0
A92: BA1320 | B92: Contributo Legge 210/92 | C92: =SUMIF('00 CE'!$B:$B,$A92,'00 CE'!G:G) -> 0 | D92: =SUMIF('00 CE'!$B:$B,$A92,'00 CE'!F:F) -> 0 | E92: 0 | F92: 0
A93: BA1330 | B93: Altri rimborsi, assegni e contributi | C93: =SUMIF('00 CE'!$B:$B,$A93,'00 CE'!G:G) -> 1424508.45 | D93: =SUMIF('00 CE'!$B:$B,$A93,'00 CE'!F:F) -> 1482389.11 | E93: -57880.66 | F93: -0.03904552429
A94: BA1340 | B94: Rimborsi, assegni e contributi v/Aziende sanitarie pubbliche della Regione | C94: =SUMIF('00 CE'!$B:$B,$A94,'00 CE'!G:G) -> 80 | D94: =SUMIF('00 CE'!$B:$B,$A94,'00 CE'!F:F) -> 186201 | E94: -186121 | F94: -0.9995703568
B95: CONSULENZE, COLLABORAZIONI, INTERINALE, ALTRE PRESTAZIONI DI LAVORO SANITARIE E SOCIOSANITARIE | C95: =SUM(C96:C98)+C108 -> 6723251.46 | D95: =SUM(D96:D98)+D108 -> 6203271.47 | E95: =SUM(E96:E98)+E108 -> 519979.99 | F95: 0.08382351031
A96: BA1360 | B96: Consulenze sanitarie e sociosan. da Aziende sanitarie pubbliche della Regione | C96: =SUMIF('00 CE'!$B:$B,$A96,'00 CE'!G:G) -> 298526.69 | D96: =SUMIF('00 CE'!$B:$B,$A96,'00 CE'!F:F) -> 368369.4 | E96: -69842.71 | F96: -0.1895996519
A97: BA1370 | B97: Consulenze sanitarie e sociosanit. da terzi - Altri soggetti pubblici | C97: =SUMIF('00 CE'!$B:$B,$A97,'00 CE'!G:G) -> 24433.75 | D97: =SUMIF('00 CE'!$B:$B,$A97,'00 CE'!F:F) -> 90118.47 | E97: -65684.72 | F97: -0.7288707853
A98: BA1380 | B98: Consulenze, Collaborazioni, Interinale e altre prestazioni di lavoro sanitarie e socios. da privato | C98: =SUMIF('00 CE'!$B:$B,$A98,'00 CE'!G:G) -> 6390500.93 | D98: =SUMIF('00 CE'!$B:$B,$A98,'00 CE'!F:F) -> 5703679.15 | E98: 686821.78 | F98: 0.120417324
A99: BA1390 | B99: Consulenze sanitarie da privato - articolo 55, comma 2, CCNL 8 giugno 2000 | C99: =SUMIF('00 CE'!$B:$B,$A99,'00 CE'!G:G) -> 2372315.18 | D99: =SUMIF('00 CE'!$B:$B,$A99,'00 CE'!F:F) -> 2656011.58 | E99: -283696.4 | F99: -0.1068129379
A100: BA1400 | B100: Altre consulenze sanitarie e sociosanitarie da privato | C100: =SUMIF('00 CE'!$B:$B,$A100,'00 CE'!G:G) -> 8005.29 | D100: =SUMIF('00 CE'!$B:$B,$A100,'00 CE'!F:F) -> 9289.34 | E100: -1284.05 | F100: -0.1382283348
A101: BA1410 | B101: Collaborazioni coordinate e continuative sanitarie e socios. da privato | C101: =SUMIF('00 CE'!$B:$B,$A101,'00 CE'!G:G) -> 8413.12 | D101: =SUMIF('00 CE'!$B:$B,$A101,'00 CE'!F:F) -> 13270.74 | E101: -4857.62 | F101: -0.3660398742
A102: BA1420 | B102: Indennità a personale universitario - area sanitaria | C102: =SUMIF('00 CE'!$B:$B,$A102,'00 CE'!G:G) -> 242210.34 | D102: =SUMIF('00 CE'!$B:$B,$A102,'00 CE'!F:F) -> 252571.97 | E102: -10361.63 | F102: -0.04102446522
A103: BA1430 | B103: Lavoro interinale - area sanitaria | C103: =SUMIF('00 CE'!$B:$B,$A103,'00 CE'!G:G) -> 2608784.9 | D103: =SUMIF('00 CE'!$B:$B,$A103,'00 CE'!F:F) -> 1558908.64 | E103: 1049876.26 | F103: 0.6734687544
A104: BA1440 | B104: Altre collaborazioni e prestazioni di lavoro - area sanitaria | C104: =SUMIF('00 CE'!$B:$B,$A104,'00 CE'!G:G) -> 1150772.1 | D104: =SUMIF('00 CE'!$B:$B,$A104,'00 CE'!F:F) -> 1213626.88 | E104: -62854.78 | F104: -0.05179086014
A105: BA1450 | B105: Rimborso oneri stipendiali del personale sanitario in comando | C105: =SUMIF('00 CE'!$B:$B,$A105,'00 CE'!G:G) -> 9790.09 | D105: =SUMIF('00 CE'!$B:$B,$A105,'00 CE'!F:F) -> 41104.45 | E105: -31314.36 | F105: -0.7618240847
A106: BA1460 | B106: Rimborso oneri stipendiali personale sanitario in comando da Aziende sanitarie pubbliche della Regione | C106: =SUMIF('00 CE'!$B:$B,$A106,'00 CE'!G:G) -> 0 | D106: =SUMIF('00 CE'!$B:$B,$A106,'00 CE'!F:F) -> 0 | E106: 0 | F106: 0
A107: BA1470 | B107: Rimborso oneri stipendiali personale sanitario in comando da Regioni, soggetti pubblici e da Università | C107: =SUMIF('00 CE'!$B:$B,$A107,'00 CE'!G:G) -> 0 | D107: =SUMIF('00 CE'!$B:$B,$A107,'00 CE'!F:F) -> 0 | E107: 0 | F107: 0
A108: BA1480 | B108: Rimborso oneri stipendiali personale sanitario in comando da aziende di altre Regioni (Extraregione) | C108: =SUMIF('00 CE'!$B:$B,$A108,'00 CE'!G:G) -> 9790.09 | D108: =SUMIF('00 CE'!$B:$B,$A108,'00 CE'!F:F) -> 41104.45 | E108: -31314.36 | F108: -0.7618240847
B109: ALTRI SERVIZI SANITARI E SOCIOSANITARI A RILEVANZA SANITARIA | C109: =SUM(C110:C114) -> 2754715.62 | D109: =SUM(D110:D114) -> 2513700.47 | E109: 241015.15 | F109: 0.0958806162
A110: BA1500 | B110: Altri servizi sanitari e sociosanitari a rilevanza sanitaria da pubblico - Aziende sanitarie pubbliche della Regione | C110: =SUMIF('00 CE'!$B:$B,$A110,'00 CE'!G:G) -> 13109.54 | D110: =SUMIF('00 CE'!$B:$B,$A110,'00 CE'!F:F) -> 50483.02 | E110: -37373.48 | F110: -0.7403178336
A111: BA1510 | B111: Altri servizi sanitari e sociosanitari a rilevanza sanitaria da pubblico - Altri soggetti pubblici della Regione | C111: =SUMIF('00 CE'!$B:$B,$A111,'00 CE'!G:G) -> 0 | D111: =SUMIF('00 CE'!$B:$B,$A111,'00 CE'!F:F) -> 0 | E111: 0 | F111: 0
A112: BA1520 | B112: Altri servizi sanitari e sociosanitari a rilevanza sanitaria da pubblico (Extraregione) | C112: =SUMIF('00 CE'!$B:$B,$A112,'00 CE'!G:G) -> 0 | D112: =SUMIF('00 CE'!$B:$B,$A112,'00 CE'!F:F) -> 0 | E112: 0 | F112: 0
A113: BA1530 | B113: Altri servizi sanitari da privato | C113: =SUMIF('00 CE'!$B:$B,$A113,'00 CE'!G:G) -> 2741606.08 | D113: =SUMIF('00 CE'!$B:$B,$A113,'00 CE'!F:F) -> 2463217.45 | E113: 278388.63 | F113: 0.1130182924
A114: BA1540 | B114: Costi per servizi sanitari - Mobilità internazionale passiva | C114: =SUMIF('00 CE'!$B:$B,$A114,'00 CE'!G:G) -> 0 | D114: =SUMIF('00 CE'!$B:$B,$A114,'00 CE'!F:F) -> 0 | E114: 0 | F114: 0
A115: BA1550 | B115: COSTI PER DIFFERENZIALE TARIFFE TUC | C115: =SUMIF('00 CE'!$B:$B,$A115,'00 CE'!G:G) -> 0 | D115: =SUMIF('00 CE'!$B:$B,$A115,'00 CE'!F:F) -> 0 | E115: 0 | F115: 0
B116: TOTALE | C116: =C66+C59+C53+C43+C38+C33+C27+C16+C12+C4+C76+C81+C87+C88+C95+C109+C115 -> 331559072.4 | D116: =D66+D59+D53+D43+D38+D33+D27+D16+D12+D4+D76+D81+D87+D88+D95+D109+D115 -> 329975343.6 | E116: 1583728.76 | F116: 0.004799536664

Sheet Farmaceutica Convenzionata
A1: DETTAGLIO SPESA FARMACEUTICA CONVENZIONATA
A5: Spesa Farmaceutica Convenzionata Consuntivo 2016
A6: Spesa farmaceutica netta | B6: 52765815.09
A7: Contributo ENFAP | B7: 30403.76
A8: Contributi a farmacie rurali | B8: 127926.47
A9: Altro (*)
A10: TOTALE | B10: =SUM(B6:B9) -> 52924145.32
A11: valori in €
A13: TICKET - DECRETO COMMISSARIALE N. 103 DEL 21/09/2016
A15: Il Decreto Commissariale n. 103 del 21/09/2016, avente ad oggetto "Sisma Italia Centrale del 24/08/2016. Misure in materia di assistenza
A16: farmaceutica a favore della popolazione residente nei Comuni interessati dal terremoto - Regione Abruzzo, Lazio e Marche", ha disposto
A17: l'esenzione dalla compartecipazione alla spesa farmaceutica a tutti i cittadini residenti nei Comuni di Montereale (AQ), Capitignano (AQ),
A18: Campotosto (AQ), Valle Castellana (TE), Rocca Santa Maria (TE) fino al 28/02/2017. Ha disposto, inoltre, che "le farmacie convenzionate
A19: pubbliche e private che operano sul territorio della Regione Abruzzo possano spedire ricette SSN (sia cartacee che dematerializzate)
A20: provenienti dalle predette Regioni Lazio e Marche che contengono il codice di esenzione T016, esentando totalmente i relativi assistiti dalla
A21: compartecipazione alla spesa farmaceutica…" ed al punto 8 del dispositivo ha precisato che "gli oneri derivanti da tali prescrizioni saranno
A22: riconosciuti dalla predette Regioni nell'ambito della compensazione interregionale della mobilità sanitaria".
A23: Tale decreto è stato integrato e prorogato, a seguito di ulteriori eventi sismici, con la D.G.R. n. 96 del 28/02/2017.
A24: Di seguito si espongono i minori ricavi relativi all'esercizio 2017 per esenzione ticket di cui al DCA n. 103 del 21/09/2016, integrato
A25: e prorogato con DGR n. 96 del 28/02/2017, come elaborati dalla ditta Recordata Srl e comunicati dal servizio Farmaceutica Convenzionata
A26: con nota prot.551 del 15/02/18:
A29: Periodo | B29: Azienda di residenza assistito | C29: Provincia Assistito | D29: Spesa Lorda | E29: Spesa Netta | F29: Ticket non Riscosso | G29: Spesa Netta Teorica
A30: 201701 | B30: 201 | C30: ASCOLI PICENO (AP) | D30: 21.45 | E30: 20.01 | F30: 2 | G30: 18.01
A31: 201701 | B31: 201 | C31: MACERATA (MC) | D31: 153.04 | E31: 147.12 | F31: 17.81 | G31: 129.31
A32: 201701 | B32: 204 | D32: 157.62 | E32: 147.95 | F32: 33.34 | G32: 114.61
A33: 201702 | B33: 201 | C33: ASCOLI PICENO (AP) | D33: 139.35 | E33: 129.41 | F33: 27.84 | G33: 101.57
A34: 201702 | B34: 201 | C34: MACERATA (MC) | D34: 174.77 | E34: 168.41 | F34: 23.01 | G34: 145.4
A35: 201702 | B35: 204 | D35: 139.24 | E35: 130.5 | F35: 23.81 | G35: 106.69
A36: 201703 | B36: 201 | D36: 35.58 | E36: 33.44 | F36: 6 | G36: 27.44
A37: 201703 | B37: 201 | C37: ASCOLI PICENO (AP) | D37: 43.45 | E37: 41.18 | F37: 5.48 | G37: 35.7
A38: 201703 | B38: 201 | C38: MACERATA (MC) | D38: 75.55 | E38: 72.24 | F38: 22.52 | G38: 49.72
A39: 201703 | B39: 202 | C39: PERUGIA (PG) | D39: 52.7 | E39: 49.47 | F39: 16.86 | G39: 32.61
A40: 201703 | B40: 204 | D40: 44.27 | E40: 41.84 | F40: 12.46 | G40: 29.38
A41: 201704 | B41: 201 | D41: 23.08 | E41: 22.6 | F41: 4.5 | G41: 18.1
A42: 201704 | B42: 201 | C42: MACERATA (MC) | D42: 81.18 | E42: 78.27 | F42: 14.3 | G42: 63.97
A43: 201704 | B43: 204 | D43: 112.4 | E43: 106.17 | F43: 30.83 | G43: 75.34
A44: 201705 | B44: 204 | D44: 829.91 | E44: 763.97 | F44: 130.01 | G44: 633.96
A45: 201706 | B45: 204 | D45: 198.23 | E45: 184.31 | F45: 37.63 | G45: 146.68
A46: 201707 | B46: 204 | D46: 8.36 | E46: 7.84 | F46: 1 | G46: 6.84
A47: 201709 | B47: 204 | D47: 44.98 | E47: 41.98 | F47: 4 | G47: 37.98
C48: Totali | D48: =SUM(D30:D47) -> 2335.16 | E48: =SUM(E30:E47) -> 2186.71 | F48: =SUM(F30:F47) -> 413.4 | G48: =SUM(G30:G47) -> 1773.31
C49: SubTotali | D49: =SUBTOTAL(9,D30:D47) -> 2335.16 | E49: =SUBTOTAL(9,E30:E47) -> 2186.71 | F49: =SUBTOTAL(9,F30:F47) -> 413.4 | G49: =SUBTOTAL(9,G30:G47) -> 1773.31

Sheet AS01-AS02
A1: Altre informazioni relative a acquisti di servizi
A3: Informazione | C3: Caso presente in azienda? | E3: Se sì, illustrare
A4: AS01. Sono state rilevate significative variazioni rispetto all'esercizio precedente? | D4: SI | E4: Si veda commento sottostante.
A6: Complessivamente, il costo totale per l'acquisto di servizi sanitari ha subito un lieve incremento di €/000 1.584, dovuto essenzialmente alle variazioni di seguito specificate.
A7: Il costo per acquisti di servizi sanitari per assistenza specialistica ambulatoriale è aumentato rispetto al 2016 di €/000 1.814, sostanzialmente per effetto della mobilità passiva infraregionale (+ €/000 473) ed extraregionale (+ €/000 1.411) da pubblico;
A8: Il costo per acquisti di servizi sanitari - medicina di base si è ridotto rispetto al 2016 di €/000 491. Tale variazione è ascrivibile principalmente alla riduzione del numero di accessi ADI (Assistenza Domiciliare Integrata) e ADP (Assistenza Domiciliare Programmata).
A9: Il costo per acquisti di prestazioni di psichiatria residenziale e semiresidenziale è diminuito di circa €/000 369. In particolare si è ridotto il costo per l'acquisto di prestazioni psichiatriche da strutture psicoriabilitative ubicate presso altre Regioni.
A10: Il costo per acquisti di prestazioni di trasporto sanitario è aumentato di circa €/000 1.082. Esso è essenzialmente riconducibile al costo del servizio di elisoccorso, affidato a livello regionale nel 2017 alla ditta BABCOCK MISSION CRITICAL SERV. ITALIA SPA. Nello specifico, il contratto prevede che la ASL di Pescara sostenga i costi anche per conto delle altre AASSLL, costi che sono classificati alla voce CE BA1130. A fronte di tali costi, la ASL di Pescara riceve dalla Regione specifiche assegnazioni per l'elisoccorso, che vengono contabilizzate come Contributi in c/esercizio per funzioni regionali.
A11: Il costo per acquisto di prestazioni socio-sanitarie a rilevanza sanitaria è diminuito di circa €/000 482 Tale variazione ha riguardato in particolare gli acquisti infraregionali da privato di prestazioni di assistenza domiciliare, gli acquisti da pubblico extraregione per assistenza geriatrica e gli acquisti da privato intraregionale per assistenza a tossicodipendenti ed alcolisti.
A12: I rimborsi, assegni e contributi sanitari sono diminuiti di circa €/000 407, a causa della riduzione dei contributi erogati a favore delle associazioni di volontariato (- €/000 147) e dei minori contributi v/ASL della Regione (in particolare, nel 2016 era stato erogato dalla Regione un contributo per la Tutela della salute mentale della donna, che la ASL di Pescara, in qualità di coordinatrice del progetto, aveva a sua volta assegnato alle altre AASSLL della Regione, rilevando un costo di €/000 186. Tale contributo non è presente nell'esercizio 2017).
A13: Il costo per Consulenze, collaborazioni, interninale ed altre prestazioni di lavoro sanitarie e sociosanitarie è aumentato di €/000 520. Tale variazione è imputabile essenzialmente ai maggiori costi sostenuti dall'azienda per lavoro interinale relativo all'area sanitaria, solo in parte compensati dalla riduzione della spesa per consulenze sanitarie da privato ex art. 55, comma 2, CCNL 8 giugno 2000 (quest'ultima voce di costo è dettagliata alla Tabella 60-bis).
A15: Si rappresenta di seguito la suddivisione del costo medici SUMAI tra le varie tipologie specialistiche:
A17: Voce CE | B17: Veterinari | D17: Psicologi | F17: Medici Ambulatoriali Interni | J17: TOTALE COSTO MEDICI SUMAI
A18: BA0570 | B18: 262838.03 | D18: 136548.89 | F18: 4499764.13 | J18: =SUM(B18:G18) -> 4899151.05
A20: Si precisa che nel costo della Specialistica ambulatoriale è compresa anche la spesa sostenuta per la Penitenziaria ed il Sert, in quanto queste ultime prestazioni vengono rese dagli stessi medici specialisti che contemporaneamente lavorano presso i Distretti.
A22: AS02 - Costi per prestazioni sanitarie da privato
A25: AS02 - Costi per prestazioni sanitarie da privato
A26: AS02 - SI | B26: Con riferimento ai costi per acquisto da privati accreditati di prestazioni sanitarie si evidenzia per l’anno 2017 un volume complessivo del fatturato prodotto leggermente superiore ai tetti di spesa assegnati. Le prestazioni in Riabilitazione ex art. 26, R.S.A., Ambulatoriali Branche a Visita e Termali presentano un fatturato complessivo entro i tetti di spesa annuale assegnati; per le prestazioni in R.A. si è già provveduto al saldo finale di liquidazione con il pieno rispetto del Budget assegnato; le prestazioni di Ricoveri ospedalieri, Psico- riabilitazione e Ambulatoriali presentano un surplus di fatturato rispetto al budget assegnato che dovrà essere riassorbito a seguito dell'emissione di apposite note di credito da parte delle strutture interessate.
B29: DETTAGLIO SCOSTAMENTI FATTURATO/BUDGET PER SPECIALITA'
B31: Tipologia | C31: Fatturato | D31: Budget | E31: Scostamento
B33: RICOVERI | C33: 73817692 | D33: 73127326 | E33: =C33-D33 -> 690366
B34: RES. PROT. | C34: 8901463 | D34: 8578336 | E34: =C34-D34 -> 323127
B35: R.S.A. | C35: 4620329 | D35: 4763464 | E35: -143135
B36: R.A. | C36: 772776 | D36: 772776 | E36: 0
B37: TERMALI | C37: 2638644 | D37: 3286169 | E37: -647525
B38: RIABILITAZIONE | C38: 14460769 | D38: 14535122 | E38: -74353
B39: AMB. C.D.C. | C39: 6970009 | D39: 6806648 | E39: 163361
B40: AMB. PRIV. | C40: 3520897 | D40: 3508650 | E40: 12247
B41: BRAN. A VISIT. | C41: 30679 | D41: 45260 | E41: -14581
B42: TOTALE GENERALE | C42: =SUM(C33:C41) -> 115733258 | D42: 115423751 | E42: =SUM(E33:E41) -> 309507

Sheet Tab 60-bis
A1: Tabella 60-bis - Consulenze sanitarie da privato - articolo 55, comma2, CCNL 8 giugno 2000
A3: Si riporta di seguito il dettaglio dei costi per Consulenze sanitarie da privato - articolo 55, comma2, CCNL 8 giugno 2000, contabilizzate nella voce di conto 0702011503.
A5: Dettaglio composizione voce BA1390 Consulenze Sanitarie da Privato CONSUNTIVO 2017
A6: Medici | B6: Sede di appartenenza | C6: Linee di attività | D6: Motivazione | E6: Sede di Erogazione della prestazione | F6: Importo | G6: Irap | H6: Totale | I6: Note
A9: Personale Medico | B9: UOC Centro Trasfusionale | C9: Attività Ambulatoriale | D9: Raccolta Sangue | E9: PO Pescara - PO Penne - PO Popoli | F9: 153032.25 | G9: 13007.67 | H9: 166039.92
A10: Personale Medico | B10: UOC Nefrologia e Dialisi | C10: Trattamenti Dialitici | D10: 3° Turno di Dialisi | E10: PO Pescara | F10: 94740 | G10: 8052.91 | H10: 102792.91
A11: Personale Medico | B11: UOC Anestesia e Rianimazione | C11: Sedute Operatorie | D11: Riduzione Liste d'Attesa | E11: PO Pescara - PO Penne - PO Popoli | F11: 62640 | G11: 5324.41 | H11: 67964.41
A12: Personale Medico | B12: UOC Radioterapia | C12: Trattamenti Radioterapici | D12: Riduzione Liste d'Attesa | E12: PO Pescara - PO Penne - PO Popoli | F12: 23580 | G12: 2004.31 | H12: 25584.31
A13: Personale Medico | B13: UOC Diagnostica per Immagini | C13: Attività Ambulatoriale | D13: Riduzione Liste d'Attesa | E13: PO Pescara - PO Penne - PO Popoli | F13: 0 | G13: 0 | H13: 0
A14: Personale Medico | B14: UOC Geriatria | C14: Attività Domiciliare | D14: Deospedalizzazione | E14: PO Pescara | F14: 6240 | G14: 530.41 | H14: 6770.41
A15: Personale Medico | B15: UOC Ematologia | C15: Attività Domiciliare | D15: Deospedalizzazione | E15: PO Pescara | F15: 157903 | G15: 13421.75 | H15: 171324.75
A16: Personale Medico | B16: UOS Assistenza Intermedia | C16: Attività Domiciliare | D16: Deospedalizzazione | E16: PO Pescara | F16: 34954 | G16: 2971.1 | H16: 37925.1
A17: Personale Medico | B17: UO varie | C17: Turni Guardia Notturna | D17: Carenza Personale | E17: PO Pescara - PO Penne - PO Popoli | F17: 200640 | G17: 17054.4 | H17: 217694.4
A18: Personale Medico | B18: UOC Servizio Territoriale 118 | C18: Turni Guardia Notturna | D18: Carenza Personale | E18: Area Territoriale Asl Pescara | F18: 151680 | G18: 12892.77 | H18: 164572.77
A19: Personale Medico | B19: UO varie | C19: Attività Ambulatoriale | D19: Riduzione Liste d'Attesa | E19: PO Pescara - PO Penne - PO Popoli | F19: 25942.09 | G19: 2205.02 | H19: 28147.11
A20: Personale Medico | B20: UOC Pronto Soccorso | C20: Turni Guardia Notturna | D20: Carenza Personale | E20: PO Pescara - PO Penne - PO Popoli | F20: 1920 | G20: 163.2 | H20: 2083.2
A21: Personale Medico | B21: UOC Laboratorio Analisi | C21: Attività Ambulatoriale | D21: Convenzione Forze Ordine | E21: PO Pescara | F21: 28988.14 | G21: 2464 | H21: 31452.14
A22: Personale Medico | B22: UO varie Area Chirurgica | C22: Sedute Operatorie | D22: Riduzione Liste d'Attesa | E22: PO Pescara - PO Penne - PO Popoli | F22: 147291.37 | G22: 12496.27 | H22: 159787.64
A23: Personale Medico | B23: UO varie | C23: Turni Aggiuntivi Eventi Sportivi | D23: Convenzione Ente Comune | E23: PO Pescara | F23: 32146 | G23: 2732.41 | H23: 34878.41
A24: Personale Medico | B24: UO varie | C24: Convenzioni Varie | D24: Convenzione Enti Diversi | E24: PO Pescara | F24: 14158.35 | G24: 1203.48 | H24: 15361.83
A25: Totale (A) | F25: =SUM(F9:F24) -> 1135855.2 | G25: =SUM(G9:G24) -> 96524.11 | H25: 1232379.31
A27: Altre Qualifiche Professionali (Specificare) | B27: Sede di appartenenza | C27: Linee di attività | D27: Motivazione | E27: Sede di Erogazione della prestazione | F27: Importo | G27: Irap | H27: Totale | I27: Note
A30: Equipe di Supporto | B30: UOC Centro Trasfusionale | C30: Attività Ambulatoriale | D30: Raccolta Sangue | E30: PO Pescara - PO Penne - PO Popoli | F30: 235482.63 | G30: 16162.37 | H30: 251645
A31: Equipe di Supporto | B31: UOC Nefrologia e Dialisi | C31: Trattamenti Dialitici | D31: 3° Turno di Dialisi | E31: PO Pescara | F31: 309865.97 | G31: 21275.15 | H31: 331141.12
A32: Equipe di Supporto | B32: UOC Anestesia e Rianimazione | C32: Sedute Operatorie | D32: Riduzione Liste d'Attesa | E32: PO Pescara - PO Penne - PO Popoli | F32: 166889.1 | G32: 11458.85 | H32: 178347.95
A33: Equipe di Supporto | B33: UOC Radioterapia | C33: Trattamenti Radioterapici | D33: Riduzione Liste d'Attesa | E33: PO Pescara - PO Penne - PO Popoli | F33: 55303.43 | G33: 3797.23 | H33: 59100.66
A34: Equipe di Supporto | B34: UOC Diagnostica per Immagini | C34: Attività Ambulatoriale | D34: Riduzione Liste d'Attesa | E34: PO Pescara - PO Penne - PO Popoli | F34: 0 | G34: 0 | H34: 0
A35: Equipe di Supporto | B35: UOC Geriatria | C35: Attività Domiciliare | D35: Deospedalizzazione | E35: PO Pescara | F35: 0 | G35: 0 | H35: 0
A36: Equipe di Supporto | B36: UOC Ematologia | C36: Attività Domiciliare | D36: Deospedalizzazione | E36: PO Pescara | F36: 81359.03 | G36: 5586.52 | H36: 86945.55
A37: Equipe di Supporto | B37: UOS Assistenza Intermedia | C37: Attività Domiciliare | D37: Deospedalizzazione | E37: PO Pescara | F37: 26382.96 | G37: 1811.49 | H37: 28194.45
A38: Equipe di Supporto | B38: UOC Centro Trasfusionale | C38: Attività Ambulatoriale | D38: Raccolta Sangue | E38: PO Pescara - PO Penne - PO Popoli | F38: 38764.95 | G38: 3294.98 | H38: 42059.93
A39: Equipe di Supporto | B39: UOC Radioterapia | C39: Trattamenti Radioterapici | D39: Riduzione Liste d'Attesa | E39: PO Pescara - PO Penne - PO Popoli | F39: 2280 | G39: 193.8 | H39: 2473.8
A40: Equipe di Supporto | B40: UO varie | C40: Attività Ambulatoriale | D40: Riduzione Liste d'Attesa | E40: PO Pescara - PO Penne - PO Popoli | F40: 21695.24 | G40: 1489.44 | H40: 23184.68
A41: Equipe di Supporto | B41: UOC Laboratorio Analisi | C41: Attività Ambulatoriale | D41: Convenzione Forze Ordine | E41: PO Pescara | F41: 107741.5 | G41: 7674.26 | H41: 115415.76
A42: Equipe di Supporto | B42: UO varie Area Chirurgica | C42: Sedute Operatorie | D42: Riduzione Liste d'Attesa | E42: PO Pescara - PO Penne - PO Popoli | F42: 146060.47 | G42: 10425.79 | H42: 156486.26
A43: Equipe di Supporto | B43: UO varie | C43: Turni Aggiuntivi Eventi Sportivi | D43: Convenzione Ente Comune | E43: PO Pescara | F43: 37497.97 | G43: 2574.61 | H43: 40072.58
A44: Equipe di Supporto | B44: UO varie | C44: Convenzioni Varie | D44: Convenzione Enti Diversi | E44: PO Pescara | F44: 7136.73 | G44: 555.11 | H44: 7691.84
A46: Totale (B) | F46: =SUM(F30:F45) -> 1236459.98 | G46: =SUM(G30:G45) -> 86299.6 | H46: 1322759.58
A47: TOTALE ( A+B) | F47: =+F46+F25 -> 2372315.18 | G47: =+G46+G25 -> 182823.71 | H47: 2555138.89

Sheet Tab 61
A1: Tab. 61 – Dettaglio acquisti di servizi sanitari da privato
A2: DETTAGLIO ACQUISTI DI SERVIZI SANITARI - DA PRIVATO | B2: Codice Struttura da classificazione NSIS | C2: Partita IVA (o Codice Fiscale) | D2: Tipologia di prestazione | E2: Anno di competenza | F2: Importo fatturato | H2: Budget / Tetto annuale | I2: Importo liquidato/ certificato | J2: Importo Rilevato in Co.Ge. | K2: Importo delle note di credito richieste | L2: Importo delle note di credito ricevute | M2: Importo pagato
B3: Codice Struttura Sts11 | C3: Partita Iva | H3: Valore Considerato A Budget Nella Fase Di Liquidazione - Per L'Anno 2008 E Ante Indicare La Parte Residua, Ovvero Il Delta Rilevato Tra Importo Fatturato (Al Netto Di Eventuali Note Di Credito) Ed Il Budget Di Riferimento. | J3: Importo Rilevato In Coge | K3: Importo Delle Note Di Credito Richieste | L3: Importo Delle Note Di Credito Richieste
A4: C.D.C. VILLA SERENA | B4: 130024 | C4: 1220790685 | D4: Ricoveri | E4: 2017 | F4: Regionale | G4: 33366177.37 | H4: 37973805 | I4: =M4+M5 -> 35986707.83 | J4: =G4+G5 -> 38663454.29 | K4: 685149.29 | L4: 0 | M4: =31649844.58+224386.37 -> 31874230.95
F5: Extra-regionale | G5: 5297276.92 | M5: 4112476.88
A6: C.D.C. SYNERGO | B6: 130022 | C6: 62520689 | D6: Ricoveri | E6: 2017 | F6: Regionale | G6: 28533810.6 | H6: 35153521 | I6: =M6+M7 -> 29717196.35 | J6: =G6+G7 -> 35154237.75 | K6: 0 | L6: 0 | M6: 24206697.06
F7: Extra-regionale | G7: 6620427.15 | M7: 5510499.29
A8: C.D.C. VILLA SERENA | B8: 001302 - 001312 | C8: 1220790685 | D8: Residenze protette | E8: 2017 | F8: Regionale | G8: 8901463.07 | H8: 8578336.34 | I8: =M8+M9 -> 8476170.83 | J8: =G8+G9 -> 8901463.07 | K8: 425292.24 | L8: 0 | M8: 8476170.83
F9: Extra-regionale | G9: 0 | M9: 0
A10: C.D.C. VILLA SERENA | B10: 001313 | C10: 1220790685 | D10: R.S.A. | E10: 2017 | F10: Regionale | G10: 2190943.48 | H10: 1813797.24 | I10: =M10+M11 -> 899341.12 | J10: =G10+G11 -> 2190943.48 | K10: 0 | L10: 0 | M10: 899341.12
F11: Extra-regionale | G11: 0 | M11: 0
A12: C.I.S.E. | B12: 130119 | C12: 1741480683 | D12: R.S.A. | E12: 2017 | F12: Regionale | G12: 568133.43 | H12: 737495.64 | I12: =M12+M13 -> 568133.43 | J12: =G12+G13 -> 568133.43 | K12: 518.5 | L12: 518.5 | M12: 568133.43
F13: Extra-regionale | G13: 0 | M13: 0
A14: CASA DI CURA MEDAGLIA D'ORO DE CESARIS S.P.A. | B14: 006246 | C14: 00117030684 | D14: R.S.A. | E14: 2017 | F14: Regionale | G14: 1861252.15 | H14: 2212171.38 | I14: =M14+M15 -> 1719592.41 | J14: =G14+G15 -> 1861252.15 | K14: 0 | L14: 0 | M14: 1719592.41
F15: Extra-regionale | G15: 0 | K15: 0 | L15: 0 | M15: 0
A16: IL GIARDINO | B16: 130108 | C16: 1562130680 | D16: R.A. | E16: 2017 | F16: Regionale | G16: 772775.72 | H16: 772775.72 | I16: =M16+M17 -> 772775.72 | J16: =G16+G17 -> 772775.72 | K16: 18793.01 | L16: 18793.01 | M16: 772775.72
F17: Extra-regionale | G17: 0
A18: TERME DI POPOLI | B18: 018101 | C18: 1125990687 | D18: Termali | E18: 2017 | F18: Regionale | G18: 638219.28 | H18: 769864.53 | I18: =M18+M19 -> 678072.69 | J18: =G18+G19 -> 678072.69 | K18: 1098.1 | L18: 1098.1 | M18: 638219.28
F19: Extra-regionale | G19: 39853.41 | M19: 39853.41
A20: TERME DI CARAMANICO | B20: 018001 | C20: 1113020687 | D20: Termali | E20: 2017 | F20: Regionale | G20: 1699056.09 | H20: 2516304.71 | I20: =M20+M21 -> 1960571.05 | J20: =G20+G21 -> 1960571.05 | K20: 6437.98 | L20: 6437.98 | M20: 1699056.09
F21: Extra-regionale | G21: 261514.96 | M21: 261514.96
A22: IST. DON ORIONE | B22: 130063 | C22: 1105681009 | D22: Riabilitazione | E22: 2017 | F22: Regionale | G22: 3876290.39 | H22: 3919657.15 | I22: =M22+M23 -> 3876290.39 | J22: =G22+G23 -> 3876290.39 | K22: 4601.06 | L22: 4601.06 | M22: 3876290.39
F23: Extra-regionale
A24: FOND. PAPA PAOLO VI | B24: 130060/64/65/79/80/81/82 | C24: 1127170684 | D24: Riabilitazione | E24: 2017 | F24: Regionale | G24: 8693181.4 | H24: 8723716.88 | I24: =M24+M25 -> 8480603.61 | J24: =G24+G25 -> 8693181.4 | K24: 0 | L24: 0 | M24: 8480603.61
F25: Extra-regionale
A26: SAN STEF AR SRL | B26: 130061-130062 | C26: 2014620682 | D26: Riabilitazione | E26: 2017 | F26: Regionale | G26: 1703506.43 | H26: 1703625 | I26: =M26+M27 -> 1644216.75 | J26: =G26+G27 -> 1703506.43 | K26: 0 | L26: 0 | M26: 1644216.75
F27: Extra-regionale
A28: CENTRO DI SOLIDARIETA' ASS.GRUP.S. ONLUS | B28: 130777 | C28: 91002370681 | D28: Riabilitazione | E28: 2017 | F28: Regionale | G28: 187791.24 | H28: 188123.32 | I28: =M28+M29 -> 187791.24 | J28: =G28+G29 -> 187791.24 | K28: 1328.32 | L28: 1328.32 | M28: 187791.24
F29: Extra-regionale
A30: C.D.C. VILLA SERENA | B30: 001301-001314-001315 | C30: 1220790685 | D30: Ambulatoriale Case di Cura | E30: 2017 | F30: Regionale | G30: 3761706.37 | H30: 3706204 | I30: =M30+M31 -> 3011834.68 | J30: =G30+G31 -> 3869565.49 | K30: 0 | L30: 0 | M30: 2928332.18
F31: Extra-regionale | G31: 107859.12 | M31: 83502.5
A32: C.D.C. SYNERGO | B32: 000501-000502-000503 | C32: 62520689 | D32: Ambulatoriale Case di Cura | E32: 2017 | F32: Regionale | G32: 3026363.23 | H32: 3100444 | I32: =M32+M33 -> 2343992.76 | J32: =G32+G33 -> 3100444 | K32: 0 | L32: 0 | M32: 2290042.52
F33: Extra-regionale | G33: 74080.77 | M33: 53950.24
A34: ISTITUTO DON ORIONE | B34: 003101 | C34: 1105681009 | D34: Ambulatoriale Altri Privati | E34: 2017 | F34: Regionale | G34: 139044.78 | H34: 141137 | I34: =M34+M35 -> 124693.19 | J34: =G34+G35 -> 140924.38 | K34: 0 | L34: 0 | M34: 123280.97
F35: Extra-regionale | G35: 1879.6 | M35: 1412.22
A36: CENTRO FISIOCHINESITERAPICO DELLA DOT.MASCI GIOVANNA & C. S.A.S. | B36: 003801 | C36: 1103910681 | D36: Ambulatoriale Altri Privati | E36: 2017 | F36: Regionale | G36: 276800.72 | H36: 274626 | I36: =M36+M37 -> 253311.64 | J36: =G36+G37 -> 278596.1 | K36: 0 | L36: 0 | M36: 251818.82
F37: Extra-regionale | G37: 1795.38 | M37: 1492.82
A38: VUZA MARIA & C S.A.S. | B38: 003601 | C38: 1107760686 | D38: Ambulatoriale Altri Privati | E38: 2017 | F38: Regionale | G38: 215830.7 | H38: 218182 | I38: =M38+M39 -> 180794.91 | J38: =G38+G39 -> 218158 | K38: 4805.07 | L38: 4805.07 | M38: 178898.7
F39: Extra-regionale | G39: 2327.3 | M39: 1896.21
A40: FISIOTER S.A.S. | B40: 003401 | C40: 944790682 | D40: Ambulatoriale Altri Privati | E40: 2017 | F40: Regionale | G40: 396019.48 | H40: 403623 | I40: 355153.26 | J40: =G40+G41 -> 403700.48 | K40: 0 | L40: 0 | M40: 348582.45
F41: Extra-regionale | G41: 7681 | M41: 6570.81
A42: CLINITEST S.R.L. | B42: 010501 | C42: 200370682 | D42: Ambulatoriale Altri Privati | E42: 2017 | F42: Regionale | G42: 51701.42 | H42: 51611 | I42: 0 | J42: =G42+G43 -> 51961.74 | K42: 0 | L42: 0 | M42: 0
F43: Extra-regionale | G43: 260.32 | M43: 0
A44: CO.PAN SAS ISTITUTO DI FISIOKINESITERAPIA | B44: 009151 | C44: 908760689 | D44: Ambulatoriale Altri Privati | E44: 2017 | F44: Regionale | G44: 134225.65 | H44: 135987 | I44: 123678.2 | J44: =G44+G45 -> 135963 | K44: 24223.45 | L44: 24223.45 | M44: 122218.07
F45: Extra-regionale | G45: 1737.35 | M45: 1460.13
A46: 4R SNC STUDIO DI RADIOLOGIA MEDICA | B46: 003701 | C46: 307580688 | D46: Ambulatoriale Altri Privati | E46: 2017 | F46: Regionale | G46: 73778.32 | H46: 75011 | I46: 58187.9 | J46: =G46+G47 -> 73953.64 | K46: 0 | L46: 0 | M46: 58046.08
F47: Extra-regionale | G47: 175.32 | M47: 141.82
A48: COLAROSSI ROBERTO & C. SAS | B48: 004201 | C48: 1339250688 | D48: Ambulatoriale Altri Privati | E48: 2017 | F48: Regionale | G48: 109555.15 | H48: 109575 | I48: 90955.34 | J48: =G48+G49 -> 109555.15 | K48: 0 | L48: 0 | M48: 90955.34
F49: Extra-regionale | G49: 0 | M49: 0
A50: RADIOLOGIA MEDICA REGINA MARGHERITA | B50: 010801 | C50: 322520685 | D50: Ambulatoriale Altri Privati | E50: 2017 | F50: Regionale | G50: 111116.05 | H50: 112961 | I50: 95983.98 | J50: =G50+G51 -> 111463.6 | K50: 198.57 | L50: 198.57 | M50: 95750.7
F51: Extra-regionale | G51: 347.55 | M51: 233.28
A52: BLEU SRL RADIOLOGIA | B52: 004501 | C52: 997880687 | D52: Ambulatoriale Altri Privati | E52: 2017 | F52: Regionale | G52: 363532.6 | H52: 365863 | I52: 284901.85 | J52: =G52+G53 -> 366854.72 | K52: 0 | L52: 0 | M52: 282312.24
F53: Extra-regionale | G53: 3322.12 | M53: 2589.61
A54: DOTT. ROLANDO COLLEVECCHIO | B54: 009601 | C54: 1093440681 | D54: Ambulatoriale Altri Privati | E54: 2017 | F54: Regionale | G54: 25436.35 | H54: 24066 | I54: 0 | J54: =G54+G55 -> 25436.35 | K54: 0 | L54: 0 | M54: 0
F55: Extra-regionale | G55: 0 | M55: 0
A56: CONSORZIO GRUPPO ATQ | C56: 1959880681 | D56: Ambulatoriale Altri Privati | E56: 2017 | F56: Regionale | G56: 1012094.58 | H56: 1035060 | I56: 797923.45 | J56: =G56+G57 -> 1021387.81 | K56: 0 | L56: 0 | M56: 790679.76
F57: Extra-regionale | G57: 9293.23 | M57: 7243.69
A58: LIFECARE S.R.L. | C58: 3435870286 | D58: Ambulatoriale Altri Privati | E58: 2017 | F58: Regionale | G58: 575281.22 | H58: 560947 | I58: 423343.4 | J58: =G58+G59 -> 582941.86 | K58: 0 | L58: 0 | M58: 417763.38
F59: Extra-regionale | G59: 7660.64 | K59: 0 | L59: 0 | M59: 5580.02
A60: DOTT.SSA ORLANDI | B60: 014401 | C60: 1212420689 | D60: Branche a visita | E60: 2017 | F60: Regionale | G60: 12810.18 | H60: 22554 | I60: 10683.17 | J60: =G60+G61 -> 12810.18 | K60: 0 | L60: 0 | M60: 10683.17
F61: Extra-regionale | G61: 0 | M61: 0
A62: DOTT. MINICUCCI | B62: 006001 | C62: 1887300687 | D62: Branche a visita | E62: 2017 | F62: Regionale | G62: 17868.61 | H62: 22706 | I62: 14866.46 | J62: =G62+G63 -> 17868.61 | K62: 0 | L62: 0 | M62: 14866.46
F63: Extra-regionale | G63: 0 | M63: 0

Sheet Tab 61bis
C2: Tabella 61-bis
A3: Dettaglio acquisti da privato di prestazioni non rientranti nei contratti negoziali (Acquisti Diretti)
A4: Struttura privata erogante | B4: Tipologia assistenza/prestazione | C4: Totale prestazione
A5: VILLA SERENA DR.L.PETRUZZI S.R.L. | B5: Specialistica ambulatoriale | C5: 2664.58
A6: CONTO 0702010313 - Servizi sanitari da case di cura private - per cittadini residenti acquistate fuori contratti negoziali in strutture entro regione (assistenza specialistica ambulatoriale) | C6: =SUM(C5) -> 2664.58
A7: LIFECARE S.R.L. | B7: Specialistica ambulatoriale | C7: 2298.15
A8: CONTO 0702010321 - Servizi sanitari da altri soggetti privati - per cittadini residenti acquistate fuori contratti negoziali in strutture entro regione (assistenza specialistica ambulatoriale) | C8: =SUM(C7) -> 2298.15
A9: LEGA DEL FILO D'ORO | B9: Riabilitazione ex art. 26 | C9: 8495.26
A10: OPERA PIA ESSA G.MANCINELLIMONTELPARO | B10: Riabilitazione ex art. 26 | C10: 96623.44
A11: CASA DIVINA PROVVIDENZA | B11: Riabilitazione ex art. 26 | C11: 233443.16
A12: KOS CARE S.R.L.(EX IST. RIAB. SANTO STEFANO) | B12: Riabilitazione ex art. 26 | C12: 87146.59
A13: CENTRO RIABILITAZIONE MOTORIA PADRE PIO | B13: Riabilitazione ex art. 26 | C13: 26989.9
A14: COOP. LUCE SUL MARE SOC. COOP.SOCIALECENTRO DI RIABILITAZIONE PRIVATO | B14: Riabilitazione ex art. 26 | C14: 89832
A15: IST. DI RIAB. C.A.R.S.I.C. | B15: Riabilitazione ex art. 26 | C15: 48848
A16: CONTO 0702010408 - Da privato accreditato per cittadini residenti acquistate in strutture fuori Regione (Riabilitazione ex art. 26) | C16: =SUM(C9:C15) -> 591378.35
A17: CONSORZIO COOPERATIVE SOCIALI S.G.S. | B17: Assistenza psichiatrica | C17: 770417.52
A18: CONTO 0702010807 - Da privato accreditato per cittadini residenti acquistate fuori contratti negoziali in strutture entro Regione (Strutture Psicoriabilitative) (intraregionale) | C18: =SUM(C17) -> 770417.52
A19: GNOSIS S.C.R.L. | B19: Assistenza psichiatrica | C19: 109019.27
A20: COOPERATIVA ARL RAYMOND GLEDHILL ONLUS | B20: Assistenza psichiatrica | C20: 55128.15
A21: SOGEPI S.R.L. | B21: Assistenza psichiatrica | C21: 94170
A22: LA GOCCIA SOC.COOP.SOCIALE | B22: Assistenza psichiatrica | C22: 257065.13
A23: INVESTIMENTI CERESIO SRL | B23: Assistenza psichiatrica | C23: 150102
A24: SERENITY HOUSE EAGLES SRLCASA DI RIPOSO-CASA PROTETTA- | B24: Assistenza psichiatrica | C24: 84554.8
A25: ATENA SRL | B25: Assistenza psichiatrica | C25: 566884.4
A26: ITALIAN HOSPITAL GROUP | B26: Assistenza psichiatrica | C26: 46698
A27: RESIDENZE ANNI AZZURRI S.R.L. | B27: Assistenza psichiatrica | C27: 12069.26
A28: ABITARE IL TEMPO SRL | B28: Assistenza psichiatrica | C28: 87062.5
A29: SERENI ORIZZONTI SPA | B29: Assistenza psichiatrica | C29: 395958.7
A30: GES.CA.S. VILLA ARMONIA NUOVA SRL | B30: Assistenza psichiatrica | C30: 6042.6
A31: COOP.STELLA SOC.COOPERATIVA SOC. | B31: Assistenza psichiatrica | C31: 7644
A32: CONTO 0702010809 - Da privato accreditato per cittadini residenti acquistate in strutture fuori Regione (Strutture Psicoriabilitative) (extraregionale) | C32: =SUM(C19:C31) -> 1872398.81
A33: DIAVERUM ITALIA SRL | B33: Assistenza geriatrica | C33: 891013.35
A34: CONTO 0702011225 - Altre prestazioni socio sanitarie a rilevanza sanitaria da privato (intraregionale e extraregionale) | C34: =SUM(C33) -> 891013.35
A35: A.S.P. PAOLO RICCI AZ.PUBBLICA DI SERVIZ | B35: Assistenza geriatrica | C35: 20509.2
A36: AKKANTO SOCIETA' COOPERATIVA SOC.ONLUS | B36: Assistenza geriatrica | C36: 35335.87
A37: A.N.F.F.A.S. ONLUS CONERO | B37: Assistenza geriatrica | C37: 19750.15
A38: CONTO 0702011226 - Da privato accreditato per assistenza geriatrica per cittadini residenti acquistate in strutture fuori Regione (Centri Residenziali) | C38: =SUM(C35:C37) -> 75595.22
A39: CONGREG.PICCOLE SUORE MISSIONARIE DELLACARITA' PICCOLO COTTOLENGO DI DON ORIONE | B39: Assistenza geriatrica | C39: 35386.75
A40: CONTO 0702011227 - Da privato accreditato per assistenza geriatrica per cittadini residenti acquistate in strutture fuori Regione (Residenze Sanitarie Assistite) | C40: =SUM(C39) -> 35386.75
A41: TOTALE GENERALE | C41: =C6+C16+C18+C32+C34+C38+C40 -> 4238854.58

Sheet AS03
A1: AS03 - Consulenze, Collaborazioni, Interinale e altre prestazioni di lavoro sanitarie e sociosanitarie
A3: AS03 - SI | B3: Nell'esercizio sono stati rilevati costi per consulenze, collaborazioni, interinale e altre prestazioni di lavoro sanitarie e sociosanitarie. Si veda dettaglio sottostante per tipologia di prestazione, soggetto fornitore e importo.
A5: Cod. Conto | B5: Descrizione | C5: Fornitore | E5: Importo
A6: 0702011503 | B6: Consulenze sanitarie da privato - articolo 55, comma 2, CCNL 8 giugno 2000 | C6: PERSONALE - VARIE QUALIFICHE | E6: 2372315.18
A7: 0702011503 | B7: Consulenze sanitarie da privato - articolo 55, comma 2, CCNL 8 giugno 2000 | E7: =SUM(E6) -> 2372315.18 | F7: IMPORTO DETTAGLIATO ALLA TABELLA 60-bis
A8: 0702011505 | B8: Consulenze sanitarie e sociosanitarie da privato | C8: RICCI PASQUALE | E8: 1780
A9: 0702011505 | B9: Consulenze sanitarie e sociosanitarie da privato | C9: CECCOMANCINI LIANA | D9: DE CINQUE GIUSEPPE | E9: 600
A10: 0702011505 | B10: Consulenze sanitarie e sociosanitarie da privato | C10: MARANI TORO PATRIZIA | D10: DALLE FESTE ATTILIO | E10: 1602.28
A11: 0702011505 | B11: Consulenze sanitarie e sociosanitarie da privato | C11: STOCCO GIANLUCA | E11: 760.54
A12: 0702011505 | B12: Consulenze sanitarie e sociosanitarie da privato | C12: FINOCCHIO ALESSIO | E12: 199.99
A13: 0702011505 | B13: Consulenze sanitarie e sociosanitarie da privato | C13: BUCCELLA CLAUDIO | E13: 739.99
A14: 0702011505 | B14: Consulenze sanitarie e sociosanitarie da privato | C14: DI MATTEO RAFFAELE | E14: 950
A15: 0702011505 | B15: Consulenze sanitarie e sociosanitarie da privato | C15: ROMANELLI DANTE | E15: 348.77
A16: 0702011505 | B16: Consulenze sanitarie e sociosanitarie da privato | C16: ANGELINI STEFANO | E16: 850
A17: 0702011505 | B17: Consulenze sanitarie e sociosanitarie da privato | C17: INPS | D17: MAZZOTTA ELENA | E17: 173.72
A18: 0702011505 | B18: Totale consulenze sanitarie e sociosanitarie da privato | E18: =SUM(E8:E17) -> 8005.29
A19: 0702011509 | B19: Collaborazioni coordinate e continuative sanitarie | C19: IZZICUPO GERMANO | E19: 370
A20: 0702011509 | B20: Collaborazioni coordinate e continuative sanitarie | C20: MARCELLA ANTONIO | D20: MARCELLA ANTONIO | E20: 1901.99
A21: 0702011509 | B21: Collaborazioni coordinate e continuative sanitarie | C21: FARICELLI MARINO | D21: FARICELLI MARINO | E21: 428.23
A22: 0702011509 | B22: Collaborazioni coordinate e continuative sanitarie | C22: LIBERALE BARBARA | D22: LIBERALE BARBARA | E22: 151.99
A23: 0702011509 | B23: Collaborazioni coordinate e continuative sanitarie | C23: DE ACETIS LUIGI | D23: DE ACETIS LUIGI | E23: 70
A24: 0702011509 | B24: Collaborazioni coordinate e continuative sanitarie | C24: DOMENICONE ANTONIO | D24: DOMENICONE ANTONIO | E24: 5490.91
A25: 0702011509 | B25: Totale Collaborazioni coordinate e continuative sanitarie | E25: =SUM(E19:E24) -> 8413.12
A26: 0702011510 | B26: Indennità a personale universitario - area sanitaria | C26: Università G. d'Annunzio di Chieti | E26: 242210.34
A27: 0702011510 | B27: Totale Indennità a personale universitario - area sanitaria | E27: =SUM(E26) -> 242210.34
A28: 0702011511 | B28: Lavoro interinale - area sanitaria | C28: MANPOWER SRL | E28: 2608784.9
A29: 0702011511 | B29: Totale lavoro interinale - area sanitaria | E29: =SUM(E28) -> 2608784.9
A30: 0702011515 | B30: Altre collaborazioni e prestazioni di lavoro - area sanitaria | C30: Professionisti vari (giudizi medico-legali) | E30: 1378.08
A31: 0702011515 | B31: Totale Altre collaborazioni e prestazioni di lavoro - area sanitaria | E31: =SUM(E30) -> 1378.08
A32: 0702011516 | B32: Personale tirocinante compresi oneri riflessi | C32: MERCURIO ANTONIO | E32: 1800
A33: 0702011516 | B33: Personale tirocinante compresi oneri riflessi | C33: MORETTA SILVIA | E33: 900
A34: 0702011516 | B34: Personale tirocinante compresi oneri riflessi | C34: CECI LORENZO | E34: 900
A35: 0702011516 | B35: Personale tirocinante compresi oneri riflessi | C35: PALUMBO CARLO | E35: 900
A36: 0702011516 | B36: Personale tirocinante compresi oneri riflessi | C36: TORRIERI ANTONELLO | E36: 1800
A37: 0702011516 | B37: Personale tirocinante compresi oneri riflessi | C37: INAIL PESCARA | E37: 691.39
A38: 0702011516 | C38: Totale personale tirocinante compresi oneri riflessi | E38: =SUM(E32:E37) -> 6991.39
A39: 0702011517 | B39: Borsisti compresi oneri riflessi | C39: TARABORRELLI MERILDA | E39: 16059.93
A40: 0702011517 | B40: Borsisti compresi oneri riflessi | C40: FANTASIA DONATELLA | E40: 22942.44
A41: 0702011517 | B41: Borsisti compresi oneri riflessi | C41: SCIACCA ANTONINA | E41: 4004.42
A42: 0702011517 | B42: Borsisti compresi oneri riflessi | C42: ESATTORE FRANCESCA | E42: 19118.09
A43: 0702011517 | B43: Borsisti compresi oneri riflessi | C43: DI ZACOMO SILVIA | E43: 19103.56
A44: 0702011517 | B44: Borsisti compresi oneri riflessi | C44: MARANI TORO PATRIZIA | E44: 19342.63
A45: 0702011517 | B45: Borsisti compresi oneri riflessi | C45: BRATTELLI ANTONELLO | E45: 12802.37
A46: 0702011517 | B46: Borsisti compresi oneri riflessi | C46: SORGENTONE SIMONA | E46: 20489.82
A47: 0702011517 | B47: Borsisti compresi oneri riflessi | C47: RANUCCI ELENA | E47: 23859.49
A48: 0702011517 | B48: Borsisti compresi oneri riflessi | C48: RICCIARDI ILDA ROSARIA | E48: 11218.06
A49: 0702011517 | B49: Borsisti compresi oneri riflessi | C49: TARICANI STEFANO | E49: 11218.14
A50: 0702011517 | B50: Borsisti compresi oneri riflessi | C50: ZACCAGNINI ALEXIA | E50: 11217.1
A51: 0702011517 | B51: Borsisti compresi oneri riflessi | C51: PERSICO ALESSIA | E51: 10642.44
A52: 0702011517 | B52: Borsisti compresi oneri riflessi | C52: BURATTINI STEFANO | E52: 16519.14
A53: 0702011517 | B53: Borsisti compresi oneri riflessi | C53: D'ALOISIO MARIANNA | E53: 17130.11
A54: 0702011517 | B54: Borsisti compresi oneri riflessi | C54: DELL'ORLETTA ELEONORA | E54: 10783.67
A55: 0702011517 | B55: Borsisti compresi oneri riflessi | C55: PASCALE SILVIA | E55: 18047.96
A56: 0702011517 | B56: Borsisti compresi oneri riflessi | C56: VITULLO FELICE | E56: 29748.56
A57: 0702011517 | B57: Borsisti compresi oneri riflessi | C57: LUCIANI STEFANIA | E57: 11570.08
A58: 0702011517 | B58: Borsisti compresi oneri riflessi | C58: SBARAGLIA VALENTINA | E58: 13746.01
A59: 0702011517 | B59: Borsisti compresi oneri riflessi | C59: DE THOMASIS VALENTINA | E59: 17077.99
A60: 0702011517 | B60: Borsisti compresi oneri riflessi | C60: ANTONUCCI MARIANGELA | E60: 11454.18
A61: 0702011517 | B61: Borsisti compresi oneri riflessi | C61: CONTI LUCIA | E61: 14001.67
A62: 0702011517 | B62: Borsisti compresi oneri riflessi | C62: VENTURA JESSICA | E62: 10188.55
A63: 0702011517 | B63: Borsisti compresi oneri riflessi | C63: SIGISMONDI SARA | E63: 14001.56
A64: 0702011517 | B64: Borsisti compresi oneri riflessi | C64: CEGLIE LUIGI | E64: 14002.67
A65: 0702011517 | B65: Borsisti compresi oneri riflessi | C65: ARGENTIERI ANGELA VALENTINA | E65: 5097.63
A66: 0702011517 | B66: Borsisti compresi oneri riflessi | C66: PERILLI PATRIZIA | E66: 7351.68
A67: 0702011517 | B67: Borsisti compresi oneri riflessi | C67: RICCIUTI GIUSEPPINA | E67: 26231.3
A68: 0702011517 | B68: Borsisti compresi oneri riflessi | C68: CANTO CLAUDIA LUIGIA | E68: 10188.94
A69: 0702011517 | B69: Borsisti compresi oneri riflessi | C69: FARINA VERDIANA | E69: 15855.77
A70: 0702011517 | B70: Borsisti compresi oneri riflessi | C70: SCIARRA PIERPAOLA | E70: 16518.69
A71: 0702011517 | B71: Borsisti compresi oneri riflessi | C71: MIRRA NOEMI | E71: 15272.59
A72: 0702011517 | B72: Borsisti compresi oneri riflessi | C72: D'ADDARIO DORA | E72: 24777.03
A73: 0702011517 | B73: Borsisti compresi oneri riflessi | C73: DI FRANCESCANTONIO ROSSELLA | E73: 1031.83
A74: 0702011517 | B74: Borsisti compresi oneri riflessi | C74: CANNARSA ROBERTA | E74: 14223.61
A75: 0702011517 | B75: Borsisti compresi oneri riflessi | C75: COLAROSSI SABRINA | E75: 13442.13
A76: 0702011517 | B76: Borsisti compresi oneri riflessi | C76: ESPOSITO ANNALISA | E76: 4033.35
A77: 0702011517 | B77: Borsisti compresi oneri riflessi | C77: PERROTTA ELEONORA | E77: 13754.07
A78: 0702011517 | B78: Borsisti compresi oneri riflessi | C78: PETACCIA VALENTINA | E78: 13745.76
A79: 0702011517 | B79: Borsisti compresi oneri riflessi | C79: CRISCI ERIKA | E79: 2007.41
A80: 0702011517 | B80: Borsisti compresi oneri riflessi | C80: VIOLA GIOVANNA | E80: 1396.21
A81: 0702011517 | B81: Borsisti compresi oneri riflessi | C81: DIODATI FEDERICA | E81: 1146.05
A82: 0702011517 | B82: Borsisti compresi oneri riflessi | C82: DONATO SIMONE | E82: 6346.12
A83: 0702011517 | B83: Borsisti compresi oneri riflessi | C83: SPADANO RAFFAELE | E83: 16058.85
A84: 0702011517 | B84: Borsisti compresi oneri riflessi | C84: CAPORALE MARTA | E84: 27529.85
A85: 0702011517 | B85: Borsisti compresi oneri riflessi | C85: ZARA FEDERICA | E85: 13765.04
A86: 0702011517 | B86: Borsisti compresi oneri riflessi | C86: D'ALESSANDRO MASSIMO | E86: 16518.24
A87: 0702011517 | B87: Borsisti compresi oneri riflessi | C87: DI GIOVANNI MICHELA | E87: 8612.78
A88: 0702011517 | B88: Borsisti compresi oneri riflessi | C88: DI CARLO SIMONA | E88: 12981.74
A89: 0702011517 | B89: Borsisti compresi oneri riflessi | C89: FLACCO MARIA ELENA | E89: 20188.55
A90: 0702011517 | B90: Borsisti compresi oneri riflessi | C90: AMICANTONIO ALESSANDRA | E90: 12981.5
A91: 0702011517 | B91: Borsisti compresi oneri riflessi | C91: DI NICOLA LORELLA | E91: 15859.59
A92: 0702011517 | B92: Borsisti compresi oneri riflessi | C92: LAURITA FILOMENA | E92: 11450.39
A93: 0702011517 | B93: Borsisti compresi oneri riflessi | C93: LO STERZO ROSA | E93: 9139.19
A94: 0702011517 | B94: Borsisti compresi oneri riflessi | C94: PELINO LAURA | E94: 13765.75
A95: 0702011517 | B95: Borsisti compresi oneri riflessi | C95: CUCCHIARELLI SILVIA | E95: 11471.44
A96: 0702011517 | B96: Borsisti compresi oneri riflessi | C96: BROCCOLI LEONILDA | E96: 7630.24
A97: 0702011517 | B97: Borsisti compresi oneri riflessi | C97: DI LISO ELISABETTA | E97: 14913
A98: 0702011517 | B98: Borsisti compresi oneri riflessi | C98: RANALLI PAOLA | E98: 10936.41
A99: 0702011517 | B99: Borsisti compresi oneri riflessi | C99: PISCIELLA FLORIANA | E99: 5735.92
A100: 0702011517 | B100: Borsisti compresi oneri riflessi | C100: MASCIA MANLIO | E100: 8278.81
A101: 0702011517 | B101: Borsisti compresi oneri riflessi | C101: MERLA VITALONE STEFANO | E101: 7966.15
A102: 0702011517 | B102: Borsisti compresi oneri riflessi | C102: IANNELLI TIZIANA | E102: 6692.34
A103: 0702011517 | B103: Borsisti compresi oneri riflessi | C103: CLEMENTE KATIA | E103: 6610.48
A104: 0702011517 | B104: Borsisti compresi oneri riflessi | C104: RINCHI ALICE | E104: 5506.9
A105: 0702011517 | B105: Borsisti compresi oneri riflessi | C105: SANTONE CELESTE | E105: 6228.41
A106: 0702011517 | B106: Borsisti compresi oneri riflessi | C106: NARDI IRENE | E106: 2384.1
A107: 0702011517 | B107: Borsisti compresi oneri riflessi | C107: MINISTERO DELLE FINANZE | E107: 1902.44
A108: 0702011517 | B108: Borsisti compresi oneri riflessi | C108: I.N.P.S. | E108: 130528.67
A109: 0702011517 | B109: Borsisti compresi oneri riflessi | C109: IRAP | E109: 25806.98
A110: 0702011517 | B110: Borsisti compresi oneri riflessi | E110: =SUM(E39:E109) -> 1024154.57
A111: 0702011518 | B111: Personale religioso adibito a mansioni umanitarie | C111: BENEFICIARI DIVERSI PERSONALE DIPENDENTE | E111: 22722.98
A112: 0702011518 | B112: Personale religioso adibito a mansioni umanitarie | C112: MINISTERO DELLE FINANZE | D112: 24055.46 | E112: 24639.38
A113: 0702011518 | B113: Personale religioso adibito a mansioni umanitarie | E113: =SUM(E111:E112) -> 47362.36
A114: 0702011519 | B114: Medicina penitenziaria | C114: MEDICI ADDETTI ALLA GUARDIA MEDICA FESTIVA | E114: 11858.88
A115: 0702011519 | B115: Medicina penitenziaria | C115: DODI IDA MADDALENA | E115: 15560
A116: 0702011519 | B116: Medicina penitenziaria | C116: NANNI NANNI GIANLUCA | E116: 19711
A117: 0702011519 | B117: Medicina penitenziaria | C117: SANTURBANO VALERIANO | E117: 23755.82
A118: 0702011519 | B118: Totale Medicina penitenziaria | E118: =SUM(E114:E117) -> 70885.7
A119: VOCE BA 1380 - TOTALE CONSULENZE, COLLABORAZIONI, INTERINALE, ALTRE PRESTAZIONI DI LAVORO SANITARIE E SOCIO-SANITARIE DA PRIVATO | E119: =E7+E18+E25+E27+E29+E31+E110+E113+E118+E38 -> 6390500.93
A123: La voce di CE BA1380 "Consulenze , collaborazioni, interinale e altre prestazioni di lavoro sanitarie e sociosanitarie da privato" ammonta, al 31/12/2017, ad €/000 6.390 ed è aumentata, rispetto al 2016, di circa €/000 687. Tale scostamento è stato determinato prevalentemente dai maggiori costi per lavoro interinale (€/000 + 1.050), in parte finanziati con fondi da Progetti Obiettivo, dovuti al fatto che l'Azienda nel 2017 ha fatto maggiore ricorso a tale tipologia di contratto di lavoro rispetto al 2016. Dall'altro lato, si sono ridotti i costi per consulenze sanitarie da privato ex art. 55, comma 2, CCNL 8 giugno 2000, per €/000 - 283, a cui l'Azienda ha fatto ricorso per fronteggiare le urgenze o per potenziare alcuni servizi sanitari (ad esempio il terzo turno di dialisi).

Sheet AS04
A1: AS04 - Consulenze, Collaborazioni, Interinale e altre prestazioni di lavoro non sanitarie
A3: AS04 - SI | B3: Nell'esercizio sono stati rilevati costi per consulenze, collaborazioni, interinale e altre prestazioni di lavoro non sanitarie. Si veda dettaglio sottostante per tipologia prestazione, soggetto fornitore e importo.
A5: Dettaglio composizione voce BA1790 Consulenze non sanitarie da privato Consuntivo 2017
A6: TIPOLOGIA | B6: DURATA CONTRATTO | C6: DECORRENZA | D6: IMPORTO IMPUTATO A CE CONSUNTIVO 2017
A7: Consulenze tecniche | B7: Incarico professionale a prestazione unica | D7: 37124.1
A8: Consulenze legali | B8: Incarico professionale a prestazione unica | D8: 481583.35
A9: Totale voce BA1790 CONSUNTIVO 2017 | D9: =SUM(D7:D8) -> 518707.45
A12: DETTAGLIO VOCE CE BA1780 - "CONSULENZE, COLLABORAZIONI, INTERINALE E ALTRE PRESTAZIONI DI LAVORO NON SANITARIE DA PRIVATO"
A14: Cod. Conto | B14: Descrizione | C14: Fornitore | D14: Importo
A15: 0702020204 | B15: Consulenze tecniche | C15: MARTELLA ING. ACHILLE CLAUDIO | D15: 1903.2
A16: 0702020204 | B16: Consulenze tecniche | C16: POMPONIO MICHELE | D16: 1091.38
A17: 0702020204 | B17: Consulenze tecniche | C17: PROSPERI ANTONINO | D17: 13246.87
A18: 0702020204 | B18: Consulenze tecniche | C18: IEZZI MIRCO | D18: 507.52
A19: 0702020204 | B19: Consulenze tecniche | C19: DELLA PENNA MAURO | D19: 6344
A20: 0702020204 | B20: Consulenze tecniche | C20: PARISIO MATTEO | D20: 3086.53
A21: 0702020204 | B21: Consulenze tecniche | C21: ARCH.FRANCO FELICIANI ENERGY MANAGER | D21: 6100
A22: 0702020204 | B22: Consulenze tecniche | C22: DI SALVATORE ARIANNA | D22: 4440.8
A23: 0702020204 | B23: Consulenze tecniche | C23: SETTA CARLO | D23: 403.8
A24: 0702020204 | B24: Totale consulenze tecniche | D24: =SUM(D15:D23) -> 37124.1
A25: 0702020205 | B25: Consulenze legali | C25: CERCEO GIULIO STUDIO LEGALE | D25: 17442.78
A26: 0702020205 | B26: Consulenze legali | C26: RUSSI AVV. DOMENICO | D26: 45680.8
A27: 0702020205 | B27: Consulenze legali | C27: STUDIO LEGALE AVV.TI TENAGLIA | D27: 13727.31
A28: 0702020205 | B28: Consulenze legali | C28: MARCHESE TOMMASO | D28: 64415.45
A29: 0702020205 | B29: Consulenze legali | C29: MODESTI ANDREA | D29: 14418.48
A30: 0702020205 | B30: Consulenze legali | C30: ANGIOLELLI DANTE AVV. | D30: 149471.06
A31: 0702020205 | B31: Consulenze legali | C31: ALESSANDRINI PIETRO | D31: 8615.29
A32: 0702020205 | B32: Consulenze legali | C32: RIARIO SFORZA MARCO AVV. | D32: 1415.98
A33: 0702020205 | B33: Consulenze legali | C33: ROSSI STEFANO | D33: 26671.89
A34: 0702020205 | B34: Consulenze legali | C34: SURRICCHIO LUCIA | D34: 9999.94
A35: 0702020205 | B35: Consulenze legali | C35: D'OVIDIO ANTONIO | D35: 3647.8
A36: 0702020205 | B36: Consulenze legali | C36: GIANCOLA TETI & ASSOCIATI | D36: 36399.98
A37: 0702020205 | B37: Consulenze legali | C37: ANTONUCCI VINCENZO AVV. | D37: 5202.59
A38: 0702020205 | B38: Consulenze legali | C38: LUPO TIMINI LORENZO | D38: 19475.97
A39: 0702020205 | B39: Consulenze legali | C39: NIEDDU FABIO | D39: 12065.05
A40: 0702020205 | B40: Consulenze legali | C40: FAIETA ANTONELLA | D40: 6735.04
A41: 0702020205 | B41: Consulenze legali | C41: GENTILINI FEDERICO | D41: 14997.99
A42: 0702020205 | B42: Consulenze legali | C42: DE FEBIS ALESSANDRA | D42: 3995.07
A43: 0702020205 | B43: Consulenze legali | C43: LA MORGIA CAMILLO | D43: 4172.49
A44: 0702020205 | B44: Consulenze legali | C44: DI IORIO DANIELE | D44: 297.53
A45: 0702020205 | B45: Consulenze legali | C45: MUNDO CARLA | D45: 17627.94
A46: 0702020205 | B46: Consulenze legali | C46: VALENTE ANGELO | D46: 5106.92
A47: 0702020205 | B47: Totale consulenze legali | D47: =SUM(D25:D46) -> 481583.35
A48: TOTALE CONSULENZE NON SANITARIE DA PRIVATO (Voce BA1790) | D48: =D24+D47 -> 518707.45
A50: 0702020215 | B50: Collaborazioni coordinate e continuative non sanitarie da privato - ruolo amministrativo | C50: LORENZINI VINCENZO | D50: 11255.51
A51: 0702020215 | B51: Collaborazioni coordinate e continuative non sanitarie da privato - ruolo amministrativo | C51: INPS | D51: 2279.88
A52: 0702020215 | B52: Collaborazioni coordinate e continuative non sanitarie da privato - ruolo amministrativo | D52: =SUM(D50:D51) -> 13535.39
A53: TOTALE COLLABORAZIONI COORDINATE E CONTINUATIVE NON SANITARIE DA PRIVATO (Voce BA1800) | D53: =D52 -> 13535.39
A55: 0702020223 | B55: Personale religioso adibito a mansioni non sanitarie | C55: PROBI MARIO | D55: 22800.01
A56: 0702020223 | B56: Personale religioso adibito a mansioni non sanitarie | C56: CURIA METROPOLITANA PESCARA-PENNE | D56: 6000
A57: 0702020223 | B57: Personale religioso adibito a mansioni non sanitarie | C57: SEDOGO WENDE GOUDA ALBERT | D57: 22799.97
A58: 0702020223 | B58: Personale religioso adibito a mansioni non sanitarie | C58: LIBAKATA BOIKANI | D58: 22800.52
A59: 0702020223 | B59: Personale religioso adibito a mansioni non sanitarie | C59: DIOCESI SULMONA-VALVA | D59: 2700
A60: 0702020223 | B60: Personale religioso adibito a mansioni non sanitarie | C60: MANDELLI GIANCARLO | D60: 15200.04
A61: 0702020223 | B61: Personale religioso adibito a mansioni non sanitarie | C61: INPS | D61: 17569.87
A62: 0702020223 | B62: Personale religioso adibito a mansioni non sanitarie | C62: IRAP | D62: 7511.65
A63: 0702020223 | B63: Totale personale religioso adibito a mansioni non sanitarie | D63: =SUM(D55:D62) -> 117382.06
A64: ALTRE COLLABORAZIONI E PRESTAZIONI DI LAVORO - AREA NON SANITARIA (Voce BA1830) | D64: =D63 -> 117382.06
A65: VOCE BA 1780 - TOTALE CONSULENZE, COLLABORAZIONI, INTERINALE E ALTRE PRESTAZIONI DI LAVORO NON SANITARIE DA PRIVATO | D65: =D48+D53+D64 -> 649624.9
A67: La voce di CE BA1780 "Consulenze , collaborazioni, interinale e altre prestazioni di lavoro non sanitarie da privato" ammonta, al 31/12/2017, ad €/000 650 e si è ridotta, rispetto al 2016, di circa €/000 82. Tale scostamento è dovuto principalmente alla riduzione dei costi per consulenze tecniche (- €/000 224), parzialmente compensato dall'incremento delle spese per consulenze legali, il cui ammontare può subire alcune variazioni, da un anno all'altro, in relazione al numero ed all'esito dei contenziosi conclusi nel corso dell'esercizio. Il costo delle consulenze tecniche è diminuito in quanto nel 2017 è venuta meno la spesa relativa all'incarico del broker per la gara dell'assicurazione RCT, espletata nel precedente esercizio.

Sheet Tab 62
B1: Tab. 62 – Dettaglio acquisti di servizi non sanitari
A2: CODICE MOD. CE | B2: DETTAGLIO ACQUISTI DI SERVIZI NON SANITARI | C2: ="Valore CE " &'00 Aggregatore'!$F$2 -> Valore CE 2017 | D2: ="Valore CE " &'00 Aggregatore'!$F$2 -1 -> Valore CE 2016 | E2: Variazioni importo | F2: %
B4: SERVIZI NON SANITARI | C4: =SUM(C5:C18) -> 35538780.36 | D4: =SUM(D5:D18) -> 36561957.62 | E4: =C4-D4 -> -1023177.26 | F4: =IF(AND(C4=0,D4=0),0,IF(C4=0,"",IF(D4=0,"",E4/D4))) -> -0.02798475045
A5: BA1580 | B5: Lavanderia | C5: =SUMIF('00 CE'!$B:$B,'Tab 62'!$A5,'00 CE'!G:G) -> 5274953.32 | D5: =SUMIF('00 CE'!$B:$B,'Tab 62'!$A5,'00 CE'!F:F) -> 6717141.39 | E5: =C5-D5 -> -1442188.07 | F5: =IF(AND(C5=0,D5=0),0,IF(C5=0,"",IF(D5=0,"",E5/D5))) -> -0.214702652
A6: BA1590 | B6: Pulizia | C6: =SUMIF('00 CE'!$B:$B,'Tab 62'!$A6,'00 CE'!G:G) -> 6089443.34 | D6: =SUMIF('00 CE'!$B:$B,'Tab 62'!$A6,'00 CE'!F:F) -> 6128265.69 | E6: =C6-D6 -> -38822.35 | F6: -0.006334965219
A7: BA1600 | B7: Mensa | C7: =SUMIF('00 CE'!$B:$B,'Tab 62'!$A7,'00 CE'!G:G) -> 4117793.49 | D7: =SUMIF('00 CE'!$B:$B,'Tab 62'!$A7,'00 CE'!F:F) -> 3982167.1 | E7: 135626.39 | F7: 0.03405843768
A8: BA1610 | B8: Riscaldamento | C8: =SUMIF('00 CE'!$B:$B,'Tab 62'!$A8,'00 CE'!G:G) -> 1064233.96 | D8: =SUMIF('00 CE'!$B:$B,'Tab 62'!$A8,'00 CE'!F:F) -> 1027893.49 | E8: 36340.47 | F8: 0.03535431477
A9: BA1620 | B9: Servizi di assistenza informatica | C9: =SUMIF('00 CE'!$B:$B,'Tab 62'!$A9,'00 CE'!G:G) -> 1666759.65 | D9: =SUMIF('00 CE'!$B:$B,'Tab 62'!$A9,'00 CE'!F:F) -> 1500622.2 | E9: 166137.45 | F9: 0.1107123765
A10: BA1630 | B10: Servizi trasporti (non sanitari) | C10: =SUMIF('00 CE'!$B:$B,'Tab 62'!$A10,'00 CE'!G:G) -> 9272 | D10: =SUMIF('00 CE'!$B:$B,'Tab 62'!$A10,'00 CE'!F:F) -> 0 | E10: 9272
A11: BA1640 | B11: Smaltimento rifiuti | C11: =SUMIF('00 CE'!$B:$B,'Tab 62'!$A11,'00 CE'!G:G) -> 1384638.63 | D11: =SUMIF('00 CE'!$B:$B,'Tab 62'!$A11,'00 CE'!F:F) -> 1294794.04 | E11: 89844.59 | F11: 0.06938909759
A12: BA1650 | B12: Utenze telefoniche | C12: =SUMIF('00 CE'!$B:$B,'Tab 62'!$A12,'00 CE'!G:G) -> 524835.7 | D12: =SUMIF('00 CE'!$B:$B,'Tab 62'!$A12,'00 CE'!F:F) -> 493458.34 | E12: 31377.36 | F12: 0.06358664442
A13: BA1660 | B13: Utenze elettricità | C13: =SUMIF('00 CE'!$B:$B,'Tab 62'!$A13,'00 CE'!G:G) -> 3156167.9 | D13: =SUMIF('00 CE'!$B:$B,'Tab 62'!$A13,'00 CE'!F:F) -> 3423484.08 | E13: -267316.18 | F13: -0.07808307962
